Workbook

Sheet Deckblatt

Sheet Impressum
F1: Grundsicherung für Arbeitsuchende (SGBII)
A4: Impressum
A7: Produktlinie/Reihe: | C7: Tabellen
A9: Titel: | C9: Kinder in Bedarfsgemeinschaften (Monatszahlen)
A11: Region: | C11: Deutschland, West/Ost, Länder und Kreise
A13: Berichtsmonat: | C13: Juni 2023
A15: Erstellungsdatum: | C15: 2023-10-20
A17: Periodizität: | C17: halbjährlich
A19: Hinweise:
A21: Nächster Veröffentlichungstermin:
C22: 2024-04-22
A24: Herausgeberin: | C24: Bundesagentur für Arbeit
C25: Statistik
A27: Rückfragen an: | C27: Zentraler Statistik-Service
C28: Regensburger Straße 104
C29: 90478 Nürnberg
A30: E-Mail: | C30: Zentraler-Statistik-Service@arbeitsagentur.de
A31: Hotline: | C31: 0911/179-3632
A32: Fax: | C32: 0911/179-1131
A35: Weiterführende statistische Informationen
A37: Internet: | C37: https://statistik.arbeitsagentur.de
A41: Zitierhinweis: | C41: Statistik der Bundesagentur für Arbeit
C42: Tabellen, Kinder in Bedarfsgemeinschaften (Monatszahlen), Nürnberg, Oktober 2023
A44: Nutzungsbedingungen: | C44: © Statistik der Bundesagentur für Arbeit
C45: Sie können Informationen speichern, (auch auszugsweise) mit Quellen-
C46: angabe weitergeben, vervielfältigen und verbreiten. Die Inhalte dürfen
C47: nicht verändert oder verfälscht werden. Eigene Berechnungen sind
C48: erlaubt, jedoch als solche kenntlich zu machen.
C49: Im Falle einer Zugänglichmachung im Internet soll dies in Form einer
C50: Verlinkung auf die Homepage der Statistik der Bundesagentur für Arbeit
C51: erfolgen.
C52: Die Nutzung der Inhalte für gewerbliche Zwecke, ausgenommen Presse,
C53: Rundfunk und Fernsehen und wissenschaftliche Publikationen, bedarf
C54: der Genehmigung durch die Statistik der Bundesagentur für Arbeit.

Sheet Inhalt
F1: Grundsicherung für Arbeitsuchende (SGBII)
A5: Inhaltsverzeichnis
A10: 1. Einführung | F10: 1
A13: 2. Kinder in Bedarfsgemeinschaften
A15: 2.1 Bestand an Kindern in Bedarfsgemeinschaften nach Strukturmerkmalen und Vergleichsmonaten | F15: 2.1
A16: 2.2 Bestand an Kindern unter 18 Jahren in Bedarfsgemeinschaften nach ausgewählten Altersklassen | F16: 2.2
A17: 2.3 Bestand an Kindern nach Alter und BG-Typ | F17: 2.3
A20: 3. Bedarfsgemeinschaften mit Kindern
A22: 3.1 Bestand an Bedarfsgemeinschaften (BG) mit Kindern unter 18 Jahren nach BG-Typ | F22: 3.1
A23: 3.2 Bedarfsgemeinschaften (BG) mit Kindern nach Anzahl der Kinder, BG-Typ | F23: 3.2
B24: und ausgewählten Merkmalen
A25: 3.3 Durchschnittliches Haushaltsbudget von Regelleistungsbedarfsgemeinschaften (RL-BG) | F25: 3.3
B26: mit Kindern unter 18 Jahren nach BG-Typ pro RL-BG in Euro
A29: 4. SGB II-Hilfequoten
A31: 4.1 SGB II-Hilfequote der leistungsberechtigten Kinder unter 18 Jahren in Bedarfsgemeinschaften | F31: 4.1
A32: 4.2 SGB II-Hilfequote der leistungsberechtigten Kinder unter 3 Jahren in Bedarfsgemeinschaften | F32: 4.2
A35: 5. Anteil minderjähriger Kinder in Bedarfsgemeinschaften an der Bevölkerung | F35: 5
A38: Methodische Hinweise 1
A40: Methodische Hinweise 2
A42: Methodische Hinweise 3
A44: Statistik Infoseite
A47: (über das Statistik-Symbol am linken oberen Rand gelangen Sie von jeder Seite auf das Inhaltsverzeichnis zurück)

Sheet 1
F1: Grundsicherung für Arbeitsuchende nach dem SGB II
A4: 1. Einführung
A6: In der vorliegenden Publikation finden Sie Zahlen und Strukturdaten zu den Kindern und Jugendlichen in der Grundsicherung nach dem SGB II. Je nach Fragestellung gibt es unterschiedliche Definitionen des Begriffs "Kind". Grundlegend kann man zwei Ansätze unterscheiden: "Kinder" können definiert werden als Personen in einem frühen Lebensalter und/oder als Personen in einer bestimmten Stellung in einem Haushalt oder einer Bedarfsgemeinschaft (BG). Beide Abgrenzungen finden sich im SGB II.
A12: Kinder nach dem SGB VIII
A13: Im Kinder- und Jugendhilfegesetz gelten alle Bestimmungen, die sich auf die Annahme einer Person als Kind beziehen, nur für Personen, die das 18. Lebensjahr noch nicht vollendet haben (§ 7 Abs.1 (1) SGB VIII). Im Sinne des Jugendschutzgesetzes unterteilen sich diese in Kinder (Personen, die noch nicht 14 Jahre alt sind) und Jugendliche (Personen im Alter von 14 bis unter 18 Jahren) (§ 1 Jugendschutzgesetz).
A17: Im Juni 2023 lebten 1.955.297 Personen unter 18 Jahren in Bedarfsgemeinschaften - darunter 1.560.346 Kinder unter 14 Jahren.
A20: Kinder nach dem SGB II
A21: In der Grundsicherung für Arbeitsuchende wird leistungsrechtlich der Haushaltskontext betrachtet, so dass Kinder (bis unter 25 Jahren) grundsätzlich anhand ihrer Stellung in der Bedarfsgemeinschaft definiert werden. Statistisch können minderjährige und volljährige Kinder nach verschiedenen Altersgrenzen differenziert werden. Kinder unter 15 Jahren gelten als nicht erwerbsfähig.
A25: Im Juni 2023 lebten 1.663.305 Kinder unter 15 Jahren in Bedarfsgemeinschaften.
A27: Kinder in Bedarfsgemeinschaften
A28: Zu einer Bedarfsgemeinschaft gehören grundsätzlich alle erwerbsfähigen Leistungsberechtigten mit deren Ehegatten/Partnern und unverheirateten Kindern, „wenn sie das 25. Lebensjahr noch nicht vollendet haben, soweit sie die Leistungen zur Sicherung ihres Lebensunterhaltes nicht aus eigenem Einkommen oder Vermögen beschaffen können“ (§ 7 Abs. 3 Nr. 4 SGB II).
A32: Im Juni 2023 lebten 2.163.806 unverheiratete Kinder unter 25 Jahren, die Ihren Lebensunterhalt nicht aus eigenem Einkommen oder Vermögen beschaffen konnten, in Bedarfsgemeinschaften.
A34: Zur Typisierung von Bedarfsgemeinschaften werden nur die Informationen über minderjährige, unverheiratete Kinder herangezogen. Volljährige Kinder bis zur Vollendung des 25. Lebensjahres werden bei der Typisierung nicht berücksichtigt, was bedeutet, dass z.B. eine Bedarfsgemeinschaft mit zwei Ehegatten und einem 20jährigen Sohn als Paar ohne Kinder geführt wird. Verheiratete minderjährige Personen oder Personen unter 18 Jahren mit Kind und Partner bilden eigene Bedarfsgemeinschaften, in denen sie selbst nicht als Kind gezählt werden.
A39: Im Juni 2023 lebten 1.945.915 minderjährige unverheiratete Kinder unter 18 Jahren in Bedarfsgemeinschaften.
A40: Bedarfsgemeinschaften mit minderjährigen Kindern können nach alleinerziehenden BG und Partner-BG mit Kindern differenziert werden.
A42: Im Juni 2023 gab es 1.010.635 Bedarfsgemeinschaften mit Kindern (35% aller BG) - 558.787 davon waren Alleinerziehende-BG und 449.023 Partner-BG mit Kindern.
A45: Regelbedarfssätze von (minderjährigen und unverheirateten) Kindern und Jugendlichen unter 25 Jahren
A46: (nach § 20 SGB II); Stand: 01.01.2023
A47: Regelbedarfsstufe 3 | B47: (Volljährige von 18 bis unter 25 Jahre) | D47: 402 Euro
A48: Regelbedarfsstufe 4 | B48: (Jugendliche von 14 bis unter 18 Jahre): | D48: 420 Euro
A49: Regelbedarfsstufe 5 | B49: (Kinder von 6 bis unter 14 Jahre): | D49: 348 Euro
A50: Regelbedarfsstufe 6 | B50: (Kinder von 0 bis unter 6 Jahre): | D50: 318 Euro
A51: Im Juni 2023 gab es 657.356 Kinder unter 6 Jahren, 902.989 im Alter von 6 bis unter 14 Jahren, 385.569 Jugendliche von 14 bis unter 18 Jahren und 217.891 volljährige Personen von 18 bis unter 25 Jahren, die noch bei den Eltern lebten.
A55: Kinder mit bedarfsdeckendem Einkommen
A56: Es gibt Personen innerhalb von Bedarfsgemeinschaften, die individuell keine Leistungen beziehen, jedoch als Personen einer Bedarfsgemeinschaft gezählt werden. Dabei handelt es sich vor allem um Kinder (bis zum 25. Lebensjahr), die in der Bedarfsgemeinschaft der Eltern leben und deren Einkommen den eigenen Bedarf übersteigt. Nach den Bestimmungen des SGB II verbleibt das Einkommen eines Kindes (z.B. Unterhaltszahlungen oder Einkommen aus Erwerbstätigkeit) beim Kind und muss nicht zur Bedarfsdeckung der übrigen Mitglieder der Bedarfsgemeinschaft eingesetzt werden (Ausnahme: Kindergeld). Die Kinder mit ausreichendem Einkommen haben daher keinen individuellen Leistungsanspruch im SGB II.
A62: Im Juni 2023 gab es 96.213 minderjährige unverheiratete Kinder ohne Leistungsanspruch (KOL).

Sheet 2.1
J1: Grundsicherung für Arbeitsuchende (SGBII)
A3: =CONCATENATE(A5&A4) -> 2.1 Entwicklung des Bestands an Kindern unter 18 Jahren in Bedarfsgemeinschaften - Deutschland
A4: ='2.1 roh'!$A$1 -> Deutschland
A5: 2.1 Entwicklung des Bestands an Kindern unter 18 Jahren in Bedarfsgemeinschaften -
A17: Tabelle 2.1 Bestand an Kindern in Bedarfsgemeinschaften nach Strukturmerkmalen und Vergleichsmonaten
A20: Berichtsmonat Juni 2023
A21: Bund, Länder, Kreise und kreisfreie Städte
A23: Merkmal | C23: Juni 2023 | D23: Juni 2022 | E23: Juni 2021 | F23: Juni 2020 | G23: Juni 2019 | H23: Juni 2018 | I23: Veränder-ung Juni 2023 zu Juni 2022 in % | J23: Veränder-ung Juni 2023 zu Juni 2018 in %
C24: 1 | D24: 2 | E24: 3 | F24: 4 | G24: 5 | H24: 6 | I24: 7 | J24: 8
A25: Personen unter 18 Jahren2) | C25: =IF('Vorl 2.1'!D14=".",".",IF('Vorl 2.1'!D14-'Vorl 2.1'!D15<3,IF('Vorl 2.1'!D14-'Vorl 2.1'!D15>0,"*",'Vorl 2.1'!D14),'Vorl 2.1'!D14)) -> 1955296.922 | D25: =IF('Vorl 2.1'!E14=".",".",IF('Vorl 2.1'!E14-'Vorl 2.1'!E15<3,IF('Vorl 2.1'!E14-'Vorl 2.1'!E15>0,"*",'Vorl 2.1'!E14),'Vorl 2.1'!E14)) -> 1917026 | E25: =IF('Vorl 2.1'!F14=".",".",IF('Vorl 2.1'!F14-'Vorl 2.1'!F15<3,IF('Vorl 2.1'!F14-'Vorl 2.1'!F15>0,"*",'Vorl 2.1'!F14),'Vorl 2.1'!F14)) -> 1851339 | F25: =IF('Vorl 2.1'!G14=".",".",IF('Vorl 2.1'!G14-'Vorl 2.1'!G15<3,IF('Vorl 2.1'!G14-'Vorl 2.1'!G15>0,"*",'Vorl 2.1'!G14),'Vorl 2.1'!G14)) -> 1932432 | G25: =IF('Vorl 2.1'!H14=".",".",IF('Vorl 2.1'!H14-'Vorl 2.1'!H15<3,IF('Vorl 2.1'!H14-'Vorl 2.1'!H15>0,"*",'Vorl 2.1'!H14),'Vorl 2.1'!H14)) -> 1935754 | H25: =IF('Vorl 2.1'!I14=".",".",IF('Vorl 2.1'!I14-'Vorl 2.1'!I15<3,IF('Vorl 2.1'!I14-'Vorl 2.1'!I15>0,"*",'Vorl 2.1'!I14),'Vorl 2.1'!I14)) -> 2016496 | I25: =IF(ISNUMBER((C25-D25)/D25%),((C25-D25)/D25%),"X") -> 1.996369493 | J25: =IF(ISNUMBER((C25-H25)/H25%),((C25-H25)/H25%),"X") -> -3.034921853
A26: Kinder unter 18 Jahren3) | C26: ='Vorl 2.1'!D15 -> 1945914.954 | D26: ='Vorl 2.1'!E15 -> 1908308 | E26: ='Vorl 2.1'!F15 -> 1845907 | F26: ='Vorl 2.1'!G15 -> 1926441 | G26: ='Vorl 2.1'!H15 -> 1928648 | H26: ='Vorl 2.1'!I15 -> 2007275 | I26: =IF(ISNUMBER((C26-D26)/D26%),((C26-D26)/D26%),"X") -> 1.970696236 | J26: =IF(ISNUMBER((C26-H26)/H26%),((C26-H26)/H26%),"X") -> -3.056882892
A27: dav.
A28: nicht erwerbsfähige Leistungsberechtigte (NEF) | C28: ='Vorl 2.1'!D18 -> 1521965.503 | D28: ='Vorl 2.1'!E18 -> 1488180 | E28: ='Vorl 2.1'!F18 -> 1430927 | F28: ='Vorl 2.1'!G18 -> 1522247 | G28: ='Vorl 2.1'!H18 -> 1543081 | H28: ='Vorl 2.1'!I18 -> 1609270 | I28: =IF(ISNUMBER((C28-D28)/D28%),((C28-D28)/D28%),"X") -> 2.270256486 | J28: =IF(ISNUMBER((C28-H28)/H28%),((C28-H28)/H28%),"X") -> -5.425099395
A29: erwerbsfähige Leistungsberechtigte (ELB) | C29: ='Vorl 2.1'!D19 -> 255626.7867 | D29: ='Vorl 2.1'!E19 -> 242241 | E29: ='Vorl 2.1'!F19 -> 225115 | F29: ='Vorl 2.1'!G19 -> 224555 | G29: ='Vorl 2.1'!H19 -> 222817 | H29: ='Vorl 2.1'!I19 -> 234642 | I29: =IF(ISNUMBER((C29-D29)/D29%),((C29-D29)/D29%),"X") -> 5.525813821 | J29: =IF(ISNUMBER((C29-H29)/H29%),((C29-H29)/H29%),"X") -> 8.943320744
A30: sonstige Leistungsberechtigte (SLB) | C30: =IF(C79="*",IF(C79="-",'Vorl 2.1'!D20,"*"),'Vorl 2.1'!D20) -> 53419.2052 | D30: =IF(D79="*",IF(D79="-",'Vorl 2.1'!E20,"*"),'Vorl 2.1'!E20) -> 55008 | E30: =IF(E79="*",IF(E79="-",'Vorl 2.1'!F20,"*"),'Vorl 2.1'!F20) -> 49430 | F30: =IF(F79="*",IF(F79="-",'Vorl 2.1'!G20,"*"),'Vorl 2.1'!G20) -> 39337 | G30: =IF(G79="*",IF(G79="-",'Vorl 2.1'!H20,"*"),'Vorl 2.1'!H20) -> 39636 | H30: =IF(H79="*",IF(H79="-",'Vorl 2.1'!I20,"*"),'Vorl 2.1'!I20) -> 40010 | I30: =IF(ISNUMBER((C30-D30)/D30%),(IF((C30-D30)/D30%<250,(C30-D30)/D30%,".X")),"X") -> -2.888297693 | J30: =IF(ISNUMBER((C30-H30)/H30%),(IF((C30-H30)/H30%<250,(C30-H30)/H30%,".X")),"X") -> 33.51463435
A31: Kinder ohne Leistungsanspruch (KOL) | C31: ='Vorl 2.1'!D21 -> 96212.83416 | D31: ='Vorl 2.1'!E21 -> 104102 | E31: ='Vorl 2.1'!F21 -> 122207 | F31: ='Vorl 2.1'!G21 -> 123701 | G31: ='Vorl 2.1'!H21 -> 108731 | H31: ='Vorl 2.1'!I21 -> 111073 | I31: =IF(ISNUMBER((C31-D31)/D31%),((C31-D31)/D31%),"X") -> -7.578303817 | J31: =IF(ISNUMBER((C31-H31)/H31%),((C31-H31)/H31%),"X") -> -13.37873816
A32: vom Leistungsanspruch ausgeschlossene Personen (AUS) | C32: =IF(C30="*","*",'Vorl 2.1'!D22) -> 18690.62493 | D32: =IF(D30="*","*",'Vorl 2.1'!E22) -> 18777 | E32: =IF(E30="*","*",'Vorl 2.1'!F22) -> 18228 | F32: =IF(F30="*","*",'Vorl 2.1'!G22) -> 16601 | G32: =IF(G30="*","*",'Vorl 2.1'!H22) -> 14383 | H32: =IF(H30="*","*",'Vorl 2.1'!I22) -> 12280 | I32: =IF(ISNUMBER((C32-D32)/D32%),(IF((C32-D32)/D32%<250,(C32-D32)/D32%,".X")),"X") -> -0.4600046348 | J32: =IF(ISNUMBER((C32-H32)/H32%),(IF((C32-H32)/H32%<250,(C32-H32)/H32%,".X")),"X") -> 52.20378607
A33: dar.
A34: männlich | C34: ='Vorl 2.1'!D24 -> 1003300.323 | D34: ='Vorl 2.1'!E24 -> 982718 | E34: ='Vorl 2.1'!F24 -> 952711 | F34: ='Vorl 2.1'!G24 -> 994627 | G34: ='Vorl 2.1'!H24 -> 996033 | H34: ='Vorl 2.1'!I24 -> 1036455 | I34: =IF(ISNUMBER((C34-D34)/D34%),((C34-D34)/D34%),"X") -> 2.094428199 | J34: =IF(ISNUMBER((C34-H34)/H34%),((C34-H34)/H34%),"X") -> -3.198853505
A35: weiblich | C35: ='Vorl 2.1'!D25 -> 942614.631 | D35: ='Vorl 2.1'!E25 -> 925397 | E35: ='Vorl 2.1'!F25 -> 893096 | F35: ='Vorl 2.1'!G25 -> 931707 | G35: ='Vorl 2.1'!H25 -> 932524 | H35: ='Vorl 2.1'!I25 -> 970726 | I35: =IF(ISNUMBER((C35-D35)/D35%),((C35-D35)/D35%),"X") -> 1.860566981 | J35: =IF(ISNUMBER((C35-H35)/H35%),((C35-H35)/H35%),"X") -> -2.89591182
A36: dar.
A37: Ausländer1) 5) | C37: ='Vorl 2.1'!D27 -> 930858.8368 | D37: ='Vorl 2.1'!E27 -> 851084 | E37: ='Vorl 2.1'!F27 -> 679884 | F37: ='Vorl 2.1'!G27 -> 691773 | G37: ='Vorl 2.1'!H27 -> 676898 | H37: ='Vorl 2.1'!I27 -> 662621 | I37: =IF(ISNUMBER((C37-D37)/D37%),((C37-D37)/D37%),"X") -> 9.373321178 | J37: =IF(ISNUMBER((C37-H37)/H37%),((C37-H37)/H37%),"X") -> 40.48133651
A38: dar.
A39: unter 15 Jahren | C39: ='Vorl 2.1'!D29 -> 1663305.333 | D39: ='Vorl 2.1'!E29 -> 1639344 | E39: ='Vorl 2.1'!F29 -> 1592653 | F39: ='Vorl 2.1'!G29 -> 1668760 | G39: ='Vorl 2.1'!H29 -> 1676287 | H39: ='Vorl 2.1'!I29 -> 1743970 | I39: =IF(ISNUMBER((C39-D39)/D39%),((C39-D39)/D39%),"X") -> 1.461641523 | J39: =IF(ISNUMBER((C39-H39)/H39%),((C39-H39)/H39%),"X") -> -4.62534719
A40: dav.
A41: unter 3 Jahren | C41: ='Vorl 2.1'!D31 -> 302608.1315 | D41: ='Vorl 2.1'!E31 -> 309578 | E41: ='Vorl 2.1'!F31 -> 320277 | F41: ='Vorl 2.1'!G31 -> 348730 | G41: ='Vorl 2.1'!H31 -> 365626 | H41: ='Vorl 2.1'!I31 -> 385753 | I41: =IF(ISNUMBER((C41-D41)/D41%),((C41-D41)/D41%),"X") -> -2.251409484 | J41: =IF(ISNUMBER((C41-H41)/H41%),((C41-H41)/H41%),"X") -> -21.55391363
A42: 3 bis unter 6 Jahren | C42: ='Vorl 2.1'!D32 -> 354748.3555 | D42: ='Vorl 2.1'!E32 -> 359502 | E42: ='Vorl 2.1'!F32 -> 353787 | F42: ='Vorl 2.1'!G32 -> 364965 | G42: ='Vorl 2.1'!H32 -> 355335 | H42: ='Vorl 2.1'!I32 -> 366811 | I42: =IF(ISNUMBER((C42-D42)/D42%),((C42-D42)/D42%),"X") -> -1.322285972 | J42: =IF(ISNUMBER((C42-H42)/H42%),((C42-H42)/H42%),"X") -> -3.28851766
A43: 6 bis unter 15 Jahren | C43: ='Vorl 2.1'!D33 -> 1005948.846 | D43: ='Vorl 2.1'!E33 -> 970264 | E43: ='Vorl 2.1'!F33 -> 918589 | F43: ='Vorl 2.1'!G33 -> 955065 | G43: ='Vorl 2.1'!H33 -> 955326 | H43: ='Vorl 2.1'!I33 -> 991406 | I43: =IF(ISNUMBER((C43-D43)/D43%),((C43-D43)/D43%),"X") -> 3.677849078 | J43: =IF(ISNUMBER((C43-H43)/H43%),((C43-H43)/H43%),"X") -> 1.466891019
A44: 15 bis unter 18 Jahren3) | C44: ='Vorl 2.1'!D34 -> 282609.6213 | D44: ='Vorl 2.1'!E34 -> 268964 | E44: ='Vorl 2.1'!F34 -> 253254 | F44: ='Vorl 2.1'!G34 -> 257681 | G44: ='Vorl 2.1'!H34 -> 252361 | H44: ='Vorl 2.1'!I34 -> 263305 | I44: =IF(ISNUMBER((C44-D44)/D44%),((C44-D44)/D44%),"X") -> 5.073400647 | J44: =IF(ISNUMBER((C44-H44)/H44%),((C44-H44)/H44%),"X") -> 7.331657703
A45: dar. (nach Regelbedarfsaltersstufen)4)
A46: unter 6 Jahren | C46: ='Vorl 2.1'!D36 -> 657356.487 | D46: ='Vorl 2.1'!E36 -> 669080 | E46: ='Vorl 2.1'!F36 -> 674064 | F46: ='Vorl 2.1'!G36 -> 713695 | G46: ='Vorl 2.1'!H36 -> 720961 | H46: ='Vorl 2.1'!I36 -> 752564 | I46: =IF(ISNUMBER((C46-D46)/D46%),((C46-D46)/D46%),"X") -> -1.752184039 | J46: =IF(ISNUMBER((C46-H46)/H46%),((C46-H46)/H46%),"X") -> -12.65108522
A47: 6 bis unter 14 Jahren | C47: ='Vorl 2.1'!D37 -> 902989.3829 | D47: ='Vorl 2.1'!E37 -> 870496 | E47: ='Vorl 2.1'!F37 -> 827351 | F47: ='Vorl 2.1'!G37 -> 861236 | G47: ='Vorl 2.1'!H37 -> 861690 | H47: ='Vorl 2.1'!I37 -> 896041 | I47: =IF(ISNUMBER((C47-D47)/D47%),((C47-D47)/D47%),"X") -> 3.732743502 | J47: =IF(ISNUMBER((C47-H47)/H47%),((C47-H47)/H47%),"X") -> 0.7754536758
A48: 14 bis unter 18 Jahren | C48: ='Vorl 2.1'!D38 -> 385569.084 | D48: ='Vorl 2.1'!E38 -> 368732 | E48: ='Vorl 2.1'!F38 -> 344492 | F48: ='Vorl 2.1'!G38 -> 351510 | G48: ='Vorl 2.1'!H38 -> 345997 | H48: ='Vorl 2.1'!I38 -> 358670 | I48: =IF(ISNUMBER((C48-D48)/D48%),((C48-D48)/D48%),"X") -> 4.56621178 | J48: =IF(ISNUMBER((C48-H48)/H48%),((C48-H48)/H48%),"X") -> 7.499674916
A49: Nachrichtlich: Personen unter 25 Jahren | C49: ='Vorl 2.1'!D39 -> 2412473.54 | D49: ='Vorl 2.1'!E39 -> 2349073 | E49: ='Vorl 2.1'!F39 -> 2309684 | F49: ='Vorl 2.1'!G39 -> 2434315 | G49: ='Vorl 2.1'!H39 -> 2440936 | H49: ='Vorl 2.1'!I39 -> 2565435 | I49: =IF(ISNUMBER((C49-D49)/D49%),((C49-D49)/D49%),"X") -> 2.698959978 | J49: =IF(ISNUMBER((C49-H49)/H49%),((C49-H49)/H49%),"X") -> -5.962398575
A50: Hinweis: Nicht plausible Werte werden mit "." ausgewiesen. | J50: © Statistik der Bundesagentur für Arbeit
A51: Hinweis: Veränderungswerte > 250% werden mit ".X" gekennzeichnet.
A52: 1) Für Kinder unter 18 Jahren, die eine doppelter Staatsangehörigkeit besitzen, kann bei Antragstellung nur eine Staatsbürgerschaft erfasst werden.
A53: 2) alle minderjährigen Personen unter 18 Jahren in Bedarfsgemeinschaften
A54: 3) minderjährige, unverheiratete Kinder unter 18 Jahren in Bedarfsgemeinschaften
A55: 4) Der Regelbedarf der Kinder unter 6 Jahren beträgt 318 Euro, der 6 bis 13-Jährigen 348 Euro und der Jugendlichen von 14 bis unter 18 Jahren 420 Euro (Stand 01.01.2023).
A56: 5) Die Zählweise von Ausländern hat sich im Vergleich zu früheren Publikationen geändert. Staatenlose und Personen ohne Angabe zur Staatsangehörigkeit werden nun mehr unter „Keine Angabe“, sondern zu den Ausländern gezählt.
A58: Details dazu finden Sie in der Hintergrundinfo „Statistiken nach Staatsangehörigkeit – neue Zuordnung von Staatenlosen und Personen ohne Angabe der Staatsangehörigkeit“ auf unserer Internetseite Grundlagen > Methodik und Qualität > Methodenberichte und Hintergrundinfos > Übergreifende Themen.
C79: ='Vorl 2.1'!D22 -> 18690.62493 | D79: ='Vorl 2.1'!E22 -> 18777 | E79: ='Vorl 2.1'!F22 -> 18228 | F79: ='Vorl 2.1'!G22 -> 16601 | G79: ='Vorl 2.1'!H22 -> 14383 | H79: ='Vorl 2.1'!I22 -> 12280

Sheet 2.2
L1: Grundsicherung für Arbeitsuchende (SGBII)
A3: 2.2 Bestand und Veränderung der Anzahl der Kinder unter 18 Jahren in Bedarfsgemeinschaften nach Altersstufen gegenüber dem Vorjahresmonat in %
A24: Tabelle 2.2 Bestand an Kindern unter 18 Jahren in Bedarfsgemeinschaften nach ausgewählten Altersklassen
A27: Berichtsmonat Juni 2023
A28: Bund, Länder, Kreise und kreisfreie Städte
A30: Region | C30: Insgesamt | H30: Veränderung zum Vorjahresmonat
C32: Kinder unter 18 Jahren | D32: davon | H32: Kinder unter 18 Jahren | I32: davon
D33: unter 3 Jahren | E33: 3 bis unter 6 Jahren | F33: 6 bis unter 15 Jahren | G33: 15 bis unter 18 Jahren | I33: unter 3 Jahren | J33: 3 bis unter 6 Jahren | K33: 6 bis unter 15 Jahren | L33: 15 bis unter 18 Jahren
C34: 1 | D34: 2 | E34: 3 | F34: 4 | G34: 5 | H34: 6 | I34: 7 | J34: 8 | K34: 9 | L34: 10
A35: Deutschland | C35: ='2.2 Daten'!E4 -> 1945914.954 | D35: ='2.2 Daten'!F4 -> 302608.1315 | E35: ='2.2 Daten'!G4 -> 354748.3555 | F35: ='2.2 Daten'!H4 -> 1005948.846 | G35: ='2.2 Daten'!I4 -> 282609.6213 | H35: ='2.2 Daten'!K4 -> 1.970696236 | I35: ='2.2 Daten'!L4 -> -2.251409484 | J35: ='2.2 Daten'!M4 -> -1.322285972 | K35: ='2.2 Daten'!N4 -> 3.677849078 | L35: ='2.2 Daten'!O4 -> 5.073400647
A36: Westdeutschland | C36: ='2.2 Daten'!E5 -> 1533415.954 | D36: ='2.2 Daten'!F5 -> 237077.1315 | E36: ='2.2 Daten'!G5 -> 280398.3555 | F36: ='2.2 Daten'!H5 -> 792453.8456 | G36: ='2.2 Daten'!I5 -> 223486.6213 | H36: ='2.2 Daten'!K5 -> 2.253634516 | I36: ='2.2 Daten'!L5 -> -1.960916409 | J36: ='2.2 Daten'!M5 -> -1.160644686 | K36: ='2.2 Daten'!N5 -> 4.036434641 | L36: ='2.2 Daten'!O5 -> 5.218699125
A37: Ostdeutschland | C37: ='2.2 Daten'!E6 -> 412499 | D37: ='2.2 Daten'!F6 -> 65531 | E37: ='2.2 Daten'!G6 -> 74350 | F37: ='2.2 Daten'!H6 -> 213495 | G37: ='2.2 Daten'!I6 -> 59123 | H37: ='2.2 Daten'!K6 -> 0.9324961829 | I37: ='2.2 Daten'!L6 -> -3.288124087 | J37: ='2.2 Daten'!M6 -> -1.927160966 | K37: ='2.2 Daten'!N6 -> 2.36818888 | L37: ='2.2 Daten'!O6 -> 4.527774831
A38: =CHOOSE('2.2 Daten'!$A$2,'2.2 Daten'!B460,'2.2 Daten'!B9,'2.2 Daten'!B26,'2.2 Daten'!B43,'2.2 Daten'!B46,'2.2 Daten'!B93,'2.2 Daten'!B97,'2.2 Daten'!B152,'2.2 Daten'!B180,'2.2 Daten'!B218,'2.2 Daten'!B264,'2.2 Daten'!B362,'2.2 Daten'!B370,'2.2 Daten'!B373,'2.2 Daten'!B393,'2.2 Daten'!B403,'2.2 Daten'!B418,'2.2 Daten'!B434,x) -> Schleswig-Holstein | B38: =IF($A38<>0,INDEX('2.2 Daten'!C$9:C$859,MATCH('2.2'!$A38,'2.2 Daten'!$B$9:$B$859,0))," ") -> 01 | C38: =IF($A38<>0,INDEX('2.2 Daten'!E$9:E$859,MATCH('2.2'!$A38,'2.2 Daten'!$B$9:$B$859,0))) -> 69359 | D38: =IF($A38<>0,INDEX('2.2 Daten'!F$9:F$859,MATCH('2.2'!$A38,'2.2 Daten'!$B$9:$B$859,0))) -> 10592 | E38: =IF($A38<>0,INDEX('2.2 Daten'!G$9:G$859,MATCH('2.2'!$A38,'2.2 Daten'!$B$9:$B$859,0))) -> 12622 | F38: =IF($A38<>0,INDEX('2.2 Daten'!H$9:H$859,MATCH('2.2'!$A38,'2.2 Daten'!$B$9:$B$859,0))) -> 35876 | G38: =IF($A38<>0,INDEX('2.2 Daten'!I$9:I$859,MATCH('2.2'!$A38,'2.2 Daten'!$B$9:$B$859,0))) -> 10269 | H38: =IF($A38<>0,INDEX('2.2 Daten'!K$9:K$859,MATCH('2.2'!$A38,'2.2 Daten'!$B$9:$B$859,0))) -> 2.204441301 | I38: =IF($A38<>0,INDEX('2.2 Daten'!L$9:L$859,MATCH('2.2'!$A38,'2.2 Daten'!$B$9:$B$859,0))) -> -1.616199145 | J38: =IF($A38<>0,INDEX('2.2 Daten'!M$9:M$859,MATCH('2.2'!$A38,'2.2 Daten'!$B$9:$B$859,0))) -> -2.139866646 | K38: =IF($A38<>0,INDEX('2.2 Daten'!N$9:N$859,MATCH('2.2'!$A38,'2.2 Daten'!$B$9:$B$859,0))) -> 3.717837525 | L38: =IF($A38<>0,INDEX('2.2 Daten'!O$9:O$859,MATCH('2.2'!$A38,'2.2 Daten'!$B$9:$B$859,0))) -> 6.868560724
A39: =CHOOSE('2.2 Daten'!$A$2,'2.2 Daten'!B461,'2.2 Daten'!B10,'2.2 Daten'!B27,'2.2 Daten'!B44,'2.2 Daten'!B47,'2.2 Daten'!B94,'2.2 Daten'!B98,'2.2 Daten'!B153,'2.2 Daten'!B181,'2.2 Daten'!B219,'2.2 Daten'!B265,'2.2 Daten'!B363,'2.2 Daten'!B371,'2.2 Daten'!B374,'2.2 Daten'!B394,'2.2 Daten'!B404,'2.2 Daten'!B419,'2.2 Daten'!B435,x) -> Hamburg | B39: =IF($A39<>0,INDEX('2.2 Daten'!C$9:C$859,MATCH('2.2'!$A39,'2.2 Daten'!$B$9:$B$859,0))," ") -> 02 | C39: =IF($A39<>0,INDEX('2.2 Daten'!E$9:E$859,MATCH('2.2'!$A39,'2.2 Daten'!$B$9:$B$859,0))) -> 65411 | D39: =IF($A39<>0,INDEX('2.2 Daten'!F$9:F$859,MATCH('2.2'!$A39,'2.2 Daten'!$B$9:$B$859,0))) -> 10577 | E39: =IF($A39<>0,INDEX('2.2 Daten'!G$9:G$859,MATCH('2.2'!$A39,'2.2 Daten'!$B$9:$B$859,0))) -> 12025 | F39: =IF($A39<>0,INDEX('2.2 Daten'!H$9:H$859,MATCH('2.2'!$A39,'2.2 Daten'!$B$9:$B$859,0))) -> 33297 | G39: =IF($A39<>0,INDEX('2.2 Daten'!I$9:I$859,MATCH('2.2'!$A39,'2.2 Daten'!$B$9:$B$859,0))) -> 9512 | H39: =IF($A39<>0,INDEX('2.2 Daten'!K$9:K$859,MATCH('2.2'!$A39,'2.2 Daten'!$B$9:$B$859,0))) -> 3.478769854 | I39: =IF($A39<>0,INDEX('2.2 Daten'!L$9:L$859,MATCH('2.2'!$A39,'2.2 Daten'!$B$9:$B$859,0))) -> -0.8530183727 | J39: =IF($A39<>0,INDEX('2.2 Daten'!M$9:M$859,MATCH('2.2'!$A39,'2.2 Daten'!$B$9:$B$859,0))) -> 0.3840053427 | K39: =IF($A39<>0,INDEX('2.2 Daten'!N$9:N$859,MATCH('2.2'!$A39,'2.2 Daten'!$B$9:$B$859,0))) -> 5.45368171 | L39: =IF($A39<>0,INDEX('2.2 Daten'!O$9:O$859,MATCH('2.2'!$A39,'2.2 Daten'!$B$9:$B$859,0))) -> 5.806451613
A40: =CHOOSE('2.2 Daten'!$A$2,'2.2 Daten'!B462,'2.2 Daten'!B11,'2.2 Daten'!B28,'2.2 Daten'!B45,'2.2 Daten'!B48,'2.2 Daten'!B95,'2.2 Daten'!B99,'2.2 Daten'!B154,'2.2 Daten'!B182,'2.2 Daten'!B220,'2.2 Daten'!B266,'2.2 Daten'!B364,'2.2 Daten'!B372,'2.2 Daten'!B375,'2.2 Daten'!B395,'2.2 Daten'!B405,'2.2 Daten'!B420,'2.2 Daten'!B436,x) -> Niedersachsen | B40: =IF($A40<>0,INDEX('2.2 Daten'!C$9:C$859,MATCH('2.2'!$A40,'2.2 Daten'!$B$9:$B$859,0))," ") -> 03 | C40: =IF($A40<>0,INDEX('2.2 Daten'!E$9:E$859,MATCH('2.2'!$A40,'2.2 Daten'!$B$9:$B$859,0))) -> 197225 | D40: =IF($A40<>0,INDEX('2.2 Daten'!F$9:F$859,MATCH('2.2'!$A40,'2.2 Daten'!$B$9:$B$859,0))) -> 30651 | E40: =IF($A40<>0,INDEX('2.2 Daten'!G$9:G$859,MATCH('2.2'!$A40,'2.2 Daten'!$B$9:$B$859,0))) -> 35631 | F40: =IF($A40<>0,INDEX('2.2 Daten'!H$9:H$859,MATCH('2.2'!$A40,'2.2 Daten'!$B$9:$B$859,0))) -> 102134 | G40: =IF($A40<>0,INDEX('2.2 Daten'!I$9:I$859,MATCH('2.2'!$A40,'2.2 Daten'!$B$9:$B$859,0))) -> 28809 | H40: =IF($A40<>0,INDEX('2.2 Daten'!K$9:K$859,MATCH('2.2'!$A40,'2.2 Daten'!$B$9:$B$859,0))) -> 4.261381658 | I40: =IF($A40<>0,INDEX('2.2 Daten'!L$9:L$859,MATCH('2.2'!$A40,'2.2 Daten'!$B$9:$B$859,0))) -> -0.6031715147 | J40: =IF($A40<>0,INDEX('2.2 Daten'!M$9:M$859,MATCH('2.2'!$A40,'2.2 Daten'!$B$9:$B$859,0))) -> 0.7778029189 | K40: =IF($A40<>0,INDEX('2.2 Daten'!N$9:N$859,MATCH('2.2'!$A40,'2.2 Daten'!$B$9:$B$859,0))) -> 6.405100744 | L40: =IF($A40<>0,INDEX('2.2 Daten'!O$9:O$859,MATCH('2.2'!$A40,'2.2 Daten'!$B$9:$B$859,0))) -> 6.759310728
A41: =CHOOSE('2.2 Daten'!$A$2,'2.2 Daten'!B463,'2.2 Daten'!B12,'2.2 Daten'!B29,'2.2 Daten'!B46,'2.2 Daten'!B49,'2.2 Daten'!B96,'2.2 Daten'!B100,'2.2 Daten'!B155,'2.2 Daten'!B183,'2.2 Daten'!B221,'2.2 Daten'!B267,'2.2 Daten'!B365,'2.2 Daten'!B373,'2.2 Daten'!B376,'2.2 Daten'!B396,'2.2 Daten'!B406,'2.2 Daten'!B421,'2.2 Daten'!B437,x) -> Bremen | B41: =IF($A41<>0,INDEX('2.2 Daten'!C$9:C$859,MATCH('2.2'!$A41,'2.2 Daten'!$B$9:$B$859,0))," ") -> 04 | C41: =IF($A41<>0,INDEX('2.2 Daten'!E$9:E$859,MATCH('2.2'!$A41,'2.2 Daten'!$B$9:$B$859,0))) -> 35619 | D41: =IF($A41<>0,INDEX('2.2 Daten'!F$9:F$859,MATCH('2.2'!$A41,'2.2 Daten'!$B$9:$B$859,0))) -> 5976 | E41: =IF($A41<>0,INDEX('2.2 Daten'!G$9:G$859,MATCH('2.2'!$A41,'2.2 Daten'!$B$9:$B$859,0))) -> 7225 | F41: =IF($A41<>0,INDEX('2.2 Daten'!H$9:H$859,MATCH('2.2'!$A41,'2.2 Daten'!$B$9:$B$859,0))) -> 17532 | G41: =IF($A41<>0,INDEX('2.2 Daten'!I$9:I$859,MATCH('2.2'!$A41,'2.2 Daten'!$B$9:$B$859,0))) -> 4886 | H41: =IF($A41<>0,INDEX('2.2 Daten'!K$9:K$859,MATCH('2.2'!$A41,'2.2 Daten'!$B$9:$B$859,0))) -> -0.3078731563 | I41: =IF($A41<>0,INDEX('2.2 Daten'!L$9:L$859,MATCH('2.2'!$A41,'2.2 Daten'!$B$9:$B$859,0))) -> -6.332288401 | J41: =IF($A41<>0,INDEX('2.2 Daten'!M$9:M$859,MATCH('2.2'!$A41,'2.2 Daten'!$B$9:$B$859,0))) -> -0.02767400028 | K41: =IF($A41<>0,INDEX('2.2 Daten'!N$9:N$859,MATCH('2.2'!$A41,'2.2 Daten'!$B$9:$B$859,0))) -> 1.387925052 | L41: =IF($A41<>0,INDEX('2.2 Daten'!O$9:O$859,MATCH('2.2'!$A41,'2.2 Daten'!$B$9:$B$859,0))) -> 1.15942029
A42: =CHOOSE('2.2 Daten'!$A$2,'2.2 Daten'!B464,'2.2 Daten'!B13,'2.2 Daten'!B30,'2.2 Daten'!B47,'2.2 Daten'!B50,'2.2 Daten'!B97,'2.2 Daten'!B101,'2.2 Daten'!B156,'2.2 Daten'!B184,'2.2 Daten'!B222,'2.2 Daten'!B268,'2.2 Daten'!B366,'2.2 Daten'!B374,'2.2 Daten'!B377,'2.2 Daten'!B397,'2.2 Daten'!B407,'2.2 Daten'!B422,'2.2 Daten'!B438,x) -> Nordrhein-Westfalen | B42: =IF($A42<>0,INDEX('2.2 Daten'!C$9:C$859,MATCH('2.2'!$A42,'2.2 Daten'!$B$9:$B$859,0))," ") -> 05 | C42: =IF($A42<>0,INDEX('2.2 Daten'!E$9:E$859,MATCH('2.2'!$A42,'2.2 Daten'!$B$9:$B$859,0))) -> 563646 | D42: =IF($A42<>0,INDEX('2.2 Daten'!F$9:F$859,MATCH('2.2'!$A42,'2.2 Daten'!$B$9:$B$859,0))) -> 86117 | E42: =IF($A42<>0,INDEX('2.2 Daten'!G$9:G$859,MATCH('2.2'!$A42,'2.2 Daten'!$B$9:$B$859,0))) -> 101630 | F42: =IF($A42<>0,INDEX('2.2 Daten'!H$9:H$859,MATCH('2.2'!$A42,'2.2 Daten'!$B$9:$B$859,0))) -> 291475 | G42: =IF($A42<>0,INDEX('2.2 Daten'!I$9:I$859,MATCH('2.2'!$A42,'2.2 Daten'!$B$9:$B$859,0))) -> 84424 | H42: =IF($A42<>0,INDEX('2.2 Daten'!K$9:K$859,MATCH('2.2'!$A42,'2.2 Daten'!$B$9:$B$859,0))) -> 1.197174754 | I42: =IF($A42<>0,INDEX('2.2 Daten'!L$9:L$859,MATCH('2.2'!$A42,'2.2 Daten'!$B$9:$B$859,0))) -> -2.399301856 | J42: =IF($A42<>0,INDEX('2.2 Daten'!M$9:M$859,MATCH('2.2'!$A42,'2.2 Daten'!$B$9:$B$859,0))) -> -2.056589954 | K42: =IF($A42<>0,INDEX('2.2 Daten'!N$9:N$859,MATCH('2.2'!$A42,'2.2 Daten'!$B$9:$B$859,0))) -> 2.596278058 | L42: =IF($A42<>0,INDEX('2.2 Daten'!O$9:O$859,MATCH('2.2'!$A42,'2.2 Daten'!$B$9:$B$859,0))) -> 4.380509638
A43: =CHOOSE('2.2 Daten'!$A$2,'2.2 Daten'!B465,'2.2 Daten'!B14,'2.2 Daten'!B31,'2.2 Daten'!B48,'2.2 Daten'!B51,'2.2 Daten'!B98,'2.2 Daten'!B102,'2.2 Daten'!B157,'2.2 Daten'!B185,'2.2 Daten'!B223,'2.2 Daten'!B269,'2.2 Daten'!B367,'2.2 Daten'!B375,'2.2 Daten'!B378,'2.2 Daten'!B398,'2.2 Daten'!B408,'2.2 Daten'!B423,'2.2 Daten'!B439,x) -> Hessen | B43: =IF($A43<>0,INDEX('2.2 Daten'!C$9:C$859,MATCH('2.2'!$A43,'2.2 Daten'!$B$9:$B$859,0))," ") -> 06 | C43: =IF($A43<>0,INDEX('2.2 Daten'!E$9:E$859,MATCH('2.2'!$A43,'2.2 Daten'!$B$9:$B$859,0))) -> 153177 | D43: =IF($A43<>0,INDEX('2.2 Daten'!F$9:F$859,MATCH('2.2'!$A43,'2.2 Daten'!$B$9:$B$859,0))) -> 23472 | E43: =IF($A43<>0,INDEX('2.2 Daten'!G$9:G$859,MATCH('2.2'!$A43,'2.2 Daten'!$B$9:$B$859,0))) -> 28007 | F43: =IF($A43<>0,INDEX('2.2 Daten'!H$9:H$859,MATCH('2.2'!$A43,'2.2 Daten'!$B$9:$B$859,0))) -> 79426 | G43: =IF($A43<>0,INDEX('2.2 Daten'!I$9:I$859,MATCH('2.2'!$A43,'2.2 Daten'!$B$9:$B$859,0))) -> 22272 | H43: =IF($A43<>0,INDEX('2.2 Daten'!K$9:K$859,MATCH('2.2'!$A43,'2.2 Daten'!$B$9:$B$859,0))) -> 1.662551768 | I43: =IF($A43<>0,INDEX('2.2 Daten'!L$9:L$859,MATCH('2.2'!$A43,'2.2 Daten'!$B$9:$B$859,0))) -> -3.60970802 | J43: =IF($A43<>0,INDEX('2.2 Daten'!M$9:M$859,MATCH('2.2'!$A43,'2.2 Daten'!$B$9:$B$859,0))) -> -3.002701392 | K43: =IF($A43<>0,INDEX('2.2 Daten'!N$9:N$859,MATCH('2.2'!$A43,'2.2 Daten'!$B$9:$B$859,0))) -> 4.271910938 | L43: =IF($A43<>0,INDEX('2.2 Daten'!O$9:O$859,MATCH('2.2'!$A43,'2.2 Daten'!$B$9:$B$859,0))) -> 4.686251469
A44: =CHOOSE('2.2 Daten'!$A$2,'2.2 Daten'!B466,'2.2 Daten'!B15,'2.2 Daten'!B32,'2.2 Daten'!B49,'2.2 Daten'!B52,'2.2 Daten'!B99,'2.2 Daten'!B103,'2.2 Daten'!B158,'2.2 Daten'!B186,'2.2 Daten'!B224,'2.2 Daten'!B270,'2.2 Daten'!B368,'2.2 Daten'!B376,'2.2 Daten'!B379,'2.2 Daten'!B399,'2.2 Daten'!B409,'2.2 Daten'!B424,'2.2 Daten'!B440,x) -> Rheinland-Pfalz | B44: =IF($A44<>0,INDEX('2.2 Daten'!C$9:C$859,MATCH('2.2'!$A44,'2.2 Daten'!$B$9:$B$859,0))," ") -> 07 | C44: =IF($A44<>0,INDEX('2.2 Daten'!E$9:E$859,MATCH('2.2'!$A44,'2.2 Daten'!$B$9:$B$859,0))) -> 81451 | D44: =IF($A44<>0,INDEX('2.2 Daten'!F$9:F$859,MATCH('2.2'!$A44,'2.2 Daten'!$B$9:$B$859,0))) -> 12967 | E44: =IF($A44<>0,INDEX('2.2 Daten'!G$9:G$859,MATCH('2.2'!$A44,'2.2 Daten'!$B$9:$B$859,0))) -> 15092 | F44: =IF($A44<>0,INDEX('2.2 Daten'!H$9:H$859,MATCH('2.2'!$A44,'2.2 Daten'!$B$9:$B$859,0))) -> 41911 | G44: =IF($A44<>0,INDEX('2.2 Daten'!I$9:I$859,MATCH('2.2'!$A44,'2.2 Daten'!$B$9:$B$859,0))) -> 11481 | H44: =IF($A44<>0,INDEX('2.2 Daten'!K$9:K$859,MATCH('2.2'!$A44,'2.2 Daten'!$B$9:$B$859,0))) -> 1.285797779 | I44: =IF($A44<>0,INDEX('2.2 Daten'!L$9:L$859,MATCH('2.2'!$A44,'2.2 Daten'!$B$9:$B$859,0))) -> -2.290709065 | J44: =IF($A44<>0,INDEX('2.2 Daten'!M$9:M$859,MATCH('2.2'!$A44,'2.2 Daten'!$B$9:$B$859,0))) -> -2.13345438 | K44: =IF($A44<>0,INDEX('2.2 Daten'!N$9:N$859,MATCH('2.2'!$A44,'2.2 Daten'!$B$9:$B$859,0))) -> 2.69786817 | L44: =IF($A44<>0,INDEX('2.2 Daten'!O$9:O$859,MATCH('2.2'!$A44,'2.2 Daten'!$B$9:$B$859,0))) -> 5.185524508
A45: =CHOOSE('2.2 Daten'!$A$2,'2.2 Daten'!B467,'2.2 Daten'!B16,'2.2 Daten'!B33,'2.2 Daten'!B50,'2.2 Daten'!B53,'2.2 Daten'!B100,'2.2 Daten'!B104,'2.2 Daten'!B159,'2.2 Daten'!B187,'2.2 Daten'!B225,'2.2 Daten'!B271,'2.2 Daten'!B369,'2.2 Daten'!B377,'2.2 Daten'!B380,'2.2 Daten'!B400,'2.2 Daten'!B410,'2.2 Daten'!B425,'2.2 Daten'!B441,x) -> Baden-Württemberg | B45: =IF($A45<>0,INDEX('2.2 Daten'!C$9:C$859,MATCH('2.2'!$A45,'2.2 Daten'!$B$9:$B$859,0))," ") -> 08 | C45: =IF($A45<>0,INDEX('2.2 Daten'!E$9:E$859,MATCH('2.2'!$A45,'2.2 Daten'!$B$9:$B$859,0))) -> 177799.9539 | D45: =IF($A45<>0,INDEX('2.2 Daten'!F$9:F$859,MATCH('2.2'!$A45,'2.2 Daten'!$B$9:$B$859,0))) -> 27134.13155 | E45: =IF($A45<>0,INDEX('2.2 Daten'!G$9:G$859,MATCH('2.2'!$A45,'2.2 Daten'!$B$9:$B$859,0))) -> 32736.35549 | F45: =IF($A45<>0,INDEX('2.2 Daten'!H$9:H$859,MATCH('2.2'!$A45,'2.2 Daten'!$B$9:$B$859,0))) -> 92663.84558 | G45: =IF($A45<>0,INDEX('2.2 Daten'!I$9:I$859,MATCH('2.2'!$A45,'2.2 Daten'!$B$9:$B$859,0))) -> 25265.62132 | H45: =IF($A45<>0,INDEX('2.2 Daten'!K$9:K$859,MATCH('2.2'!$A45,'2.2 Daten'!$B$9:$B$859,0))) -> 5.319247676 | I45: =IF($A45<>0,INDEX('2.2 Daten'!L$9:L$859,MATCH('2.2'!$A45,'2.2 Daten'!$B$9:$B$859,0))) -> 0.5191210927 | J45: =IF($A45<>0,INDEX('2.2 Daten'!M$9:M$859,MATCH('2.2'!$A45,'2.2 Daten'!$B$9:$B$859,0))) -> 1.069328451 | K45: =IF($A45<>0,INDEX('2.2 Daten'!N$9:N$859,MATCH('2.2'!$A45,'2.2 Daten'!$B$9:$B$859,0))) -> 7.83392168 | L45: =IF($A45<>0,INDEX('2.2 Daten'!O$9:O$859,MATCH('2.2'!$A45,'2.2 Daten'!$B$9:$B$859,0))) -> 7.494985174
A46: =CHOOSE('2.2 Daten'!$A$2,'2.2 Daten'!B468,'2.2 Daten'!B17,'2.2 Daten'!B34,'2.2 Daten'!B51,'2.2 Daten'!B54,'2.2 Daten'!B101,'2.2 Daten'!B105,'2.2 Daten'!B160,'2.2 Daten'!B188,'2.2 Daten'!B226,'2.2 Daten'!B272,'2.2 Daten'!B370,'2.2 Daten'!B378,'2.2 Daten'!B381,'2.2 Daten'!B401,'2.2 Daten'!B411,'2.2 Daten'!B426,'2.2 Daten'!B442,x) -> Bayern | B46: =IF($A46<>0,INDEX('2.2 Daten'!C$9:C$859,MATCH('2.2'!$A46,'2.2 Daten'!$B$9:$B$859,0))," ") -> 09 | C46: =IF($A46<>0,INDEX('2.2 Daten'!E$9:E$859,MATCH('2.2'!$A46,'2.2 Daten'!$B$9:$B$859,0))) -> 161050 | D46: =IF($A46<>0,INDEX('2.2 Daten'!F$9:F$859,MATCH('2.2'!$A46,'2.2 Daten'!$B$9:$B$859,0))) -> 25083 | E46: =IF($A46<>0,INDEX('2.2 Daten'!G$9:G$859,MATCH('2.2'!$A46,'2.2 Daten'!$B$9:$B$859,0))) -> 30181 | F46: =IF($A46<>0,INDEX('2.2 Daten'!H$9:H$859,MATCH('2.2'!$A46,'2.2 Daten'!$B$9:$B$859,0))) -> 83441 | G46: =IF($A46<>0,INDEX('2.2 Daten'!I$9:I$859,MATCH('2.2'!$A46,'2.2 Daten'!$B$9:$B$859,0))) -> 22345 | H46: =IF($A46<>0,INDEX('2.2 Daten'!K$9:K$859,MATCH('2.2'!$A46,'2.2 Daten'!$B$9:$B$859,0))) -> 1.274658383 | I46: =IF($A46<>0,INDEX('2.2 Daten'!L$9:L$859,MATCH('2.2'!$A46,'2.2 Daten'!$B$9:$B$859,0))) -> -2.937079173 | J46: =IF($A46<>0,INDEX('2.2 Daten'!M$9:M$859,MATCH('2.2'!$A46,'2.2 Daten'!$B$9:$B$859,0))) -> -1.278948057 | K46: =IF($A46<>0,INDEX('2.2 Daten'!N$9:N$859,MATCH('2.2'!$A46,'2.2 Daten'!$B$9:$B$859,0))) -> 2.813031371 | L46: =IF($A46<>0,INDEX('2.2 Daten'!O$9:O$859,MATCH('2.2'!$A46,'2.2 Daten'!$B$9:$B$859,0))) -> 4.167637872
A47: =CHOOSE('2.2 Daten'!$A$2,'2.2 Daten'!B469,'2.2 Daten'!B18,'2.2 Daten'!B35,'2.2 Daten'!B52,'2.2 Daten'!B55,'2.2 Daten'!B102,'2.2 Daten'!B106,'2.2 Daten'!B161,'2.2 Daten'!B189,'2.2 Daten'!B227,'2.2 Daten'!B273,'2.2 Daten'!B371,'2.2 Daten'!B379,'2.2 Daten'!B382,'2.2 Daten'!B402,'2.2 Daten'!B412,'2.2 Daten'!B427,'2.2 Daten'!B443,x) -> Saarland | B47: =IF($A47<>0,INDEX('2.2 Daten'!C$9:C$859,MATCH('2.2'!$A47,'2.2 Daten'!$B$9:$B$859,0))," ") -> 10 | C47: =IF($A47<>0,INDEX('2.2 Daten'!E$9:E$859,MATCH('2.2'!$A47,'2.2 Daten'!$B$9:$B$859,0))) -> 28678 | D47: =IF($A47<>0,INDEX('2.2 Daten'!F$9:F$859,MATCH('2.2'!$A47,'2.2 Daten'!$B$9:$B$859,0))) -> 4508 | E47: =IF($A47<>0,INDEX('2.2 Daten'!G$9:G$859,MATCH('2.2'!$A47,'2.2 Daten'!$B$9:$B$859,0))) -> 5249 | F47: =IF($A47<>0,INDEX('2.2 Daten'!H$9:H$859,MATCH('2.2'!$A47,'2.2 Daten'!$B$9:$B$859,0))) -> 14698 | G47: =IF($A47<>0,INDEX('2.2 Daten'!I$9:I$859,MATCH('2.2'!$A47,'2.2 Daten'!$B$9:$B$859,0))) -> 4223 | H47: =IF($A47<>0,INDEX('2.2 Daten'!K$9:K$859,MATCH('2.2'!$A47,'2.2 Daten'!$B$9:$B$859,0))) -> 3.373945642 | I47: =IF($A47<>0,INDEX('2.2 Daten'!L$9:L$859,MATCH('2.2'!$A47,'2.2 Daten'!$B$9:$B$859,0))) -> 0.7149240393 | J47: =IF($A47<>0,INDEX('2.2 Daten'!M$9:M$859,MATCH('2.2'!$A47,'2.2 Daten'!$B$9:$B$859,0))) -> 0.7485604607 | K47: =IF($A47<>0,INDEX('2.2 Daten'!N$9:N$859,MATCH('2.2'!$A47,'2.2 Daten'!$B$9:$B$859,0))) -> 4.285511565 | L47: =IF($A47<>0,INDEX('2.2 Daten'!O$9:O$859,MATCH('2.2'!$A47,'2.2 Daten'!$B$9:$B$859,0))) -> 6.587582029
A48: =CHOOSE('2.2 Daten'!$A$2,'2.2 Daten'!B470,'2.2 Daten'!B19,'2.2 Daten'!B36,'2.2 Daten'!B53,'2.2 Daten'!B56,'2.2 Daten'!B103,'2.2 Daten'!B107,'2.2 Daten'!B162,'2.2 Daten'!B190,'2.2 Daten'!B228,'2.2 Daten'!B274,'2.2 Daten'!B372,'2.2 Daten'!B380,'2.2 Daten'!B383,'2.2 Daten'!B403,'2.2 Daten'!B413,'2.2 Daten'!B428,'2.2 Daten'!B444,x) -> Berlin | B48: =IF($A48<>0,INDEX('2.2 Daten'!C$9:C$859,MATCH('2.2'!$A48,'2.2 Daten'!$B$9:$B$859,0))," ") -> 11 | C48: =IF($A48<>0,INDEX('2.2 Daten'!E$9:E$859,MATCH('2.2'!$A48,'2.2 Daten'!$B$9:$B$859,0))) -> 154097 | D48: =IF($A48<>0,INDEX('2.2 Daten'!F$9:F$859,MATCH('2.2'!$A48,'2.2 Daten'!$B$9:$B$859,0))) -> 25140 | E48: =IF($A48<>0,INDEX('2.2 Daten'!G$9:G$859,MATCH('2.2'!$A48,'2.2 Daten'!$B$9:$B$859,0))) -> 27851 | F48: =IF($A48<>0,INDEX('2.2 Daten'!H$9:H$859,MATCH('2.2'!$A48,'2.2 Daten'!$B$9:$B$859,0))) -> 77910 | G48: =IF($A48<>0,INDEX('2.2 Daten'!I$9:I$859,MATCH('2.2'!$A48,'2.2 Daten'!$B$9:$B$859,0))) -> 23196 | H48: =IF($A48<>0,INDEX('2.2 Daten'!K$9:K$859,MATCH('2.2'!$A48,'2.2 Daten'!$B$9:$B$859,0))) -> -1.923382914 | I48: =IF($A48<>0,INDEX('2.2 Daten'!L$9:L$859,MATCH('2.2'!$A48,'2.2 Daten'!$B$9:$B$859,0))) -> -5.292898851 | J48: =IF($A48<>0,INDEX('2.2 Daten'!M$9:M$859,MATCH('2.2'!$A48,'2.2 Daten'!$B$9:$B$859,0))) -> -3.609745968 | K48: =IF($A48<>0,INDEX('2.2 Daten'!N$9:N$859,MATCH('2.2'!$A48,'2.2 Daten'!$B$9:$B$859,0))) -> -1.003811944 | L48: =IF($A48<>0,INDEX('2.2 Daten'!O$9:O$859,MATCH('2.2'!$A48,'2.2 Daten'!$B$9:$B$859,0))) -> 0.9399477807
A49: =CHOOSE('2.2 Daten'!$A$2,'2.2 Daten'!B471,'2.2 Daten'!B20,'2.2 Daten'!B37,'2.2 Daten'!B54,'2.2 Daten'!B57,'2.2 Daten'!B104,'2.2 Daten'!B108,'2.2 Daten'!B163,'2.2 Daten'!B191,'2.2 Daten'!B229,'2.2 Daten'!B275,'2.2 Daten'!B373,'2.2 Daten'!B381,'2.2 Daten'!B384,'2.2 Daten'!B404,'2.2 Daten'!B414,'2.2 Daten'!B429,'2.2 Daten'!B445,x) -> Brandenburg | B49: =IF($A49<>0,INDEX('2.2 Daten'!C$9:C$859,MATCH('2.2'!$A49,'2.2 Daten'!$B$9:$B$859,0))," ") -> 12 | C49: =IF($A49<>0,INDEX('2.2 Daten'!E$9:E$859,MATCH('2.2'!$A49,'2.2 Daten'!$B$9:$B$859,0))) -> 47317 | D49: =IF($A49<>0,INDEX('2.2 Daten'!F$9:F$859,MATCH('2.2'!$A49,'2.2 Daten'!$B$9:$B$859,0))) -> 7373 | E49: =IF($A49<>0,INDEX('2.2 Daten'!G$9:G$859,MATCH('2.2'!$A49,'2.2 Daten'!$B$9:$B$859,0))) -> 8522 | F49: =IF($A49<>0,INDEX('2.2 Daten'!H$9:H$859,MATCH('2.2'!$A49,'2.2 Daten'!$B$9:$B$859,0))) -> 24818 | G49: =IF($A49<>0,INDEX('2.2 Daten'!I$9:I$859,MATCH('2.2'!$A49,'2.2 Daten'!$B$9:$B$859,0))) -> 6604 | H49: =IF($A49<>0,INDEX('2.2 Daten'!K$9:K$859,MATCH('2.2'!$A49,'2.2 Daten'!$B$9:$B$859,0))) -> 2.090705101 | I49: =IF($A49<>0,INDEX('2.2 Daten'!L$9:L$859,MATCH('2.2'!$A49,'2.2 Daten'!$B$9:$B$859,0))) -> -1.850372737 | J49: =IF($A49<>0,INDEX('2.2 Daten'!M$9:M$859,MATCH('2.2'!$A49,'2.2 Daten'!$B$9:$B$859,0))) -> -1.331480838 | K49: =IF($A49<>0,INDEX('2.2 Daten'!N$9:N$859,MATCH('2.2'!$A49,'2.2 Daten'!$B$9:$B$859,0))) -> 3.784552336 | L49: =IF($A49<>0,INDEX('2.2 Daten'!O$9:O$859,MATCH('2.2'!$A49,'2.2 Daten'!$B$9:$B$859,0))) -> 5.058860961
A50: =CHOOSE('2.2 Daten'!$A$2,'2.2 Daten'!B472,'2.2 Daten'!B21,'2.2 Daten'!B38,'2.2 Daten'!B55,'2.2 Daten'!B58,'2.2 Daten'!B105,'2.2 Daten'!B109,'2.2 Daten'!B164,'2.2 Daten'!B192,'2.2 Daten'!B230,'2.2 Daten'!B276,'2.2 Daten'!B374,'2.2 Daten'!B382,'2.2 Daten'!B385,'2.2 Daten'!B405,'2.2 Daten'!B415,'2.2 Daten'!B430,'2.2 Daten'!B446,x) -> Mecklenburg-Vorpommern | B50: =IF($A50<>0,INDEX('2.2 Daten'!C$9:C$859,MATCH('2.2'!$A50,'2.2 Daten'!$B$9:$B$859,0))," ") -> 13 | C50: =IF($A50<>0,INDEX('2.2 Daten'!E$9:E$859,MATCH('2.2'!$A50,'2.2 Daten'!$B$9:$B$859,0))) -> 35224 | D50: =IF($A50<>0,INDEX('2.2 Daten'!F$9:F$859,MATCH('2.2'!$A50,'2.2 Daten'!$B$9:$B$859,0))) -> 5353 | E50: =IF($A50<>0,INDEX('2.2 Daten'!G$9:G$859,MATCH('2.2'!$A50,'2.2 Daten'!$B$9:$B$859,0))) -> 6029 | F50: =IF($A50<>0,INDEX('2.2 Daten'!H$9:H$859,MATCH('2.2'!$A50,'2.2 Daten'!$B$9:$B$859,0))) -> 18749 | G50: =IF($A50<>0,INDEX('2.2 Daten'!I$9:I$859,MATCH('2.2'!$A50,'2.2 Daten'!$B$9:$B$859,0))) -> 5093 | H50: =IF($A50<>0,INDEX('2.2 Daten'!K$9:K$859,MATCH('2.2'!$A50,'2.2 Daten'!$B$9:$B$859,0))) -> 1.492537313 | I50: =IF($A50<>0,INDEX('2.2 Daten'!L$9:L$859,MATCH('2.2'!$A50,'2.2 Daten'!$B$9:$B$859,0))) -> -2.513203424 | J50: =IF($A50<>0,INDEX('2.2 Daten'!M$9:M$859,MATCH('2.2'!$A50,'2.2 Daten'!$B$9:$B$859,0))) -> -3.03956256 | K50: =IF($A50<>0,INDEX('2.2 Daten'!N$9:N$859,MATCH('2.2'!$A50,'2.2 Daten'!$B$9:$B$859,0))) -> 2.146554072 | L50: =IF($A50<>0,INDEX('2.2 Daten'!O$9:O$859,MATCH('2.2'!$A50,'2.2 Daten'!$B$9:$B$859,0))) -> 9.71563981
A51: =CHOOSE('2.2 Daten'!$A$2,'2.2 Daten'!B473,'2.2 Daten'!B22,'2.2 Daten'!B39,'2.2 Daten'!B56,'2.2 Daten'!B59,'2.2 Daten'!B106,'2.2 Daten'!B110,'2.2 Daten'!B165,'2.2 Daten'!B193,'2.2 Daten'!B231,'2.2 Daten'!B277,'2.2 Daten'!B375,'2.2 Daten'!B383,'2.2 Daten'!B386,'2.2 Daten'!B406,'2.2 Daten'!B416,'2.2 Daten'!B431,'2.2 Daten'!B447,x) -> Sachsen | B51: =IF($A51<>0,INDEX('2.2 Daten'!C$9:C$859,MATCH('2.2'!$A51,'2.2 Daten'!$B$9:$B$859,0))," ") -> 14 | C51: =IF($A51<>0,INDEX('2.2 Daten'!E$9:E$859,MATCH('2.2'!$A51,'2.2 Daten'!$B$9:$B$859,0))) -> 79393 | D51: =IF($A51<>0,INDEX('2.2 Daten'!F$9:F$859,MATCH('2.2'!$A51,'2.2 Daten'!$B$9:$B$859,0))) -> 12528 | E51: =IF($A51<>0,INDEX('2.2 Daten'!G$9:G$859,MATCH('2.2'!$A51,'2.2 Daten'!$B$9:$B$859,0))) -> 14364 | F51: =IF($A51<>0,INDEX('2.2 Daten'!H$9:H$859,MATCH('2.2'!$A51,'2.2 Daten'!$B$9:$B$859,0))) -> 41630 | G51: =IF($A51<>0,INDEX('2.2 Daten'!I$9:I$859,MATCH('2.2'!$A51,'2.2 Daten'!$B$9:$B$859,0))) -> 10871 | H51: =IF($A51<>0,INDEX('2.2 Daten'!K$9:K$859,MATCH('2.2'!$A51,'2.2 Daten'!$B$9:$B$859,0))) -> 1.377786858 | I51: =IF($A51<>0,INDEX('2.2 Daten'!L$9:L$859,MATCH('2.2'!$A51,'2.2 Daten'!$B$9:$B$859,0))) -> -2.763117044 | J51: =IF($A51<>0,INDEX('2.2 Daten'!M$9:M$859,MATCH('2.2'!$A51,'2.2 Daten'!$B$9:$B$859,0))) -> -2.019099591 | K51: =IF($A51<>0,INDEX('2.2 Daten'!N$9:N$859,MATCH('2.2'!$A51,'2.2 Daten'!$B$9:$B$859,0))) -> 3.024153633 | L51: =IF($A51<>0,INDEX('2.2 Daten'!O$9:O$859,MATCH('2.2'!$A51,'2.2 Daten'!$B$9:$B$859,0))) -> 4.912179116
A52: =CHOOSE('2.2 Daten'!$A$2,'2.2 Daten'!B474,'2.2 Daten'!B23,'2.2 Daten'!B40,'2.2 Daten'!B57,'2.2 Daten'!B60,'2.2 Daten'!B107,'2.2 Daten'!B111,'2.2 Daten'!B166,'2.2 Daten'!B194,'2.2 Daten'!B232,'2.2 Daten'!B278,'2.2 Daten'!B376,'2.2 Daten'!B384,'2.2 Daten'!B387,'2.2 Daten'!B407,'2.2 Daten'!B417,'2.2 Daten'!B432,'2.2 Daten'!B448,x) -> Sachsen-Anhalt | B52: =IF($A52<>0,INDEX('2.2 Daten'!C$9:C$859,MATCH('2.2'!$A52,'2.2 Daten'!$B$9:$B$859,0))," ") -> 15 | C52: =IF($A52<>0,INDEX('2.2 Daten'!E$9:E$859,MATCH('2.2'!$A52,'2.2 Daten'!$B$9:$B$859,0))) -> 55924 | D52: =IF($A52<>0,INDEX('2.2 Daten'!F$9:F$859,MATCH('2.2'!$A52,'2.2 Daten'!$B$9:$B$859,0))) -> 8794 | E52: =IF($A52<>0,INDEX('2.2 Daten'!G$9:G$859,MATCH('2.2'!$A52,'2.2 Daten'!$B$9:$B$859,0))) -> 10298 | F52: =IF($A52<>0,INDEX('2.2 Daten'!H$9:H$859,MATCH('2.2'!$A52,'2.2 Daten'!$B$9:$B$859,0))) -> 29077 | G52: =IF($A52<>0,INDEX('2.2 Daten'!I$9:I$859,MATCH('2.2'!$A52,'2.2 Daten'!$B$9:$B$859,0))) -> 7755 | H52: =IF($A52<>0,INDEX('2.2 Daten'!K$9:K$859,MATCH('2.2'!$A52,'2.2 Daten'!$B$9:$B$859,0))) -> 1.313429591 | I52: =IF($A52<>0,INDEX('2.2 Daten'!L$9:L$859,MATCH('2.2'!$A52,'2.2 Daten'!$B$9:$B$859,0))) -> -3.753967385 | J52: =IF($A52<>0,INDEX('2.2 Daten'!M$9:M$859,MATCH('2.2'!$A52,'2.2 Daten'!$B$9:$B$859,0))) -> -1.085390452 | K52: =IF($A52<>0,INDEX('2.2 Daten'!N$9:N$859,MATCH('2.2'!$A52,'2.2 Daten'!$B$9:$B$859,0))) -> 2.785535014 | L52: =IF($A52<>0,INDEX('2.2 Daten'!O$9:O$859,MATCH('2.2'!$A52,'2.2 Daten'!$B$9:$B$859,0))) -> 5.338223309
A53: =CHOOSE('2.2 Daten'!$A$2,'2.2 Daten'!B475,'2.2 Daten'!B24,'2.2 Daten'!B41,'2.2 Daten'!B58,'2.2 Daten'!B61,'2.2 Daten'!B108,'2.2 Daten'!B112,'2.2 Daten'!B167,'2.2 Daten'!B195,'2.2 Daten'!B233,'2.2 Daten'!B279,'2.2 Daten'!B377,'2.2 Daten'!B385,'2.2 Daten'!B388,'2.2 Daten'!B408,'2.2 Daten'!B418,'2.2 Daten'!B433,'2.2 Daten'!B449,x) -> Thüringen | B53: =IF($A53<>0,INDEX('2.2 Daten'!C$9:C$859,MATCH('2.2'!$A53,'2.2 Daten'!$B$9:$B$859,0))," ") -> 16 | C53: =IF($A53<>0,INDEX('2.2 Daten'!E$9:E$859,MATCH('2.2'!$A53,'2.2 Daten'!$B$9:$B$859,0))) -> 40544 | D53: =IF($A53<>0,INDEX('2.2 Daten'!F$9:F$859,MATCH('2.2'!$A53,'2.2 Daten'!$B$9:$B$859,0))) -> 6343 | E53: =IF($A53<>0,INDEX('2.2 Daten'!G$9:G$859,MATCH('2.2'!$A53,'2.2 Daten'!$B$9:$B$859,0))) -> 7286 | F53: =IF($A53<>0,INDEX('2.2 Daten'!H$9:H$859,MATCH('2.2'!$A53,'2.2 Daten'!$B$9:$B$859,0))) -> 21311 | G53: =IF($A53<>0,INDEX('2.2 Daten'!I$9:I$859,MATCH('2.2'!$A53,'2.2 Daten'!$B$9:$B$859,0))) -> 5604 | H53: =IF($A53<>0,INDEX('2.2 Daten'!K$9:K$859,MATCH('2.2'!$A53,'2.2 Daten'!$B$9:$B$859,0))) -> 9.572455543 | I53: =IF($A53<>0,INDEX('2.2 Daten'!L$9:L$859,MATCH('2.2'!$A53,'2.2 Daten'!$B$9:$B$859,0))) -> 2.471728595 | J53: =IF($A53<>0,INDEX('2.2 Daten'!M$9:M$859,MATCH('2.2'!$A53,'2.2 Daten'!$B$9:$B$859,0))) -> 4.219711057 | K53: =IF($A53<>0,INDEX('2.2 Daten'!N$9:N$859,MATCH('2.2'!$A53,'2.2 Daten'!$B$9:$B$859,0))) -> 12.81033296 | L53: =IF($A53<>0,INDEX('2.2 Daten'!O$9:O$859,MATCH('2.2'!$A53,'2.2 Daten'!$B$9:$B$859,0))) -> 13.67139959
A54: =CHOOSE('2.2 Daten'!$A$2,'2.2 Daten'!B476,'2.2 Daten'!B25,'2.2 Daten'!B42,'2.2 Daten'!B59,'2.2 Daten'!B62,'2.2 Daten'!B109,'2.2 Daten'!B113,'2.2 Daten'!B168,'2.2 Daten'!B196,'2.2 Daten'!B234,'2.2 Daten'!B280,'2.2 Daten'!B378,'2.2 Daten'!B386,'2.2 Daten'!B389,'2.2 Daten'!B409,'2.2 Daten'!B419,'2.2 Daten'!B434,'2.2 Daten'!B450,x) -> 0 | B54: =IF($A54<>0,INDEX('2.2 Daten'!C$9:C$859,MATCH('2.2'!$A54,'2.2 Daten'!$B$9:$B$859,0))," ") ->  | C54: =IF($A54<>0,INDEX('2.2 Daten'!E$9:E$859,MATCH('2.2'!$A54,'2.2 Daten'!$B$9:$B$859,0))) -> FALSE | D54: =IF($A54<>0,INDEX('2.2 Daten'!F$9:F$859,MATCH('2.2'!$A54,'2.2 Daten'!$B$9:$B$859,0))) -> FALSE | E54: =IF($A54<>0,INDEX('2.2 Daten'!G$9:G$859,MATCH('2.2'!$A54,'2.2 Daten'!$B$9:$B$859,0))) -> FALSE | F54: =IF($A54<>0,INDEX('2.2 Daten'!H$9:H$859,MATCH('2.2'!$A54,'2.2 Daten'!$B$9:$B$859,0))) -> FALSE | G54: =IF($A54<>0,INDEX('2.2 Daten'!I$9:I$859,MATCH('2.2'!$A54,'2.2 Daten'!$B$9:$B$859,0))) -> FALSE | H54: =IF($A54<>0,INDEX('2.2 Daten'!K$9:K$859,MATCH('2.2'!$A54,'2.2 Daten'!$B$9:$B$859,0))) -> FALSE | I54: =IF($A54<>0,INDEX('2.2 Daten'!L$9:L$859,MATCH('2.2'!$A54,'2.2 Daten'!$B$9:$B$859,0))) -> FALSE | J54: =IF($A54<>0,INDEX('2.2 Daten'!M$9:M$859,MATCH('2.2'!$A54,'2.2 Daten'!$B$9:$B$859,0))) -> FALSE | K54: =IF($A54<>0,INDEX('2.2 Daten'!N$9:N$859,MATCH('2.2'!$A54,'2.2 Daten'!$B$9:$B$859,0))) -> FALSE | L54: =IF($A54<>0,INDEX('2.2 Daten'!O$9:O$859,MATCH('2.2'!$A54,'2.2 Daten'!$B$9:$B$859,0))) -> FALSE
A55: =CHOOSE('2.2 Daten'!$A$2,'2.2 Daten'!B477,'2.2 Daten'!B26,'2.2 Daten'!B43,'2.2 Daten'!B60,'2.2 Daten'!B63,'2.2 Daten'!B110,'2.2 Daten'!B114,'2.2 Daten'!B169,'2.2 Daten'!B197,'2.2 Daten'!B235,'2.2 Daten'!B281,'2.2 Daten'!B379,'2.2 Daten'!B387,'2.2 Daten'!B390,'2.2 Daten'!B410,'2.2 Daten'!B420,'2.2 Daten'!B435,'2.2 Daten'!B451,x) -> Schleswig-Holstein | B55: =IF($A55<>0,INDEX('2.2 Daten'!C$9:C$859,MATCH('2.2'!$A55,'2.2 Daten'!$B$9:$B$859,0))," ") -> 01 | C55: =IF($A55<>0,INDEX('2.2 Daten'!E$9:E$859,MATCH('2.2'!$A55,'2.2 Daten'!$B$9:$B$859,0))) -> 69359 | D55: =IF($A55<>0,INDEX('2.2 Daten'!F$9:F$859,MATCH('2.2'!$A55,'2.2 Daten'!$B$9:$B$859,0))) -> 10592 | E55: =IF($A55<>0,INDEX('2.2 Daten'!G$9:G$859,MATCH('2.2'!$A55,'2.2 Daten'!$B$9:$B$859,0))) -> 12622 | F55: =IF($A55<>0,INDEX('2.2 Daten'!H$9:H$859,MATCH('2.2'!$A55,'2.2 Daten'!$B$9:$B$859,0))) -> 35876 | G55: =IF($A55<>0,INDEX('2.2 Daten'!I$9:I$859,MATCH('2.2'!$A55,'2.2 Daten'!$B$9:$B$859,0))) -> 10269 | H55: =IF($A55<>0,INDEX('2.2 Daten'!K$9:K$859,MATCH('2.2'!$A55,'2.2 Daten'!$B$9:$B$859,0))) -> 2.204441301 | I55: =IF($A55<>0,INDEX('2.2 Daten'!L$9:L$859,MATCH('2.2'!$A55,'2.2 Daten'!$B$9:$B$859,0))) -> -1.616199145 | J55: =IF($A55<>0,INDEX('2.2 Daten'!M$9:M$859,MATCH('2.2'!$A55,'2.2 Daten'!$B$9:$B$859,0))) -> -2.139866646 | K55: =IF($A55<>0,INDEX('2.2 Daten'!N$9:N$859,MATCH('2.2'!$A55,'2.2 Daten'!$B$9:$B$859,0))) -> 3.717837525 | L55: =IF($A55<>0,INDEX('2.2 Daten'!O$9:O$859,MATCH('2.2'!$A55,'2.2 Daten'!$B$9:$B$859,0))) -> 6.868560724
A56: =CHOOSE('2.2 Daten'!$A$2,'2.2 Daten'!B478,'2.2 Daten'!B27,'2.2 Daten'!B44,'2.2 Daten'!B61,'2.2 Daten'!B64,'2.2 Daten'!B111,'2.2 Daten'!B115,'2.2 Daten'!B170,'2.2 Daten'!B198,'2.2 Daten'!B236,'2.2 Daten'!B282,'2.2 Daten'!B380,'2.2 Daten'!B388,'2.2 Daten'!B391,'2.2 Daten'!B411,'2.2 Daten'!B421,'2.2 Daten'!B436,'2.2 Daten'!B452,x) -> Flensburg, Stadt | B56: =IF($A56<>0,INDEX('2.2 Daten'!C$9:C$859,MATCH('2.2'!$A56,'2.2 Daten'!$B$9:$B$859,0))," ") -> 01001000 | C56: =IF($A56<>0,INDEX('2.2 Daten'!E$9:E$859,MATCH('2.2'!$A56,'2.2 Daten'!$B$9:$B$859,0))) -> 3516 | D56: =IF($A56<>0,INDEX('2.2 Daten'!F$9:F$859,MATCH('2.2'!$A56,'2.2 Daten'!$B$9:$B$859,0))) -> 571 | E56: =IF($A56<>0,INDEX('2.2 Daten'!G$9:G$859,MATCH('2.2'!$A56,'2.2 Daten'!$B$9:$B$859,0))) -> 697 | F56: =IF($A56<>0,INDEX('2.2 Daten'!H$9:H$859,MATCH('2.2'!$A56,'2.2 Daten'!$B$9:$B$859,0))) -> 1755 | G56: =IF($A56<>0,INDEX('2.2 Daten'!I$9:I$859,MATCH('2.2'!$A56,'2.2 Daten'!$B$9:$B$859,0))) -> 493 | H56: =IF($A56<>0,INDEX('2.2 Daten'!K$9:K$859,MATCH('2.2'!$A56,'2.2 Daten'!$B$9:$B$859,0))) -> -2.143055942 | I56: =IF($A56<>0,INDEX('2.2 Daten'!L$9:L$859,MATCH('2.2'!$A56,'2.2 Daten'!$B$9:$B$859,0))) -> -13.35356601 | J56: =IF($A56<>0,INDEX('2.2 Daten'!M$9:M$859,MATCH('2.2'!$A56,'2.2 Daten'!$B$9:$B$859,0))) -> -5.555555556 | K56: =IF($A56<>0,INDEX('2.2 Daten'!N$9:N$859,MATCH('2.2'!$A56,'2.2 Daten'!$B$9:$B$859,0))) -> 3.356890459 | L56: =IF($A56<>0,INDEX('2.2 Daten'!O$9:O$859,MATCH('2.2'!$A56,'2.2 Daten'!$B$9:$B$859,0))) -> -1.004016064
A57: =CHOOSE('2.2 Daten'!$A$2,'2.2 Daten'!B479,'2.2 Daten'!B28,'2.2 Daten'!B45,'2.2 Daten'!B62,'2.2 Daten'!B65,'2.2 Daten'!B112,'2.2 Daten'!B116,'2.2 Daten'!B171,'2.2 Daten'!B199,'2.2 Daten'!B237,'2.2 Daten'!B283,'2.2 Daten'!B381,'2.2 Daten'!B389,'2.2 Daten'!B392,'2.2 Daten'!B412,'2.2 Daten'!B422,'2.2 Daten'!B437,'2.2 Daten'!B453,x) -> Kiel, Landeshauptstadt | B57: =IF($A57<>0,INDEX('2.2 Daten'!C$9:C$859,MATCH('2.2'!$A57,'2.2 Daten'!$B$9:$B$859,0))," ") -> 01002000 | C57: =IF($A57<>0,INDEX('2.2 Daten'!E$9:E$859,MATCH('2.2'!$A57,'2.2 Daten'!$B$9:$B$859,0))) -> 9625 | D57: =IF($A57<>0,INDEX('2.2 Daten'!F$9:F$859,MATCH('2.2'!$A57,'2.2 Daten'!$B$9:$B$859,0))) -> 1484 | E57: =IF($A57<>0,INDEX('2.2 Daten'!G$9:G$859,MATCH('2.2'!$A57,'2.2 Daten'!$B$9:$B$859,0))) -> 1801 | F57: =IF($A57<>0,INDEX('2.2 Daten'!H$9:H$859,MATCH('2.2'!$A57,'2.2 Daten'!$B$9:$B$859,0))) -> 4849 | G57: =IF($A57<>0,INDEX('2.2 Daten'!I$9:I$859,MATCH('2.2'!$A57,'2.2 Daten'!$B$9:$B$859,0))) -> 1491 | H57: =IF($A57<>0,INDEX('2.2 Daten'!K$9:K$859,MATCH('2.2'!$A57,'2.2 Daten'!$B$9:$B$859,0))) -> -1.835798062 | I57: =IF($A57<>0,INDEX('2.2 Daten'!L$9:L$859,MATCH('2.2'!$A57,'2.2 Daten'!$B$9:$B$859,0))) -> -8.451573103 | J57: =IF($A57<>0,INDEX('2.2 Daten'!M$9:M$859,MATCH('2.2'!$A57,'2.2 Daten'!$B$9:$B$859,0))) -> -0.4422332781 | K57: =IF($A57<>0,INDEX('2.2 Daten'!N$9:N$859,MATCH('2.2'!$A57,'2.2 Daten'!$B$9:$B$859,0))) -> -1.443089431 | L57: =IF($A57<>0,INDEX('2.2 Daten'!O$9:O$859,MATCH('2.2'!$A57,'2.2 Daten'!$B$9:$B$859,0))) -> 2.474226804
A58: =CHOOSE('2.2 Daten'!$A$2,'2.2 Daten'!B480,'2.2 Daten'!B29,'2.2 Daten'!B46,'2.2 Daten'!B63,'2.2 Daten'!B66,'2.2 Daten'!B113,'2.2 Daten'!B117,'2.2 Daten'!B172,'2.2 Daten'!B200,'2.2 Daten'!B238,'2.2 Daten'!B284,'2.2 Daten'!B382,'2.2 Daten'!B390,'2.2 Daten'!B393,'2.2 Daten'!B413,'2.2 Daten'!B423,'2.2 Daten'!B438,'2.2 Daten'!B454,x) -> Lübeck, Hansestadt | B58: =IF($A58<>0,INDEX('2.2 Daten'!C$9:C$859,MATCH('2.2'!$A58,'2.2 Daten'!$B$9:$B$859,0))," ") -> 01003000 | C58: =IF($A58<>0,INDEX('2.2 Daten'!E$9:E$859,MATCH('2.2'!$A58,'2.2 Daten'!$B$9:$B$859,0))) -> 7323 | D58: =IF($A58<>0,INDEX('2.2 Daten'!F$9:F$859,MATCH('2.2'!$A58,'2.2 Daten'!$B$9:$B$859,0))) -> 1002 | E58: =IF($A58<>0,INDEX('2.2 Daten'!G$9:G$859,MATCH('2.2'!$A58,'2.2 Daten'!$B$9:$B$859,0))) -> 1316 | F58: =IF($A58<>0,INDEX('2.2 Daten'!H$9:H$859,MATCH('2.2'!$A58,'2.2 Daten'!$B$9:$B$859,0))) -> 3839 | G58: =IF($A58<>0,INDEX('2.2 Daten'!I$9:I$859,MATCH('2.2'!$A58,'2.2 Daten'!$B$9:$B$859,0))) -> 1166 | H58: =IF($A58<>0,INDEX('2.2 Daten'!K$9:K$859,MATCH('2.2'!$A58,'2.2 Daten'!$B$9:$B$859,0))) -> -1.599032518 | I58: =IF($A58<>0,INDEX('2.2 Daten'!L$9:L$859,MATCH('2.2'!$A58,'2.2 Daten'!$B$9:$B$859,0))) -> -7.050092764 | J58: =IF($A58<>0,INDEX('2.2 Daten'!M$9:M$859,MATCH('2.2'!$A58,'2.2 Daten'!$B$9:$B$859,0))) -> -7.713884993 | K58: =IF($A58<>0,INDEX('2.2 Daten'!N$9:N$859,MATCH('2.2'!$A58,'2.2 Daten'!$B$9:$B$859,0))) -> -0.5440414508 | L58: =IF($A58<>0,INDEX('2.2 Daten'!O$9:O$859,MATCH('2.2'!$A58,'2.2 Daten'!$B$9:$B$859,0))) -> 8.163265306
A59: =CHOOSE('2.2 Daten'!$A$2,'2.2 Daten'!B481,'2.2 Daten'!B30,'2.2 Daten'!B47,'2.2 Daten'!B64,'2.2 Daten'!B67,'2.2 Daten'!B114,'2.2 Daten'!B118,'2.2 Daten'!B173,'2.2 Daten'!B201,'2.2 Daten'!B239,'2.2 Daten'!B285,'2.2 Daten'!B383,'2.2 Daten'!B391,'2.2 Daten'!B394,'2.2 Daten'!B414,'2.2 Daten'!B424,'2.2 Daten'!B439,'2.2 Daten'!B455,x) -> Neumünster, Stadt | B59: =IF($A59<>0,INDEX('2.2 Daten'!C$9:C$859,MATCH('2.2'!$A59,'2.2 Daten'!$B$9:$B$859,0))," ") -> 01004000 | C59: =IF($A59<>0,INDEX('2.2 Daten'!E$9:E$859,MATCH('2.2'!$A59,'2.2 Daten'!$B$9:$B$859,0))) -> 3073 | D59: =IF($A59<>0,INDEX('2.2 Daten'!F$9:F$859,MATCH('2.2'!$A59,'2.2 Daten'!$B$9:$B$859,0))) -> 524 | E59: =IF($A59<>0,INDEX('2.2 Daten'!G$9:G$859,MATCH('2.2'!$A59,'2.2 Daten'!$B$9:$B$859,0))) -> 560 | F59: =IF($A59<>0,INDEX('2.2 Daten'!H$9:H$859,MATCH('2.2'!$A59,'2.2 Daten'!$B$9:$B$859,0))) -> 1550 | G59: =IF($A59<>0,INDEX('2.2 Daten'!I$9:I$859,MATCH('2.2'!$A59,'2.2 Daten'!$B$9:$B$859,0))) -> 439 | H59: =IF($A59<>0,INDEX('2.2 Daten'!K$9:K$859,MATCH('2.2'!$A59,'2.2 Daten'!$B$9:$B$859,0))) -> 0.3920287488 | I59: =IF($A59<>0,INDEX('2.2 Daten'!L$9:L$859,MATCH('2.2'!$A59,'2.2 Daten'!$B$9:$B$859,0))) -> 3.353057199 | J59: =IF($A59<>0,INDEX('2.2 Daten'!M$9:M$859,MATCH('2.2'!$A59,'2.2 Daten'!$B$9:$B$859,0))) -> -0.1782531194 | K59: =IF($A59<>0,INDEX('2.2 Daten'!N$9:N$859,MATCH('2.2'!$A59,'2.2 Daten'!$B$9:$B$859,0))) -> -0.7046764894 | L59: =IF($A59<>0,INDEX('2.2 Daten'!O$9:O$859,MATCH('2.2'!$A59,'2.2 Daten'!$B$9:$B$859,0))) -> 1.62037037
A60: =CHOOSE('2.2 Daten'!$A$2,'2.2 Daten'!B482,'2.2 Daten'!B31,'2.2 Daten'!B48,'2.2 Daten'!B65,'2.2 Daten'!B68,'2.2 Daten'!B115,'2.2 Daten'!B119,'2.2 Daten'!B174,'2.2 Daten'!B202,'2.2 Daten'!B240,'2.2 Daten'!B286,'2.2 Daten'!B384,'2.2 Daten'!B392,'2.2 Daten'!B395,'2.2 Daten'!B415,'2.2 Daten'!B425,'2.2 Daten'!B440,'2.2 Daten'!B456,x) -> Dithmarschen | B60: =IF($A60<>0,INDEX('2.2 Daten'!C$9:C$859,MATCH('2.2'!$A60,'2.2 Daten'!$B$9:$B$859,0))," ") -> 01051000 | C60: =IF($A60<>0,INDEX('2.2 Daten'!E$9:E$859,MATCH('2.2'!$A60,'2.2 Daten'!$B$9:$B$859,0))) -> 3497 | D60: =IF($A60<>0,INDEX('2.2 Daten'!F$9:F$859,MATCH('2.2'!$A60,'2.2 Daten'!$B$9:$B$859,0))) -> 538 | E60: =IF($A60<>0,INDEX('2.2 Daten'!G$9:G$859,MATCH('2.2'!$A60,'2.2 Daten'!$B$9:$B$859,0))) -> 641 | F60: =IF($A60<>0,INDEX('2.2 Daten'!H$9:H$859,MATCH('2.2'!$A60,'2.2 Daten'!$B$9:$B$859,0))) -> 1848 | G60: =IF($A60<>0,INDEX('2.2 Daten'!I$9:I$859,MATCH('2.2'!$A60,'2.2 Daten'!$B$9:$B$859,0))) -> 470 | H60: =IF($A60<>0,INDEX('2.2 Daten'!K$9:K$859,MATCH('2.2'!$A60,'2.2 Daten'!$B$9:$B$859,0))) -> 1.069364162 | I60: =IF($A60<>0,INDEX('2.2 Daten'!L$9:L$859,MATCH('2.2'!$A60,'2.2 Daten'!$B$9:$B$859,0))) -> -1.28440367 | J60: =IF($A60<>0,INDEX('2.2 Daten'!M$9:M$859,MATCH('2.2'!$A60,'2.2 Daten'!$B$9:$B$859,0))) -> 0 | K60: =IF($A60<>0,INDEX('2.2 Daten'!N$9:N$859,MATCH('2.2'!$A60,'2.2 Daten'!$B$9:$B$859,0))) -> 1.538461538 | L60: =IF($A60<>0,INDEX('2.2 Daten'!O$9:O$859,MATCH('2.2'!$A60,'2.2 Daten'!$B$9:$B$859,0))) -> 3.524229075
A61: =CHOOSE('2.2 Daten'!$A$2,'2.2 Daten'!B483,'2.2 Daten'!B32,'2.2 Daten'!B49,'2.2 Daten'!B66,'2.2 Daten'!B69,'2.2 Daten'!B116,'2.2 Daten'!B120,'2.2 Daten'!B175,'2.2 Daten'!B203,'2.2 Daten'!B241,'2.2 Daten'!B287,'2.2 Daten'!B385,'2.2 Daten'!B393,'2.2 Daten'!B396,'2.2 Daten'!B416,'2.2 Daten'!B426,'2.2 Daten'!B441,'2.2 Daten'!B457,x) -> Herzogtum Lauenburg | B61: =IF($A61<>0,INDEX('2.2 Daten'!C$9:C$859,MATCH('2.2'!$A61,'2.2 Daten'!$B$9:$B$859,0))," ") -> 01053000 | C61: =IF($A61<>0,INDEX('2.2 Daten'!E$9:E$859,MATCH('2.2'!$A61,'2.2 Daten'!$B$9:$B$859,0))) -> 4569 | D61: =IF($A61<>0,INDEX('2.2 Daten'!F$9:F$859,MATCH('2.2'!$A61,'2.2 Daten'!$B$9:$B$859,0))) -> 662 | E61: =IF($A61<>0,INDEX('2.2 Daten'!G$9:G$859,MATCH('2.2'!$A61,'2.2 Daten'!$B$9:$B$859,0))) -> 828 | F61: =IF($A61<>0,INDEX('2.2 Daten'!H$9:H$859,MATCH('2.2'!$A61,'2.2 Daten'!$B$9:$B$859,0))) -> 2377 | G61: =IF($A61<>0,INDEX('2.2 Daten'!I$9:I$859,MATCH('2.2'!$A61,'2.2 Daten'!$B$9:$B$859,0))) -> 702 | H61: =IF($A61<>0,INDEX('2.2 Daten'!K$9:K$859,MATCH('2.2'!$A61,'2.2 Daten'!$B$9:$B$859,0))) -> 0.1314924392 | I61: =IF($A61<>0,INDEX('2.2 Daten'!L$9:L$859,MATCH('2.2'!$A61,'2.2 Daten'!$B$9:$B$859,0))) -> -8.183079057 | J61: =IF($A61<>0,INDEX('2.2 Daten'!M$9:M$859,MATCH('2.2'!$A61,'2.2 Daten'!$B$9:$B$859,0))) -> -9.210526316 | K61: =IF($A61<>0,INDEX('2.2 Daten'!N$9:N$859,MATCH('2.2'!$A61,'2.2 Daten'!$B$9:$B$859,0))) -> 3.347826087 | L61: =IF($A61<>0,INDEX('2.2 Daten'!O$9:O$859,MATCH('2.2'!$A61,'2.2 Daten'!$B$9:$B$859,0))) -> 11.42857143
A62: =CHOOSE('2.2 Daten'!$A$2,'2.2 Daten'!B484,'2.2 Daten'!B33,'2.2 Daten'!B50,'2.2 Daten'!B67,'2.2 Daten'!B70,'2.2 Daten'!B117,'2.2 Daten'!B121,'2.2 Daten'!B176,'2.2 Daten'!B204,'2.2 Daten'!B242,'2.2 Daten'!B288,'2.2 Daten'!B386,'2.2 Daten'!B394,'2.2 Daten'!B397,'2.2 Daten'!B417,'2.2 Daten'!B427,'2.2 Daten'!B442,'2.2 Daten'!B458,x) -> Nordfriesland | B62: =IF($A62<>0,INDEX('2.2 Daten'!C$9:C$859,MATCH('2.2'!$A62,'2.2 Daten'!$B$9:$B$859,0))," ") -> 01054000 | C62: =IF($A62<>0,INDEX('2.2 Daten'!E$9:E$859,MATCH('2.2'!$A62,'2.2 Daten'!$B$9:$B$859,0))) -> 2939 | D62: =IF($A62<>0,INDEX('2.2 Daten'!F$9:F$859,MATCH('2.2'!$A62,'2.2 Daten'!$B$9:$B$859,0))) -> 483 | E62: =IF($A62<>0,INDEX('2.2 Daten'!G$9:G$859,MATCH('2.2'!$A62,'2.2 Daten'!$B$9:$B$859,0))) -> 521 | F62: =IF($A62<>0,INDEX('2.2 Daten'!H$9:H$859,MATCH('2.2'!$A62,'2.2 Daten'!$B$9:$B$859,0))) -> 1523 | G62: =IF($A62<>0,INDEX('2.2 Daten'!I$9:I$859,MATCH('2.2'!$A62,'2.2 Daten'!$B$9:$B$859,0))) -> 412 | H62: =IF($A62<>0,INDEX('2.2 Daten'!K$9:K$859,MATCH('2.2'!$A62,'2.2 Daten'!$B$9:$B$859,0))) -> 5.152057245 | I62: =IF($A62<>0,INDEX('2.2 Daten'!L$9:L$859,MATCH('2.2'!$A62,'2.2 Daten'!$B$9:$B$859,0))) -> 2.330508475 | J62: =IF($A62<>0,INDEX('2.2 Daten'!M$9:M$859,MATCH('2.2'!$A62,'2.2 Daten'!$B$9:$B$859,0))) -> -1.512287335 | K62: =IF($A62<>0,INDEX('2.2 Daten'!N$9:N$859,MATCH('2.2'!$A62,'2.2 Daten'!$B$9:$B$859,0))) -> 6.206415621 | L62: =IF($A62<>0,INDEX('2.2 Daten'!O$9:O$859,MATCH('2.2'!$A62,'2.2 Daten'!$B$9:$B$859,0))) -> 14.44444444
A63: =CHOOSE('2.2 Daten'!$A$2,'2.2 Daten'!B485,'2.2 Daten'!B34,'2.2 Daten'!B51,'2.2 Daten'!B68,'2.2 Daten'!B71,'2.2 Daten'!B118,'2.2 Daten'!B122,'2.2 Daten'!B177,'2.2 Daten'!B205,'2.2 Daten'!B243,'2.2 Daten'!B289,'2.2 Daten'!B387,'2.2 Daten'!B395,'2.2 Daten'!B398,'2.2 Daten'!B418,'2.2 Daten'!B428,'2.2 Daten'!B443,'2.2 Daten'!B459,x) -> Ostholstein | B63: =IF($A63<>0,INDEX('2.2 Daten'!C$9:C$859,MATCH('2.2'!$A63,'2.2 Daten'!$B$9:$B$859,0))," ") -> 01055000 | C63: =IF($A63<>0,INDEX('2.2 Daten'!E$9:E$859,MATCH('2.2'!$A63,'2.2 Daten'!$B$9:$B$859,0))) -> 3272 | D63: =IF($A63<>0,INDEX('2.2 Daten'!F$9:F$859,MATCH('2.2'!$A63,'2.2 Daten'!$B$9:$B$859,0))) -> 498 | E63: =IF($A63<>0,INDEX('2.2 Daten'!G$9:G$859,MATCH('2.2'!$A63,'2.2 Daten'!$B$9:$B$859,0))) -> 583 | F63: =IF($A63<>0,INDEX('2.2 Daten'!H$9:H$859,MATCH('2.2'!$A63,'2.2 Daten'!$B$9:$B$859,0))) -> 1696 | G63: =IF($A63<>0,INDEX('2.2 Daten'!I$9:I$859,MATCH('2.2'!$A63,'2.2 Daten'!$B$9:$B$859,0))) -> 495 | H63: =IF($A63<>0,INDEX('2.2 Daten'!K$9:K$859,MATCH('2.2'!$A63,'2.2 Daten'!$B$9:$B$859,0))) -> 4.737516005 | I63: =IF($A63<>0,INDEX('2.2 Daten'!L$9:L$859,MATCH('2.2'!$A63,'2.2 Daten'!$B$9:$B$859,0))) -> 6.18336887 | J63: =IF($A63<>0,INDEX('2.2 Daten'!M$9:M$859,MATCH('2.2'!$A63,'2.2 Daten'!$B$9:$B$859,0))) -> 0.3442340792 | K63: =IF($A63<>0,INDEX('2.2 Daten'!N$9:N$859,MATCH('2.2'!$A63,'2.2 Daten'!$B$9:$B$859,0))) -> 5.538270068 | L63: =IF($A63<>0,INDEX('2.2 Daten'!O$9:O$859,MATCH('2.2'!$A63,'2.2 Daten'!$B$9:$B$859,0))) -> 5.995717345
A64: =CHOOSE('2.2 Daten'!$A$2,'2.2 Daten'!B486,'2.2 Daten'!B35,'2.2 Daten'!B52,'2.2 Daten'!B69,'2.2 Daten'!B72,'2.2 Daten'!B119,'2.2 Daten'!B123,'2.2 Daten'!B178,'2.2 Daten'!B206,'2.2 Daten'!B244,'2.2 Daten'!B290,'2.2 Daten'!B388,'2.2 Daten'!B396,'2.2 Daten'!B399,'2.2 Daten'!B419,'2.2 Daten'!B429,'2.2 Daten'!B444,'2.2 Daten'!B460,x) -> Pinneberg | B64: =IF($A64<>0,INDEX('2.2 Daten'!C$9:C$859,MATCH('2.2'!$A64,'2.2 Daten'!$B$9:$B$859,0))," ") -> 01056000 | C64: =IF($A64<>0,INDEX('2.2 Daten'!E$9:E$859,MATCH('2.2'!$A64,'2.2 Daten'!$B$9:$B$859,0))) -> 7991 | D64: =IF($A64<>0,INDEX('2.2 Daten'!F$9:F$859,MATCH('2.2'!$A64,'2.2 Daten'!$B$9:$B$859,0))) -> 1305 | E64: =IF($A64<>0,INDEX('2.2 Daten'!G$9:G$859,MATCH('2.2'!$A64,'2.2 Daten'!$B$9:$B$859,0))) -> 1511 | F64: =IF($A64<>0,INDEX('2.2 Daten'!H$9:H$859,MATCH('2.2'!$A64,'2.2 Daten'!$B$9:$B$859,0))) -> 4044 | G64: =IF($A64<>0,INDEX('2.2 Daten'!I$9:I$859,MATCH('2.2'!$A64,'2.2 Daten'!$B$9:$B$859,0))) -> 1131 | H64: =IF($A64<>0,INDEX('2.2 Daten'!K$9:K$859,MATCH('2.2'!$A64,'2.2 Daten'!$B$9:$B$859,0))) -> 4.293918037 | I64: =IF($A64<>0,INDEX('2.2 Daten'!L$9:L$859,MATCH('2.2'!$A64,'2.2 Daten'!$B$9:$B$859,0))) -> 3.489294211 | J64: =IF($A64<>0,INDEX('2.2 Daten'!M$9:M$859,MATCH('2.2'!$A64,'2.2 Daten'!$B$9:$B$859,0))) -> -0.06613756614 | K64: =IF($A64<>0,INDEX('2.2 Daten'!N$9:N$859,MATCH('2.2'!$A64,'2.2 Daten'!$B$9:$B$859,0))) -> 4.604242111 | L64: =IF($A64<>0,INDEX('2.2 Daten'!O$9:O$859,MATCH('2.2'!$A64,'2.2 Daten'!$B$9:$B$859,0))) -> 10.55718475
A65: =CHOOSE('2.2 Daten'!$A$2,'2.2 Daten'!B487,'2.2 Daten'!B36,'2.2 Daten'!B53,'2.2 Daten'!B70,'2.2 Daten'!B73,'2.2 Daten'!B120,'2.2 Daten'!B124,'2.2 Daten'!B179,'2.2 Daten'!B207,'2.2 Daten'!B245,'2.2 Daten'!B291,'2.2 Daten'!B389,'2.2 Daten'!B397,'2.2 Daten'!B400,'2.2 Daten'!B420,'2.2 Daten'!B430,'2.2 Daten'!B445,'2.2 Daten'!B461,x) -> Plön | B65: =IF($A65<>0,INDEX('2.2 Daten'!C$9:C$859,MATCH('2.2'!$A65,'2.2 Daten'!$B$9:$B$859,0))," ") -> 01057000 | C65: =IF($A65<>0,INDEX('2.2 Daten'!E$9:E$859,MATCH('2.2'!$A65,'2.2 Daten'!$B$9:$B$859,0))) -> 2491 | D65: =IF($A65<>0,INDEX('2.2 Daten'!F$9:F$859,MATCH('2.2'!$A65,'2.2 Daten'!$B$9:$B$859,0))) -> 358 | E65: =IF($A65<>0,INDEX('2.2 Daten'!G$9:G$859,MATCH('2.2'!$A65,'2.2 Daten'!$B$9:$B$859,0))) -> 434 | F65: =IF($A65<>0,INDEX('2.2 Daten'!H$9:H$859,MATCH('2.2'!$A65,'2.2 Daten'!$B$9:$B$859,0))) -> 1330 | G65: =IF($A65<>0,INDEX('2.2 Daten'!I$9:I$859,MATCH('2.2'!$A65,'2.2 Daten'!$B$9:$B$859,0))) -> 369 | H65: =IF($A65<>0,INDEX('2.2 Daten'!K$9:K$859,MATCH('2.2'!$A65,'2.2 Daten'!$B$9:$B$859,0))) -> 13.95242452 | I65: =IF($A65<>0,INDEX('2.2 Daten'!L$9:L$859,MATCH('2.2'!$A65,'2.2 Daten'!$B$9:$B$859,0))) -> 5.917159763 | J65: =IF($A65<>0,INDEX('2.2 Daten'!M$9:M$859,MATCH('2.2'!$A65,'2.2 Daten'!$B$9:$B$859,0))) -> 0.9302325581 | K65: =IF($A65<>0,INDEX('2.2 Daten'!N$9:N$859,MATCH('2.2'!$A65,'2.2 Daten'!$B$9:$B$859,0))) -> 20.79927339 | L65: =IF($A65<>0,INDEX('2.2 Daten'!O$9:O$859,MATCH('2.2'!$A65,'2.2 Daten'!$B$9:$B$859,0))) -> 16.40378549
A66: =CHOOSE('2.2 Daten'!$A$2,'2.2 Daten'!B488,'2.2 Daten'!B37,'2.2 Daten'!B54,'2.2 Daten'!B71,'2.2 Daten'!B74,'2.2 Daten'!B121,'2.2 Daten'!B125,'2.2 Daten'!B180,'2.2 Daten'!B208,'2.2 Daten'!B246,'2.2 Daten'!B292,'2.2 Daten'!B390,'2.2 Daten'!B398,'2.2 Daten'!B401,'2.2 Daten'!B421,'2.2 Daten'!B431,'2.2 Daten'!B446,'2.2 Daten'!B462,x) -> Rendsburg-Eckernförde | B66: =IF($A66<>0,INDEX('2.2 Daten'!C$9:C$859,MATCH('2.2'!$A66,'2.2 Daten'!$B$9:$B$859,0))," ") -> 01058000 | C66: =IF($A66<>0,INDEX('2.2 Daten'!E$9:E$859,MATCH('2.2'!$A66,'2.2 Daten'!$B$9:$B$859,0))) -> 4926 | D66: =IF($A66<>0,INDEX('2.2 Daten'!F$9:F$859,MATCH('2.2'!$A66,'2.2 Daten'!$B$9:$B$859,0))) -> 719 | E66: =IF($A66<>0,INDEX('2.2 Daten'!G$9:G$859,MATCH('2.2'!$A66,'2.2 Daten'!$B$9:$B$859,0))) -> 895 | F66: =IF($A66<>0,INDEX('2.2 Daten'!H$9:H$859,MATCH('2.2'!$A66,'2.2 Daten'!$B$9:$B$859,0))) -> 2612 | G66: =IF($A66<>0,INDEX('2.2 Daten'!I$9:I$859,MATCH('2.2'!$A66,'2.2 Daten'!$B$9:$B$859,0))) -> 700 | H66: =IF($A66<>0,INDEX('2.2 Daten'!K$9:K$859,MATCH('2.2'!$A66,'2.2 Daten'!$B$9:$B$859,0))) -> -2.609727165 | I66: =IF($A66<>0,INDEX('2.2 Daten'!L$9:L$859,MATCH('2.2'!$A66,'2.2 Daten'!$B$9:$B$859,0))) -> -3.489932886 | J66: =IF($A66<>0,INDEX('2.2 Daten'!M$9:M$859,MATCH('2.2'!$A66,'2.2 Daten'!$B$9:$B$859,0))) -> -9.869083585 | K66: =IF($A66<>0,INDEX('2.2 Daten'!N$9:N$859,MATCH('2.2'!$A66,'2.2 Daten'!$B$9:$B$859,0))) -> -0.4952380952 | L66: =IF($A66<>0,INDEX('2.2 Daten'!O$9:O$859,MATCH('2.2'!$A66,'2.2 Daten'!$B$9:$B$859,0))) -> 0.7194244604
A67: =CHOOSE('2.2 Daten'!$A$2,'2.2 Daten'!B489,'2.2 Daten'!B38,'2.2 Daten'!B55,'2.2 Daten'!B72,'2.2 Daten'!B75,'2.2 Daten'!B122,'2.2 Daten'!B126,'2.2 Daten'!B181,'2.2 Daten'!B209,'2.2 Daten'!B247,'2.2 Daten'!B293,'2.2 Daten'!B391,'2.2 Daten'!B399,'2.2 Daten'!B402,'2.2 Daten'!B422,'2.2 Daten'!B432,'2.2 Daten'!B447,'2.2 Daten'!B463,x) -> Schleswig-Flensburg | B67: =IF($A67<>0,INDEX('2.2 Daten'!C$9:C$859,MATCH('2.2'!$A67,'2.2 Daten'!$B$9:$B$859,0))," ") -> 01059000 | C67: =IF($A67<>0,INDEX('2.2 Daten'!E$9:E$859,MATCH('2.2'!$A67,'2.2 Daten'!$B$9:$B$859,0))) -> 3817 | D67: =IF($A67<>0,INDEX('2.2 Daten'!F$9:F$859,MATCH('2.2'!$A67,'2.2 Daten'!$B$9:$B$859,0))) -> 586 | E67: =IF($A67<>0,INDEX('2.2 Daten'!G$9:G$859,MATCH('2.2'!$A67,'2.2 Daten'!$B$9:$B$859,0))) -> 671 | F67: =IF($A67<>0,INDEX('2.2 Daten'!H$9:H$859,MATCH('2.2'!$A67,'2.2 Daten'!$B$9:$B$859,0))) -> 2018 | G67: =IF($A67<>0,INDEX('2.2 Daten'!I$9:I$859,MATCH('2.2'!$A67,'2.2 Daten'!$B$9:$B$859,0))) -> 542 | H67: =IF($A67<>0,INDEX('2.2 Daten'!K$9:K$859,MATCH('2.2'!$A67,'2.2 Daten'!$B$9:$B$859,0))) -> 10.99156732 | I67: =IF($A67<>0,INDEX('2.2 Daten'!L$9:L$859,MATCH('2.2'!$A67,'2.2 Daten'!$B$9:$B$859,0))) -> 10.15037594 | J67: =IF($A67<>0,INDEX('2.2 Daten'!M$9:M$859,MATCH('2.2'!$A67,'2.2 Daten'!$B$9:$B$859,0))) -> 6.339144216 | K67: =IF($A67<>0,INDEX('2.2 Daten'!N$9:N$859,MATCH('2.2'!$A67,'2.2 Daten'!$B$9:$B$859,0))) -> 13.43451377 | L67: =IF($A67<>0,INDEX('2.2 Daten'!O$9:O$859,MATCH('2.2'!$A67,'2.2 Daten'!$B$9:$B$859,0))) -> 9.054325956
A68: =CHOOSE('2.2 Daten'!$A$2,'2.2 Daten'!B490,'2.2 Daten'!B39,'2.2 Daten'!B56,'2.2 Daten'!B73,'2.2 Daten'!B76,'2.2 Daten'!B123,'2.2 Daten'!B127,'2.2 Daten'!B182,'2.2 Daten'!B210,'2.2 Daten'!B248,'2.2 Daten'!B294,'2.2 Daten'!B392,'2.2 Daten'!B400,'2.2 Daten'!B403,'2.2 Daten'!B423,'2.2 Daten'!B433,'2.2 Daten'!B448,'2.2 Daten'!B464,x) -> Segeberg | B68: =IF($A68<>0,INDEX('2.2 Daten'!C$9:C$859,MATCH('2.2'!$A68,'2.2 Daten'!$B$9:$B$859,0))," ") -> 01060000 | C68: =IF($A68<>0,INDEX('2.2 Daten'!E$9:E$859,MATCH('2.2'!$A68,'2.2 Daten'!$B$9:$B$859,0))) -> 5169 | D68: =IF($A68<>0,INDEX('2.2 Daten'!F$9:F$859,MATCH('2.2'!$A68,'2.2 Daten'!$B$9:$B$859,0))) -> 804 | E68: =IF($A68<>0,INDEX('2.2 Daten'!G$9:G$859,MATCH('2.2'!$A68,'2.2 Daten'!$B$9:$B$859,0))) -> 901 | F68: =IF($A68<>0,INDEX('2.2 Daten'!H$9:H$859,MATCH('2.2'!$A68,'2.2 Daten'!$B$9:$B$859,0))) -> 2721 | G68: =IF($A68<>0,INDEX('2.2 Daten'!I$9:I$859,MATCH('2.2'!$A68,'2.2 Daten'!$B$9:$B$859,0))) -> 743 | H68: =IF($A68<>0,INDEX('2.2 Daten'!K$9:K$859,MATCH('2.2'!$A68,'2.2 Daten'!$B$9:$B$859,0))) -> 10.26023891 | I68: =IF($A68<>0,INDEX('2.2 Daten'!L$9:L$859,MATCH('2.2'!$A68,'2.2 Daten'!$B$9:$B$859,0))) -> 11.51178918 | J68: =IF($A68<>0,INDEX('2.2 Daten'!M$9:M$859,MATCH('2.2'!$A68,'2.2 Daten'!$B$9:$B$859,0))) -> 3.089244851 | K68: =IF($A68<>0,INDEX('2.2 Daten'!N$9:N$859,MATCH('2.2'!$A68,'2.2 Daten'!$B$9:$B$859,0))) -> 12.0675453 | L68: =IF($A68<>0,INDEX('2.2 Daten'!O$9:O$859,MATCH('2.2'!$A68,'2.2 Daten'!$B$9:$B$859,0))) -> 11.72932331
A69: =CHOOSE('2.2 Daten'!$A$2,'2.2 Daten'!B491,'2.2 Daten'!B40,'2.2 Daten'!B57,'2.2 Daten'!B74,'2.2 Daten'!B77,'2.2 Daten'!B124,'2.2 Daten'!B128,'2.2 Daten'!B183,'2.2 Daten'!B211,'2.2 Daten'!B249,'2.2 Daten'!B295,'2.2 Daten'!B393,'2.2 Daten'!B401,'2.2 Daten'!B404,'2.2 Daten'!B424,'2.2 Daten'!B434,'2.2 Daten'!B449,'2.2 Daten'!B465,x) -> Steinburg | B69: =IF($A69<>0,INDEX('2.2 Daten'!C$9:C$859,MATCH('2.2'!$A69,'2.2 Daten'!$B$9:$B$859,0))," ") -> 01061000 | C69: =IF($A69<>0,INDEX('2.2 Daten'!E$9:E$859,MATCH('2.2'!$A69,'2.2 Daten'!$B$9:$B$859,0))) -> 2874 | D69: =IF($A69<>0,INDEX('2.2 Daten'!F$9:F$859,MATCH('2.2'!$A69,'2.2 Daten'!$B$9:$B$859,0))) -> 446 | E69: =IF($A69<>0,INDEX('2.2 Daten'!G$9:G$859,MATCH('2.2'!$A69,'2.2 Daten'!$B$9:$B$859,0))) -> 493 | F69: =IF($A69<>0,INDEX('2.2 Daten'!H$9:H$859,MATCH('2.2'!$A69,'2.2 Daten'!$B$9:$B$859,0))) -> 1524 | G69: =IF($A69<>0,INDEX('2.2 Daten'!I$9:I$859,MATCH('2.2'!$A69,'2.2 Daten'!$B$9:$B$859,0))) -> 411 | H69: =IF($A69<>0,INDEX('2.2 Daten'!K$9:K$859,MATCH('2.2'!$A69,'2.2 Daten'!$B$9:$B$859,0))) -> 0.1393728223 | I69: =IF($A69<>0,INDEX('2.2 Daten'!L$9:L$859,MATCH('2.2'!$A69,'2.2 Daten'!$B$9:$B$859,0))) -> -3.043478261 | J69: =IF($A69<>0,INDEX('2.2 Daten'!M$9:M$859,MATCH('2.2'!$A69,'2.2 Daten'!$B$9:$B$859,0))) -> -3.898635478 | K69: =IF($A69<>0,INDEX('2.2 Daten'!N$9:N$859,MATCH('2.2'!$A69,'2.2 Daten'!$B$9:$B$859,0))) -> 2.834008097 | L69: =IF($A69<>0,INDEX('2.2 Daten'!O$9:O$859,MATCH('2.2'!$A69,'2.2 Daten'!$B$9:$B$859,0))) -> -0.9638554217
A70: =CHOOSE('2.2 Daten'!$A$2,'2.2 Daten'!B492,'2.2 Daten'!B41,'2.2 Daten'!B58,'2.2 Daten'!B75,'2.2 Daten'!B78,'2.2 Daten'!B125,'2.2 Daten'!B129,'2.2 Daten'!B184,'2.2 Daten'!B212,'2.2 Daten'!B250,'2.2 Daten'!B296,'2.2 Daten'!B394,'2.2 Daten'!B402,'2.2 Daten'!B405,'2.2 Daten'!B425,'2.2 Daten'!B435,'2.2 Daten'!B450,'2.2 Daten'!B466,x) -> Stormarn | B70: =IF($A70<>0,INDEX('2.2 Daten'!C$9:C$859,MATCH('2.2'!$A70,'2.2 Daten'!$B$9:$B$859,0))," ") -> 01062000 | C70: =IF($A70<>0,INDEX('2.2 Daten'!E$9:E$859,MATCH('2.2'!$A70,'2.2 Daten'!$B$9:$B$859,0))) -> 4277 | D70: =IF($A70<>0,INDEX('2.2 Daten'!F$9:F$859,MATCH('2.2'!$A70,'2.2 Daten'!$B$9:$B$859,0))) -> 612 | E70: =IF($A70<>0,INDEX('2.2 Daten'!G$9:G$859,MATCH('2.2'!$A70,'2.2 Daten'!$B$9:$B$859,0))) -> 770 | F70: =IF($A70<>0,INDEX('2.2 Daten'!H$9:H$859,MATCH('2.2'!$A70,'2.2 Daten'!$B$9:$B$859,0))) -> 2190 | G70: =IF($A70<>0,INDEX('2.2 Daten'!I$9:I$859,MATCH('2.2'!$A70,'2.2 Daten'!$B$9:$B$859,0))) -> 705 | H70: =IF($A70<>0,INDEX('2.2 Daten'!K$9:K$859,MATCH('2.2'!$A70,'2.2 Daten'!$B$9:$B$859,0))) -> 3.886324994 | I70: =IF($A70<>0,INDEX('2.2 Daten'!L$9:L$859,MATCH('2.2'!$A70,'2.2 Daten'!$B$9:$B$859,0))) -> -3.924646782 | J70: =IF($A70<>0,INDEX('2.2 Daten'!M$9:M$859,MATCH('2.2'!$A70,'2.2 Daten'!$B$9:$B$859,0))) -> 2.941176471 | K70: =IF($A70<>0,INDEX('2.2 Daten'!N$9:N$859,MATCH('2.2'!$A70,'2.2 Daten'!$B$9:$B$859,0))) -> 3.840682788 | L70: =IF($A70<>0,INDEX('2.2 Daten'!O$9:O$859,MATCH('2.2'!$A70,'2.2 Daten'!$B$9:$B$859,0))) -> 13.16211878
A71: =CHOOSE('2.2 Daten'!$A$2,'2.2 Daten'!B493,'2.2 Daten'!B42,'2.2 Daten'!B59,'2.2 Daten'!B76,'2.2 Daten'!B79,'2.2 Daten'!B126,'2.2 Daten'!B130,'2.2 Daten'!B185,'2.2 Daten'!B213,'2.2 Daten'!B251,'2.2 Daten'!B297,'2.2 Daten'!B395,'2.2 Daten'!B403,'2.2 Daten'!B406,'2.2 Daten'!B426,'2.2 Daten'!B436,'2.2 Daten'!B451,'2.2 Daten'!B467,x) -> 0 | B71: =IF($A71<>0,INDEX('2.2 Daten'!C$9:C$859,MATCH('2.2'!$A71,'2.2 Daten'!$B$9:$B$859,0))," ") ->  | C71: =IF($A71<>0,INDEX('2.2 Daten'!E$9:E$859,MATCH('2.2'!$A71,'2.2 Daten'!$B$9:$B$859,0))) -> FALSE | D71: =IF($A71<>0,INDEX('2.2 Daten'!F$9:F$859,MATCH('2.2'!$A71,'2.2 Daten'!$B$9:$B$859,0))) -> FALSE | E71: =IF($A71<>0,INDEX('2.2 Daten'!G$9:G$859,MATCH('2.2'!$A71,'2.2 Daten'!$B$9:$B$859,0))) -> FALSE | F71: =IF($A71<>0,INDEX('2.2 Daten'!H$9:H$859,MATCH('2.2'!$A71,'2.2 Daten'!$B$9:$B$859,0))) -> FALSE | G71: =IF($A71<>0,INDEX('2.2 Daten'!I$9:I$859,MATCH('2.2'!$A71,'2.2 Daten'!$B$9:$B$859,0))) -> FALSE | H71: =IF($A71<>0,INDEX('2.2 Daten'!K$9:K$859,MATCH('2.2'!$A71,'2.2 Daten'!$B$9:$B$859,0))) -> FALSE | I71: =IF($A71<>0,INDEX('2.2 Daten'!L$9:L$859,MATCH('2.2'!$A71,'2.2 Daten'!$B$9:$B$859,0))) -> FALSE | J71: =IF($A71<>0,INDEX('2.2 Daten'!M$9:M$859,MATCH('2.2'!$A71,'2.2 Daten'!$B$9:$B$859,0))) -> FALSE | K71: =IF($A71<>0,INDEX('2.2 Daten'!N$9:N$859,MATCH('2.2'!$A71,'2.2 Daten'!$B$9:$B$859,0))) -> FALSE | L71: =IF($A71<>0,INDEX('2.2 Daten'!O$9:O$859,MATCH('2.2'!$A71,'2.2 Daten'!$B$9:$B$859,0))) -> FALSE
A72: =CHOOSE('2.2 Daten'!$A$2,'2.2 Daten'!B494,'2.2 Daten'!B43,'2.2 Daten'!B60,'2.2 Daten'!B77,'2.2 Daten'!B80,'2.2 Daten'!B127,'2.2 Daten'!B131,'2.2 Daten'!B186,'2.2 Daten'!B214,'2.2 Daten'!B252,'2.2 Daten'!B298,'2.2 Daten'!B396,'2.2 Daten'!B404,'2.2 Daten'!B407,'2.2 Daten'!B427,'2.2 Daten'!B437,'2.2 Daten'!B452,'2.2 Daten'!B468,x) -> Hamburg | B72: =IF($A72<>0,INDEX('2.2 Daten'!C$9:C$859,MATCH('2.2'!$A72,'2.2 Daten'!$B$9:$B$859,0))," ") -> 02 | C72: =IF($A72<>0,INDEX('2.2 Daten'!E$9:E$859,MATCH('2.2'!$A72,'2.2 Daten'!$B$9:$B$859,0))) -> 65411 | D72: =IF($A72<>0,INDEX('2.2 Daten'!F$9:F$859,MATCH('2.2'!$A72,'2.2 Daten'!$B$9:$B$859,0))) -> 10577 | E72: =IF($A72<>0,INDEX('2.2 Daten'!G$9:G$859,MATCH('2.2'!$A72,'2.2 Daten'!$B$9:$B$859,0))) -> 12025 | F72: =IF($A72<>0,INDEX('2.2 Daten'!H$9:H$859,MATCH('2.2'!$A72,'2.2 Daten'!$B$9:$B$859,0))) -> 33297 | G72: =IF($A72<>0,INDEX('2.2 Daten'!I$9:I$859,MATCH('2.2'!$A72,'2.2 Daten'!$B$9:$B$859,0))) -> 9512 | H72: =IF($A72<>0,INDEX('2.2 Daten'!K$9:K$859,MATCH('2.2'!$A72,'2.2 Daten'!$B$9:$B$859,0))) -> 3.478769854 | I72: =IF($A72<>0,INDEX('2.2 Daten'!L$9:L$859,MATCH('2.2'!$A72,'2.2 Daten'!$B$9:$B$859,0))) -> -0.8530183727 | J72: =IF($A72<>0,INDEX('2.2 Daten'!M$9:M$859,MATCH('2.2'!$A72,'2.2 Daten'!$B$9:$B$859,0))) -> 0.3840053427 | K72: =IF($A72<>0,INDEX('2.2 Daten'!N$9:N$859,MATCH('2.2'!$A72,'2.2 Daten'!$B$9:$B$859,0))) -> 5.45368171 | L72: =IF($A72<>0,INDEX('2.2 Daten'!O$9:O$859,MATCH('2.2'!$A72,'2.2 Daten'!$B$9:$B$859,0))) -> 5.806451613
A73: =CHOOSE('2.2 Daten'!$A$2,'2.2 Daten'!B495,'2.2 Daten'!B44,'2.2 Daten'!B61,'2.2 Daten'!B78,'2.2 Daten'!B81,'2.2 Daten'!B128,'2.2 Daten'!B132,'2.2 Daten'!B187,'2.2 Daten'!B215,'2.2 Daten'!B253,'2.2 Daten'!B299,'2.2 Daten'!B397,'2.2 Daten'!B405,'2.2 Daten'!B408,'2.2 Daten'!B428,'2.2 Daten'!B438,'2.2 Daten'!B453,'2.2 Daten'!B469,x) -> Hamburg, Freie und Hansestadt | B73: =IF($A73<>0,INDEX('2.2 Daten'!C$9:C$859,MATCH('2.2'!$A73,'2.2 Daten'!$B$9:$B$859,0))," ") -> 02000000 | C73: =IF($A73<>0,INDEX('2.2 Daten'!E$9:E$859,MATCH('2.2'!$A73,'2.2 Daten'!$B$9:$B$859,0))) -> 65411 | D73: =IF($A73<>0,INDEX('2.2 Daten'!F$9:F$859,MATCH('2.2'!$A73,'2.2 Daten'!$B$9:$B$859,0))) -> 10577 | E73: =IF($A73<>0,INDEX('2.2 Daten'!G$9:G$859,MATCH('2.2'!$A73,'2.2 Daten'!$B$9:$B$859,0))) -> 12025 | F73: =IF($A73<>0,INDEX('2.2 Daten'!H$9:H$859,MATCH('2.2'!$A73,'2.2 Daten'!$B$9:$B$859,0))) -> 33297 | G73: =IF($A73<>0,INDEX('2.2 Daten'!I$9:I$859,MATCH('2.2'!$A73,'2.2 Daten'!$B$9:$B$859,0))) -> 9512 | H73: =IF($A73<>0,INDEX('2.2 Daten'!K$9:K$859,MATCH('2.2'!$A73,'2.2 Daten'!$B$9:$B$859,0))) -> 3.478769854 | I73: =IF($A73<>0,INDEX('2.2 Daten'!L$9:L$859,MATCH('2.2'!$A73,'2.2 Daten'!$B$9:$B$859,0))) -> -0.8530183727 | J73: =IF($A73<>0,INDEX('2.2 Daten'!M$9:M$859,MATCH('2.2'!$A73,'2.2 Daten'!$B$9:$B$859,0))) -> 0.3840053427 | K73: =IF($A73<>0,INDEX('2.2 Daten'!N$9:N$859,MATCH('2.2'!$A73,'2.2 Daten'!$B$9:$B$859,0))) -> 5.45368171 | L73: =IF($A73<>0,INDEX('2.2 Daten'!O$9:O$859,MATCH('2.2'!$A73,'2.2 Daten'!$B$9:$B$859,0))) -> 5.806451613
A74: =CHOOSE('2.2 Daten'!$A$2,'2.2 Daten'!B496,'2.2 Daten'!B45,'2.2 Daten'!B62,'2.2 Daten'!B79,'2.2 Daten'!B82,'2.2 Daten'!B129,'2.2 Daten'!B133,'2.2 Daten'!B188,'2.2 Daten'!B216,'2.2 Daten'!B254,'2.2 Daten'!B300,'2.2 Daten'!B398,'2.2 Daten'!B406,'2.2 Daten'!B409,'2.2 Daten'!B429,'2.2 Daten'!B439,'2.2 Daten'!B454,'2.2 Daten'!B470,x) -> 0 | B74: =IF($A74<>0,INDEX('2.2 Daten'!C$9:C$859,MATCH('2.2'!$A74,'2.2 Daten'!$B$9:$B$859,0))," ") ->  | C74: =IF($A74<>0,INDEX('2.2 Daten'!E$9:E$859,MATCH('2.2'!$A74,'2.2 Daten'!$B$9:$B$859,0))) -> FALSE | D74: =IF($A74<>0,INDEX('2.2 Daten'!F$9:F$859,MATCH('2.2'!$A74,'2.2 Daten'!$B$9:$B$859,0))) -> FALSE | E74: =IF($A74<>0,INDEX('2.2 Daten'!G$9:G$859,MATCH('2.2'!$A74,'2.2 Daten'!$B$9:$B$859,0))) -> FALSE | F74: =IF($A74<>0,INDEX('2.2 Daten'!H$9:H$859,MATCH('2.2'!$A74,'2.2 Daten'!$B$9:$B$859,0))) -> FALSE | G74: =IF($A74<>0,INDEX('2.2 Daten'!I$9:I$859,MATCH('2.2'!$A74,'2.2 Daten'!$B$9:$B$859,0))) -> FALSE | H74: =IF($A74<>0,INDEX('2.2 Daten'!K$9:K$859,MATCH('2.2'!$A74,'2.2 Daten'!$B$9:$B$859,0))) -> FALSE | I74: =IF($A74<>0,INDEX('2.2 Daten'!L$9:L$859,MATCH('2.2'!$A74,'2.2 Daten'!$B$9:$B$859,0))) -> FALSE | J74: =IF($A74<>0,INDEX('2.2 Daten'!M$9:M$859,MATCH('2.2'!$A74,'2.2 Daten'!$B$9:$B$859,0))) -> FALSE | K74: =IF($A74<>0,INDEX('2.2 Daten'!N$9:N$859,MATCH('2.2'!$A74,'2.2 Daten'!$B$9:$B$859,0))) -> FALSE | L74: =IF($A74<>0,INDEX('2.2 Daten'!O$9:O$859,MATCH('2.2'!$A74,'2.2 Daten'!$B$9:$B$859,0))) -> FALSE
A75: =CHOOSE('2.2 Daten'!$A$2,'2.2 Daten'!B497,'2.2 Daten'!B46,'2.2 Daten'!B63,'2.2 Daten'!B80,'2.2 Daten'!B83,'2.2 Daten'!B130,'2.2 Daten'!B134,'2.2 Daten'!B189,'2.2 Daten'!B217,'2.2 Daten'!B255,'2.2 Daten'!B301,'2.2 Daten'!B399,'2.2 Daten'!B407,'2.2 Daten'!B410,'2.2 Daten'!B430,'2.2 Daten'!B440,'2.2 Daten'!B455,'2.2 Daten'!B471,x) -> Niedersachsen | B75: =IF($A75<>0,INDEX('2.2 Daten'!C$9:C$859,MATCH('2.2'!$A75,'2.2 Daten'!$B$9:$B$859,0))," ") -> 03 | C75: =IF($A75<>0,INDEX('2.2 Daten'!E$9:E$859,MATCH('2.2'!$A75,'2.2 Daten'!$B$9:$B$859,0))) -> 197225 | D75: =IF($A75<>0,INDEX('2.2 Daten'!F$9:F$859,MATCH('2.2'!$A75,'2.2 Daten'!$B$9:$B$859,0))) -> 30651 | E75: =IF($A75<>0,INDEX('2.2 Daten'!G$9:G$859,MATCH('2.2'!$A75,'2.2 Daten'!$B$9:$B$859,0))) -> 35631 | F75: =IF($A75<>0,INDEX('2.2 Daten'!H$9:H$859,MATCH('2.2'!$A75,'2.2 Daten'!$B$9:$B$859,0))) -> 102134 | G75: =IF($A75<>0,INDEX('2.2 Daten'!I$9:I$859,MATCH('2.2'!$A75,'2.2 Daten'!$B$9:$B$859,0))) -> 28809 | H75: =IF($A75<>0,INDEX('2.2 Daten'!K$9:K$859,MATCH('2.2'!$A75,'2.2 Daten'!$B$9:$B$859,0))) -> 4.261381658 | I75: =IF($A75<>0,INDEX('2.2 Daten'!L$9:L$859,MATCH('2.2'!$A75,'2.2 Daten'!$B$9:$B$859,0))) -> -0.6031715147 | J75: =IF($A75<>0,INDEX('2.2 Daten'!M$9:M$859,MATCH('2.2'!$A75,'2.2 Daten'!$B$9:$B$859,0))) -> 0.7778029189 | K75: =IF($A75<>0,INDEX('2.2 Daten'!N$9:N$859,MATCH('2.2'!$A75,'2.2 Daten'!$B$9:$B$859,0))) -> 6.405100744 | L75: =IF($A75<>0,INDEX('2.2 Daten'!O$9:O$859,MATCH('2.2'!$A75,'2.2 Daten'!$B$9:$B$859,0))) -> 6.759310728
A76: =CHOOSE('2.2 Daten'!$A$2,'2.2 Daten'!B498,'2.2 Daten'!B47,'2.2 Daten'!B64,'2.2 Daten'!B81,'2.2 Daten'!B84,'2.2 Daten'!B131,'2.2 Daten'!B135,'2.2 Daten'!B190,'2.2 Daten'!B218,'2.2 Daten'!B256,'2.2 Daten'!B302,'2.2 Daten'!B400,'2.2 Daten'!B408,'2.2 Daten'!B411,'2.2 Daten'!B431,'2.2 Daten'!B441,'2.2 Daten'!B456,'2.2 Daten'!B472,x) -> Braunschweig, Stadt | B76: =IF($A76<>0,INDEX('2.2 Daten'!C$9:C$859,MATCH('2.2'!$A76,'2.2 Daten'!$B$9:$B$859,0))," ") -> 03101000 | C76: =IF($A76<>0,INDEX('2.2 Daten'!E$9:E$859,MATCH('2.2'!$A76,'2.2 Daten'!$B$9:$B$859,0))) -> 5643 | D76: =IF($A76<>0,INDEX('2.2 Daten'!F$9:F$859,MATCH('2.2'!$A76,'2.2 Daten'!$B$9:$B$859,0))) -> 863 | E76: =IF($A76<>0,INDEX('2.2 Daten'!G$9:G$859,MATCH('2.2'!$A76,'2.2 Daten'!$B$9:$B$859,0))) -> 1019 | F76: =IF($A76<>0,INDEX('2.2 Daten'!H$9:H$859,MATCH('2.2'!$A76,'2.2 Daten'!$B$9:$B$859,0))) -> 2949 | G76: =IF($A76<>0,INDEX('2.2 Daten'!I$9:I$859,MATCH('2.2'!$A76,'2.2 Daten'!$B$9:$B$859,0))) -> 812 | H76: =IF($A76<>0,INDEX('2.2 Daten'!K$9:K$859,MATCH('2.2'!$A76,'2.2 Daten'!$B$9:$B$859,0))) -> 5.220958419 | I76: =IF($A76<>0,INDEX('2.2 Daten'!L$9:L$859,MATCH('2.2'!$A76,'2.2 Daten'!$B$9:$B$859,0))) -> 1.889020071 | J76: =IF($A76<>0,INDEX('2.2 Daten'!M$9:M$859,MATCH('2.2'!$A76,'2.2 Daten'!$B$9:$B$859,0))) -> -2.113352546 | K76: =IF($A76<>0,INDEX('2.2 Daten'!N$9:N$859,MATCH('2.2'!$A76,'2.2 Daten'!$B$9:$B$859,0))) -> 8.899556869 | L76: =IF($A76<>0,INDEX('2.2 Daten'!O$9:O$859,MATCH('2.2'!$A76,'2.2 Daten'!$B$9:$B$859,0))) -> 5.867014342
A77: =CHOOSE('2.2 Daten'!$A$2,'2.2 Daten'!B499,'2.2 Daten'!B48,'2.2 Daten'!B65,'2.2 Daten'!B82,'2.2 Daten'!B85,'2.2 Daten'!B132,'2.2 Daten'!B136,'2.2 Daten'!B191,'2.2 Daten'!B219,'2.2 Daten'!B257,'2.2 Daten'!B303,'2.2 Daten'!B401,'2.2 Daten'!B409,'2.2 Daten'!B412,'2.2 Daten'!B432,'2.2 Daten'!B442,'2.2 Daten'!B457,'2.2 Daten'!B473,x) -> Salzgitter, Stadt | B77: =IF($A77<>0,INDEX('2.2 Daten'!C$9:C$859,MATCH('2.2'!$A77,'2.2 Daten'!$B$9:$B$859,0))," ") -> 03102000 | C77: =IF($A77<>0,INDEX('2.2 Daten'!E$9:E$859,MATCH('2.2'!$A77,'2.2 Daten'!$B$9:$B$859,0))) -> 5076 | D77: =IF($A77<>0,INDEX('2.2 Daten'!F$9:F$859,MATCH('2.2'!$A77,'2.2 Daten'!$B$9:$B$859,0))) -> 823 | E77: =IF($A77<>0,INDEX('2.2 Daten'!G$9:G$859,MATCH('2.2'!$A77,'2.2 Daten'!$B$9:$B$859,0))) -> 984 | F77: =IF($A77<>0,INDEX('2.2 Daten'!H$9:H$859,MATCH('2.2'!$A77,'2.2 Daten'!$B$9:$B$859,0))) -> 2578 | G77: =IF($A77<>0,INDEX('2.2 Daten'!I$9:I$859,MATCH('2.2'!$A77,'2.2 Daten'!$B$9:$B$859,0))) -> 691 | H77: =IF($A77<>0,INDEX('2.2 Daten'!K$9:K$859,MATCH('2.2'!$A77,'2.2 Daten'!$B$9:$B$859,0))) -> 2.173913043 | I77: =IF($A77<>0,INDEX('2.2 Daten'!L$9:L$859,MATCH('2.2'!$A77,'2.2 Daten'!$B$9:$B$859,0))) -> -2.140309156 | J77: =IF($A77<>0,INDEX('2.2 Daten'!M$9:M$859,MATCH('2.2'!$A77,'2.2 Daten'!$B$9:$B$859,0))) -> -2.670623145 | K77: =IF($A77<>0,INDEX('2.2 Daten'!N$9:N$859,MATCH('2.2'!$A77,'2.2 Daten'!$B$9:$B$859,0))) -> 5.525992632 | L77: =IF($A77<>0,INDEX('2.2 Daten'!O$9:O$859,MATCH('2.2'!$A77,'2.2 Daten'!$B$9:$B$859,0))) -> 2.674591382
A78: =CHOOSE('2.2 Daten'!$A$2,'2.2 Daten'!B500,'2.2 Daten'!B49,'2.2 Daten'!B66,'2.2 Daten'!B83,'2.2 Daten'!B86,'2.2 Daten'!B133,'2.2 Daten'!B137,'2.2 Daten'!B192,'2.2 Daten'!B220,'2.2 Daten'!B258,'2.2 Daten'!B304,'2.2 Daten'!B402,'2.2 Daten'!B410,'2.2 Daten'!B413,'2.2 Daten'!B433,'2.2 Daten'!B443,'2.2 Daten'!B458,'2.2 Daten'!B474,x) -> Wolfsburg, Stadt | B78: =IF($A78<>0,INDEX('2.2 Daten'!C$9:C$859,MATCH('2.2'!$A78,'2.2 Daten'!$B$9:$B$859,0))," ") -> 03103000 | C78: =IF($A78<>0,INDEX('2.2 Daten'!E$9:E$859,MATCH('2.2'!$A78,'2.2 Daten'!$B$9:$B$859,0))) -> 3803 | D78: =IF($A78<>0,INDEX('2.2 Daten'!F$9:F$859,MATCH('2.2'!$A78,'2.2 Daten'!$B$9:$B$859,0))) -> 632 | E78: =IF($A78<>0,INDEX('2.2 Daten'!G$9:G$859,MATCH('2.2'!$A78,'2.2 Daten'!$B$9:$B$859,0))) -> 729 | F78: =IF($A78<>0,INDEX('2.2 Daten'!H$9:H$859,MATCH('2.2'!$A78,'2.2 Daten'!$B$9:$B$859,0))) -> 1919 | G78: =IF($A78<>0,INDEX('2.2 Daten'!I$9:I$859,MATCH('2.2'!$A78,'2.2 Daten'!$B$9:$B$859,0))) -> 523 | H78: =IF($A78<>0,INDEX('2.2 Daten'!K$9:K$859,MATCH('2.2'!$A78,'2.2 Daten'!$B$9:$B$859,0))) -> 2.039173598 | I78: =IF($A78<>0,INDEX('2.2 Daten'!L$9:L$859,MATCH('2.2'!$A78,'2.2 Daten'!$B$9:$B$859,0))) -> -4.387291982 | J78: =IF($A78<>0,INDEX('2.2 Daten'!M$9:M$859,MATCH('2.2'!$A78,'2.2 Daten'!$B$9:$B$859,0))) -> 0.1373626374 | K78: =IF($A78<>0,INDEX('2.2 Daten'!N$9:N$859,MATCH('2.2'!$A78,'2.2 Daten'!$B$9:$B$859,0))) -> 4.067245119 | L78: =IF($A78<>0,INDEX('2.2 Daten'!O$9:O$859,MATCH('2.2'!$A78,'2.2 Daten'!$B$9:$B$859,0))) -> 5.870445344
A79: =CHOOSE('2.2 Daten'!$A$2,'2.2 Daten'!B501,'2.2 Daten'!B50,'2.2 Daten'!B67,'2.2 Daten'!B84,'2.2 Daten'!B87,'2.2 Daten'!B134,'2.2 Daten'!B138,'2.2 Daten'!B193,'2.2 Daten'!B221,'2.2 Daten'!B259,'2.2 Daten'!B305,'2.2 Daten'!B403,'2.2 Daten'!B411,'2.2 Daten'!B414,'2.2 Daten'!B434,'2.2 Daten'!B444,'2.2 Daten'!B459,'2.2 Daten'!B475,x) -> Gifhorn | B79: =IF($A79<>0,INDEX('2.2 Daten'!C$9:C$859,MATCH('2.2'!$A79,'2.2 Daten'!$B$9:$B$859,0))," ") -> 03151000 | C79: =IF($A79<>0,INDEX('2.2 Daten'!E$9:E$859,MATCH('2.2'!$A79,'2.2 Daten'!$B$9:$B$859,0))) -> 3255 | D79: =IF($A79<>0,INDEX('2.2 Daten'!F$9:F$859,MATCH('2.2'!$A79,'2.2 Daten'!$B$9:$B$859,0))) -> 503 | E79: =IF($A79<>0,INDEX('2.2 Daten'!G$9:G$859,MATCH('2.2'!$A79,'2.2 Daten'!$B$9:$B$859,0))) -> 597 | F79: =IF($A79<>0,INDEX('2.2 Daten'!H$9:H$859,MATCH('2.2'!$A79,'2.2 Daten'!$B$9:$B$859,0))) -> 1697 | G79: =IF($A79<>0,INDEX('2.2 Daten'!I$9:I$859,MATCH('2.2'!$A79,'2.2 Daten'!$B$9:$B$859,0))) -> 458 | H79: =IF($A79<>0,INDEX('2.2 Daten'!K$9:K$859,MATCH('2.2'!$A79,'2.2 Daten'!$B$9:$B$859,0))) -> 0.0307314075 | I79: =IF($A79<>0,INDEX('2.2 Daten'!L$9:L$859,MATCH('2.2'!$A79,'2.2 Daten'!$B$9:$B$859,0))) -> -1.949317739 | J79: =IF($A79<>0,INDEX('2.2 Daten'!M$9:M$859,MATCH('2.2'!$A79,'2.2 Daten'!$B$9:$B$859,0))) -> 0.1677852349 | K79: =IF($A79<>0,INDEX('2.2 Daten'!N$9:N$859,MATCH('2.2'!$A79,'2.2 Daten'!$B$9:$B$859,0))) -> -0.644028103 | L79: =IF($A79<>0,INDEX('2.2 Daten'!O$9:O$859,MATCH('2.2'!$A79,'2.2 Daten'!$B$9:$B$859,0))) -> 4.805491991
A80: =CHOOSE('2.2 Daten'!$A$2,'2.2 Daten'!B502,'2.2 Daten'!B51,'2.2 Daten'!B68,'2.2 Daten'!B85,'2.2 Daten'!B88,'2.2 Daten'!B135,'2.2 Daten'!B139,'2.2 Daten'!B194,'2.2 Daten'!B222,'2.2 Daten'!B260,'2.2 Daten'!B306,'2.2 Daten'!B404,'2.2 Daten'!B412,'2.2 Daten'!B415,'2.2 Daten'!B435,'2.2 Daten'!B445,'2.2 Daten'!B460,'2.2 Daten'!B476,x) -> Goslar | B80: =IF($A80<>0,INDEX('2.2 Daten'!C$9:C$859,MATCH('2.2'!$A80,'2.2 Daten'!$B$9:$B$859,0))," ") -> 03153000 | C80: =IF($A80<>0,INDEX('2.2 Daten'!E$9:E$859,MATCH('2.2'!$A80,'2.2 Daten'!$B$9:$B$859,0))) -> 3506 | D80: =IF($A80<>0,INDEX('2.2 Daten'!F$9:F$859,MATCH('2.2'!$A80,'2.2 Daten'!$B$9:$B$859,0))) -> 570 | E80: =IF($A80<>0,INDEX('2.2 Daten'!G$9:G$859,MATCH('2.2'!$A80,'2.2 Daten'!$B$9:$B$859,0))) -> 620 | F80: =IF($A80<>0,INDEX('2.2 Daten'!H$9:H$859,MATCH('2.2'!$A80,'2.2 Daten'!$B$9:$B$859,0))) -> 1811 | G80: =IF($A80<>0,INDEX('2.2 Daten'!I$9:I$859,MATCH('2.2'!$A80,'2.2 Daten'!$B$9:$B$859,0))) -> 505 | H80: =IF($A80<>0,INDEX('2.2 Daten'!K$9:K$859,MATCH('2.2'!$A80,'2.2 Daten'!$B$9:$B$859,0))) -> 3.360849057 | I80: =IF($A80<>0,INDEX('2.2 Daten'!L$9:L$859,MATCH('2.2'!$A80,'2.2 Daten'!$B$9:$B$859,0))) -> 2.888086643 | J80: =IF($A80<>0,INDEX('2.2 Daten'!M$9:M$859,MATCH('2.2'!$A80,'2.2 Daten'!$B$9:$B$859,0))) -> -2.973395931 | K80: =IF($A80<>0,INDEX('2.2 Daten'!N$9:N$859,MATCH('2.2'!$A80,'2.2 Daten'!$B$9:$B$859,0))) -> 6.592113008 | L80: =IF($A80<>0,INDEX('2.2 Daten'!O$9:O$859,MATCH('2.2'!$A80,'2.2 Daten'!$B$9:$B$859,0))) -> 1
A81: =CHOOSE('2.2 Daten'!$A$2,'2.2 Daten'!B503,'2.2 Daten'!B52,'2.2 Daten'!B69,'2.2 Daten'!B86,'2.2 Daten'!B89,'2.2 Daten'!B136,'2.2 Daten'!B140,'2.2 Daten'!B195,'2.2 Daten'!B223,'2.2 Daten'!B261,'2.2 Daten'!B307,'2.2 Daten'!B405,'2.2 Daten'!B413,'2.2 Daten'!B416,'2.2 Daten'!B436,'2.2 Daten'!B446,'2.2 Daten'!B461,'2.2 Daten'!B477,x) -> Helmstedt | B81: =IF($A81<>0,INDEX('2.2 Daten'!C$9:C$859,MATCH('2.2'!$A81,'2.2 Daten'!$B$9:$B$859,0))," ") -> 03154000 | C81: =IF($A81<>0,INDEX('2.2 Daten'!E$9:E$859,MATCH('2.2'!$A81,'2.2 Daten'!$B$9:$B$859,0))) -> 2266 | D81: =IF($A81<>0,INDEX('2.2 Daten'!F$9:F$859,MATCH('2.2'!$A81,'2.2 Daten'!$B$9:$B$859,0))) -> 353 | E81: =IF($A81<>0,INDEX('2.2 Daten'!G$9:G$859,MATCH('2.2'!$A81,'2.2 Daten'!$B$9:$B$859,0))) -> 408 | F81: =IF($A81<>0,INDEX('2.2 Daten'!H$9:H$859,MATCH('2.2'!$A81,'2.2 Daten'!$B$9:$B$859,0))) -> 1194 | G81: =IF($A81<>0,INDEX('2.2 Daten'!I$9:I$859,MATCH('2.2'!$A81,'2.2 Daten'!$B$9:$B$859,0))) -> 311 | H81: =IF($A81<>0,INDEX('2.2 Daten'!K$9:K$859,MATCH('2.2'!$A81,'2.2 Daten'!$B$9:$B$859,0))) -> 4.71349353 | I81: =IF($A81<>0,INDEX('2.2 Daten'!L$9:L$859,MATCH('2.2'!$A81,'2.2 Daten'!$B$9:$B$859,0))) -> -5.866666667 | J81: =IF($A81<>0,INDEX('2.2 Daten'!M$9:M$859,MATCH('2.2'!$A81,'2.2 Daten'!$B$9:$B$859,0))) -> 2.512562814 | K81: =IF($A81<>0,INDEX('2.2 Daten'!N$9:N$859,MATCH('2.2'!$A81,'2.2 Daten'!$B$9:$B$859,0))) -> 8.34845735 | L81: =IF($A81<>0,INDEX('2.2 Daten'!O$9:O$859,MATCH('2.2'!$A81,'2.2 Daten'!$B$9:$B$859,0))) -> 7.612456747
A82: =CHOOSE('2.2 Daten'!$A$2,'2.2 Daten'!B504,'2.2 Daten'!B53,'2.2 Daten'!B70,'2.2 Daten'!B87,'2.2 Daten'!B90,'2.2 Daten'!B137,'2.2 Daten'!B141,'2.2 Daten'!B196,'2.2 Daten'!B224,'2.2 Daten'!B262,'2.2 Daten'!B308,'2.2 Daten'!B406,'2.2 Daten'!B414,'2.2 Daten'!B417,'2.2 Daten'!B437,'2.2 Daten'!B447,'2.2 Daten'!B462,'2.2 Daten'!B478,x) -> Northeim | B82: =IF($A82<>0,INDEX('2.2 Daten'!C$9:C$859,MATCH('2.2'!$A82,'2.2 Daten'!$B$9:$B$859,0))," ") -> 03155000 | C82: =IF($A82<>0,INDEX('2.2 Daten'!E$9:E$859,MATCH('2.2'!$A82,'2.2 Daten'!$B$9:$B$859,0))) -> 3217 | D82: =IF($A82<>0,INDEX('2.2 Daten'!F$9:F$859,MATCH('2.2'!$A82,'2.2 Daten'!$B$9:$B$859,0))) -> 505 | E82: =IF($A82<>0,INDEX('2.2 Daten'!G$9:G$859,MATCH('2.2'!$A82,'2.2 Daten'!$B$9:$B$859,0))) -> 597 | F82: =IF($A82<>0,INDEX('2.2 Daten'!H$9:H$859,MATCH('2.2'!$A82,'2.2 Daten'!$B$9:$B$859,0))) -> 1664 | G82: =IF($A82<>0,INDEX('2.2 Daten'!I$9:I$859,MATCH('2.2'!$A82,'2.2 Daten'!$B$9:$B$859,0))) -> 451 | H82: =IF($A82<>0,INDEX('2.2 Daten'!K$9:K$859,MATCH('2.2'!$A82,'2.2 Daten'!$B$9:$B$859,0))) -> 6.877076412 | I82: =IF($A82<>0,INDEX('2.2 Daten'!L$9:L$859,MATCH('2.2'!$A82,'2.2 Daten'!$B$9:$B$859,0))) -> 2.434077079 | J82: =IF($A82<>0,INDEX('2.2 Daten'!M$9:M$859,MATCH('2.2'!$A82,'2.2 Daten'!$B$9:$B$859,0))) -> -0.1672240803 | K82: =IF($A82<>0,INDEX('2.2 Daten'!N$9:N$859,MATCH('2.2'!$A82,'2.2 Daten'!$B$9:$B$859,0))) -> 12.05387205 | L82: =IF($A82<>0,INDEX('2.2 Daten'!O$9:O$859,MATCH('2.2'!$A82,'2.2 Daten'!$B$9:$B$859,0))) -> 3.917050691
A83: =CHOOSE('2.2 Daten'!$A$2,'2.2 Daten'!B505,'2.2 Daten'!B54,'2.2 Daten'!B71,'2.2 Daten'!B88,'2.2 Daten'!B91,'2.2 Daten'!B138,'2.2 Daten'!B142,'2.2 Daten'!B197,'2.2 Daten'!B225,'2.2 Daten'!B263,'2.2 Daten'!B309,'2.2 Daten'!B407,'2.2 Daten'!B415,'2.2 Daten'!B418,'2.2 Daten'!B438,'2.2 Daten'!B448,'2.2 Daten'!B463,'2.2 Daten'!B479,x) -> Peine | B83: =IF($A83<>0,INDEX('2.2 Daten'!C$9:C$859,MATCH('2.2'!$A83,'2.2 Daten'!$B$9:$B$859,0))," ") -> 03157000 | C83: =IF($A83<>0,INDEX('2.2 Daten'!E$9:E$859,MATCH('2.2'!$A83,'2.2 Daten'!$B$9:$B$859,0))) -> 3941 | D83: =IF($A83<>0,INDEX('2.2 Daten'!F$9:F$859,MATCH('2.2'!$A83,'2.2 Daten'!$B$9:$B$859,0))) -> 577 | E83: =IF($A83<>0,INDEX('2.2 Daten'!G$9:G$859,MATCH('2.2'!$A83,'2.2 Daten'!$B$9:$B$859,0))) -> 686 | F83: =IF($A83<>0,INDEX('2.2 Daten'!H$9:H$859,MATCH('2.2'!$A83,'2.2 Daten'!$B$9:$B$859,0))) -> 2075 | G83: =IF($A83<>0,INDEX('2.2 Daten'!I$9:I$859,MATCH('2.2'!$A83,'2.2 Daten'!$B$9:$B$859,0))) -> 603 | H83: =IF($A83<>0,INDEX('2.2 Daten'!K$9:K$859,MATCH('2.2'!$A83,'2.2 Daten'!$B$9:$B$859,0))) -> 0.7413087935 | I83: =IF($A83<>0,INDEX('2.2 Daten'!L$9:L$859,MATCH('2.2'!$A83,'2.2 Daten'!$B$9:$B$859,0))) -> -5.564648118 | J83: =IF($A83<>0,INDEX('2.2 Daten'!M$9:M$859,MATCH('2.2'!$A83,'2.2 Daten'!$B$9:$B$859,0))) -> -0.1455604076 | K83: =IF($A83<>0,INDEX('2.2 Daten'!N$9:N$859,MATCH('2.2'!$A83,'2.2 Daten'!$B$9:$B$859,0))) -> 1.865488463 | L83: =IF($A83<>0,INDEX('2.2 Daten'!O$9:O$859,MATCH('2.2'!$A83,'2.2 Daten'!$B$9:$B$859,0))) -> 4.506065858
A84: =CHOOSE('2.2 Daten'!$A$2,'2.2 Daten'!B506,'2.2 Daten'!B55,'2.2 Daten'!B72,'2.2 Daten'!B89,'2.2 Daten'!B92,'2.2 Daten'!B139,'2.2 Daten'!B143,'2.2 Daten'!B198,'2.2 Daten'!B226,'2.2 Daten'!B264,'2.2 Daten'!B310,'2.2 Daten'!B408,'2.2 Daten'!B416,'2.2 Daten'!B419,'2.2 Daten'!B439,'2.2 Daten'!B449,'2.2 Daten'!B464,'2.2 Daten'!B480,x) -> Wolfenbüttel | B84: =IF($A84<>0,INDEX('2.2 Daten'!C$9:C$859,MATCH('2.2'!$A84,'2.2 Daten'!$B$9:$B$859,0))," ") -> 03158000 | C84: =IF($A84<>0,INDEX('2.2 Daten'!E$9:E$859,MATCH('2.2'!$A84,'2.2 Daten'!$B$9:$B$859,0))) -> 2618 | D84: =IF($A84<>0,INDEX('2.2 Daten'!F$9:F$859,MATCH('2.2'!$A84,'2.2 Daten'!$B$9:$B$859,0))) -> 412 | E84: =IF($A84<>0,INDEX('2.2 Daten'!G$9:G$859,MATCH('2.2'!$A84,'2.2 Daten'!$B$9:$B$859,0))) -> 455 | F84: =IF($A84<>0,INDEX('2.2 Daten'!H$9:H$859,MATCH('2.2'!$A84,'2.2 Daten'!$B$9:$B$859,0))) -> 1368 | G84: =IF($A84<>0,INDEX('2.2 Daten'!I$9:I$859,MATCH('2.2'!$A84,'2.2 Daten'!$B$9:$B$859,0))) -> 383 | H84: =IF($A84<>0,INDEX('2.2 Daten'!K$9:K$859,MATCH('2.2'!$A84,'2.2 Daten'!$B$9:$B$859,0))) -> 2.666666667 | I84: =IF($A84<>0,INDEX('2.2 Daten'!L$9:L$859,MATCH('2.2'!$A84,'2.2 Daten'!$B$9:$B$859,0))) -> -2.600472813 | J84: =IF($A84<>0,INDEX('2.2 Daten'!M$9:M$859,MATCH('2.2'!$A84,'2.2 Daten'!$B$9:$B$859,0))) -> 1.789709172 | K84: =IF($A84<>0,INDEX('2.2 Daten'!N$9:N$859,MATCH('2.2'!$A84,'2.2 Daten'!$B$9:$B$859,0))) -> 3.951367781 | L84: =IF($A84<>0,INDEX('2.2 Daten'!O$9:O$859,MATCH('2.2'!$A84,'2.2 Daten'!$B$9:$B$859,0))) -> 5.21978022
A85: =CHOOSE('2.2 Daten'!$A$2,'2.2 Daten'!B507,'2.2 Daten'!B56,'2.2 Daten'!B73,'2.2 Daten'!B90,'2.2 Daten'!B93,'2.2 Daten'!B140,'2.2 Daten'!B144,'2.2 Daten'!B199,'2.2 Daten'!B227,'2.2 Daten'!B265,'2.2 Daten'!B311,'2.2 Daten'!B409,'2.2 Daten'!B417,'2.2 Daten'!B420,'2.2 Daten'!B440,'2.2 Daten'!B450,'2.2 Daten'!B465,'2.2 Daten'!B481,x) -> Göttingen | B85: =IF($A85<>0,INDEX('2.2 Daten'!C$9:C$859,MATCH('2.2'!$A85,'2.2 Daten'!$B$9:$B$859,0))," ") -> 03159000 | C85: =IF($A85<>0,INDEX('2.2 Daten'!E$9:E$859,MATCH('2.2'!$A85,'2.2 Daten'!$B$9:$B$859,0))) -> 6958 | D85: =IF($A85<>0,INDEX('2.2 Daten'!F$9:F$859,MATCH('2.2'!$A85,'2.2 Daten'!$B$9:$B$859,0))) -> 1161 | E85: =IF($A85<>0,INDEX('2.2 Daten'!G$9:G$859,MATCH('2.2'!$A85,'2.2 Daten'!$B$9:$B$859,0))) -> 1345 | F85: =IF($A85<>0,INDEX('2.2 Daten'!H$9:H$859,MATCH('2.2'!$A85,'2.2 Daten'!$B$9:$B$859,0))) -> 3489 | G85: =IF($A85<>0,INDEX('2.2 Daten'!I$9:I$859,MATCH('2.2'!$A85,'2.2 Daten'!$B$9:$B$859,0))) -> 963 | H85: =IF($A85<>0,INDEX('2.2 Daten'!K$9:K$859,MATCH('2.2'!$A85,'2.2 Daten'!$B$9:$B$859,0))) -> 6.050906874 | I85: =IF($A85<>0,INDEX('2.2 Daten'!L$9:L$859,MATCH('2.2'!$A85,'2.2 Daten'!$B$9:$B$859,0))) -> 4.688908927 | J85: =IF($A85<>0,INDEX('2.2 Daten'!M$9:M$859,MATCH('2.2'!$A85,'2.2 Daten'!$B$9:$B$859,0))) -> 1.893939394 | K85: =IF($A85<>0,INDEX('2.2 Daten'!N$9:N$859,MATCH('2.2'!$A85,'2.2 Daten'!$B$9:$B$859,0))) -> 9.475996235 | L85: =IF($A85<>0,INDEX('2.2 Daten'!O$9:O$859,MATCH('2.2'!$A85,'2.2 Daten'!$B$9:$B$859,0))) -> 1.904761905
A86: =CHOOSE('2.2 Daten'!$A$2,'2.2 Daten'!B508,'2.2 Daten'!B57,'2.2 Daten'!B74,'2.2 Daten'!B91,'2.2 Daten'!B94,'2.2 Daten'!B141,'2.2 Daten'!B145,'2.2 Daten'!B200,'2.2 Daten'!B228,'2.2 Daten'!B266,'2.2 Daten'!B312,'2.2 Daten'!B410,'2.2 Daten'!B418,'2.2 Daten'!B421,'2.2 Daten'!B441,'2.2 Daten'!B451,'2.2 Daten'!B466,'2.2 Daten'!B482,x) -> Region Hannover | B86: =IF($A86<>0,INDEX('2.2 Daten'!C$9:C$859,MATCH('2.2'!$A86,'2.2 Daten'!$B$9:$B$859,0))," ") -> 03241000 | C86: =IF($A86<>0,INDEX('2.2 Daten'!E$9:E$859,MATCH('2.2'!$A86,'2.2 Daten'!$B$9:$B$859,0))) -> 39407 | D86: =IF($A86<>0,INDEX('2.2 Daten'!F$9:F$859,MATCH('2.2'!$A86,'2.2 Daten'!$B$9:$B$859,0))) -> 6041 | E86: =IF($A86<>0,INDEX('2.2 Daten'!G$9:G$859,MATCH('2.2'!$A86,'2.2 Daten'!$B$9:$B$859,0))) -> 7009 | F86: =IF($A86<>0,INDEX('2.2 Daten'!H$9:H$859,MATCH('2.2'!$A86,'2.2 Daten'!$B$9:$B$859,0))) -> 20434 | G86: =IF($A86<>0,INDEX('2.2 Daten'!I$9:I$859,MATCH('2.2'!$A86,'2.2 Daten'!$B$9:$B$859,0))) -> 5923 | H86: =IF($A86<>0,INDEX('2.2 Daten'!K$9:K$859,MATCH('2.2'!$A86,'2.2 Daten'!$B$9:$B$859,0))) -> 7.778355168 | I86: =IF($A86<>0,INDEX('2.2 Daten'!L$9:L$859,MATCH('2.2'!$A86,'2.2 Daten'!$B$9:$B$859,0))) -> 0 | J86: =IF($A86<>0,INDEX('2.2 Daten'!M$9:M$859,MATCH('2.2'!$A86,'2.2 Daten'!$B$9:$B$859,0))) -> 3.088689513 | K86: =IF($A86<>0,INDEX('2.2 Daten'!N$9:N$859,MATCH('2.2'!$A86,'2.2 Daten'!$B$9:$B$859,0))) -> 10.39438142 | L86: =IF($A86<>0,INDEX('2.2 Daten'!O$9:O$859,MATCH('2.2'!$A86,'2.2 Daten'!$B$9:$B$859,0))) -> 13.61979666
A87: =CHOOSE('2.2 Daten'!$A$2,'2.2 Daten'!B509,'2.2 Daten'!B58,'2.2 Daten'!B75,'2.2 Daten'!B92,'2.2 Daten'!B95,'2.2 Daten'!B142,'2.2 Daten'!B146,'2.2 Daten'!B201,'2.2 Daten'!B229,'2.2 Daten'!B267,'2.2 Daten'!B313,'2.2 Daten'!B411,'2.2 Daten'!B419,'2.2 Daten'!B422,'2.2 Daten'!B442,'2.2 Daten'!B452,'2.2 Daten'!B467,'2.2 Daten'!B483,x) -> Diepholz | B87: =IF($A87<>0,INDEX('2.2 Daten'!C$9:C$859,MATCH('2.2'!$A87,'2.2 Daten'!$B$9:$B$859,0))," ") -> 03251000 | C87: =IF($A87<>0,INDEX('2.2 Daten'!E$9:E$859,MATCH('2.2'!$A87,'2.2 Daten'!$B$9:$B$859,0))) -> 4625 | D87: =IF($A87<>0,INDEX('2.2 Daten'!F$9:F$859,MATCH('2.2'!$A87,'2.2 Daten'!$B$9:$B$859,0))) -> 698 | E87: =IF($A87<>0,INDEX('2.2 Daten'!G$9:G$859,MATCH('2.2'!$A87,'2.2 Daten'!$B$9:$B$859,0))) -> 825 | F87: =IF($A87<>0,INDEX('2.2 Daten'!H$9:H$859,MATCH('2.2'!$A87,'2.2 Daten'!$B$9:$B$859,0))) -> 2437 | G87: =IF($A87<>0,INDEX('2.2 Daten'!I$9:I$859,MATCH('2.2'!$A87,'2.2 Daten'!$B$9:$B$859,0))) -> 665 | H87: =IF($A87<>0,INDEX('2.2 Daten'!K$9:K$859,MATCH('2.2'!$A87,'2.2 Daten'!$B$9:$B$859,0))) -> 0.4997827032 | I87: =IF($A87<>0,INDEX('2.2 Daten'!L$9:L$859,MATCH('2.2'!$A87,'2.2 Daten'!$B$9:$B$859,0))) -> -5.163043478 | J87: =IF($A87<>0,INDEX('2.2 Daten'!M$9:M$859,MATCH('2.2'!$A87,'2.2 Daten'!$B$9:$B$859,0))) -> -1.433691756 | K87: =IF($A87<>0,INDEX('2.2 Daten'!N$9:N$859,MATCH('2.2'!$A87,'2.2 Daten'!$B$9:$B$859,0))) -> 2.697008007 | L87: =IF($A87<>0,INDEX('2.2 Daten'!O$9:O$859,MATCH('2.2'!$A87,'2.2 Daten'!$B$9:$B$859,0))) -> 1.37195122
A88: =CHOOSE('2.2 Daten'!$A$2,'2.2 Daten'!B510,'2.2 Daten'!B59,'2.2 Daten'!B76,'2.2 Daten'!B93,'2.2 Daten'!B96,'2.2 Daten'!B143,'2.2 Daten'!B147,'2.2 Daten'!B202,'2.2 Daten'!B230,'2.2 Daten'!B268,'2.2 Daten'!B314,'2.2 Daten'!B412,'2.2 Daten'!B420,'2.2 Daten'!B423,'2.2 Daten'!B443,'2.2 Daten'!B453,'2.2 Daten'!B468,'2.2 Daten'!B484,x) -> Hameln-Pyrmont | B88: =IF($A88<>0,INDEX('2.2 Daten'!C$9:C$859,MATCH('2.2'!$A88,'2.2 Daten'!$B$9:$B$859,0))," ") -> 03252000 | C88: =IF($A88<>0,INDEX('2.2 Daten'!E$9:E$859,MATCH('2.2'!$A88,'2.2 Daten'!$B$9:$B$859,0))) -> 5058 | D88: =IF($A88<>0,INDEX('2.2 Daten'!F$9:F$859,MATCH('2.2'!$A88,'2.2 Daten'!$B$9:$B$859,0))) -> 809 | E88: =IF($A88<>0,INDEX('2.2 Daten'!G$9:G$859,MATCH('2.2'!$A88,'2.2 Daten'!$B$9:$B$859,0))) -> 952 | F88: =IF($A88<>0,INDEX('2.2 Daten'!H$9:H$859,MATCH('2.2'!$A88,'2.2 Daten'!$B$9:$B$859,0))) -> 2577 | G88: =IF($A88<>0,INDEX('2.2 Daten'!I$9:I$859,MATCH('2.2'!$A88,'2.2 Daten'!$B$9:$B$859,0))) -> 720 | H88: =IF($A88<>0,INDEX('2.2 Daten'!K$9:K$859,MATCH('2.2'!$A88,'2.2 Daten'!$B$9:$B$859,0))) -> 3.014256619 | I88: =IF($A88<>0,INDEX('2.2 Daten'!L$9:L$859,MATCH('2.2'!$A88,'2.2 Daten'!$B$9:$B$859,0))) -> -1.100244499 | J88: =IF($A88<>0,INDEX('2.2 Daten'!M$9:M$859,MATCH('2.2'!$A88,'2.2 Daten'!$B$9:$B$859,0))) -> -0.1049317943 | K88: =IF($A88<>0,INDEX('2.2 Daten'!N$9:N$859,MATCH('2.2'!$A88,'2.2 Daten'!$B$9:$B$859,0))) -> 5.485059353 | L88: =IF($A88<>0,INDEX('2.2 Daten'!O$9:O$859,MATCH('2.2'!$A88,'2.2 Daten'!$B$9:$B$859,0))) -> 3.448275862
A89: =CHOOSE('2.2 Daten'!$A$2,'2.2 Daten'!B511,'2.2 Daten'!B60,'2.2 Daten'!B77,'2.2 Daten'!B94,'2.2 Daten'!B97,'2.2 Daten'!B144,'2.2 Daten'!B148,'2.2 Daten'!B203,'2.2 Daten'!B231,'2.2 Daten'!B269,'2.2 Daten'!B315,'2.2 Daten'!B413,'2.2 Daten'!B421,'2.2 Daten'!B424,'2.2 Daten'!B444,'2.2 Daten'!B454,'2.2 Daten'!B469,'2.2 Daten'!B485,x) -> Hildesheim | B89: =IF($A89<>0,INDEX('2.2 Daten'!C$9:C$859,MATCH('2.2'!$A89,'2.2 Daten'!$B$9:$B$859,0))," ") -> 03254000 | C89: =IF($A89<>0,INDEX('2.2 Daten'!E$9:E$859,MATCH('2.2'!$A89,'2.2 Daten'!$B$9:$B$859,0))) -> 7237 | D89: =IF($A89<>0,INDEX('2.2 Daten'!F$9:F$859,MATCH('2.2'!$A89,'2.2 Daten'!$B$9:$B$859,0))) -> 1134 | E89: =IF($A89<>0,INDEX('2.2 Daten'!G$9:G$859,MATCH('2.2'!$A89,'2.2 Daten'!$B$9:$B$859,0))) -> 1324 | F89: =IF($A89<>0,INDEX('2.2 Daten'!H$9:H$859,MATCH('2.2'!$A89,'2.2 Daten'!$B$9:$B$859,0))) -> 3699 | G89: =IF($A89<>0,INDEX('2.2 Daten'!I$9:I$859,MATCH('2.2'!$A89,'2.2 Daten'!$B$9:$B$859,0))) -> 1080 | H89: =IF($A89<>0,INDEX('2.2 Daten'!K$9:K$859,MATCH('2.2'!$A89,'2.2 Daten'!$B$9:$B$859,0))) -> 10.48854962 | I89: =IF($A89<>0,INDEX('2.2 Daten'!L$9:L$859,MATCH('2.2'!$A89,'2.2 Daten'!$B$9:$B$859,0))) -> 2.254283138 | J89: =IF($A89<>0,INDEX('2.2 Daten'!M$9:M$859,MATCH('2.2'!$A89,'2.2 Daten'!$B$9:$B$859,0))) -> 13.25919589 | K89: =IF($A89<>0,INDEX('2.2 Daten'!N$9:N$859,MATCH('2.2'!$A89,'2.2 Daten'!$B$9:$B$859,0))) -> 11.85364379 | L89: =IF($A89<>0,INDEX('2.2 Daten'!O$9:O$859,MATCH('2.2'!$A89,'2.2 Daten'!$B$9:$B$859,0))) -> 11.91709845
A90: =CHOOSE('2.2 Daten'!$A$2,'2.2 Daten'!B512,'2.2 Daten'!B61,'2.2 Daten'!B78,'2.2 Daten'!B95,'2.2 Daten'!B98,'2.2 Daten'!B145,'2.2 Daten'!B149,'2.2 Daten'!B204,'2.2 Daten'!B232,'2.2 Daten'!B270,'2.2 Daten'!B316,'2.2 Daten'!B414,'2.2 Daten'!B422,'2.2 Daten'!B425,'2.2 Daten'!B445,'2.2 Daten'!B455,'2.2 Daten'!B470,'2.2 Daten'!B486,x) -> Holzminden | B90: =IF($A90<>0,INDEX('2.2 Daten'!C$9:C$859,MATCH('2.2'!$A90,'2.2 Daten'!$B$9:$B$859,0))," ") -> 03255000 | C90: =IF($A90<>0,INDEX('2.2 Daten'!E$9:E$859,MATCH('2.2'!$A90,'2.2 Daten'!$B$9:$B$859,0))) -> 1785 | D90: =IF($A90<>0,INDEX('2.2 Daten'!F$9:F$859,MATCH('2.2'!$A90,'2.2 Daten'!$B$9:$B$859,0))) -> 270 | E90: =IF($A90<>0,INDEX('2.2 Daten'!G$9:G$859,MATCH('2.2'!$A90,'2.2 Daten'!$B$9:$B$859,0))) -> 297 | F90: =IF($A90<>0,INDEX('2.2 Daten'!H$9:H$859,MATCH('2.2'!$A90,'2.2 Daten'!$B$9:$B$859,0))) -> 964 | G90: =IF($A90<>0,INDEX('2.2 Daten'!I$9:I$859,MATCH('2.2'!$A90,'2.2 Daten'!$B$9:$B$859,0))) -> 254 | H90: =IF($A90<>0,INDEX('2.2 Daten'!K$9:K$859,MATCH('2.2'!$A90,'2.2 Daten'!$B$9:$B$859,0))) -> 12.68939394 | I90: =IF($A90<>0,INDEX('2.2 Daten'!L$9:L$859,MATCH('2.2'!$A90,'2.2 Daten'!$B$9:$B$859,0))) -> -1.459854015 | J90: =IF($A90<>0,INDEX('2.2 Daten'!M$9:M$859,MATCH('2.2'!$A90,'2.2 Daten'!$B$9:$B$859,0))) -> 2.413793103 | K90: =IF($A90<>0,INDEX('2.2 Daten'!N$9:N$859,MATCH('2.2'!$A90,'2.2 Daten'!$B$9:$B$859,0))) -> 18.1372549 | L90: =IF($A90<>0,INDEX('2.2 Daten'!O$9:O$859,MATCH('2.2'!$A90,'2.2 Daten'!$B$9:$B$859,0))) -> 24.50980392
A91: =CHOOSE('2.2 Daten'!$A$2,'2.2 Daten'!B513,'2.2 Daten'!B62,'2.2 Daten'!B79,'2.2 Daten'!B96,'2.2 Daten'!B99,'2.2 Daten'!B146,'2.2 Daten'!B150,'2.2 Daten'!B205,'2.2 Daten'!B233,'2.2 Daten'!B271,'2.2 Daten'!B317,'2.2 Daten'!B415,'2.2 Daten'!B423,'2.2 Daten'!B426,'2.2 Daten'!B446,'2.2 Daten'!B456,'2.2 Daten'!B471,'2.2 Daten'!B487,x) -> Nienburg (Weser) | B91: =IF($A91<>0,INDEX('2.2 Daten'!C$9:C$859,MATCH('2.2'!$A91,'2.2 Daten'!$B$9:$B$859,0))," ") -> 03256000 | C91: =IF($A91<>0,INDEX('2.2 Daten'!E$9:E$859,MATCH('2.2'!$A91,'2.2 Daten'!$B$9:$B$859,0))) -> 3748 | D91: =IF($A91<>0,INDEX('2.2 Daten'!F$9:F$859,MATCH('2.2'!$A91,'2.2 Daten'!$B$9:$B$859,0))) -> 523 | E91: =IF($A91<>0,INDEX('2.2 Daten'!G$9:G$859,MATCH('2.2'!$A91,'2.2 Daten'!$B$9:$B$859,0))) -> 662 | F91: =IF($A91<>0,INDEX('2.2 Daten'!H$9:H$859,MATCH('2.2'!$A91,'2.2 Daten'!$B$9:$B$859,0))) -> 1978 | G91: =IF($A91<>0,INDEX('2.2 Daten'!I$9:I$859,MATCH('2.2'!$A91,'2.2 Daten'!$B$9:$B$859,0))) -> 585 | H91: =IF($A91<>0,INDEX('2.2 Daten'!K$9:K$859,MATCH('2.2'!$A91,'2.2 Daten'!$B$9:$B$859,0))) -> 1.764865599 | I91: =IF($A91<>0,INDEX('2.2 Daten'!L$9:L$859,MATCH('2.2'!$A91,'2.2 Daten'!$B$9:$B$859,0))) -> -7.433628319 | J91: =IF($A91<>0,INDEX('2.2 Daten'!M$9:M$859,MATCH('2.2'!$A91,'2.2 Daten'!$B$9:$B$859,0))) -> 5.582137161 | K91: =IF($A91<>0,INDEX('2.2 Daten'!N$9:N$859,MATCH('2.2'!$A91,'2.2 Daten'!$B$9:$B$859,0))) -> 0.7641365257 | L91: =IF($A91<>0,INDEX('2.2 Daten'!O$9:O$859,MATCH('2.2'!$A91,'2.2 Daten'!$B$9:$B$859,0))) -> 10.79545455
A92: =CHOOSE('2.2 Daten'!$A$2,'2.2 Daten'!B514,'2.2 Daten'!B63,'2.2 Daten'!B80,'2.2 Daten'!B97,'2.2 Daten'!B100,'2.2 Daten'!B147,'2.2 Daten'!B151,'2.2 Daten'!B206,'2.2 Daten'!B234,'2.2 Daten'!B272,'2.2 Daten'!B318,'2.2 Daten'!B416,'2.2 Daten'!B424,'2.2 Daten'!B427,'2.2 Daten'!B447,'2.2 Daten'!B457,'2.2 Daten'!B472,'2.2 Daten'!B488,x) -> Schaumburg | B92: =IF($A92<>0,INDEX('2.2 Daten'!C$9:C$859,MATCH('2.2'!$A92,'2.2 Daten'!$B$9:$B$859,0))," ") -> 03257000 | C92: =IF($A92<>0,INDEX('2.2 Daten'!E$9:E$859,MATCH('2.2'!$A92,'2.2 Daten'!$B$9:$B$859,0))) -> 3305 | D92: =IF($A92<>0,INDEX('2.2 Daten'!F$9:F$859,MATCH('2.2'!$A92,'2.2 Daten'!$B$9:$B$859,0))) -> 535 | E92: =IF($A92<>0,INDEX('2.2 Daten'!G$9:G$859,MATCH('2.2'!$A92,'2.2 Daten'!$B$9:$B$859,0))) -> 597 | F92: =IF($A92<>0,INDEX('2.2 Daten'!H$9:H$859,MATCH('2.2'!$A92,'2.2 Daten'!$B$9:$B$859,0))) -> 1624 | G92: =IF($A92<>0,INDEX('2.2 Daten'!I$9:I$859,MATCH('2.2'!$A92,'2.2 Daten'!$B$9:$B$859,0))) -> 549 | H92: =IF($A92<>0,INDEX('2.2 Daten'!K$9:K$859,MATCH('2.2'!$A92,'2.2 Daten'!$B$9:$B$859,0))) -> 0.2122498484 | I92: =IF($A92<>0,INDEX('2.2 Daten'!L$9:L$859,MATCH('2.2'!$A92,'2.2 Daten'!$B$9:$B$859,0))) -> 2.294455067 | J92: =IF($A92<>0,INDEX('2.2 Daten'!M$9:M$859,MATCH('2.2'!$A92,'2.2 Daten'!$B$9:$B$859,0))) -> -5.238095238 | K92: =IF($A92<>0,INDEX('2.2 Daten'!N$9:N$859,MATCH('2.2'!$A92,'2.2 Daten'!$B$9:$B$859,0))) -> 0 | L92: =IF($A92<>0,INDEX('2.2 Daten'!O$9:O$859,MATCH('2.2'!$A92,'2.2 Daten'!$B$9:$B$859,0))) -> 5.37428023
A93: =CHOOSE('2.2 Daten'!$A$2,'2.2 Daten'!B515,'2.2 Daten'!B64,'2.2 Daten'!B81,'2.2 Daten'!B98,'2.2 Daten'!B101,'2.2 Daten'!B148,'2.2 Daten'!B152,'2.2 Daten'!B207,'2.2 Daten'!B235,'2.2 Daten'!B273,'2.2 Daten'!B319,'2.2 Daten'!B417,'2.2 Daten'!B425,'2.2 Daten'!B428,'2.2 Daten'!B448,'2.2 Daten'!B458,'2.2 Daten'!B473,'2.2 Daten'!B489,x) -> Celle | B93: =IF($A93<>0,INDEX('2.2 Daten'!C$9:C$859,MATCH('2.2'!$A93,'2.2 Daten'!$B$9:$B$859,0))," ") -> 03351000 | C93: =IF($A93<>0,INDEX('2.2 Daten'!E$9:E$859,MATCH('2.2'!$A93,'2.2 Daten'!$B$9:$B$859,0))) -> 4726 | D93: =IF($A93<>0,INDEX('2.2 Daten'!F$9:F$859,MATCH('2.2'!$A93,'2.2 Daten'!$B$9:$B$859,0))) -> 711 | E93: =IF($A93<>0,INDEX('2.2 Daten'!G$9:G$859,MATCH('2.2'!$A93,'2.2 Daten'!$B$9:$B$859,0))) -> 800 | F93: =IF($A93<>0,INDEX('2.2 Daten'!H$9:H$859,MATCH('2.2'!$A93,'2.2 Daten'!$B$9:$B$859,0))) -> 2490 | G93: =IF($A93<>0,INDEX('2.2 Daten'!I$9:I$859,MATCH('2.2'!$A93,'2.2 Daten'!$B$9:$B$859,0))) -> 725 | H93: =IF($A93<>0,INDEX('2.2 Daten'!K$9:K$859,MATCH('2.2'!$A93,'2.2 Daten'!$B$9:$B$859,0))) -> 3.79969251 | I93: =IF($A93<>0,INDEX('2.2 Daten'!L$9:L$859,MATCH('2.2'!$A93,'2.2 Daten'!$B$9:$B$859,0))) -> 0.7082152975 | J93: =IF($A93<>0,INDEX('2.2 Daten'!M$9:M$859,MATCH('2.2'!$A93,'2.2 Daten'!$B$9:$B$859,0))) -> -0.2493765586 | K93: =IF($A93<>0,INDEX('2.2 Daten'!N$9:N$859,MATCH('2.2'!$A93,'2.2 Daten'!$B$9:$B$859,0))) -> 5.329949239 | L93: =IF($A93<>0,INDEX('2.2 Daten'!O$9:O$859,MATCH('2.2'!$A93,'2.2 Daten'!$B$9:$B$859,0))) -> 6.461086637
A94: =CHOOSE('2.2 Daten'!$A$2,'2.2 Daten'!B516,'2.2 Daten'!B65,'2.2 Daten'!B82,'2.2 Daten'!B99,'2.2 Daten'!B102,'2.2 Daten'!B149,'2.2 Daten'!B153,'2.2 Daten'!B208,'2.2 Daten'!B236,'2.2 Daten'!B274,'2.2 Daten'!B320,'2.2 Daten'!B418,'2.2 Daten'!B426,'2.2 Daten'!B429,'2.2 Daten'!B449,'2.2 Daten'!B459,'2.2 Daten'!B474,'2.2 Daten'!B490,x) -> Cuxhaven | B94: =IF($A94<>0,INDEX('2.2 Daten'!C$9:C$859,MATCH('2.2'!$A94,'2.2 Daten'!$B$9:$B$859,0))," ") -> 03352000 | C94: =IF($A94<>0,INDEX('2.2 Daten'!E$9:E$859,MATCH('2.2'!$A94,'2.2 Daten'!$B$9:$B$859,0))) -> 4450 | D94: =IF($A94<>0,INDEX('2.2 Daten'!F$9:F$859,MATCH('2.2'!$A94,'2.2 Daten'!$B$9:$B$859,0))) -> 710 | E94: =IF($A94<>0,INDEX('2.2 Daten'!G$9:G$859,MATCH('2.2'!$A94,'2.2 Daten'!$B$9:$B$859,0))) -> 742 | F94: =IF($A94<>0,INDEX('2.2 Daten'!H$9:H$859,MATCH('2.2'!$A94,'2.2 Daten'!$B$9:$B$859,0))) -> 2374 | G94: =IF($A94<>0,INDEX('2.2 Daten'!I$9:I$859,MATCH('2.2'!$A94,'2.2 Daten'!$B$9:$B$859,0))) -> 624 | H94: =IF($A94<>0,INDEX('2.2 Daten'!K$9:K$859,MATCH('2.2'!$A94,'2.2 Daten'!$B$9:$B$859,0))) -> 11.83714501 | I94: =IF($A94<>0,INDEX('2.2 Daten'!L$9:L$859,MATCH('2.2'!$A94,'2.2 Daten'!$B$9:$B$859,0))) -> 9.399075501 | J94: =IF($A94<>0,INDEX('2.2 Daten'!M$9:M$859,MATCH('2.2'!$A94,'2.2 Daten'!$B$9:$B$859,0))) -> -5.115089514 | K94: =IF($A94<>0,INDEX('2.2 Daten'!N$9:N$859,MATCH('2.2'!$A94,'2.2 Daten'!$B$9:$B$859,0))) -> 17.69955379 | L94: =IF($A94<>0,INDEX('2.2 Daten'!O$9:O$859,MATCH('2.2'!$A94,'2.2 Daten'!$B$9:$B$859,0))) -> 17.51412429
A95: =CHOOSE('2.2 Daten'!$A$2,'2.2 Daten'!B517,'2.2 Daten'!B66,'2.2 Daten'!B83,'2.2 Daten'!B100,'2.2 Daten'!B103,'2.2 Daten'!B150,'2.2 Daten'!B154,'2.2 Daten'!B209,'2.2 Daten'!B237,'2.2 Daten'!B275,'2.2 Daten'!B321,'2.2 Daten'!B419,'2.2 Daten'!B427,'2.2 Daten'!B430,'2.2 Daten'!B450,'2.2 Daten'!B460,'2.2 Daten'!B475,'2.2 Daten'!B491,x) -> Harburg | B95: =IF($A95<>0,INDEX('2.2 Daten'!C$9:C$859,MATCH('2.2'!$A95,'2.2 Daten'!$B$9:$B$859,0))," ") -> 03353000 | C95: =IF($A95<>0,INDEX('2.2 Daten'!E$9:E$859,MATCH('2.2'!$A95,'2.2 Daten'!$B$9:$B$859,0))) -> 4507 | D95: =IF($A95<>0,INDEX('2.2 Daten'!F$9:F$859,MATCH('2.2'!$A95,'2.2 Daten'!$B$9:$B$859,0))) -> 664 | E95: =IF($A95<>0,INDEX('2.2 Daten'!G$9:G$859,MATCH('2.2'!$A95,'2.2 Daten'!$B$9:$B$859,0))) -> 825 | F95: =IF($A95<>0,INDEX('2.2 Daten'!H$9:H$859,MATCH('2.2'!$A95,'2.2 Daten'!$B$9:$B$859,0))) -> 2339 | G95: =IF($A95<>0,INDEX('2.2 Daten'!I$9:I$859,MATCH('2.2'!$A95,'2.2 Daten'!$B$9:$B$859,0))) -> 679 | H95: =IF($A95<>0,INDEX('2.2 Daten'!K$9:K$859,MATCH('2.2'!$A95,'2.2 Daten'!$B$9:$B$859,0))) -> 15.71245186 | I95: =IF($A95<>0,INDEX('2.2 Daten'!L$9:L$859,MATCH('2.2'!$A95,'2.2 Daten'!$B$9:$B$859,0))) -> 6.92431562 | J95: =IF($A95<>0,INDEX('2.2 Daten'!M$9:M$859,MATCH('2.2'!$A95,'2.2 Daten'!$B$9:$B$859,0))) -> 17.0212766 | K95: =IF($A95<>0,INDEX('2.2 Daten'!N$9:N$859,MATCH('2.2'!$A95,'2.2 Daten'!$B$9:$B$859,0))) -> 18.25075834 | L95: =IF($A95<>0,INDEX('2.2 Daten'!O$9:O$859,MATCH('2.2'!$A95,'2.2 Daten'!$B$9:$B$859,0))) -> 14.89001692
A96: =CHOOSE('2.2 Daten'!$A$2,'2.2 Daten'!B518,'2.2 Daten'!B67,'2.2 Daten'!B84,'2.2 Daten'!B101,'2.2 Daten'!B104,'2.2 Daten'!B151,'2.2 Daten'!B155,'2.2 Daten'!B210,'2.2 Daten'!B238,'2.2 Daten'!B276,'2.2 Daten'!B322,'2.2 Daten'!B420,'2.2 Daten'!B428,'2.2 Daten'!B431,'2.2 Daten'!B451,'2.2 Daten'!B461,'2.2 Daten'!B476,'2.2 Daten'!B492,x) -> Lüchow-Dannenberg | B96: =IF($A96<>0,INDEX('2.2 Daten'!C$9:C$859,MATCH('2.2'!$A96,'2.2 Daten'!$B$9:$B$859,0))," ") -> 03354000 | C96: =IF($A96<>0,INDEX('2.2 Daten'!E$9:E$859,MATCH('2.2'!$A96,'2.2 Daten'!$B$9:$B$859,0))) -> 1085 | D96: =IF($A96<>0,INDEX('2.2 Daten'!F$9:F$859,MATCH('2.2'!$A96,'2.2 Daten'!$B$9:$B$859,0))) -> 162 | E96: =IF($A96<>0,INDEX('2.2 Daten'!G$9:G$859,MATCH('2.2'!$A96,'2.2 Daten'!$B$9:$B$859,0))) -> 179 | F96: =IF($A96<>0,INDEX('2.2 Daten'!H$9:H$859,MATCH('2.2'!$A96,'2.2 Daten'!$B$9:$B$859,0))) -> 575 | G96: =IF($A96<>0,INDEX('2.2 Daten'!I$9:I$859,MATCH('2.2'!$A96,'2.2 Daten'!$B$9:$B$859,0))) -> 169 | H96: =IF($A96<>0,INDEX('2.2 Daten'!K$9:K$859,MATCH('2.2'!$A96,'2.2 Daten'!$B$9:$B$859,0))) -> 2.262016965 | I96: =IF($A96<>0,INDEX('2.2 Daten'!L$9:L$859,MATCH('2.2'!$A96,'2.2 Daten'!$B$9:$B$859,0))) -> 15.71428571 | J96: =IF($A96<>0,INDEX('2.2 Daten'!M$9:M$859,MATCH('2.2'!$A96,'2.2 Daten'!$B$9:$B$859,0))) -> -8.673469388 | K96: =IF($A96<>0,INDEX('2.2 Daten'!N$9:N$859,MATCH('2.2'!$A96,'2.2 Daten'!$B$9:$B$859,0))) -> 1.054481547 | L96: =IF($A96<>0,INDEX('2.2 Daten'!O$9:O$859,MATCH('2.2'!$A96,'2.2 Daten'!$B$9:$B$859,0))) -> 8.333333333
A97: =CHOOSE('2.2 Daten'!$A$2,'2.2 Daten'!B519,'2.2 Daten'!B68,'2.2 Daten'!B85,'2.2 Daten'!B102,'2.2 Daten'!B105,'2.2 Daten'!B152,'2.2 Daten'!B156,'2.2 Daten'!B211,'2.2 Daten'!B239,'2.2 Daten'!B277,'2.2 Daten'!B323,'2.2 Daten'!B421,'2.2 Daten'!B429,'2.2 Daten'!B432,'2.2 Daten'!B452,'2.2 Daten'!B462,'2.2 Daten'!B477,'2.2 Daten'!B493,x) -> Lüneburg | B97: =IF($A97<>0,INDEX('2.2 Daten'!C$9:C$859,MATCH('2.2'!$A97,'2.2 Daten'!$B$9:$B$859,0))," ") -> 03355000 | C97: =IF($A97<>0,INDEX('2.2 Daten'!E$9:E$859,MATCH('2.2'!$A97,'2.2 Daten'!$B$9:$B$859,0))) -> 4033 | D97: =IF($A97<>0,INDEX('2.2 Daten'!F$9:F$859,MATCH('2.2'!$A97,'2.2 Daten'!$B$9:$B$859,0))) -> 611 | E97: =IF($A97<>0,INDEX('2.2 Daten'!G$9:G$859,MATCH('2.2'!$A97,'2.2 Daten'!$B$9:$B$859,0))) -> 707 | F97: =IF($A97<>0,INDEX('2.2 Daten'!H$9:H$859,MATCH('2.2'!$A97,'2.2 Daten'!$B$9:$B$859,0))) -> 2128 | G97: =IF($A97<>0,INDEX('2.2 Daten'!I$9:I$859,MATCH('2.2'!$A97,'2.2 Daten'!$B$9:$B$859,0))) -> 587 | H97: =IF($A97<>0,INDEX('2.2 Daten'!K$9:K$859,MATCH('2.2'!$A97,'2.2 Daten'!$B$9:$B$859,0))) -> 2.412392077 | I97: =IF($A97<>0,INDEX('2.2 Daten'!L$9:L$859,MATCH('2.2'!$A97,'2.2 Daten'!$B$9:$B$859,0))) -> -2.396166134 | J97: =IF($A97<>0,INDEX('2.2 Daten'!M$9:M$859,MATCH('2.2'!$A97,'2.2 Daten'!$B$9:$B$859,0))) -> -0.4225352113 | K97: =IF($A97<>0,INDEX('2.2 Daten'!N$9:N$859,MATCH('2.2'!$A97,'2.2 Daten'!$B$9:$B$859,0))) -> 4.621435595 | L97: =IF($A97<>0,INDEX('2.2 Daten'!O$9:O$859,MATCH('2.2'!$A97,'2.2 Daten'!$B$9:$B$859,0))) -> 3.345070423
A98: =CHOOSE('2.2 Daten'!$A$2,'2.2 Daten'!B520,'2.2 Daten'!B69,'2.2 Daten'!B86,'2.2 Daten'!B103,'2.2 Daten'!B106,'2.2 Daten'!B153,'2.2 Daten'!B157,'2.2 Daten'!B212,'2.2 Daten'!B240,'2.2 Daten'!B278,'2.2 Daten'!B324,'2.2 Daten'!B422,'2.2 Daten'!B430,'2.2 Daten'!B433,'2.2 Daten'!B453,'2.2 Daten'!B463,'2.2 Daten'!B478,'2.2 Daten'!B494,x) -> Osterholz | B98: =IF($A98<>0,INDEX('2.2 Daten'!C$9:C$859,MATCH('2.2'!$A98,'2.2 Daten'!$B$9:$B$859,0))," ") -> 03356000 | C98: =IF($A98<>0,INDEX('2.2 Daten'!E$9:E$859,MATCH('2.2'!$A98,'2.2 Daten'!$B$9:$B$859,0))) -> 1779 | D98: =IF($A98<>0,INDEX('2.2 Daten'!F$9:F$859,MATCH('2.2'!$A98,'2.2 Daten'!$B$9:$B$859,0))) -> 243 | E98: =IF($A98<>0,INDEX('2.2 Daten'!G$9:G$859,MATCH('2.2'!$A98,'2.2 Daten'!$B$9:$B$859,0))) -> 326 | F98: =IF($A98<>0,INDEX('2.2 Daten'!H$9:H$859,MATCH('2.2'!$A98,'2.2 Daten'!$B$9:$B$859,0))) -> 964 | G98: =IF($A98<>0,INDEX('2.2 Daten'!I$9:I$859,MATCH('2.2'!$A98,'2.2 Daten'!$B$9:$B$859,0))) -> 246 | H98: =IF($A98<>0,INDEX('2.2 Daten'!K$9:K$859,MATCH('2.2'!$A98,'2.2 Daten'!$B$9:$B$859,0))) -> 5.017709563 | I98: =IF($A98<>0,INDEX('2.2 Daten'!L$9:L$859,MATCH('2.2'!$A98,'2.2 Daten'!$B$9:$B$859,0))) -> -6.896551724 | J98: =IF($A98<>0,INDEX('2.2 Daten'!M$9:M$859,MATCH('2.2'!$A98,'2.2 Daten'!$B$9:$B$859,0))) -> -2.102102102 | K98: =IF($A98<>0,INDEX('2.2 Daten'!N$9:N$859,MATCH('2.2'!$A98,'2.2 Daten'!$B$9:$B$859,0))) -> 12.22351572 | L98: =IF($A98<>0,INDEX('2.2 Daten'!O$9:O$859,MATCH('2.2'!$A98,'2.2 Daten'!$B$9:$B$859,0))) -> 2.074688797
A99: =CHOOSE('2.2 Daten'!$A$2,'2.2 Daten'!B521,'2.2 Daten'!B70,'2.2 Daten'!B87,'2.2 Daten'!B104,'2.2 Daten'!B107,'2.2 Daten'!B154,'2.2 Daten'!B158,'2.2 Daten'!B213,'2.2 Daten'!B241,'2.2 Daten'!B279,'2.2 Daten'!B325,'2.2 Daten'!B423,'2.2 Daten'!B431,'2.2 Daten'!B434,'2.2 Daten'!B454,'2.2 Daten'!B464,'2.2 Daten'!B479,'2.2 Daten'!B495,x) -> Rotenburg (Wümme) | B99: =IF($A99<>0,INDEX('2.2 Daten'!C$9:C$859,MATCH('2.2'!$A99,'2.2 Daten'!$B$9:$B$859,0))," ") -> 03357000 | C99: =IF($A99<>0,INDEX('2.2 Daten'!E$9:E$859,MATCH('2.2'!$A99,'2.2 Daten'!$B$9:$B$859,0))) -> 2432 | D99: =IF($A99<>0,INDEX('2.2 Daten'!F$9:F$859,MATCH('2.2'!$A99,'2.2 Daten'!$B$9:$B$859,0))) -> 402 | E99: =IF($A99<>0,INDEX('2.2 Daten'!G$9:G$859,MATCH('2.2'!$A99,'2.2 Daten'!$B$9:$B$859,0))) -> 432 | F99: =IF($A99<>0,INDEX('2.2 Daten'!H$9:H$859,MATCH('2.2'!$A99,'2.2 Daten'!$B$9:$B$859,0))) -> 1277 | G99: =IF($A99<>0,INDEX('2.2 Daten'!I$9:I$859,MATCH('2.2'!$A99,'2.2 Daten'!$B$9:$B$859,0))) -> 321 | H99: =IF($A99<>0,INDEX('2.2 Daten'!K$9:K$859,MATCH('2.2'!$A99,'2.2 Daten'!$B$9:$B$859,0))) -> 4.78242137 | I99: =IF($A99<>0,INDEX('2.2 Daten'!L$9:L$859,MATCH('2.2'!$A99,'2.2 Daten'!$B$9:$B$859,0))) -> -0.9852216749 | J99: =IF($A99<>0,INDEX('2.2 Daten'!M$9:M$859,MATCH('2.2'!$A99,'2.2 Daten'!$B$9:$B$859,0))) -> 0.9345794393 | K99: =IF($A99<>0,INDEX('2.2 Daten'!N$9:N$859,MATCH('2.2'!$A99,'2.2 Daten'!$B$9:$B$859,0))) -> 6.772575251 | L99: =IF($A99<>0,INDEX('2.2 Daten'!O$9:O$859,MATCH('2.2'!$A99,'2.2 Daten'!$B$9:$B$859,0))) -> 10.30927835
A100: =CHOOSE('2.2 Daten'!$A$2,'2.2 Daten'!B522,'2.2 Daten'!B71,'2.2 Daten'!B88,'2.2 Daten'!B105,'2.2 Daten'!B108,'2.2 Daten'!B155,'2.2 Daten'!B159,'2.2 Daten'!B214,'2.2 Daten'!B242,'2.2 Daten'!B280,'2.2 Daten'!B326,'2.2 Daten'!B424,'2.2 Daten'!B432,'2.2 Daten'!B435,'2.2 Daten'!B455,'2.2 Daten'!B465,'2.2 Daten'!B480,'2.2 Daten'!B496,x) -> Heidekreis | B100: =IF($A100<>0,INDEX('2.2 Daten'!C$9:C$859,MATCH('2.2'!$A100,'2.2 Daten'!$B$9:$B$859,0))," ") -> 03358000 | C100: =IF($A100<>0,INDEX('2.2 Daten'!E$9:E$859,MATCH('2.2'!$A100,'2.2 Daten'!$B$9:$B$859,0))) -> 3191 | D100: =IF($A100<>0,INDEX('2.2 Daten'!F$9:F$859,MATCH('2.2'!$A100,'2.2 Daten'!$B$9:$B$859,0))) -> 483 | E100: =IF($A100<>0,INDEX('2.2 Daten'!G$9:G$859,MATCH('2.2'!$A100,'2.2 Daten'!$B$9:$B$859,0))) -> 574 | F100: =IF($A100<>0,INDEX('2.2 Daten'!H$9:H$859,MATCH('2.2'!$A100,'2.2 Daten'!$B$9:$B$859,0))) -> 1668 | G100: =IF($A100<>0,INDEX('2.2 Daten'!I$9:I$859,MATCH('2.2'!$A100,'2.2 Daten'!$B$9:$B$859,0))) -> 466 | H100: =IF($A100<>0,INDEX('2.2 Daten'!K$9:K$859,MATCH('2.2'!$A100,'2.2 Daten'!$B$9:$B$859,0))) -> -1.694393099 | I100: =IF($A100<>0,INDEX('2.2 Daten'!L$9:L$859,MATCH('2.2'!$A100,'2.2 Daten'!$B$9:$B$859,0))) -> -3.976143141 | J100: =IF($A100<>0,INDEX('2.2 Daten'!M$9:M$859,MATCH('2.2'!$A100,'2.2 Daten'!$B$9:$B$859,0))) -> -4.966887417 | K100: =IF($A100<>0,INDEX('2.2 Daten'!N$9:N$859,MATCH('2.2'!$A100,'2.2 Daten'!$B$9:$B$859,0))) -> 0.2403846154 | L100: =IF($A100<>0,INDEX('2.2 Daten'!O$9:O$859,MATCH('2.2'!$A100,'2.2 Daten'!$B$9:$B$859,0))) -> -1.894736842
A101: =CHOOSE('2.2 Daten'!$A$2,'2.2 Daten'!B523,'2.2 Daten'!B72,'2.2 Daten'!B89,'2.2 Daten'!B106,'2.2 Daten'!B109,'2.2 Daten'!B156,'2.2 Daten'!B160,'2.2 Daten'!B215,'2.2 Daten'!B243,'2.2 Daten'!B281,'2.2 Daten'!B327,'2.2 Daten'!B425,'2.2 Daten'!B433,'2.2 Daten'!B436,'2.2 Daten'!B456,'2.2 Daten'!B466,'2.2 Daten'!B481,'2.2 Daten'!B497,x) -> Stade | B101: =IF($A101<>0,INDEX('2.2 Daten'!C$9:C$859,MATCH('2.2'!$A101,'2.2 Daten'!$B$9:$B$859,0))," ") -> 03359000 | C101: =IF($A101<>0,INDEX('2.2 Daten'!E$9:E$859,MATCH('2.2'!$A101,'2.2 Daten'!$B$9:$B$859,0))) -> 5837 | D101: =IF($A101<>0,INDEX('2.2 Daten'!F$9:F$859,MATCH('2.2'!$A101,'2.2 Daten'!$B$9:$B$859,0))) -> 890 | E101: =IF($A101<>0,INDEX('2.2 Daten'!G$9:G$859,MATCH('2.2'!$A101,'2.2 Daten'!$B$9:$B$859,0))) -> 1062 | F101: =IF($A101<>0,INDEX('2.2 Daten'!H$9:H$859,MATCH('2.2'!$A101,'2.2 Daten'!$B$9:$B$859,0))) -> 3047 | G101: =IF($A101<>0,INDEX('2.2 Daten'!I$9:I$859,MATCH('2.2'!$A101,'2.2 Daten'!$B$9:$B$859,0))) -> 838 | H101: =IF($A101<>0,INDEX('2.2 Daten'!K$9:K$859,MATCH('2.2'!$A101,'2.2 Daten'!$B$9:$B$859,0))) -> 4.399928456 | I101: =IF($A101<>0,INDEX('2.2 Daten'!L$9:L$859,MATCH('2.2'!$A101,'2.2 Daten'!$B$9:$B$859,0))) -> -1.657458564 | J101: =IF($A101<>0,INDEX('2.2 Daten'!M$9:M$859,MATCH('2.2'!$A101,'2.2 Daten'!$B$9:$B$859,0))) -> -0.5617977528 | K101: =IF($A101<>0,INDEX('2.2 Daten'!N$9:N$859,MATCH('2.2'!$A101,'2.2 Daten'!$B$9:$B$859,0))) -> 7.705903146 | L101: =IF($A101<>0,INDEX('2.2 Daten'!O$9:O$859,MATCH('2.2'!$A101,'2.2 Daten'!$B$9:$B$859,0))) -> 6.210392902
A102: =CHOOSE('2.2 Daten'!$A$2,'2.2 Daten'!B524,'2.2 Daten'!B73,'2.2 Daten'!B90,'2.2 Daten'!B107,'2.2 Daten'!B110,'2.2 Daten'!B157,'2.2 Daten'!B161,'2.2 Daten'!B216,'2.2 Daten'!B244,'2.2 Daten'!B282,'2.2 Daten'!B328,'2.2 Daten'!B426,'2.2 Daten'!B434,'2.2 Daten'!B437,'2.2 Daten'!B457,'2.2 Daten'!B467,'2.2 Daten'!B482,'2.2 Daten'!B498,x) -> Uelzen | B102: =IF($A102<>0,INDEX('2.2 Daten'!C$9:C$859,MATCH('2.2'!$A102,'2.2 Daten'!$B$9:$B$859,0))," ") -> 03360000 | C102: =IF($A102<>0,INDEX('2.2 Daten'!E$9:E$859,MATCH('2.2'!$A102,'2.2 Daten'!$B$9:$B$859,0))) -> 2079 | D102: =IF($A102<>0,INDEX('2.2 Daten'!F$9:F$859,MATCH('2.2'!$A102,'2.2 Daten'!$B$9:$B$859,0))) -> 335 | E102: =IF($A102<>0,INDEX('2.2 Daten'!G$9:G$859,MATCH('2.2'!$A102,'2.2 Daten'!$B$9:$B$859,0))) -> 358 | F102: =IF($A102<>0,INDEX('2.2 Daten'!H$9:H$859,MATCH('2.2'!$A102,'2.2 Daten'!$B$9:$B$859,0))) -> 1102 | G102: =IF($A102<>0,INDEX('2.2 Daten'!I$9:I$859,MATCH('2.2'!$A102,'2.2 Daten'!$B$9:$B$859,0))) -> 284 | H102: =IF($A102<>0,INDEX('2.2 Daten'!K$9:K$859,MATCH('2.2'!$A102,'2.2 Daten'!$B$9:$B$859,0))) -> 4.210526316 | I102: =IF($A102<>0,INDEX('2.2 Daten'!L$9:L$859,MATCH('2.2'!$A102,'2.2 Daten'!$B$9:$B$859,0))) -> -2.898550725 | J102: =IF($A102<>0,INDEX('2.2 Daten'!M$9:M$859,MATCH('2.2'!$A102,'2.2 Daten'!$B$9:$B$859,0))) -> 0.5617977528 | K102: =IF($A102<>0,INDEX('2.2 Daten'!N$9:N$859,MATCH('2.2'!$A102,'2.2 Daten'!$B$9:$B$859,0))) -> 8.357915438 | L102: =IF($A102<>0,INDEX('2.2 Daten'!O$9:O$859,MATCH('2.2'!$A102,'2.2 Daten'!$B$9:$B$859,0))) -> 2.527075812
A103: =CHOOSE('2.2 Daten'!$A$2,'2.2 Daten'!B525,'2.2 Daten'!B74,'2.2 Daten'!B91,'2.2 Daten'!B108,'2.2 Daten'!B111,'2.2 Daten'!B158,'2.2 Daten'!B162,'2.2 Daten'!B217,'2.2 Daten'!B245,'2.2 Daten'!B283,'2.2 Daten'!B329,'2.2 Daten'!B427,'2.2 Daten'!B435,'2.2 Daten'!B438,'2.2 Daten'!B458,'2.2 Daten'!B468,'2.2 Daten'!B483,'2.2 Daten'!B499,x) -> Verden | B103: =IF($A103<>0,INDEX('2.2 Daten'!C$9:C$859,MATCH('2.2'!$A103,'2.2 Daten'!$B$9:$B$859,0))," ") -> 03361000 | C103: =IF($A103<>0,INDEX('2.2 Daten'!E$9:E$859,MATCH('2.2'!$A103,'2.2 Daten'!$B$9:$B$859,0))) -> 2611 | D103: =IF($A103<>0,INDEX('2.2 Daten'!F$9:F$859,MATCH('2.2'!$A103,'2.2 Daten'!$B$9:$B$859,0))) -> 401 | E103: =IF($A103<>0,INDEX('2.2 Daten'!G$9:G$859,MATCH('2.2'!$A103,'2.2 Daten'!$B$9:$B$859,0))) -> 491 | F103: =IF($A103<>0,INDEX('2.2 Daten'!H$9:H$859,MATCH('2.2'!$A103,'2.2 Daten'!$B$9:$B$859,0))) -> 1342 | G103: =IF($A103<>0,INDEX('2.2 Daten'!I$9:I$859,MATCH('2.2'!$A103,'2.2 Daten'!$B$9:$B$859,0))) -> 377 | H103: =IF($A103<>0,INDEX('2.2 Daten'!K$9:K$859,MATCH('2.2'!$A103,'2.2 Daten'!$B$9:$B$859,0))) -> -3.475046211 | I103: =IF($A103<>0,INDEX('2.2 Daten'!L$9:L$859,MATCH('2.2'!$A103,'2.2 Daten'!$B$9:$B$859,0))) -> -9.684684685 | J103: =IF($A103<>0,INDEX('2.2 Daten'!M$9:M$859,MATCH('2.2'!$A103,'2.2 Daten'!$B$9:$B$859,0))) -> 1.867219917 | K103: =IF($A103<>0,INDEX('2.2 Daten'!N$9:N$859,MATCH('2.2'!$A103,'2.2 Daten'!$B$9:$B$859,0))) -> -4.415954416 | L103: =IF($A103<>0,INDEX('2.2 Daten'!O$9:O$859,MATCH('2.2'!$A103,'2.2 Daten'!$B$9:$B$859,0))) -> 0.5333333333
A104: =CHOOSE('2.2 Daten'!$A$2,'2.2 Daten'!B526,'2.2 Daten'!B75,'2.2 Daten'!B92,'2.2 Daten'!B109,'2.2 Daten'!B112,'2.2 Daten'!B159,'2.2 Daten'!B163,'2.2 Daten'!B218,'2.2 Daten'!B246,'2.2 Daten'!B284,'2.2 Daten'!B330,'2.2 Daten'!B428,'2.2 Daten'!B436,'2.2 Daten'!B439,'2.2 Daten'!B459,'2.2 Daten'!B469,'2.2 Daten'!B484,'2.2 Daten'!B500,x) -> Delmenhorst, Stadt | B104: =IF($A104<>0,INDEX('2.2 Daten'!C$9:C$859,MATCH('2.2'!$A104,'2.2 Daten'!$B$9:$B$859,0))," ") -> 03401000 | C104: =IF($A104<>0,INDEX('2.2 Daten'!E$9:E$859,MATCH('2.2'!$A104,'2.2 Daten'!$B$9:$B$859,0))) -> 3571 | D104: =IF($A104<>0,INDEX('2.2 Daten'!F$9:F$859,MATCH('2.2'!$A104,'2.2 Daten'!$B$9:$B$859,0))) -> 529 | E104: =IF($A104<>0,INDEX('2.2 Daten'!G$9:G$859,MATCH('2.2'!$A104,'2.2 Daten'!$B$9:$B$859,0))) -> 606 | F104: =IF($A104<>0,INDEX('2.2 Daten'!H$9:H$859,MATCH('2.2'!$A104,'2.2 Daten'!$B$9:$B$859,0))) -> 1882 | G104: =IF($A104<>0,INDEX('2.2 Daten'!I$9:I$859,MATCH('2.2'!$A104,'2.2 Daten'!$B$9:$B$859,0))) -> 554 | H104: =IF($A104<>0,INDEX('2.2 Daten'!K$9:K$859,MATCH('2.2'!$A104,'2.2 Daten'!$B$9:$B$859,0))) -> -2.564802183 | I104: =IF($A104<>0,INDEX('2.2 Daten'!L$9:L$859,MATCH('2.2'!$A104,'2.2 Daten'!$B$9:$B$859,0))) -> -10.18675722 | J104: =IF($A104<>0,INDEX('2.2 Daten'!M$9:M$859,MATCH('2.2'!$A104,'2.2 Daten'!$B$9:$B$859,0))) -> -6.769230769 | K104: =IF($A104<>0,INDEX('2.2 Daten'!N$9:N$859,MATCH('2.2'!$A104,'2.2 Daten'!$B$9:$B$859,0))) -> -0.4759386568 | L104: =IF($A104<>0,INDEX('2.2 Daten'!O$9:O$859,MATCH('2.2'!$A104,'2.2 Daten'!$B$9:$B$859,0))) -> 3.551401869
A105: =CHOOSE('2.2 Daten'!$A$2,'2.2 Daten'!B527,'2.2 Daten'!B76,'2.2 Daten'!B93,'2.2 Daten'!B110,'2.2 Daten'!B113,'2.2 Daten'!B160,'2.2 Daten'!B164,'2.2 Daten'!B219,'2.2 Daten'!B247,'2.2 Daten'!B285,'2.2 Daten'!B331,'2.2 Daten'!B429,'2.2 Daten'!B437,'2.2 Daten'!B440,'2.2 Daten'!B460,'2.2 Daten'!B470,'2.2 Daten'!B485,'2.2 Daten'!B501,x) -> Emden, Stadt | B105: =IF($A105<>0,INDEX('2.2 Daten'!C$9:C$859,MATCH('2.2'!$A105,'2.2 Daten'!$B$9:$B$859,0))," ") -> 03402000 | C105: =IF($A105<>0,INDEX('2.2 Daten'!E$9:E$859,MATCH('2.2'!$A105,'2.2 Daten'!$B$9:$B$859,0))) -> 1918 | D105: =IF($A105<>0,INDEX('2.2 Daten'!F$9:F$859,MATCH('2.2'!$A105,'2.2 Daten'!$B$9:$B$859,0))) -> 290 | E105: =IF($A105<>0,INDEX('2.2 Daten'!G$9:G$859,MATCH('2.2'!$A105,'2.2 Daten'!$B$9:$B$859,0))) -> 353 | F105: =IF($A105<>0,INDEX('2.2 Daten'!H$9:H$859,MATCH('2.2'!$A105,'2.2 Daten'!$B$9:$B$859,0))) -> 1003 | G105: =IF($A105<>0,INDEX('2.2 Daten'!I$9:I$859,MATCH('2.2'!$A105,'2.2 Daten'!$B$9:$B$859,0))) -> 272 | H105: =IF($A105<>0,INDEX('2.2 Daten'!K$9:K$859,MATCH('2.2'!$A105,'2.2 Daten'!$B$9:$B$859,0))) -> -5.980392157 | I105: =IF($A105<>0,INDEX('2.2 Daten'!L$9:L$859,MATCH('2.2'!$A105,'2.2 Daten'!$B$9:$B$859,0))) -> -19.44444444 | J105: =IF($A105<>0,INDEX('2.2 Daten'!M$9:M$859,MATCH('2.2'!$A105,'2.2 Daten'!$B$9:$B$859,0))) -> -11.08312343 | K105: =IF($A105<>0,INDEX('2.2 Daten'!N$9:N$859,MATCH('2.2'!$A105,'2.2 Daten'!$B$9:$B$859,0))) -> -1.762977473 | L105: =IF($A105<>0,INDEX('2.2 Daten'!O$9:O$859,MATCH('2.2'!$A105,'2.2 Daten'!$B$9:$B$859,0))) -> 3.816793893
A106: =CHOOSE('2.2 Daten'!$A$2,'2.2 Daten'!B528,'2.2 Daten'!B77,'2.2 Daten'!B94,'2.2 Daten'!B111,'2.2 Daten'!B114,'2.2 Daten'!B161,'2.2 Daten'!B165,'2.2 Daten'!B220,'2.2 Daten'!B248,'2.2 Daten'!B286,'2.2 Daten'!B332,'2.2 Daten'!B430,'2.2 Daten'!B438,'2.2 Daten'!B441,'2.2 Daten'!B461,'2.2 Daten'!B471,'2.2 Daten'!B486,'2.2 Daten'!B502,x) -> Oldenburg (Oldenburg), Stadt | B106: =IF($A106<>0,INDEX('2.2 Daten'!C$9:C$859,MATCH('2.2'!$A106,'2.2 Daten'!$B$9:$B$859,0))," ") -> 03403000 | C106: =IF($A106<>0,INDEX('2.2 Daten'!E$9:E$859,MATCH('2.2'!$A106,'2.2 Daten'!$B$9:$B$859,0))) -> 5312 | D106: =IF($A106<>0,INDEX('2.2 Daten'!F$9:F$859,MATCH('2.2'!$A106,'2.2 Daten'!$B$9:$B$859,0))) -> 852 | E106: =IF($A106<>0,INDEX('2.2 Daten'!G$9:G$859,MATCH('2.2'!$A106,'2.2 Daten'!$B$9:$B$859,0))) -> 932 | F106: =IF($A106<>0,INDEX('2.2 Daten'!H$9:H$859,MATCH('2.2'!$A106,'2.2 Daten'!$B$9:$B$859,0))) -> 2709 | G106: =IF($A106<>0,INDEX('2.2 Daten'!I$9:I$859,MATCH('2.2'!$A106,'2.2 Daten'!$B$9:$B$859,0))) -> 819 | H106: =IF($A106<>0,INDEX('2.2 Daten'!K$9:K$859,MATCH('2.2'!$A106,'2.2 Daten'!$B$9:$B$859,0))) -> -0.4497751124 | I106: =IF($A106<>0,INDEX('2.2 Daten'!L$9:L$859,MATCH('2.2'!$A106,'2.2 Daten'!$B$9:$B$859,0))) -> -6.681270537 | J106: =IF($A106<>0,INDEX('2.2 Daten'!M$9:M$859,MATCH('2.2'!$A106,'2.2 Daten'!$B$9:$B$859,0))) -> -4.115226337 | K106: =IF($A106<>0,INDEX('2.2 Daten'!N$9:N$859,MATCH('2.2'!$A106,'2.2 Daten'!$B$9:$B$859,0))) -> 1.651031895 | L106: =IF($A106<>0,INDEX('2.2 Daten'!O$9:O$859,MATCH('2.2'!$A106,'2.2 Daten'!$B$9:$B$859,0))) -> 4.198473282
A107: =CHOOSE('2.2 Daten'!$A$2,'2.2 Daten'!B529,'2.2 Daten'!B78,'2.2 Daten'!B95,'2.2 Daten'!B112,'2.2 Daten'!B115,'2.2 Daten'!B162,'2.2 Daten'!B166,'2.2 Daten'!B221,'2.2 Daten'!B249,'2.2 Daten'!B287,'2.2 Daten'!B333,'2.2 Daten'!B431,'2.2 Daten'!B439,'2.2 Daten'!B442,'2.2 Daten'!B462,'2.2 Daten'!B472,'2.2 Daten'!B487,'2.2 Daten'!B503,x) -> Osnabrück, Stadt | B107: =IF($A107<>0,INDEX('2.2 Daten'!C$9:C$859,MATCH('2.2'!$A107,'2.2 Daten'!$B$9:$B$859,0))," ") -> 03404000 | C107: =IF($A107<>0,INDEX('2.2 Daten'!E$9:E$859,MATCH('2.2'!$A107,'2.2 Daten'!$B$9:$B$859,0))) -> 4856 | D107: =IF($A107<>0,INDEX('2.2 Daten'!F$9:F$859,MATCH('2.2'!$A107,'2.2 Daten'!$B$9:$B$859,0))) -> 811 | E107: =IF($A107<>0,INDEX('2.2 Daten'!G$9:G$859,MATCH('2.2'!$A107,'2.2 Daten'!$B$9:$B$859,0))) -> 902 | F107: =IF($A107<>0,INDEX('2.2 Daten'!H$9:H$859,MATCH('2.2'!$A107,'2.2 Daten'!$B$9:$B$859,0))) -> 2446 | G107: =IF($A107<>0,INDEX('2.2 Daten'!I$9:I$859,MATCH('2.2'!$A107,'2.2 Daten'!$B$9:$B$859,0))) -> 697 | H107: =IF($A107<>0,INDEX('2.2 Daten'!K$9:K$859,MATCH('2.2'!$A107,'2.2 Daten'!$B$9:$B$859,0))) -> -1.160187258 | I107: =IF($A107<>0,INDEX('2.2 Daten'!L$9:L$859,MATCH('2.2'!$A107,'2.2 Daten'!$B$9:$B$859,0))) -> 0.8706467662 | J107: =IF($A107<>0,INDEX('2.2 Daten'!M$9:M$859,MATCH('2.2'!$A107,'2.2 Daten'!$B$9:$B$859,0))) -> -4.55026455 | K107: =IF($A107<>0,INDEX('2.2 Daten'!N$9:N$859,MATCH('2.2'!$A107,'2.2 Daten'!$B$9:$B$859,0))) -> -0.7305194805 | L107: =IF($A107<>0,INDEX('2.2 Daten'!O$9:O$859,MATCH('2.2'!$A107,'2.2 Daten'!$B$9:$B$859,0))) -> -0.4285714286
A108: =CHOOSE('2.2 Daten'!$A$2,'2.2 Daten'!B530,'2.2 Daten'!B79,'2.2 Daten'!B96,'2.2 Daten'!B113,'2.2 Daten'!B116,'2.2 Daten'!B163,'2.2 Daten'!B167,'2.2 Daten'!B222,'2.2 Daten'!B250,'2.2 Daten'!B288,'2.2 Daten'!B334,'2.2 Daten'!B432,'2.2 Daten'!B440,'2.2 Daten'!B443,'2.2 Daten'!B463,'2.2 Daten'!B473,'2.2 Daten'!B488,'2.2 Daten'!B504,x) -> Wilhelmshaven, Stadt | B108: =IF($A108<>0,INDEX('2.2 Daten'!C$9:C$859,MATCH('2.2'!$A108,'2.2 Daten'!$B$9:$B$859,0))," ") -> 03405000 | C108: =IF($A108<>0,INDEX('2.2 Daten'!E$9:E$859,MATCH('2.2'!$A108,'2.2 Daten'!$B$9:$B$859,0))) -> 3588 | D108: =IF($A108<>0,INDEX('2.2 Daten'!F$9:F$859,MATCH('2.2'!$A108,'2.2 Daten'!$B$9:$B$859,0))) -> 577 | E108: =IF($A108<>0,INDEX('2.2 Daten'!G$9:G$859,MATCH('2.2'!$A108,'2.2 Daten'!$B$9:$B$859,0))) -> 737 | F108: =IF($A108<>0,INDEX('2.2 Daten'!H$9:H$859,MATCH('2.2'!$A108,'2.2 Daten'!$B$9:$B$859,0))) -> 1771 | G108: =IF($A108<>0,INDEX('2.2 Daten'!I$9:I$859,MATCH('2.2'!$A108,'2.2 Daten'!$B$9:$B$859,0))) -> 503 | H108: =IF($A108<>0,INDEX('2.2 Daten'!K$9:K$859,MATCH('2.2'!$A108,'2.2 Daten'!$B$9:$B$859,0))) -> 0.2794857462 | I108: =IF($A108<>0,INDEX('2.2 Daten'!L$9:L$859,MATCH('2.2'!$A108,'2.2 Daten'!$B$9:$B$859,0))) -> -5.718954248 | J108: =IF($A108<>0,INDEX('2.2 Daten'!M$9:M$859,MATCH('2.2'!$A108,'2.2 Daten'!$B$9:$B$859,0))) -> -0.5398110661 | K108: =IF($A108<>0,INDEX('2.2 Daten'!N$9:N$859,MATCH('2.2'!$A108,'2.2 Daten'!$B$9:$B$859,0))) -> 2.547770701 | L108: =IF($A108<>0,INDEX('2.2 Daten'!O$9:O$859,MATCH('2.2'!$A108,'2.2 Daten'!$B$9:$B$859,0))) -> 1.004016064
A109: =CHOOSE('2.2 Daten'!$A$2,'2.2 Daten'!B531,'2.2 Daten'!B80,'2.2 Daten'!B97,'2.2 Daten'!B114,'2.2 Daten'!B117,'2.2 Daten'!B164,'2.2 Daten'!B168,'2.2 Daten'!B223,'2.2 Daten'!B251,'2.2 Daten'!B289,'2.2 Daten'!B335,'2.2 Daten'!B433,'2.2 Daten'!B441,'2.2 Daten'!B444,'2.2 Daten'!B464,'2.2 Daten'!B474,'2.2 Daten'!B489,'2.2 Daten'!B505,x) -> Ammerland | B109: =IF($A109<>0,INDEX('2.2 Daten'!C$9:C$859,MATCH('2.2'!$A109,'2.2 Daten'!$B$9:$B$859,0))," ") -> 03451000 | C109: =IF($A109<>0,INDEX('2.2 Daten'!E$9:E$859,MATCH('2.2'!$A109,'2.2 Daten'!$B$9:$B$859,0))) -> 2232 | D109: =IF($A109<>0,INDEX('2.2 Daten'!F$9:F$859,MATCH('2.2'!$A109,'2.2 Daten'!$B$9:$B$859,0))) -> 298 | E109: =IF($A109<>0,INDEX('2.2 Daten'!G$9:G$859,MATCH('2.2'!$A109,'2.2 Daten'!$B$9:$B$859,0))) -> 365 | F109: =IF($A109<>0,INDEX('2.2 Daten'!H$9:H$859,MATCH('2.2'!$A109,'2.2 Daten'!$B$9:$B$859,0))) -> 1205 | G109: =IF($A109<>0,INDEX('2.2 Daten'!I$9:I$859,MATCH('2.2'!$A109,'2.2 Daten'!$B$9:$B$859,0))) -> 364 | H109: =IF($A109<>0,INDEX('2.2 Daten'!K$9:K$859,MATCH('2.2'!$A109,'2.2 Daten'!$B$9:$B$859,0))) -> 1.964367291 | I109: =IF($A109<>0,INDEX('2.2 Daten'!L$9:L$859,MATCH('2.2'!$A109,'2.2 Daten'!$B$9:$B$859,0))) -> 11.19402985 | J109: =IF($A109<>0,INDEX('2.2 Daten'!M$9:M$859,MATCH('2.2'!$A109,'2.2 Daten'!$B$9:$B$859,0))) -> -6.16966581 | K109: =IF($A109<>0,INDEX('2.2 Daten'!N$9:N$859,MATCH('2.2'!$A109,'2.2 Daten'!$B$9:$B$859,0))) -> 0.3330557868 | L109: =IF($A109<>0,INDEX('2.2 Daten'!O$9:O$859,MATCH('2.2'!$A109,'2.2 Daten'!$B$9:$B$859,0))) -> 9.96978852
A110: =CHOOSE('2.2 Daten'!$A$2,'2.2 Daten'!B532,'2.2 Daten'!B81,'2.2 Daten'!B98,'2.2 Daten'!B115,'2.2 Daten'!B118,'2.2 Daten'!B165,'2.2 Daten'!B169,'2.2 Daten'!B224,'2.2 Daten'!B252,'2.2 Daten'!B290,'2.2 Daten'!B336,'2.2 Daten'!B434,'2.2 Daten'!B442,'2.2 Daten'!B445,'2.2 Daten'!B465,'2.2 Daten'!B475,'2.2 Daten'!B490,'2.2 Daten'!B506,x) -> Aurich | B110: =IF($A110<>0,INDEX('2.2 Daten'!C$9:C$859,MATCH('2.2'!$A110,'2.2 Daten'!$B$9:$B$859,0))," ") -> 03452000 | C110: =IF($A110<>0,INDEX('2.2 Daten'!E$9:E$859,MATCH('2.2'!$A110,'2.2 Daten'!$B$9:$B$859,0))) -> 4334 | D110: =IF($A110<>0,INDEX('2.2 Daten'!F$9:F$859,MATCH('2.2'!$A110,'2.2 Daten'!$B$9:$B$859,0))) -> 723 | E110: =IF($A110<>0,INDEX('2.2 Daten'!G$9:G$859,MATCH('2.2'!$A110,'2.2 Daten'!$B$9:$B$859,0))) -> 790 | F110: =IF($A110<>0,INDEX('2.2 Daten'!H$9:H$859,MATCH('2.2'!$A110,'2.2 Daten'!$B$9:$B$859,0))) -> 2205 | G110: =IF($A110<>0,INDEX('2.2 Daten'!I$9:I$859,MATCH('2.2'!$A110,'2.2 Daten'!$B$9:$B$859,0))) -> 616 | H110: =IF($A110<>0,INDEX('2.2 Daten'!K$9:K$859,MATCH('2.2'!$A110,'2.2 Daten'!$B$9:$B$859,0))) -> -2.606741573 | I110: =IF($A110<>0,INDEX('2.2 Daten'!L$9:L$859,MATCH('2.2'!$A110,'2.2 Daten'!$B$9:$B$859,0))) -> -2.69179004 | J110: =IF($A110<>0,INDEX('2.2 Daten'!M$9:M$859,MATCH('2.2'!$A110,'2.2 Daten'!$B$9:$B$859,0))) -> -7.925407925 | K110: =IF($A110<>0,INDEX('2.2 Daten'!N$9:N$859,MATCH('2.2'!$A110,'2.2 Daten'!$B$9:$B$859,0))) -> -0.1358695652 | L110: =IF($A110<>0,INDEX('2.2 Daten'!O$9:O$859,MATCH('2.2'!$A110,'2.2 Daten'!$B$9:$B$859,0))) -> -3.900156006
A111: =CHOOSE('2.2 Daten'!$A$2,'2.2 Daten'!B533,'2.2 Daten'!B82,'2.2 Daten'!B99,'2.2 Daten'!B116,'2.2 Daten'!B119,'2.2 Daten'!B166,'2.2 Daten'!B170,'2.2 Daten'!B225,'2.2 Daten'!B253,'2.2 Daten'!B291,'2.2 Daten'!B337,'2.2 Daten'!B435,'2.2 Daten'!B443,'2.2 Daten'!B446,'2.2 Daten'!B466,'2.2 Daten'!B476,'2.2 Daten'!B491,'2.2 Daten'!B507,x) -> Cloppenburg | B111: =IF($A111<>0,INDEX('2.2 Daten'!C$9:C$859,MATCH('2.2'!$A111,'2.2 Daten'!$B$9:$B$859,0))," ") -> 03453000 | C111: =IF($A111<>0,INDEX('2.2 Daten'!E$9:E$859,MATCH('2.2'!$A111,'2.2 Daten'!$B$9:$B$859,0))) -> 3355 | D111: =IF($A111<>0,INDEX('2.2 Daten'!F$9:F$859,MATCH('2.2'!$A111,'2.2 Daten'!$B$9:$B$859,0))) -> 531 | E111: =IF($A111<>0,INDEX('2.2 Daten'!G$9:G$859,MATCH('2.2'!$A111,'2.2 Daten'!$B$9:$B$859,0))) -> 596 | F111: =IF($A111<>0,INDEX('2.2 Daten'!H$9:H$859,MATCH('2.2'!$A111,'2.2 Daten'!$B$9:$B$859,0))) -> 1764 | G111: =IF($A111<>0,INDEX('2.2 Daten'!I$9:I$859,MATCH('2.2'!$A111,'2.2 Daten'!$B$9:$B$859,0))) -> 464 | H111: =IF($A111<>0,INDEX('2.2 Daten'!K$9:K$859,MATCH('2.2'!$A111,'2.2 Daten'!$B$9:$B$859,0))) -> 5.569540592 | I111: =IF($A111<>0,INDEX('2.2 Daten'!L$9:L$859,MATCH('2.2'!$A111,'2.2 Daten'!$B$9:$B$859,0))) -> 1.529636711 | J111: =IF($A111<>0,INDEX('2.2 Daten'!M$9:M$859,MATCH('2.2'!$A111,'2.2 Daten'!$B$9:$B$859,0))) -> 3.652173913 | K111: =IF($A111<>0,INDEX('2.2 Daten'!N$9:N$859,MATCH('2.2'!$A111,'2.2 Daten'!$B$9:$B$859,0))) -> 7.495429616 | L111: =IF($A111<>0,INDEX('2.2 Daten'!O$9:O$859,MATCH('2.2'!$A111,'2.2 Daten'!$B$9:$B$859,0))) -> 5.69476082
A112: =CHOOSE('2.2 Daten'!$A$2,'2.2 Daten'!B534,'2.2 Daten'!B83,'2.2 Daten'!B100,'2.2 Daten'!B117,'2.2 Daten'!B120,'2.2 Daten'!B167,'2.2 Daten'!B171,'2.2 Daten'!B226,'2.2 Daten'!B254,'2.2 Daten'!B292,'2.2 Daten'!B338,'2.2 Daten'!B436,'2.2 Daten'!B444,'2.2 Daten'!B447,'2.2 Daten'!B467,'2.2 Daten'!B477,'2.2 Daten'!B492,'2.2 Daten'!B508,x) -> Emsland | B112: =IF($A112<>0,INDEX('2.2 Daten'!C$9:C$859,MATCH('2.2'!$A112,'2.2 Daten'!$B$9:$B$859,0))," ") -> 03454000 | C112: =IF($A112<>0,INDEX('2.2 Daten'!E$9:E$859,MATCH('2.2'!$A112,'2.2 Daten'!$B$9:$B$859,0))) -> 4894 | D112: =IF($A112<>0,INDEX('2.2 Daten'!F$9:F$859,MATCH('2.2'!$A112,'2.2 Daten'!$B$9:$B$859,0))) -> 729 | E112: =IF($A112<>0,INDEX('2.2 Daten'!G$9:G$859,MATCH('2.2'!$A112,'2.2 Daten'!$B$9:$B$859,0))) -> 887 | F112: =IF($A112<>0,INDEX('2.2 Daten'!H$9:H$859,MATCH('2.2'!$A112,'2.2 Daten'!$B$9:$B$859,0))) -> 2531 | G112: =IF($A112<>0,INDEX('2.2 Daten'!I$9:I$859,MATCH('2.2'!$A112,'2.2 Daten'!$B$9:$B$859,0))) -> 747 | H112: =IF($A112<>0,INDEX('2.2 Daten'!K$9:K$859,MATCH('2.2'!$A112,'2.2 Daten'!$B$9:$B$859,0))) -> 6.507072905 | I112: =IF($A112<>0,INDEX('2.2 Daten'!L$9:L$859,MATCH('2.2'!$A112,'2.2 Daten'!$B$9:$B$859,0))) -> 5.959302326 | J112: =IF($A112<>0,INDEX('2.2 Daten'!M$9:M$859,MATCH('2.2'!$A112,'2.2 Daten'!$B$9:$B$859,0))) -> 6.86746988 | K112: =IF($A112<>0,INDEX('2.2 Daten'!N$9:N$859,MATCH('2.2'!$A112,'2.2 Daten'!$B$9:$B$859,0))) -> 7.839795484 | L112: =IF($A112<>0,INDEX('2.2 Daten'!O$9:O$859,MATCH('2.2'!$A112,'2.2 Daten'!$B$9:$B$859,0))) -> 2.328767123
A113: =CHOOSE('2.2 Daten'!$A$2,'2.2 Daten'!B535,'2.2 Daten'!B84,'2.2 Daten'!B101,'2.2 Daten'!B118,'2.2 Daten'!B121,'2.2 Daten'!B168,'2.2 Daten'!B172,'2.2 Daten'!B227,'2.2 Daten'!B255,'2.2 Daten'!B293,'2.2 Daten'!B339,'2.2 Daten'!B437,'2.2 Daten'!B445,'2.2 Daten'!B448,'2.2 Daten'!B468,'2.2 Daten'!B478,'2.2 Daten'!B493,'2.2 Daten'!B509,x) -> Friesland | B113: =IF($A113<>0,INDEX('2.2 Daten'!C$9:C$859,MATCH('2.2'!$A113,'2.2 Daten'!$B$9:$B$859,0))," ") -> 03455000 | C113: =IF($A113<>0,INDEX('2.2 Daten'!E$9:E$859,MATCH('2.2'!$A113,'2.2 Daten'!$B$9:$B$859,0))) -> 1808 | D113: =IF($A113<>0,INDEX('2.2 Daten'!F$9:F$859,MATCH('2.2'!$A113,'2.2 Daten'!$B$9:$B$859,0))) -> 268 | E113: =IF($A113<>0,INDEX('2.2 Daten'!G$9:G$859,MATCH('2.2'!$A113,'2.2 Daten'!$B$9:$B$859,0))) -> 323 | F113: =IF($A113<>0,INDEX('2.2 Daten'!H$9:H$859,MATCH('2.2'!$A113,'2.2 Daten'!$B$9:$B$859,0))) -> 966 | G113: =IF($A113<>0,INDEX('2.2 Daten'!I$9:I$859,MATCH('2.2'!$A113,'2.2 Daten'!$B$9:$B$859,0))) -> 251 | H113: =IF($A113<>0,INDEX('2.2 Daten'!K$9:K$859,MATCH('2.2'!$A113,'2.2 Daten'!$B$9:$B$859,0))) -> 8.069336521 | I113: =IF($A113<>0,INDEX('2.2 Daten'!L$9:L$859,MATCH('2.2'!$A113,'2.2 Daten'!$B$9:$B$859,0))) -> 8.064516129 | J113: =IF($A113<>0,INDEX('2.2 Daten'!M$9:M$859,MATCH('2.2'!$A113,'2.2 Daten'!$B$9:$B$859,0))) -> -3.293413174 | K113: =IF($A113<>0,INDEX('2.2 Daten'!N$9:N$859,MATCH('2.2'!$A113,'2.2 Daten'!$B$9:$B$859,0))) -> 11.93511008 | L113: =IF($A113<>0,INDEX('2.2 Daten'!O$9:O$859,MATCH('2.2'!$A113,'2.2 Daten'!$B$9:$B$859,0))) -> 10.0877193
A114: =CHOOSE('2.2 Daten'!$A$2,'2.2 Daten'!B536,'2.2 Daten'!B85,'2.2 Daten'!B102,'2.2 Daten'!B119,'2.2 Daten'!B122,'2.2 Daten'!B169,'2.2 Daten'!B173,'2.2 Daten'!B228,'2.2 Daten'!B256,'2.2 Daten'!B294,'2.2 Daten'!B340,'2.2 Daten'!B438,'2.2 Daten'!B446,'2.2 Daten'!B449,'2.2 Daten'!B469,'2.2 Daten'!B479,'2.2 Daten'!B494,'2.2 Daten'!B510,x) -> Grafschaft Bentheim | B114: =IF($A114<>0,INDEX('2.2 Daten'!C$9:C$859,MATCH('2.2'!$A114,'2.2 Daten'!$B$9:$B$859,0))," ") -> 03456000 | C114: =IF($A114<>0,INDEX('2.2 Daten'!E$9:E$859,MATCH('2.2'!$A114,'2.2 Daten'!$B$9:$B$859,0))) -> 2492 | D114: =IF($A114<>0,INDEX('2.2 Daten'!F$9:F$859,MATCH('2.2'!$A114,'2.2 Daten'!$B$9:$B$859,0))) -> 403 | E114: =IF($A114<>0,INDEX('2.2 Daten'!G$9:G$859,MATCH('2.2'!$A114,'2.2 Daten'!$B$9:$B$859,0))) -> 465 | F114: =IF($A114<>0,INDEX('2.2 Daten'!H$9:H$859,MATCH('2.2'!$A114,'2.2 Daten'!$B$9:$B$859,0))) -> 1256 | G114: =IF($A114<>0,INDEX('2.2 Daten'!I$9:I$859,MATCH('2.2'!$A114,'2.2 Daten'!$B$9:$B$859,0))) -> 368 | H114: =IF($A114<>0,INDEX('2.2 Daten'!K$9:K$859,MATCH('2.2'!$A114,'2.2 Daten'!$B$9:$B$859,0))) -> 18.61018563 | I114: =IF($A114<>0,INDEX('2.2 Daten'!L$9:L$859,MATCH('2.2'!$A114,'2.2 Daten'!$B$9:$B$859,0))) -> 12.25626741 | J114: =IF($A114<>0,INDEX('2.2 Daten'!M$9:M$859,MATCH('2.2'!$A114,'2.2 Daten'!$B$9:$B$859,0))) -> 18.02030457 | K114: =IF($A114<>0,INDEX('2.2 Daten'!N$9:N$859,MATCH('2.2'!$A114,'2.2 Daten'!$B$9:$B$859,0))) -> 21.58760891 | L114: =IF($A114<>0,INDEX('2.2 Daten'!O$9:O$859,MATCH('2.2'!$A114,'2.2 Daten'!$B$9:$B$859,0))) -> 16.82539683
A115: =CHOOSE('2.2 Daten'!$A$2,'2.2 Daten'!B537,'2.2 Daten'!B86,'2.2 Daten'!B103,'2.2 Daten'!B120,'2.2 Daten'!B123,'2.2 Daten'!B170,'2.2 Daten'!B174,'2.2 Daten'!B229,'2.2 Daten'!B257,'2.2 Daten'!B295,'2.2 Daten'!B341,'2.2 Daten'!B439,'2.2 Daten'!B447,'2.2 Daten'!B450,'2.2 Daten'!B470,'2.2 Daten'!B480,'2.2 Daten'!B495,'2.2 Daten'!B511,x) -> Leer | B115: =IF($A115<>0,INDEX('2.2 Daten'!C$9:C$859,MATCH('2.2'!$A115,'2.2 Daten'!$B$9:$B$859,0))," ") -> 03457000 | C115: =IF($A115<>0,INDEX('2.2 Daten'!E$9:E$859,MATCH('2.2'!$A115,'2.2 Daten'!$B$9:$B$859,0))) -> 3424 | D115: =IF($A115<>0,INDEX('2.2 Daten'!F$9:F$859,MATCH('2.2'!$A115,'2.2 Daten'!$B$9:$B$859,0))) -> 549 | E115: =IF($A115<>0,INDEX('2.2 Daten'!G$9:G$859,MATCH('2.2'!$A115,'2.2 Daten'!$B$9:$B$859,0))) -> 655 | F115: =IF($A115<>0,INDEX('2.2 Daten'!H$9:H$859,MATCH('2.2'!$A115,'2.2 Daten'!$B$9:$B$859,0))) -> 1749 | G115: =IF($A115<>0,INDEX('2.2 Daten'!I$9:I$859,MATCH('2.2'!$A115,'2.2 Daten'!$B$9:$B$859,0))) -> 471 | H115: =IF($A115<>0,INDEX('2.2 Daten'!K$9:K$859,MATCH('2.2'!$A115,'2.2 Daten'!$B$9:$B$859,0))) -> 3.444108761 | I115: =IF($A115<>0,INDEX('2.2 Daten'!L$9:L$859,MATCH('2.2'!$A115,'2.2 Daten'!$B$9:$B$859,0))) -> -0.3629764065 | J115: =IF($A115<>0,INDEX('2.2 Daten'!M$9:M$859,MATCH('2.2'!$A115,'2.2 Daten'!$B$9:$B$859,0))) -> 2.184087363 | K115: =IF($A115<>0,INDEX('2.2 Daten'!N$9:N$859,MATCH('2.2'!$A115,'2.2 Daten'!$B$9:$B$859,0))) -> 6.064281383 | L115: =IF($A115<>0,INDEX('2.2 Daten'!O$9:O$859,MATCH('2.2'!$A115,'2.2 Daten'!$B$9:$B$859,0))) -> 0.4264392324
A116: =CHOOSE('2.2 Daten'!$A$2,'2.2 Daten'!B538,'2.2 Daten'!B87,'2.2 Daten'!B104,'2.2 Daten'!B121,'2.2 Daten'!B124,'2.2 Daten'!B171,'2.2 Daten'!B175,'2.2 Daten'!B230,'2.2 Daten'!B258,'2.2 Daten'!B296,'2.2 Daten'!B342,'2.2 Daten'!B440,'2.2 Daten'!B448,'2.2 Daten'!B451,'2.2 Daten'!B471,'2.2 Daten'!B481,'2.2 Daten'!B496,'2.2 Daten'!B512,x) -> Oldenburg | B116: =IF($A116<>0,INDEX('2.2 Daten'!C$9:C$859,MATCH('2.2'!$A116,'2.2 Daten'!$B$9:$B$859,0))," ") -> 03458000 | C116: =IF($A116<>0,INDEX('2.2 Daten'!E$9:E$859,MATCH('2.2'!$A116,'2.2 Daten'!$B$9:$B$859,0))) -> 2082 | D116: =IF($A116<>0,INDEX('2.2 Daten'!F$9:F$859,MATCH('2.2'!$A116,'2.2 Daten'!$B$9:$B$859,0))) -> 297 | E116: =IF($A116<>0,INDEX('2.2 Daten'!G$9:G$859,MATCH('2.2'!$A116,'2.2 Daten'!$B$9:$B$859,0))) -> 363 | F116: =IF($A116<>0,INDEX('2.2 Daten'!H$9:H$859,MATCH('2.2'!$A116,'2.2 Daten'!$B$9:$B$859,0))) -> 1105 | G116: =IF($A116<>0,INDEX('2.2 Daten'!I$9:I$859,MATCH('2.2'!$A116,'2.2 Daten'!$B$9:$B$859,0))) -> 317 | H116: =IF($A116<>0,INDEX('2.2 Daten'!K$9:K$859,MATCH('2.2'!$A116,'2.2 Daten'!$B$9:$B$859,0))) -> 6.00814664 | I116: =IF($A116<>0,INDEX('2.2 Daten'!L$9:L$859,MATCH('2.2'!$A116,'2.2 Daten'!$B$9:$B$859,0))) -> 2.76816609 | J116: =IF($A116<>0,INDEX('2.2 Daten'!M$9:M$859,MATCH('2.2'!$A116,'2.2 Daten'!$B$9:$B$859,0))) -> 1.966292135 | K116: =IF($A116<>0,INDEX('2.2 Daten'!N$9:N$859,MATCH('2.2'!$A116,'2.2 Daten'!$B$9:$B$859,0))) -> 9.950248756 | L116: =IF($A116<>0,INDEX('2.2 Daten'!O$9:O$859,MATCH('2.2'!$A116,'2.2 Daten'!$B$9:$B$859,0))) -> 0.9554140127
A117: =CHOOSE('2.2 Daten'!$A$2,'2.2 Daten'!B539,'2.2 Daten'!B88,'2.2 Daten'!B105,'2.2 Daten'!B122,'2.2 Daten'!B125,'2.2 Daten'!B172,'2.2 Daten'!B176,'2.2 Daten'!B231,'2.2 Daten'!B259,'2.2 Daten'!B297,'2.2 Daten'!B343,'2.2 Daten'!B441,'2.2 Daten'!B449,'2.2 Daten'!B452,'2.2 Daten'!B472,'2.2 Daten'!B482,'2.2 Daten'!B497,'2.2 Daten'!B513,x) -> Osnabrück | B117: =IF($A117<>0,INDEX('2.2 Daten'!C$9:C$859,MATCH('2.2'!$A117,'2.2 Daten'!$B$9:$B$859,0))," ") -> 03459000 | C117: =IF($A117<>0,INDEX('2.2 Daten'!E$9:E$859,MATCH('2.2'!$A117,'2.2 Daten'!$B$9:$B$859,0))) -> 4835 | D117: =IF($A117<>0,INDEX('2.2 Daten'!F$9:F$859,MATCH('2.2'!$A117,'2.2 Daten'!$B$9:$B$859,0))) -> 780 | E117: =IF($A117<>0,INDEX('2.2 Daten'!G$9:G$859,MATCH('2.2'!$A117,'2.2 Daten'!$B$9:$B$859,0))) -> 923 | F117: =IF($A117<>0,INDEX('2.2 Daten'!H$9:H$859,MATCH('2.2'!$A117,'2.2 Daten'!$B$9:$B$859,0))) -> 2487 | G117: =IF($A117<>0,INDEX('2.2 Daten'!I$9:I$859,MATCH('2.2'!$A117,'2.2 Daten'!$B$9:$B$859,0))) -> 645 | H117: =IF($A117<>0,INDEX('2.2 Daten'!K$9:K$859,MATCH('2.2'!$A117,'2.2 Daten'!$B$9:$B$859,0))) -> 3.069707951 | I117: =IF($A117<>0,INDEX('2.2 Daten'!L$9:L$859,MATCH('2.2'!$A117,'2.2 Daten'!$B$9:$B$859,0))) -> -1.390644753 | J117: =IF($A117<>0,INDEX('2.2 Daten'!M$9:M$859,MATCH('2.2'!$A117,'2.2 Daten'!$B$9:$B$859,0))) -> 5.606407323 | K117: =IF($A117<>0,INDEX('2.2 Daten'!N$9:N$859,MATCH('2.2'!$A117,'2.2 Daten'!$B$9:$B$859,0))) -> 2.009844135 | L117: =IF($A117<>0,INDEX('2.2 Daten'!O$9:O$859,MATCH('2.2'!$A117,'2.2 Daten'!$B$9:$B$859,0))) -> 9.693877551
A118: =CHOOSE('2.2 Daten'!$A$2,'2.2 Daten'!B540,'2.2 Daten'!B89,'2.2 Daten'!B106,'2.2 Daten'!B123,'2.2 Daten'!B126,'2.2 Daten'!B173,'2.2 Daten'!B177,'2.2 Daten'!B232,'2.2 Daten'!B260,'2.2 Daten'!B298,'2.2 Daten'!B344,'2.2 Daten'!B442,'2.2 Daten'!B450,'2.2 Daten'!B453,'2.2 Daten'!B473,'2.2 Daten'!B483,'2.2 Daten'!B498,'2.2 Daten'!B514,x) -> Vechta | B118: =IF($A118<>0,INDEX('2.2 Daten'!C$9:C$859,MATCH('2.2'!$A118,'2.2 Daten'!$B$9:$B$859,0))," ") -> 03460000 | C118: =IF($A118<>0,INDEX('2.2 Daten'!E$9:E$859,MATCH('2.2'!$A118,'2.2 Daten'!$B$9:$B$859,0))) -> 2537 | D118: =IF($A118<>0,INDEX('2.2 Daten'!F$9:F$859,MATCH('2.2'!$A118,'2.2 Daten'!$B$9:$B$859,0))) -> 393 | E118: =IF($A118<>0,INDEX('2.2 Daten'!G$9:G$859,MATCH('2.2'!$A118,'2.2 Daten'!$B$9:$B$859,0))) -> 442 | F118: =IF($A118<>0,INDEX('2.2 Daten'!H$9:H$859,MATCH('2.2'!$A118,'2.2 Daten'!$B$9:$B$859,0))) -> 1297 | G118: =IF($A118<>0,INDEX('2.2 Daten'!I$9:I$859,MATCH('2.2'!$A118,'2.2 Daten'!$B$9:$B$859,0))) -> 405 | H118: =IF($A118<>0,INDEX('2.2 Daten'!K$9:K$859,MATCH('2.2'!$A118,'2.2 Daten'!$B$9:$B$859,0))) -> -12.69786648 | I118: =IF($A118<>0,INDEX('2.2 Daten'!L$9:L$859,MATCH('2.2'!$A118,'2.2 Daten'!$B$9:$B$859,0))) -> -12.66666667 | J118: =IF($A118<>0,INDEX('2.2 Daten'!M$9:M$859,MATCH('2.2'!$A118,'2.2 Daten'!$B$9:$B$859,0))) -> -17.38317757 | K118: =IF($A118<>0,INDEX('2.2 Daten'!N$9:N$859,MATCH('2.2'!$A118,'2.2 Daten'!$B$9:$B$859,0))) -> -12.12737127 | L118: =IF($A118<>0,INDEX('2.2 Daten'!O$9:O$859,MATCH('2.2'!$A118,'2.2 Daten'!$B$9:$B$859,0))) -> -8.988764045
A119: =CHOOSE('2.2 Daten'!$A$2,'2.2 Daten'!B541,'2.2 Daten'!B90,'2.2 Daten'!B107,'2.2 Daten'!B124,'2.2 Daten'!B127,'2.2 Daten'!B174,'2.2 Daten'!B178,'2.2 Daten'!B233,'2.2 Daten'!B261,'2.2 Daten'!B299,'2.2 Daten'!B345,'2.2 Daten'!B443,'2.2 Daten'!B451,'2.2 Daten'!B454,'2.2 Daten'!B474,'2.2 Daten'!B484,'2.2 Daten'!B499,'2.2 Daten'!B515,x) -> Wesermarsch | B119: =IF($A119<>0,INDEX('2.2 Daten'!C$9:C$859,MATCH('2.2'!$A119,'2.2 Daten'!$B$9:$B$859,0))," ") -> 03461000 | C119: =IF($A119<>0,INDEX('2.2 Daten'!E$9:E$859,MATCH('2.2'!$A119,'2.2 Daten'!$B$9:$B$859,0))) -> 2460 | D119: =IF($A119<>0,INDEX('2.2 Daten'!F$9:F$859,MATCH('2.2'!$A119,'2.2 Daten'!$B$9:$B$859,0))) -> 385 | E119: =IF($A119<>0,INDEX('2.2 Daten'!G$9:G$859,MATCH('2.2'!$A119,'2.2 Daten'!$B$9:$B$859,0))) -> 464 | F119: =IF($A119<>0,INDEX('2.2 Daten'!H$9:H$859,MATCH('2.2'!$A119,'2.2 Daten'!$B$9:$B$859,0))) -> 1282 | G119: =IF($A119<>0,INDEX('2.2 Daten'!I$9:I$859,MATCH('2.2'!$A119,'2.2 Daten'!$B$9:$B$859,0))) -> 329 | H119: =IF($A119<>0,INDEX('2.2 Daten'!K$9:K$859,MATCH('2.2'!$A119,'2.2 Daten'!$B$9:$B$859,0))) -> 3.972950127 | I119: =IF($A119<>0,INDEX('2.2 Daten'!L$9:L$859,MATCH('2.2'!$A119,'2.2 Daten'!$B$9:$B$859,0))) -> 4.33604336 | J119: =IF($A119<>0,INDEX('2.2 Daten'!M$9:M$859,MATCH('2.2'!$A119,'2.2 Daten'!$B$9:$B$859,0))) -> 6.178489703 | K119: =IF($A119<>0,INDEX('2.2 Daten'!N$9:N$859,MATCH('2.2'!$A119,'2.2 Daten'!$B$9:$B$859,0))) -> 2.396166134 | L119: =IF($A119<>0,INDEX('2.2 Daten'!O$9:O$859,MATCH('2.2'!$A119,'2.2 Daten'!$B$9:$B$859,0))) -> 6.818181818
A120: =CHOOSE('2.2 Daten'!$A$2,'2.2 Daten'!B542,'2.2 Daten'!B91,'2.2 Daten'!B108,'2.2 Daten'!B125,'2.2 Daten'!B128,'2.2 Daten'!B175,'2.2 Daten'!B179,'2.2 Daten'!B234,'2.2 Daten'!B262,'2.2 Daten'!B300,'2.2 Daten'!B346,'2.2 Daten'!B444,'2.2 Daten'!B452,'2.2 Daten'!B455,'2.2 Daten'!B475,'2.2 Daten'!B485,'2.2 Daten'!B500,'2.2 Daten'!B516,x) -> Wittmund | B120: =IF($A120<>0,INDEX('2.2 Daten'!C$9:C$859,MATCH('2.2'!$A120,'2.2 Daten'!$B$9:$B$859,0))," ") -> 03462000 | C120: =IF($A120<>0,INDEX('2.2 Daten'!E$9:E$859,MATCH('2.2'!$A120,'2.2 Daten'!$B$9:$B$859,0))) -> 1349 | D120: =IF($A120<>0,INDEX('2.2 Daten'!F$9:F$859,MATCH('2.2'!$A120,'2.2 Daten'!$B$9:$B$859,0))) -> 215 | E120: =IF($A120<>0,INDEX('2.2 Daten'!G$9:G$859,MATCH('2.2'!$A120,'2.2 Daten'!$B$9:$B$859,0))) -> 226 | F120: =IF($A120<>0,INDEX('2.2 Daten'!H$9:H$859,MATCH('2.2'!$A120,'2.2 Daten'!$B$9:$B$859,0))) -> 713 | G120: =IF($A120<>0,INDEX('2.2 Daten'!I$9:I$859,MATCH('2.2'!$A120,'2.2 Daten'!$B$9:$B$859,0))) -> 195 | H120: =IF($A120<>0,INDEX('2.2 Daten'!K$9:K$859,MATCH('2.2'!$A120,'2.2 Daten'!$B$9:$B$859,0))) -> 18.33333333 | I120: =IF($A120<>0,INDEX('2.2 Daten'!L$9:L$859,MATCH('2.2'!$A120,'2.2 Daten'!$B$9:$B$859,0))) -> 18.78453039 | J120: =IF($A120<>0,INDEX('2.2 Daten'!M$9:M$859,MATCH('2.2'!$A120,'2.2 Daten'!$B$9:$B$859,0))) -> 17.70833333 | K120: =IF($A120<>0,INDEX('2.2 Daten'!N$9:N$859,MATCH('2.2'!$A120,'2.2 Daten'!$B$9:$B$859,0))) -> 17.0771757 | L120: =IF($A120<>0,INDEX('2.2 Daten'!O$9:O$859,MATCH('2.2'!$A120,'2.2 Daten'!$B$9:$B$859,0))) -> 23.41772152
A121: =CHOOSE('2.2 Daten'!$A$2,'2.2 Daten'!B543,'2.2 Daten'!B92,'2.2 Daten'!B109,'2.2 Daten'!B126,'2.2 Daten'!B129,'2.2 Daten'!B176,'2.2 Daten'!B180,'2.2 Daten'!B235,'2.2 Daten'!B263,'2.2 Daten'!B301,'2.2 Daten'!B347,'2.2 Daten'!B445,'2.2 Daten'!B453,'2.2 Daten'!B456,'2.2 Daten'!B476,'2.2 Daten'!B486,'2.2 Daten'!B501,'2.2 Daten'!B517,x) -> 0 | B121: =IF($A121<>0,INDEX('2.2 Daten'!C$9:C$859,MATCH('2.2'!$A121,'2.2 Daten'!$B$9:$B$859,0))," ") ->  | C121: =IF($A121<>0,INDEX('2.2 Daten'!E$9:E$859,MATCH('2.2'!$A121,'2.2 Daten'!$B$9:$B$859,0))) -> FALSE | D121: =IF($A121<>0,INDEX('2.2 Daten'!F$9:F$859,MATCH('2.2'!$A121,'2.2 Daten'!$B$9:$B$859,0))) -> FALSE | E121: =IF($A121<>0,INDEX('2.2 Daten'!G$9:G$859,MATCH('2.2'!$A121,'2.2 Daten'!$B$9:$B$859,0))) -> FALSE | F121: =IF($A121<>0,INDEX('2.2 Daten'!H$9:H$859,MATCH('2.2'!$A121,'2.2 Daten'!$B$9:$B$859,0))) -> FALSE | G121: =IF($A121<>0,INDEX('2.2 Daten'!I$9:I$859,MATCH('2.2'!$A121,'2.2 Daten'!$B$9:$B$859,0))) -> FALSE | H121: =IF($A121<>0,INDEX('2.2 Daten'!K$9:K$859,MATCH('2.2'!$A121,'2.2 Daten'!$B$9:$B$859,0))) -> FALSE | I121: =IF($A121<>0,INDEX('2.2 Daten'!L$9:L$859,MATCH('2.2'!$A121,'2.2 Daten'!$B$9:$B$859,0))) -> FALSE | J121: =IF($A121<>0,INDEX('2.2 Daten'!M$9:M$859,MATCH('2.2'!$A121,'2.2 Daten'!$B$9:$B$859,0))) -> FALSE | K121: =IF($A121<>0,INDEX('2.2 Daten'!N$9:N$859,MATCH('2.2'!$A121,'2.2 Daten'!$B$9:$B$859,0))) -> FALSE | L121: =IF($A121<>0,INDEX('2.2 Daten'!O$9:O$859,MATCH('2.2'!$A121,'2.2 Daten'!$B$9:$B$859,0))) -> FALSE
A122: =CHOOSE('2.2 Daten'!$A$2,'2.2 Daten'!B544,'2.2 Daten'!B93,'2.2 Daten'!B110,'2.2 Daten'!B127,'2.2 Daten'!B130,'2.2 Daten'!B177,'2.2 Daten'!B181,'2.2 Daten'!B236,'2.2 Daten'!B264,'2.2 Daten'!B302,'2.2 Daten'!B348,'2.2 Daten'!B446,'2.2 Daten'!B454,'2.2 Daten'!B457,'2.2 Daten'!B477,'2.2 Daten'!B487,'2.2 Daten'!B502,'2.2 Daten'!B518,x) -> Bremen | B122: =IF($A122<>0,INDEX('2.2 Daten'!C$9:C$859,MATCH('2.2'!$A122,'2.2 Daten'!$B$9:$B$859,0))," ") -> 04 | C122: =IF($A122<>0,INDEX('2.2 Daten'!E$9:E$859,MATCH('2.2'!$A122,'2.2 Daten'!$B$9:$B$859,0))) -> 35619 | D122: =IF($A122<>0,INDEX('2.2 Daten'!F$9:F$859,MATCH('2.2'!$A122,'2.2 Daten'!$B$9:$B$859,0))) -> 5976 | E122: =IF($A122<>0,INDEX('2.2 Daten'!G$9:G$859,MATCH('2.2'!$A122,'2.2 Daten'!$B$9:$B$859,0))) -> 7225 | F122: =IF($A122<>0,INDEX('2.2 Daten'!H$9:H$859,MATCH('2.2'!$A122,'2.2 Daten'!$B$9:$B$859,0))) -> 17532 | G122: =IF($A122<>0,INDEX('2.2 Daten'!I$9:I$859,MATCH('2.2'!$A122,'2.2 Daten'!$B$9:$B$859,0))) -> 4886 | H122: =IF($A122<>0,INDEX('2.2 Daten'!K$9:K$859,MATCH('2.2'!$A122,'2.2 Daten'!$B$9:$B$859,0))) -> -0.3078731563 | I122: =IF($A122<>0,INDEX('2.2 Daten'!L$9:L$859,MATCH('2.2'!$A122,'2.2 Daten'!$B$9:$B$859,0))) -> -6.332288401 | J122: =IF($A122<>0,INDEX('2.2 Daten'!M$9:M$859,MATCH('2.2'!$A122,'2.2 Daten'!$B$9:$B$859,0))) -> -0.02767400028 | K122: =IF($A122<>0,INDEX('2.2 Daten'!N$9:N$859,MATCH('2.2'!$A122,'2.2 Daten'!$B$9:$B$859,0))) -> 1.387925052 | L122: =IF($A122<>0,INDEX('2.2 Daten'!O$9:O$859,MATCH('2.2'!$A122,'2.2 Daten'!$B$9:$B$859,0))) -> 1.15942029
A123: =CHOOSE('2.2 Daten'!$A$2,'2.2 Daten'!B545,'2.2 Daten'!B94,'2.2 Daten'!B111,'2.2 Daten'!B128,'2.2 Daten'!B131,'2.2 Daten'!B178,'2.2 Daten'!B182,'2.2 Daten'!B237,'2.2 Daten'!B265,'2.2 Daten'!B303,'2.2 Daten'!B349,'2.2 Daten'!B447,'2.2 Daten'!B455,'2.2 Daten'!B458,'2.2 Daten'!B478,'2.2 Daten'!B488,'2.2 Daten'!B503,'2.2 Daten'!B519,x) -> Bremen, Stadt | B123: =IF($A123<>0,INDEX('2.2 Daten'!C$9:C$859,MATCH('2.2'!$A123,'2.2 Daten'!$B$9:$B$859,0))," ") -> 04011000 | C123: =IF($A123<>0,INDEX('2.2 Daten'!E$9:E$859,MATCH('2.2'!$A123,'2.2 Daten'!$B$9:$B$859,0))) -> 28208 | D123: =IF($A123<>0,INDEX('2.2 Daten'!F$9:F$859,MATCH('2.2'!$A123,'2.2 Daten'!$B$9:$B$859,0))) -> 4748 | E123: =IF($A123<>0,INDEX('2.2 Daten'!G$9:G$859,MATCH('2.2'!$A123,'2.2 Daten'!$B$9:$B$859,0))) -> 5859 | F123: =IF($A123<>0,INDEX('2.2 Daten'!H$9:H$859,MATCH('2.2'!$A123,'2.2 Daten'!$B$9:$B$859,0))) -> 13795 | G123: =IF($A123<>0,INDEX('2.2 Daten'!I$9:I$859,MATCH('2.2'!$A123,'2.2 Daten'!$B$9:$B$859,0))) -> 3806 | H123: =IF($A123<>0,INDEX('2.2 Daten'!K$9:K$859,MATCH('2.2'!$A123,'2.2 Daten'!$B$9:$B$859,0))) -> -0.7808652832 | I123: =IF($A123<>0,INDEX('2.2 Daten'!L$9:L$859,MATCH('2.2'!$A123,'2.2 Daten'!$B$9:$B$859,0))) -> -7.265625 | J123: =IF($A123<>0,INDEX('2.2 Daten'!M$9:M$859,MATCH('2.2'!$A123,'2.2 Daten'!$B$9:$B$859,0))) -> 0.1367287643 | K123: =IF($A123<>0,INDEX('2.2 Daten'!N$9:N$859,MATCH('2.2'!$A123,'2.2 Daten'!$B$9:$B$859,0))) -> 0.9291776412 | L123: =IF($A123<>0,INDEX('2.2 Daten'!O$9:O$859,MATCH('2.2'!$A123,'2.2 Daten'!$B$9:$B$859,0))) -> 0.3956739647
A124: =CHOOSE('2.2 Daten'!$A$2,'2.2 Daten'!B546,'2.2 Daten'!B95,'2.2 Daten'!B112,'2.2 Daten'!B129,'2.2 Daten'!B132,'2.2 Daten'!B179,'2.2 Daten'!B183,'2.2 Daten'!B238,'2.2 Daten'!B266,'2.2 Daten'!B304,'2.2 Daten'!B350,'2.2 Daten'!B448,'2.2 Daten'!B456,'2.2 Daten'!B459,'2.2 Daten'!B479,'2.2 Daten'!B489,'2.2 Daten'!B504,'2.2 Daten'!B520,x) -> Bremerhaven, Stadt | B124: =IF($A124<>0,INDEX('2.2 Daten'!C$9:C$859,MATCH('2.2'!$A124,'2.2 Daten'!$B$9:$B$859,0))," ") -> 04012000 | C124: =IF($A124<>0,INDEX('2.2 Daten'!E$9:E$859,MATCH('2.2'!$A124,'2.2 Daten'!$B$9:$B$859,0))) -> 7411 | D124: =IF($A124<>0,INDEX('2.2 Daten'!F$9:F$859,MATCH('2.2'!$A124,'2.2 Daten'!$B$9:$B$859,0))) -> 1228 | E124: =IF($A124<>0,INDEX('2.2 Daten'!G$9:G$859,MATCH('2.2'!$A124,'2.2 Daten'!$B$9:$B$859,0))) -> 1366 | F124: =IF($A124<>0,INDEX('2.2 Daten'!H$9:H$859,MATCH('2.2'!$A124,'2.2 Daten'!$B$9:$B$859,0))) -> 3737 | G124: =IF($A124<>0,INDEX('2.2 Daten'!I$9:I$859,MATCH('2.2'!$A124,'2.2 Daten'!$B$9:$B$859,0))) -> 1080 | H124: =IF($A124<>0,INDEX('2.2 Daten'!K$9:K$859,MATCH('2.2'!$A124,'2.2 Daten'!$B$9:$B$859,0))) -> 1.534456775 | I124: =IF($A124<>0,INDEX('2.2 Daten'!L$9:L$859,MATCH('2.2'!$A124,'2.2 Daten'!$B$9:$B$859,0))) -> -2.53968254 | J124: =IF($A124<>0,INDEX('2.2 Daten'!M$9:M$859,MATCH('2.2'!$A124,'2.2 Daten'!$B$9:$B$859,0))) -> -0.726744186 | K124: =IF($A124<>0,INDEX('2.2 Daten'!N$9:N$859,MATCH('2.2'!$A124,'2.2 Daten'!$B$9:$B$859,0))) -> 3.118101545 | L124: =IF($A124<>0,INDEX('2.2 Daten'!O$9:O$859,MATCH('2.2'!$A124,'2.2 Daten'!$B$9:$B$859,0))) -> 3.946102021
A125: =CHOOSE('2.2 Daten'!$A$2,'2.2 Daten'!B547,'2.2 Daten'!B96,'2.2 Daten'!B113,'2.2 Daten'!B130,'2.2 Daten'!B133,'2.2 Daten'!B180,'2.2 Daten'!B184,'2.2 Daten'!B239,'2.2 Daten'!B267,'2.2 Daten'!B305,'2.2 Daten'!B351,'2.2 Daten'!B449,'2.2 Daten'!B457,'2.2 Daten'!B460,'2.2 Daten'!B480,'2.2 Daten'!B490,'2.2 Daten'!B505,'2.2 Daten'!B521,x) -> 0 | B125: =IF($A125<>0,INDEX('2.2 Daten'!C$9:C$859,MATCH('2.2'!$A125,'2.2 Daten'!$B$9:$B$859,0))," ") ->  | C125: =IF($A125<>0,INDEX('2.2 Daten'!E$9:E$859,MATCH('2.2'!$A125,'2.2 Daten'!$B$9:$B$859,0))) -> FALSE | D125: =IF($A125<>0,INDEX('2.2 Daten'!F$9:F$859,MATCH('2.2'!$A125,'2.2 Daten'!$B$9:$B$859,0))) -> FALSE | E125: =IF($A125<>0,INDEX('2.2 Daten'!G$9:G$859,MATCH('2.2'!$A125,'2.2 Daten'!$B$9:$B$859,0))) -> FALSE | F125: =IF($A125<>0,INDEX('2.2 Daten'!H$9:H$859,MATCH('2.2'!$A125,'2.2 Daten'!$B$9:$B$859,0))) -> FALSE | G125: =IF($A125<>0,INDEX('2.2 Daten'!I$9:I$859,MATCH('2.2'!$A125,'2.2 Daten'!$B$9:$B$859,0))) -> FALSE | H125: =IF($A125<>0,INDEX('2.2 Daten'!K$9:K$859,MATCH('2.2'!$A125,'2.2 Daten'!$B$9:$B$859,0))) -> FALSE | I125: =IF($A125<>0,INDEX('2.2 Daten'!L$9:L$859,MATCH('2.2'!$A125,'2.2 Daten'!$B$9:$B$859,0))) -> FALSE | J125: =IF($A125<>0,INDEX('2.2 Daten'!M$9:M$859,MATCH('2.2'!$A125,'2.2 Daten'!$B$9:$B$859,0))) -> FALSE | K125: =IF($A125<>0,INDEX('2.2 Daten'!N$9:N$859,MATCH('2.2'!$A125,'2.2 Daten'!$B$9:$B$859,0))) -> FALSE | L125: =IF($A125<>0,INDEX('2.2 Daten'!O$9:O$859,MATCH('2.2'!$A125,'2.2 Daten'!$B$9:$B$859,0))) -> FALSE
A126: =CHOOSE('2.2 Daten'!$A$2,'2.2 Daten'!B548,'2.2 Daten'!B97,'2.2 Daten'!B114,'2.2 Daten'!B131,'2.2 Daten'!B134,'2.2 Daten'!B181,'2.2 Daten'!B185,'2.2 Daten'!B240,'2.2 Daten'!B268,'2.2 Daten'!B306,'2.2 Daten'!B352,'2.2 Daten'!B450,'2.2 Daten'!B458,'2.2 Daten'!B461,'2.2 Daten'!B481,'2.2 Daten'!B491,'2.2 Daten'!B506,'2.2 Daten'!B522,x) -> Nordrhein-Westfalen | B126: =IF($A126<>0,INDEX('2.2 Daten'!C$9:C$859,MATCH('2.2'!$A126,'2.2 Daten'!$B$9:$B$859,0))," ") -> 05 | C126: =IF($A126<>0,INDEX('2.2 Daten'!E$9:E$859,MATCH('2.2'!$A126,'2.2 Daten'!$B$9:$B$859,0))) -> 563646 | D126: =IF($A126<>0,INDEX('2.2 Daten'!F$9:F$859,MATCH('2.2'!$A126,'2.2 Daten'!$B$9:$B$859,0))) -> 86117 | E126: =IF($A126<>0,INDEX('2.2 Daten'!G$9:G$859,MATCH('2.2'!$A126,'2.2 Daten'!$B$9:$B$859,0))) -> 101630 | F126: =IF($A126<>0,INDEX('2.2 Daten'!H$9:H$859,MATCH('2.2'!$A126,'2.2 Daten'!$B$9:$B$859,0))) -> 291475 | G126: =IF($A126<>0,INDEX('2.2 Daten'!I$9:I$859,MATCH('2.2'!$A126,'2.2 Daten'!$B$9:$B$859,0))) -> 84424 | H126: =IF($A126<>0,INDEX('2.2 Daten'!K$9:K$859,MATCH('2.2'!$A126,'2.2 Daten'!$B$9:$B$859,0))) -> 1.197174754 | I126: =IF($A126<>0,INDEX('2.2 Daten'!L$9:L$859,MATCH('2.2'!$A126,'2.2 Daten'!$B$9:$B$859,0))) -> -2.399301856 | J126: =IF($A126<>0,INDEX('2.2 Daten'!M$9:M$859,MATCH('2.2'!$A126,'2.2 Daten'!$B$9:$B$859,0))) -> -2.056589954 | K126: =IF($A126<>0,INDEX('2.2 Daten'!N$9:N$859,MATCH('2.2'!$A126,'2.2 Daten'!$B$9:$B$859,0))) -> 2.596278058 | L126: =IF($A126<>0,INDEX('2.2 Daten'!O$9:O$859,MATCH('2.2'!$A126,'2.2 Daten'!$B$9:$B$859,0))) -> 4.380509638
A127: =CHOOSE('2.2 Daten'!$A$2,'2.2 Daten'!B549,'2.2 Daten'!B98,'2.2 Daten'!B115,'2.2 Daten'!B132,'2.2 Daten'!B135,'2.2 Daten'!B182,'2.2 Daten'!B186,'2.2 Daten'!B241,'2.2 Daten'!B269,'2.2 Daten'!B307,'2.2 Daten'!B353,'2.2 Daten'!B451,'2.2 Daten'!B459,'2.2 Daten'!B462,'2.2 Daten'!B482,'2.2 Daten'!B492,'2.2 Daten'!B507,'2.2 Daten'!B523,x) -> Düsseldorf, Stadt | B127: =IF($A127<>0,INDEX('2.2 Daten'!C$9:C$859,MATCH('2.2'!$A127,'2.2 Daten'!$B$9:$B$859,0))," ") -> 05111000 | C127: =IF($A127<>0,INDEX('2.2 Daten'!E$9:E$859,MATCH('2.2'!$A127,'2.2 Daten'!$B$9:$B$859,0))) -> 17807 | D127: =IF($A127<>0,INDEX('2.2 Daten'!F$9:F$859,MATCH('2.2'!$A127,'2.2 Daten'!$B$9:$B$859,0))) -> 2383 | E127: =IF($A127<>0,INDEX('2.2 Daten'!G$9:G$859,MATCH('2.2'!$A127,'2.2 Daten'!$B$9:$B$859,0))) -> 3050 | F127: =IF($A127<>0,INDEX('2.2 Daten'!H$9:H$859,MATCH('2.2'!$A127,'2.2 Daten'!$B$9:$B$859,0))) -> 9571 | G127: =IF($A127<>0,INDEX('2.2 Daten'!I$9:I$859,MATCH('2.2'!$A127,'2.2 Daten'!$B$9:$B$859,0))) -> 2803 | H127: =IF($A127<>0,INDEX('2.2 Daten'!K$9:K$859,MATCH('2.2'!$A127,'2.2 Daten'!$B$9:$B$859,0))) -> -2.512865433 | I127: =IF($A127<>0,INDEX('2.2 Daten'!L$9:L$859,MATCH('2.2'!$A127,'2.2 Daten'!$B$9:$B$859,0))) -> -4.565478574 | J127: =IF($A127<>0,INDEX('2.2 Daten'!M$9:M$859,MATCH('2.2'!$A127,'2.2 Daten'!$B$9:$B$859,0))) -> -6.841783751 | K127: =IF($A127<>0,INDEX('2.2 Daten'!N$9:N$859,MATCH('2.2'!$A127,'2.2 Daten'!$B$9:$B$859,0))) -> -1.279009799 | L127: =IF($A127<>0,INDEX('2.2 Daten'!O$9:O$859,MATCH('2.2'!$A127,'2.2 Daten'!$B$9:$B$859,0))) -> 0.1071428571
A128: =CHOOSE('2.2 Daten'!$A$2,'2.2 Daten'!B550,'2.2 Daten'!B99,'2.2 Daten'!B116,'2.2 Daten'!B133,'2.2 Daten'!B136,'2.2 Daten'!B183,'2.2 Daten'!B187,'2.2 Daten'!B242,'2.2 Daten'!B270,'2.2 Daten'!B308,'2.2 Daten'!B354,'2.2 Daten'!B452,'2.2 Daten'!B460,'2.2 Daten'!B463,'2.2 Daten'!B483,'2.2 Daten'!B493,'2.2 Daten'!B508,'2.2 Daten'!B524,x) -> Duisburg, Stadt | B128: =IF($A128<>0,INDEX('2.2 Daten'!C$9:C$859,MATCH('2.2'!$A128,'2.2 Daten'!$B$9:$B$859,0))," ") -> 05112000 | C128: =IF($A128<>0,INDEX('2.2 Daten'!E$9:E$859,MATCH('2.2'!$A128,'2.2 Daten'!$B$9:$B$859,0))) -> 27674 | D128: =IF($A128<>0,INDEX('2.2 Daten'!F$9:F$859,MATCH('2.2'!$A128,'2.2 Daten'!$B$9:$B$859,0))) -> 4255 | E128: =IF($A128<>0,INDEX('2.2 Daten'!G$9:G$859,MATCH('2.2'!$A128,'2.2 Daten'!$B$9:$B$859,0))) -> 4908 | F128: =IF($A128<>0,INDEX('2.2 Daten'!H$9:H$859,MATCH('2.2'!$A128,'2.2 Daten'!$B$9:$B$859,0))) -> 14439 | G128: =IF($A128<>0,INDEX('2.2 Daten'!I$9:I$859,MATCH('2.2'!$A128,'2.2 Daten'!$B$9:$B$859,0))) -> 4072 | H128: =IF($A128<>0,INDEX('2.2 Daten'!K$9:K$859,MATCH('2.2'!$A128,'2.2 Daten'!$B$9:$B$859,0))) -> 4.31209951 | I128: =IF($A128<>0,INDEX('2.2 Daten'!L$9:L$859,MATCH('2.2'!$A128,'2.2 Daten'!$B$9:$B$859,0))) -> 0.1176470588 | J128: =IF($A128<>0,INDEX('2.2 Daten'!M$9:M$859,MATCH('2.2'!$A128,'2.2 Daten'!$B$9:$B$859,0))) -> -1.108200685 | K128: =IF($A128<>0,INDEX('2.2 Daten'!N$9:N$859,MATCH('2.2'!$A128,'2.2 Daten'!$B$9:$B$859,0))) -> 6.6317111 | L128: =IF($A128<>0,INDEX('2.2 Daten'!O$9:O$859,MATCH('2.2'!$A128,'2.2 Daten'!$B$9:$B$859,0))) -> 7.838983051
A129: =CHOOSE('2.2 Daten'!$A$2,'2.2 Daten'!B551,'2.2 Daten'!B100,'2.2 Daten'!B117,'2.2 Daten'!B134,'2.2 Daten'!B137,'2.2 Daten'!B184,'2.2 Daten'!B188,'2.2 Daten'!B243,'2.2 Daten'!B271,'2.2 Daten'!B309,'2.2 Daten'!B355,'2.2 Daten'!B453,'2.2 Daten'!B461,'2.2 Daten'!B464,'2.2 Daten'!B484,'2.2 Daten'!B494,'2.2 Daten'!B509,'2.2 Daten'!B525,x) -> Essen, Stadt | B129: =IF($A129<>0,INDEX('2.2 Daten'!C$9:C$859,MATCH('2.2'!$A129,'2.2 Daten'!$B$9:$B$859,0))," ") -> 05113000 | C129: =IF($A129<>0,INDEX('2.2 Daten'!E$9:E$859,MATCH('2.2'!$A129,'2.2 Daten'!$B$9:$B$859,0))) -> 30134 | D129: =IF($A129<>0,INDEX('2.2 Daten'!F$9:F$859,MATCH('2.2'!$A129,'2.2 Daten'!$B$9:$B$859,0))) -> 4751 | E129: =IF($A129<>0,INDEX('2.2 Daten'!G$9:G$859,MATCH('2.2'!$A129,'2.2 Daten'!$B$9:$B$859,0))) -> 5591 | F129: =IF($A129<>0,INDEX('2.2 Daten'!H$9:H$859,MATCH('2.2'!$A129,'2.2 Daten'!$B$9:$B$859,0))) -> 15312 | G129: =IF($A129<>0,INDEX('2.2 Daten'!I$9:I$859,MATCH('2.2'!$A129,'2.2 Daten'!$B$9:$B$859,0))) -> 4480 | H129: =IF($A129<>0,INDEX('2.2 Daten'!K$9:K$859,MATCH('2.2'!$A129,'2.2 Daten'!$B$9:$B$859,0))) -> -0.251572327 | I129: =IF($A129<>0,INDEX('2.2 Daten'!L$9:L$859,MATCH('2.2'!$A129,'2.2 Daten'!$B$9:$B$859,0))) -> -2.66338865 | J129: =IF($A129<>0,INDEX('2.2 Daten'!M$9:M$859,MATCH('2.2'!$A129,'2.2 Daten'!$B$9:$B$859,0))) -> -3.420279841 | K129: =IF($A129<>0,INDEX('2.2 Daten'!N$9:N$859,MATCH('2.2'!$A129,'2.2 Daten'!$B$9:$B$859,0))) -> 0.2684827451 | L129: =IF($A129<>0,INDEX('2.2 Daten'!O$9:O$859,MATCH('2.2'!$A129,'2.2 Daten'!$B$9:$B$859,0))) -> 4.94260951
A130: =CHOOSE('2.2 Daten'!$A$2,'2.2 Daten'!B552,'2.2 Daten'!B101,'2.2 Daten'!B118,'2.2 Daten'!B135,'2.2 Daten'!B138,'2.2 Daten'!B185,'2.2 Daten'!B189,'2.2 Daten'!B244,'2.2 Daten'!B272,'2.2 Daten'!B310,'2.2 Daten'!B356,'2.2 Daten'!B454,'2.2 Daten'!B462,'2.2 Daten'!B465,'2.2 Daten'!B485,'2.2 Daten'!B495,'2.2 Daten'!B510,'2.2 Daten'!B526,x) -> Krefeld, Stadt | B130: =IF($A130<>0,INDEX('2.2 Daten'!C$9:C$859,MATCH('2.2'!$A130,'2.2 Daten'!$B$9:$B$859,0))," ") -> 05114000 | C130: =IF($A130<>0,INDEX('2.2 Daten'!E$9:E$859,MATCH('2.2'!$A130,'2.2 Daten'!$B$9:$B$859,0))) -> 9098 | D130: =IF($A130<>0,INDEX('2.2 Daten'!F$9:F$859,MATCH('2.2'!$A130,'2.2 Daten'!$B$9:$B$859,0))) -> 1416 | E130: =IF($A130<>0,INDEX('2.2 Daten'!G$9:G$859,MATCH('2.2'!$A130,'2.2 Daten'!$B$9:$B$859,0))) -> 1642 | F130: =IF($A130<>0,INDEX('2.2 Daten'!H$9:H$859,MATCH('2.2'!$A130,'2.2 Daten'!$B$9:$B$859,0))) -> 4684 | G130: =IF($A130<>0,INDEX('2.2 Daten'!I$9:I$859,MATCH('2.2'!$A130,'2.2 Daten'!$B$9:$B$859,0))) -> 1356 | H130: =IF($A130<>0,INDEX('2.2 Daten'!K$9:K$859,MATCH('2.2'!$A130,'2.2 Daten'!$B$9:$B$859,0))) -> -0.709374659 | I130: =IF($A130<>0,INDEX('2.2 Daten'!L$9:L$859,MATCH('2.2'!$A130,'2.2 Daten'!$B$9:$B$859,0))) -> -2.277432712 | J130: =IF($A130<>0,INDEX('2.2 Daten'!M$9:M$859,MATCH('2.2'!$A130,'2.2 Daten'!$B$9:$B$859,0))) -> -2.203692674 | K130: =IF($A130<>0,INDEX('2.2 Daten'!N$9:N$859,MATCH('2.2'!$A130,'2.2 Daten'!$B$9:$B$859,0))) -> -0.425170068 | L130: =IF($A130<>0,INDEX('2.2 Daten'!O$9:O$859,MATCH('2.2'!$A130,'2.2 Daten'!$B$9:$B$859,0))) -> 1.878287002
A131: =CHOOSE('2.2 Daten'!$A$2,'2.2 Daten'!B553,'2.2 Daten'!B102,'2.2 Daten'!B119,'2.2 Daten'!B136,'2.2 Daten'!B139,'2.2 Daten'!B186,'2.2 Daten'!B190,'2.2 Daten'!B245,'2.2 Daten'!B273,'2.2 Daten'!B311,'2.2 Daten'!B357,'2.2 Daten'!B455,'2.2 Daten'!B463,'2.2 Daten'!B466,'2.2 Daten'!B486,'2.2 Daten'!B496,'2.2 Daten'!B511,'2.2 Daten'!B527,x) -> Mönchengladbach, Stadt | B131: =IF($A131<>0,INDEX('2.2 Daten'!C$9:C$859,MATCH('2.2'!$A131,'2.2 Daten'!$B$9:$B$859,0))," ") -> 05116000 | C131: =IF($A131<>0,INDEX('2.2 Daten'!E$9:E$859,MATCH('2.2'!$A131,'2.2 Daten'!$B$9:$B$859,0))) -> 12506 | D131: =IF($A131<>0,INDEX('2.2 Daten'!F$9:F$859,MATCH('2.2'!$A131,'2.2 Daten'!$B$9:$B$859,0))) -> 1988 | E131: =IF($A131<>0,INDEX('2.2 Daten'!G$9:G$859,MATCH('2.2'!$A131,'2.2 Daten'!$B$9:$B$859,0))) -> 2305 | F131: =IF($A131<>0,INDEX('2.2 Daten'!H$9:H$859,MATCH('2.2'!$A131,'2.2 Daten'!$B$9:$B$859,0))) -> 6376 | G131: =IF($A131<>0,INDEX('2.2 Daten'!I$9:I$859,MATCH('2.2'!$A131,'2.2 Daten'!$B$9:$B$859,0))) -> 1837 | H131: =IF($A131<>0,INDEX('2.2 Daten'!K$9:K$859,MATCH('2.2'!$A131,'2.2 Daten'!$B$9:$B$859,0))) -> 5.384680206 | I131: =IF($A131<>0,INDEX('2.2 Daten'!L$9:L$859,MATCH('2.2'!$A131,'2.2 Daten'!$B$9:$B$859,0))) -> 2.421432251 | J131: =IF($A131<>0,INDEX('2.2 Daten'!M$9:M$859,MATCH('2.2'!$A131,'2.2 Daten'!$B$9:$B$859,0))) -> 0.7870572803 | K131: =IF($A131<>0,INDEX('2.2 Daten'!N$9:N$859,MATCH('2.2'!$A131,'2.2 Daten'!$B$9:$B$859,0))) -> 7.069689337 | L131: =IF($A131<>0,INDEX('2.2 Daten'!O$9:O$859,MATCH('2.2'!$A131,'2.2 Daten'!$B$9:$B$859,0))) -> 9.085510689
A132: =CHOOSE('2.2 Daten'!$A$2,'2.2 Daten'!B554,'2.2 Daten'!B103,'2.2 Daten'!B120,'2.2 Daten'!B137,'2.2 Daten'!B140,'2.2 Daten'!B187,'2.2 Daten'!B191,'2.2 Daten'!B246,'2.2 Daten'!B274,'2.2 Daten'!B312,'2.2 Daten'!B358,'2.2 Daten'!B456,'2.2 Daten'!B464,'2.2 Daten'!B467,'2.2 Daten'!B487,'2.2 Daten'!B497,'2.2 Daten'!B512,'2.2 Daten'!B528,x) -> Mülheim an der Ruhr, Stadt | B132: =IF($A132<>0,INDEX('2.2 Daten'!C$9:C$859,MATCH('2.2'!$A132,'2.2 Daten'!$B$9:$B$859,0))," ") -> 05117000 | C132: =IF($A132<>0,INDEX('2.2 Daten'!E$9:E$859,MATCH('2.2'!$A132,'2.2 Daten'!$B$9:$B$859,0))) -> 7450 | D132: =IF($A132<>0,INDEX('2.2 Daten'!F$9:F$859,MATCH('2.2'!$A132,'2.2 Daten'!$B$9:$B$859,0))) -> 1140 | E132: =IF($A132<>0,INDEX('2.2 Daten'!G$9:G$859,MATCH('2.2'!$A132,'2.2 Daten'!$B$9:$B$859,0))) -> 1337 | F132: =IF($A132<>0,INDEX('2.2 Daten'!H$9:H$859,MATCH('2.2'!$A132,'2.2 Daten'!$B$9:$B$859,0))) -> 3851 | G132: =IF($A132<>0,INDEX('2.2 Daten'!I$9:I$859,MATCH('2.2'!$A132,'2.2 Daten'!$B$9:$B$859,0))) -> 1122 | H132: =IF($A132<>0,INDEX('2.2 Daten'!K$9:K$859,MATCH('2.2'!$A132,'2.2 Daten'!$B$9:$B$859,0))) -> -0.04025224742 | I132: =IF($A132<>0,INDEX('2.2 Daten'!L$9:L$859,MATCH('2.2'!$A132,'2.2 Daten'!$B$9:$B$859,0))) -> -5.079100749 | J132: =IF($A132<>0,INDEX('2.2 Daten'!M$9:M$859,MATCH('2.2'!$A132,'2.2 Daten'!$B$9:$B$859,0))) -> -4.363376252 | K132: =IF($A132<>0,INDEX('2.2 Daten'!N$9:N$859,MATCH('2.2'!$A132,'2.2 Daten'!$B$9:$B$859,0))) -> 2.474720596 | L132: =IF($A132<>0,INDEX('2.2 Daten'!O$9:O$859,MATCH('2.2'!$A132,'2.2 Daten'!$B$9:$B$859,0))) -> 2.372262774
A133: =CHOOSE('2.2 Daten'!$A$2,'2.2 Daten'!B555,'2.2 Daten'!B104,'2.2 Daten'!B121,'2.2 Daten'!B138,'2.2 Daten'!B141,'2.2 Daten'!B188,'2.2 Daten'!B192,'2.2 Daten'!B247,'2.2 Daten'!B275,'2.2 Daten'!B313,'2.2 Daten'!B359,'2.2 Daten'!B457,'2.2 Daten'!B465,'2.2 Daten'!B468,'2.2 Daten'!B488,'2.2 Daten'!B498,'2.2 Daten'!B513,'2.2 Daten'!B529,x) -> Oberhausen, Stadt | B133: =IF($A133<>0,INDEX('2.2 Daten'!C$9:C$859,MATCH('2.2'!$A133,'2.2 Daten'!$B$9:$B$859,0))," ") -> 05119000 | C133: =IF($A133<>0,INDEX('2.2 Daten'!E$9:E$859,MATCH('2.2'!$A133,'2.2 Daten'!$B$9:$B$859,0))) -> 9910 | D133: =IF($A133<>0,INDEX('2.2 Daten'!F$9:F$859,MATCH('2.2'!$A133,'2.2 Daten'!$B$9:$B$859,0))) -> 1568 | E133: =IF($A133<>0,INDEX('2.2 Daten'!G$9:G$859,MATCH('2.2'!$A133,'2.2 Daten'!$B$9:$B$859,0))) -> 1914 | F133: =IF($A133<>0,INDEX('2.2 Daten'!H$9:H$859,MATCH('2.2'!$A133,'2.2 Daten'!$B$9:$B$859,0))) -> 5018 | G133: =IF($A133<>0,INDEX('2.2 Daten'!I$9:I$859,MATCH('2.2'!$A133,'2.2 Daten'!$B$9:$B$859,0))) -> 1410 | H133: =IF($A133<>0,INDEX('2.2 Daten'!K$9:K$859,MATCH('2.2'!$A133,'2.2 Daten'!$B$9:$B$859,0))) -> -0.1108759198 | I133: =IF($A133<>0,INDEX('2.2 Daten'!L$9:L$859,MATCH('2.2'!$A133,'2.2 Daten'!$B$9:$B$859,0))) -> -6.220095694 | J133: =IF($A133<>0,INDEX('2.2 Daten'!M$9:M$859,MATCH('2.2'!$A133,'2.2 Daten'!$B$9:$B$859,0))) -> -1.441812564 | K133: =IF($A133<>0,INDEX('2.2 Daten'!N$9:N$859,MATCH('2.2'!$A133,'2.2 Daten'!$B$9:$B$859,0))) -> 0.8035355564 | L133: =IF($A133<>0,INDEX('2.2 Daten'!O$9:O$859,MATCH('2.2'!$A133,'2.2 Daten'!$B$9:$B$859,0))) -> 6.094808126
A134: =CHOOSE('2.2 Daten'!$A$2,'2.2 Daten'!B556,'2.2 Daten'!B105,'2.2 Daten'!B122,'2.2 Daten'!B139,'2.2 Daten'!B142,'2.2 Daten'!B189,'2.2 Daten'!B193,'2.2 Daten'!B248,'2.2 Daten'!B276,'2.2 Daten'!B314,'2.2 Daten'!B360,'2.2 Daten'!B458,'2.2 Daten'!B466,'2.2 Daten'!B469,'2.2 Daten'!B489,'2.2 Daten'!B499,'2.2 Daten'!B514,'2.2 Daten'!B530,x) -> Remscheid, Stadt | B134: =IF($A134<>0,INDEX('2.2 Daten'!C$9:C$859,MATCH('2.2'!$A134,'2.2 Daten'!$B$9:$B$859,0))," ") -> 05120000 | C134: =IF($A134<>0,INDEX('2.2 Daten'!E$9:E$859,MATCH('2.2'!$A134,'2.2 Daten'!$B$9:$B$859,0))) -> 4120 | D134: =IF($A134<>0,INDEX('2.2 Daten'!F$9:F$859,MATCH('2.2'!$A134,'2.2 Daten'!$B$9:$B$859,0))) -> 634 | E134: =IF($A134<>0,INDEX('2.2 Daten'!G$9:G$859,MATCH('2.2'!$A134,'2.2 Daten'!$B$9:$B$859,0))) -> 714 | F134: =IF($A134<>0,INDEX('2.2 Daten'!H$9:H$859,MATCH('2.2'!$A134,'2.2 Daten'!$B$9:$B$859,0))) -> 2175 | G134: =IF($A134<>0,INDEX('2.2 Daten'!I$9:I$859,MATCH('2.2'!$A134,'2.2 Daten'!$B$9:$B$859,0))) -> 597 | H134: =IF($A134<>0,INDEX('2.2 Daten'!K$9:K$859,MATCH('2.2'!$A134,'2.2 Daten'!$B$9:$B$859,0))) -> 4.541994418 | I134: =IF($A134<>0,INDEX('2.2 Daten'!L$9:L$859,MATCH('2.2'!$A134,'2.2 Daten'!$B$9:$B$859,0))) -> -1.857585139 | J134: =IF($A134<>0,INDEX('2.2 Daten'!M$9:M$859,MATCH('2.2'!$A134,'2.2 Daten'!$B$9:$B$859,0))) -> -0.6954102921 | K134: =IF($A134<>0,INDEX('2.2 Daten'!N$9:N$859,MATCH('2.2'!$A134,'2.2 Daten'!$B$9:$B$859,0))) -> 8.532934132 | L134: =IF($A134<>0,INDEX('2.2 Daten'!O$9:O$859,MATCH('2.2'!$A134,'2.2 Daten'!$B$9:$B$859,0))) -> 4.370629371
A135: =CHOOSE('2.2 Daten'!$A$2,'2.2 Daten'!B557,'2.2 Daten'!B106,'2.2 Daten'!B123,'2.2 Daten'!B140,'2.2 Daten'!B143,'2.2 Daten'!B190,'2.2 Daten'!B194,'2.2 Daten'!B249,'2.2 Daten'!B277,'2.2 Daten'!B315,'2.2 Daten'!B361,'2.2 Daten'!B459,'2.2 Daten'!B467,'2.2 Daten'!B470,'2.2 Daten'!B490,'2.2 Daten'!B500,'2.2 Daten'!B515,'2.2 Daten'!B531,x) -> Solingen, Stadt | B135: =IF($A135<>0,INDEX('2.2 Daten'!C$9:C$859,MATCH('2.2'!$A135,'2.2 Daten'!$B$9:$B$859,0))," ") -> 05122000 | C135: =IF($A135<>0,INDEX('2.2 Daten'!E$9:E$859,MATCH('2.2'!$A135,'2.2 Daten'!$B$9:$B$859,0))) -> 5326 | D135: =IF($A135<>0,INDEX('2.2 Daten'!F$9:F$859,MATCH('2.2'!$A135,'2.2 Daten'!$B$9:$B$859,0))) -> 800 | E135: =IF($A135<>0,INDEX('2.2 Daten'!G$9:G$859,MATCH('2.2'!$A135,'2.2 Daten'!$B$9:$B$859,0))) -> 954 | F135: =IF($A135<>0,INDEX('2.2 Daten'!H$9:H$859,MATCH('2.2'!$A135,'2.2 Daten'!$B$9:$B$859,0))) -> 2769 | G135: =IF($A135<>0,INDEX('2.2 Daten'!I$9:I$859,MATCH('2.2'!$A135,'2.2 Daten'!$B$9:$B$859,0))) -> 803 | H135: =IF($A135<>0,INDEX('2.2 Daten'!K$9:K$859,MATCH('2.2'!$A135,'2.2 Daten'!$B$9:$B$859,0))) -> 1.972046716 | I135: =IF($A135<>0,INDEX('2.2 Daten'!L$9:L$859,MATCH('2.2'!$A135,'2.2 Daten'!$B$9:$B$859,0))) -> -4.076738609 | J135: =IF($A135<>0,INDEX('2.2 Daten'!M$9:M$859,MATCH('2.2'!$A135,'2.2 Daten'!$B$9:$B$859,0))) -> -1.242236025 | K135: =IF($A135<>0,INDEX('2.2 Daten'!N$9:N$859,MATCH('2.2'!$A135,'2.2 Daten'!$B$9:$B$859,0))) -> 2.898550725 | L135: =IF($A135<>0,INDEX('2.2 Daten'!O$9:O$859,MATCH('2.2'!$A135,'2.2 Daten'!$B$9:$B$859,0))) -> 9.699453552
A136: =CHOOSE('2.2 Daten'!$A$2,'2.2 Daten'!B558,'2.2 Daten'!B107,'2.2 Daten'!B124,'2.2 Daten'!B141,'2.2 Daten'!B144,'2.2 Daten'!B191,'2.2 Daten'!B195,'2.2 Daten'!B250,'2.2 Daten'!B278,'2.2 Daten'!B316,'2.2 Daten'!B362,'2.2 Daten'!B460,'2.2 Daten'!B468,'2.2 Daten'!B471,'2.2 Daten'!B491,'2.2 Daten'!B501,'2.2 Daten'!B516,'2.2 Daten'!B532,x) -> Wuppertal, Stadt | B136: =IF($A136<>0,INDEX('2.2 Daten'!C$9:C$859,MATCH('2.2'!$A136,'2.2 Daten'!$B$9:$B$859,0))," ") -> 05124000 | C136: =IF($A136<>0,INDEX('2.2 Daten'!E$9:E$859,MATCH('2.2'!$A136,'2.2 Daten'!$B$9:$B$859,0))) -> 17407 | D136: =IF($A136<>0,INDEX('2.2 Daten'!F$9:F$859,MATCH('2.2'!$A136,'2.2 Daten'!$B$9:$B$859,0))) -> 2500 | E136: =IF($A136<>0,INDEX('2.2 Daten'!G$9:G$859,MATCH('2.2'!$A136,'2.2 Daten'!$B$9:$B$859,0))) -> 3196 | F136: =IF($A136<>0,INDEX('2.2 Daten'!H$9:H$859,MATCH('2.2'!$A136,'2.2 Daten'!$B$9:$B$859,0))) -> 9057 | G136: =IF($A136<>0,INDEX('2.2 Daten'!I$9:I$859,MATCH('2.2'!$A136,'2.2 Daten'!$B$9:$B$859,0))) -> 2654 | H136: =IF($A136<>0,INDEX('2.2 Daten'!K$9:K$859,MATCH('2.2'!$A136,'2.2 Daten'!$B$9:$B$859,0))) -> 0.9921095382 | I136: =IF($A136<>0,INDEX('2.2 Daten'!L$9:L$859,MATCH('2.2'!$A136,'2.2 Daten'!$B$9:$B$859,0))) -> -6.261717285 | J136: =IF($A136<>0,INDEX('2.2 Daten'!M$9:M$859,MATCH('2.2'!$A136,'2.2 Daten'!$B$9:$B$859,0))) -> -3.85078219 | K136: =IF($A136<>0,INDEX('2.2 Daten'!N$9:N$859,MATCH('2.2'!$A136,'2.2 Daten'!$B$9:$B$859,0))) -> 3.900424458 | L136: =IF($A136<>0,INDEX('2.2 Daten'!O$9:O$859,MATCH('2.2'!$A136,'2.2 Daten'!$B$9:$B$859,0))) -> 4.984177215
A137: =CHOOSE('2.2 Daten'!$A$2,'2.2 Daten'!B559,'2.2 Daten'!B108,'2.2 Daten'!B125,'2.2 Daten'!B142,'2.2 Daten'!B145,'2.2 Daten'!B192,'2.2 Daten'!B196,'2.2 Daten'!B251,'2.2 Daten'!B279,'2.2 Daten'!B317,'2.2 Daten'!B363,'2.2 Daten'!B461,'2.2 Daten'!B469,'2.2 Daten'!B472,'2.2 Daten'!B492,'2.2 Daten'!B502,'2.2 Daten'!B517,'2.2 Daten'!B533,x) -> Kleve | B137: =IF($A137<>0,INDEX('2.2 Daten'!C$9:C$859,MATCH('2.2'!$A137,'2.2 Daten'!$B$9:$B$859,0))," ") -> 05154000 | C137: =IF($A137<>0,INDEX('2.2 Daten'!E$9:E$859,MATCH('2.2'!$A137,'2.2 Daten'!$B$9:$B$859,0))) -> 5971 | D137: =IF($A137<>0,INDEX('2.2 Daten'!F$9:F$859,MATCH('2.2'!$A137,'2.2 Daten'!$B$9:$B$859,0))) -> 924 | E137: =IF($A137<>0,INDEX('2.2 Daten'!G$9:G$859,MATCH('2.2'!$A137,'2.2 Daten'!$B$9:$B$859,0))) -> 1090 | F137: =IF($A137<>0,INDEX('2.2 Daten'!H$9:H$859,MATCH('2.2'!$A137,'2.2 Daten'!$B$9:$B$859,0))) -> 3070 | G137: =IF($A137<>0,INDEX('2.2 Daten'!I$9:I$859,MATCH('2.2'!$A137,'2.2 Daten'!$B$9:$B$859,0))) -> 887 | H137: =IF($A137<>0,INDEX('2.2 Daten'!K$9:K$859,MATCH('2.2'!$A137,'2.2 Daten'!$B$9:$B$859,0))) -> 3.897685749 | I137: =IF($A137<>0,INDEX('2.2 Daten'!L$9:L$859,MATCH('2.2'!$A137,'2.2 Daten'!$B$9:$B$859,0))) -> -4.347826087 | J137: =IF($A137<>0,INDEX('2.2 Daten'!M$9:M$859,MATCH('2.2'!$A137,'2.2 Daten'!$B$9:$B$859,0))) -> -2.938557435 | K137: =IF($A137<>0,INDEX('2.2 Daten'!N$9:N$859,MATCH('2.2'!$A137,'2.2 Daten'!$B$9:$B$859,0))) -> 6.560222145 | L137: =IF($A137<>0,INDEX('2.2 Daten'!O$9:O$859,MATCH('2.2'!$A137,'2.2 Daten'!$B$9:$B$859,0))) -> 14.15701416
A138: =CHOOSE('2.2 Daten'!$A$2,'2.2 Daten'!B560,'2.2 Daten'!B109,'2.2 Daten'!B126,'2.2 Daten'!B143,'2.2 Daten'!B146,'2.2 Daten'!B193,'2.2 Daten'!B197,'2.2 Daten'!B252,'2.2 Daten'!B280,'2.2 Daten'!B318,'2.2 Daten'!B364,'2.2 Daten'!B462,'2.2 Daten'!B470,'2.2 Daten'!B473,'2.2 Daten'!B493,'2.2 Daten'!B503,'2.2 Daten'!B518,'2.2 Daten'!B534,x) -> Mettmann | B138: =IF($A138<>0,INDEX('2.2 Daten'!C$9:C$859,MATCH('2.2'!$A138,'2.2 Daten'!$B$9:$B$859,0))," ") -> 05158000 | C138: =IF($A138<>0,INDEX('2.2 Daten'!E$9:E$859,MATCH('2.2'!$A138,'2.2 Daten'!$B$9:$B$859,0))) -> 13772 | D138: =IF($A138<>0,INDEX('2.2 Daten'!F$9:F$859,MATCH('2.2'!$A138,'2.2 Daten'!$B$9:$B$859,0))) -> 2107 | E138: =IF($A138<>0,INDEX('2.2 Daten'!G$9:G$859,MATCH('2.2'!$A138,'2.2 Daten'!$B$9:$B$859,0))) -> 2593 | F138: =IF($A138<>0,INDEX('2.2 Daten'!H$9:H$859,MATCH('2.2'!$A138,'2.2 Daten'!$B$9:$B$859,0))) -> 7039 | G138: =IF($A138<>0,INDEX('2.2 Daten'!I$9:I$859,MATCH('2.2'!$A138,'2.2 Daten'!$B$9:$B$859,0))) -> 2033 | H138: =IF($A138<>0,INDEX('2.2 Daten'!K$9:K$859,MATCH('2.2'!$A138,'2.2 Daten'!$B$9:$B$859,0))) -> 1.570912309 | I138: =IF($A138<>0,INDEX('2.2 Daten'!L$9:L$859,MATCH('2.2'!$A138,'2.2 Daten'!$B$9:$B$859,0))) -> -1.449953227 | J138: =IF($A138<>0,INDEX('2.2 Daten'!M$9:M$859,MATCH('2.2'!$A138,'2.2 Daten'!$B$9:$B$859,0))) -> -3.029169783 | K138: =IF($A138<>0,INDEX('2.2 Daten'!N$9:N$859,MATCH('2.2'!$A138,'2.2 Daten'!$B$9:$B$859,0))) -> 1.485005767 | L138: =IF($A138<>0,INDEX('2.2 Daten'!O$9:O$859,MATCH('2.2'!$A138,'2.2 Daten'!$B$9:$B$859,0))) -> 12.25842076
A139: =CHOOSE('2.2 Daten'!$A$2,'2.2 Daten'!B561,'2.2 Daten'!B110,'2.2 Daten'!B127,'2.2 Daten'!B144,'2.2 Daten'!B147,'2.2 Daten'!B194,'2.2 Daten'!B198,'2.2 Daten'!B253,'2.2 Daten'!B281,'2.2 Daten'!B319,'2.2 Daten'!B365,'2.2 Daten'!B463,'2.2 Daten'!B471,'2.2 Daten'!B474,'2.2 Daten'!B494,'2.2 Daten'!B504,'2.2 Daten'!B519,'2.2 Daten'!B535,x) -> Rhein-Kreis Neuss | B139: =IF($A139<>0,INDEX('2.2 Daten'!C$9:C$859,MATCH('2.2'!$A139,'2.2 Daten'!$B$9:$B$859,0))," ") -> 05162000 | C139: =IF($A139<>0,INDEX('2.2 Daten'!E$9:E$859,MATCH('2.2'!$A139,'2.2 Daten'!$B$9:$B$859,0))) -> 11152 | D139: =IF($A139<>0,INDEX('2.2 Daten'!F$9:F$859,MATCH('2.2'!$A139,'2.2 Daten'!$B$9:$B$859,0))) -> 1633 | E139: =IF($A139<>0,INDEX('2.2 Daten'!G$9:G$859,MATCH('2.2'!$A139,'2.2 Daten'!$B$9:$B$859,0))) -> 1941 | F139: =IF($A139<>0,INDEX('2.2 Daten'!H$9:H$859,MATCH('2.2'!$A139,'2.2 Daten'!$B$9:$B$859,0))) -> 5863 | G139: =IF($A139<>0,INDEX('2.2 Daten'!I$9:I$859,MATCH('2.2'!$A139,'2.2 Daten'!$B$9:$B$859,0))) -> 1715 | H139: =IF($A139<>0,INDEX('2.2 Daten'!K$9:K$859,MATCH('2.2'!$A139,'2.2 Daten'!$B$9:$B$859,0))) -> 3.700948484 | I139: =IF($A139<>0,INDEX('2.2 Daten'!L$9:L$859,MATCH('2.2'!$A139,'2.2 Daten'!$B$9:$B$859,0))) -> 1.365611421 | J139: =IF($A139<>0,INDEX('2.2 Daten'!M$9:M$859,MATCH('2.2'!$A139,'2.2 Daten'!$B$9:$B$859,0))) -> -3.095356965 | K139: =IF($A139<>0,INDEX('2.2 Daten'!N$9:N$859,MATCH('2.2'!$A139,'2.2 Daten'!$B$9:$B$859,0))) -> 6.833090379 | L139: =IF($A139<>0,INDEX('2.2 Daten'!O$9:O$859,MATCH('2.2'!$A139,'2.2 Daten'!$B$9:$B$859,0))) -> 3.813559322
A140: =CHOOSE('2.2 Daten'!$A$2,'2.2 Daten'!B562,'2.2 Daten'!B111,'2.2 Daten'!B128,'2.2 Daten'!B145,'2.2 Daten'!B148,'2.2 Daten'!B195,'2.2 Daten'!B199,'2.2 Daten'!B254,'2.2 Daten'!B282,'2.2 Daten'!B320,'2.2 Daten'!B366,'2.2 Daten'!B464,'2.2 Daten'!B472,'2.2 Daten'!B475,'2.2 Daten'!B495,'2.2 Daten'!B505,'2.2 Daten'!B520,'2.2 Daten'!B536,x) -> Viersen | B140: =IF($A140<>0,INDEX('2.2 Daten'!C$9:C$859,MATCH('2.2'!$A140,'2.2 Daten'!$B$9:$B$859,0))," ") -> 05166000 | C140: =IF($A140<>0,INDEX('2.2 Daten'!E$9:E$859,MATCH('2.2'!$A140,'2.2 Daten'!$B$9:$B$859,0))) -> 5756 | D140: =IF($A140<>0,INDEX('2.2 Daten'!F$9:F$859,MATCH('2.2'!$A140,'2.2 Daten'!$B$9:$B$859,0))) -> 850 | E140: =IF($A140<>0,INDEX('2.2 Daten'!G$9:G$859,MATCH('2.2'!$A140,'2.2 Daten'!$B$9:$B$859,0))) -> 1035 | F140: =IF($A140<>0,INDEX('2.2 Daten'!H$9:H$859,MATCH('2.2'!$A140,'2.2 Daten'!$B$9:$B$859,0))) -> 3032 | G140: =IF($A140<>0,INDEX('2.2 Daten'!I$9:I$859,MATCH('2.2'!$A140,'2.2 Daten'!$B$9:$B$859,0))) -> 839 | H140: =IF($A140<>0,INDEX('2.2 Daten'!K$9:K$859,MATCH('2.2'!$A140,'2.2 Daten'!$B$9:$B$859,0))) -> 2.292518216 | I140: =IF($A140<>0,INDEX('2.2 Daten'!L$9:L$859,MATCH('2.2'!$A140,'2.2 Daten'!$B$9:$B$859,0))) -> -5.239687848 | J140: =IF($A140<>0,INDEX('2.2 Daten'!M$9:M$859,MATCH('2.2'!$A140,'2.2 Daten'!$B$9:$B$859,0))) -> 3.293413174 | K140: =IF($A140<>0,INDEX('2.2 Daten'!N$9:N$859,MATCH('2.2'!$A140,'2.2 Daten'!$B$9:$B$859,0))) -> 3.906785469 | L140: =IF($A140<>0,INDEX('2.2 Daten'!O$9:O$859,MATCH('2.2'!$A140,'2.2 Daten'!$B$9:$B$859,0))) -> 3.580246914
A141: =CHOOSE('2.2 Daten'!$A$2,'2.2 Daten'!B563,'2.2 Daten'!B112,'2.2 Daten'!B129,'2.2 Daten'!B146,'2.2 Daten'!B149,'2.2 Daten'!B196,'2.2 Daten'!B200,'2.2 Daten'!B255,'2.2 Daten'!B283,'2.2 Daten'!B321,'2.2 Daten'!B367,'2.2 Daten'!B465,'2.2 Daten'!B473,'2.2 Daten'!B476,'2.2 Daten'!B496,'2.2 Daten'!B506,'2.2 Daten'!B521,'2.2 Daten'!B537,x) -> Wesel | B141: =IF($A141<>0,INDEX('2.2 Daten'!C$9:C$859,MATCH('2.2'!$A141,'2.2 Daten'!$B$9:$B$859,0))," ") -> 05170000 | C141: =IF($A141<>0,INDEX('2.2 Daten'!E$9:E$859,MATCH('2.2'!$A141,'2.2 Daten'!$B$9:$B$859,0))) -> 11604 | D141: =IF($A141<>0,INDEX('2.2 Daten'!F$9:F$859,MATCH('2.2'!$A141,'2.2 Daten'!$B$9:$B$859,0))) -> 1718 | E141: =IF($A141<>0,INDEX('2.2 Daten'!G$9:G$859,MATCH('2.2'!$A141,'2.2 Daten'!$B$9:$B$859,0))) -> 2123 | F141: =IF($A141<>0,INDEX('2.2 Daten'!H$9:H$859,MATCH('2.2'!$A141,'2.2 Daten'!$B$9:$B$859,0))) -> 6061 | G141: =IF($A141<>0,INDEX('2.2 Daten'!I$9:I$859,MATCH('2.2'!$A141,'2.2 Daten'!$B$9:$B$859,0))) -> 1702 | H141: =IF($A141<>0,INDEX('2.2 Daten'!K$9:K$859,MATCH('2.2'!$A141,'2.2 Daten'!$B$9:$B$859,0))) -> 2.508833922 | I141: =IF($A141<>0,INDEX('2.2 Daten'!L$9:L$859,MATCH('2.2'!$A141,'2.2 Daten'!$B$9:$B$859,0))) -> -3.807390817 | J141: =IF($A141<>0,INDEX('2.2 Daten'!M$9:M$859,MATCH('2.2'!$A141,'2.2 Daten'!$B$9:$B$859,0))) -> 2.165543792 | K141: =IF($A141<>0,INDEX('2.2 Daten'!N$9:N$859,MATCH('2.2'!$A141,'2.2 Daten'!$B$9:$B$859,0))) -> 5.043327556 | L141: =IF($A141<>0,INDEX('2.2 Daten'!O$9:O$859,MATCH('2.2'!$A141,'2.2 Daten'!$B$9:$B$859,0))) -> 0.9489916963
A142: =CHOOSE('2.2 Daten'!$A$2,'2.2 Daten'!B564,'2.2 Daten'!B113,'2.2 Daten'!B130,'2.2 Daten'!B147,'2.2 Daten'!B150,'2.2 Daten'!B197,'2.2 Daten'!B201,'2.2 Daten'!B256,'2.2 Daten'!B284,'2.2 Daten'!B322,'2.2 Daten'!B368,'2.2 Daten'!B466,'2.2 Daten'!B474,'2.2 Daten'!B477,'2.2 Daten'!B497,'2.2 Daten'!B507,'2.2 Daten'!B522,'2.2 Daten'!B538,x) -> Bonn, Stadt | B142: =IF($A142<>0,INDEX('2.2 Daten'!C$9:C$859,MATCH('2.2'!$A142,'2.2 Daten'!$B$9:$B$859,0))," ") -> 05314000 | C142: =IF($A142<>0,INDEX('2.2 Daten'!E$9:E$859,MATCH('2.2'!$A142,'2.2 Daten'!$B$9:$B$859,0))) -> 10614 | D142: =IF($A142<>0,INDEX('2.2 Daten'!F$9:F$859,MATCH('2.2'!$A142,'2.2 Daten'!$B$9:$B$859,0))) -> 1411 | E142: =IF($A142<>0,INDEX('2.2 Daten'!G$9:G$859,MATCH('2.2'!$A142,'2.2 Daten'!$B$9:$B$859,0))) -> 1759 | F142: =IF($A142<>0,INDEX('2.2 Daten'!H$9:H$859,MATCH('2.2'!$A142,'2.2 Daten'!$B$9:$B$859,0))) -> 5642 | G142: =IF($A142<>0,INDEX('2.2 Daten'!I$9:I$859,MATCH('2.2'!$A142,'2.2 Daten'!$B$9:$B$859,0))) -> 1802 | H142: =IF($A142<>0,INDEX('2.2 Daten'!K$9:K$859,MATCH('2.2'!$A142,'2.2 Daten'!$B$9:$B$859,0))) -> -7.301310044 | I142: =IF($A142<>0,INDEX('2.2 Daten'!L$9:L$859,MATCH('2.2'!$A142,'2.2 Daten'!$B$9:$B$859,0))) -> -11.70212766 | J142: =IF($A142<>0,INDEX('2.2 Daten'!M$9:M$859,MATCH('2.2'!$A142,'2.2 Daten'!$B$9:$B$859,0))) -> -10.5744789 | K142: =IF($A142<>0,INDEX('2.2 Daten'!N$9:N$859,MATCH('2.2'!$A142,'2.2 Daten'!$B$9:$B$859,0))) -> -6.294635443 | L142: =IF($A142<>0,INDEX('2.2 Daten'!O$9:O$859,MATCH('2.2'!$A142,'2.2 Daten'!$B$9:$B$859,0))) -> -3.326180258
A143: =CHOOSE('2.2 Daten'!$A$2,'2.2 Daten'!B565,'2.2 Daten'!B114,'2.2 Daten'!B131,'2.2 Daten'!B148,'2.2 Daten'!B151,'2.2 Daten'!B198,'2.2 Daten'!B202,'2.2 Daten'!B257,'2.2 Daten'!B285,'2.2 Daten'!B323,'2.2 Daten'!B369,'2.2 Daten'!B467,'2.2 Daten'!B475,'2.2 Daten'!B478,'2.2 Daten'!B498,'2.2 Daten'!B508,'2.2 Daten'!B523,'2.2 Daten'!B539,x) -> Köln, Stadt | B143: =IF($A143<>0,INDEX('2.2 Daten'!C$9:C$859,MATCH('2.2'!$A143,'2.2 Daten'!$B$9:$B$859,0))," ") -> 05315000 | C143: =IF($A143<>0,INDEX('2.2 Daten'!E$9:E$859,MATCH('2.2'!$A143,'2.2 Daten'!$B$9:$B$859,0))) -> 37723 | D143: =IF($A143<>0,INDEX('2.2 Daten'!F$9:F$859,MATCH('2.2'!$A143,'2.2 Daten'!$B$9:$B$859,0))) -> 5611 | E143: =IF($A143<>0,INDEX('2.2 Daten'!G$9:G$859,MATCH('2.2'!$A143,'2.2 Daten'!$B$9:$B$859,0))) -> 6496 | F143: =IF($A143<>0,INDEX('2.2 Daten'!H$9:H$859,MATCH('2.2'!$A143,'2.2 Daten'!$B$9:$B$859,0))) -> 19701 | G143: =IF($A143<>0,INDEX('2.2 Daten'!I$9:I$859,MATCH('2.2'!$A143,'2.2 Daten'!$B$9:$B$859,0))) -> 5915 | H143: =IF($A143<>0,INDEX('2.2 Daten'!K$9:K$859,MATCH('2.2'!$A143,'2.2 Daten'!$B$9:$B$859,0))) -> 0.2471432368 | I143: =IF($A143<>0,INDEX('2.2 Daten'!L$9:L$859,MATCH('2.2'!$A143,'2.2 Daten'!$B$9:$B$859,0))) -> -0.7429683354 | J143: =IF($A143<>0,INDEX('2.2 Daten'!M$9:M$859,MATCH('2.2'!$A143,'2.2 Daten'!$B$9:$B$859,0))) -> -4.79261322 | K143: =IF($A143<>0,INDEX('2.2 Daten'!N$9:N$859,MATCH('2.2'!$A143,'2.2 Daten'!$B$9:$B$859,0))) -> 1.703577513 | L143: =IF($A143<>0,INDEX('2.2 Daten'!O$9:O$859,MATCH('2.2'!$A143,'2.2 Daten'!$B$9:$B$859,0))) -> 2.282552308
A144: =CHOOSE('2.2 Daten'!$A$2,'2.2 Daten'!B566,'2.2 Daten'!B115,'2.2 Daten'!B132,'2.2 Daten'!B149,'2.2 Daten'!B152,'2.2 Daten'!B199,'2.2 Daten'!B203,'2.2 Daten'!B258,'2.2 Daten'!B286,'2.2 Daten'!B324,'2.2 Daten'!B370,'2.2 Daten'!B468,'2.2 Daten'!B476,'2.2 Daten'!B479,'2.2 Daten'!B499,'2.2 Daten'!B509,'2.2 Daten'!B524,'2.2 Daten'!B540,x) -> Leverkusen, Stadt | B144: =IF($A144<>0,INDEX('2.2 Daten'!C$9:C$859,MATCH('2.2'!$A144,'2.2 Daten'!$B$9:$B$859,0))," ") -> 05316000 | C144: =IF($A144<>0,INDEX('2.2 Daten'!E$9:E$859,MATCH('2.2'!$A144,'2.2 Daten'!$B$9:$B$859,0))) -> 6103 | D144: =IF($A144<>0,INDEX('2.2 Daten'!F$9:F$859,MATCH('2.2'!$A144,'2.2 Daten'!$B$9:$B$859,0))) -> 953 | E144: =IF($A144<>0,INDEX('2.2 Daten'!G$9:G$859,MATCH('2.2'!$A144,'2.2 Daten'!$B$9:$B$859,0))) -> 1125 | F144: =IF($A144<>0,INDEX('2.2 Daten'!H$9:H$859,MATCH('2.2'!$A144,'2.2 Daten'!$B$9:$B$859,0))) -> 3116 | G144: =IF($A144<>0,INDEX('2.2 Daten'!I$9:I$859,MATCH('2.2'!$A144,'2.2 Daten'!$B$9:$B$859,0))) -> 909 | H144: =IF($A144<>0,INDEX('2.2 Daten'!K$9:K$859,MATCH('2.2'!$A144,'2.2 Daten'!$B$9:$B$859,0))) -> -1.341739412 | I144: =IF($A144<>0,INDEX('2.2 Daten'!L$9:L$859,MATCH('2.2'!$A144,'2.2 Daten'!$B$9:$B$859,0))) -> -6.476938175 | J144: =IF($A144<>0,INDEX('2.2 Daten'!M$9:M$859,MATCH('2.2'!$A144,'2.2 Daten'!$B$9:$B$859,0))) -> -2.428447528 | K144: =IF($A144<>0,INDEX('2.2 Daten'!N$9:N$859,MATCH('2.2'!$A144,'2.2 Daten'!$B$9:$B$859,0))) -> -0.2560819462 | L144: =IF($A144<>0,INDEX('2.2 Daten'!O$9:O$859,MATCH('2.2'!$A144,'2.2 Daten'!$B$9:$B$859,0))) -> 2.134831461
A145: =CHOOSE('2.2 Daten'!$A$2,'2.2 Daten'!B567,'2.2 Daten'!B116,'2.2 Daten'!B133,'2.2 Daten'!B150,'2.2 Daten'!B153,'2.2 Daten'!B200,'2.2 Daten'!B204,'2.2 Daten'!B259,'2.2 Daten'!B287,'2.2 Daten'!B325,'2.2 Daten'!B371,'2.2 Daten'!B469,'2.2 Daten'!B477,'2.2 Daten'!B480,'2.2 Daten'!B500,'2.2 Daten'!B510,'2.2 Daten'!B525,'2.2 Daten'!B541,x) -> Städteregion Aachen | B145: =IF($A145<>0,INDEX('2.2 Daten'!C$9:C$859,MATCH('2.2'!$A145,'2.2 Daten'!$B$9:$B$859,0))," ") -> 05334000 | C145: =IF($A145<>0,INDEX('2.2 Daten'!E$9:E$859,MATCH('2.2'!$A145,'2.2 Daten'!$B$9:$B$859,0))) -> 16372 | D145: =IF($A145<>0,INDEX('2.2 Daten'!F$9:F$859,MATCH('2.2'!$A145,'2.2 Daten'!$B$9:$B$859,0))) -> 2504 | E145: =IF($A145<>0,INDEX('2.2 Daten'!G$9:G$859,MATCH('2.2'!$A145,'2.2 Daten'!$B$9:$B$859,0))) -> 2932 | F145: =IF($A145<>0,INDEX('2.2 Daten'!H$9:H$859,MATCH('2.2'!$A145,'2.2 Daten'!$B$9:$B$859,0))) -> 8502 | G145: =IF($A145<>0,INDEX('2.2 Daten'!I$9:I$859,MATCH('2.2'!$A145,'2.2 Daten'!$B$9:$B$859,0))) -> 2434 | H145: =IF($A145<>0,INDEX('2.2 Daten'!K$9:K$859,MATCH('2.2'!$A145,'2.2 Daten'!$B$9:$B$859,0))) -> 5.646254114 | I145: =IF($A145<>0,INDEX('2.2 Daten'!L$9:L$859,MATCH('2.2'!$A145,'2.2 Daten'!$B$9:$B$859,0))) -> -0.6743355811 | J145: =IF($A145<>0,INDEX('2.2 Daten'!M$9:M$859,MATCH('2.2'!$A145,'2.2 Daten'!$B$9:$B$859,0))) -> 2.195887069 | K145: =IF($A145<>0,INDEX('2.2 Daten'!N$9:N$859,MATCH('2.2'!$A145,'2.2 Daten'!$B$9:$B$859,0))) -> 8.26435757 | L145: =IF($A145<>0,INDEX('2.2 Daten'!O$9:O$859,MATCH('2.2'!$A145,'2.2 Daten'!$B$9:$B$859,0))) -> 7.985803017
A146: =CHOOSE('2.2 Daten'!$A$2,'2.2 Daten'!B568,'2.2 Daten'!B117,'2.2 Daten'!B134,'2.2 Daten'!B151,'2.2 Daten'!B154,'2.2 Daten'!B201,'2.2 Daten'!B205,'2.2 Daten'!B260,'2.2 Daten'!B288,'2.2 Daten'!B326,'2.2 Daten'!B372,'2.2 Daten'!B470,'2.2 Daten'!B478,'2.2 Daten'!B481,'2.2 Daten'!B501,'2.2 Daten'!B511,'2.2 Daten'!B526,'2.2 Daten'!B542,x) -> Düren | B146: =IF($A146<>0,INDEX('2.2 Daten'!C$9:C$859,MATCH('2.2'!$A146,'2.2 Daten'!$B$9:$B$859,0))," ") -> 05358000 | C146: =IF($A146<>0,INDEX('2.2 Daten'!E$9:E$859,MATCH('2.2'!$A146,'2.2 Daten'!$B$9:$B$859,0))) -> 7816 | D146: =IF($A146<>0,INDEX('2.2 Daten'!F$9:F$859,MATCH('2.2'!$A146,'2.2 Daten'!$B$9:$B$859,0))) -> 1275 | E146: =IF($A146<>0,INDEX('2.2 Daten'!G$9:G$859,MATCH('2.2'!$A146,'2.2 Daten'!$B$9:$B$859,0))) -> 1360 | F146: =IF($A146<>0,INDEX('2.2 Daten'!H$9:H$859,MATCH('2.2'!$A146,'2.2 Daten'!$B$9:$B$859,0))) -> 3994 | G146: =IF($A146<>0,INDEX('2.2 Daten'!I$9:I$859,MATCH('2.2'!$A146,'2.2 Daten'!$B$9:$B$859,0))) -> 1187 | H146: =IF($A146<>0,INDEX('2.2 Daten'!K$9:K$859,MATCH('2.2'!$A146,'2.2 Daten'!$B$9:$B$859,0))) -> 1.453790239 | I146: =IF($A146<>0,INDEX('2.2 Daten'!L$9:L$859,MATCH('2.2'!$A146,'2.2 Daten'!$B$9:$B$859,0))) -> -2.298850575 | J146: =IF($A146<>0,INDEX('2.2 Daten'!M$9:M$859,MATCH('2.2'!$A146,'2.2 Daten'!$B$9:$B$859,0))) -> 1.19047619 | K146: =IF($A146<>0,INDEX('2.2 Daten'!N$9:N$859,MATCH('2.2'!$A146,'2.2 Daten'!$B$9:$B$859,0))) -> 0.9095502779 | L146: =IF($A146<>0,INDEX('2.2 Daten'!O$9:O$859,MATCH('2.2'!$A146,'2.2 Daten'!$B$9:$B$859,0))) -> 8.204193254
A147: =CHOOSE('2.2 Daten'!$A$2,'2.2 Daten'!B569,'2.2 Daten'!B118,'2.2 Daten'!B135,'2.2 Daten'!B152,'2.2 Daten'!B155,'2.2 Daten'!B202,'2.2 Daten'!B206,'2.2 Daten'!B261,'2.2 Daten'!B289,'2.2 Daten'!B327,'2.2 Daten'!B373,'2.2 Daten'!B471,'2.2 Daten'!B479,'2.2 Daten'!B482,'2.2 Daten'!B502,'2.2 Daten'!B512,'2.2 Daten'!B527,'2.2 Daten'!B543,x) -> Rhein-Erft-Kreis | B147: =IF($A147<>0,INDEX('2.2 Daten'!C$9:C$859,MATCH('2.2'!$A147,'2.2 Daten'!$B$9:$B$859,0))," ") -> 05362000 | C147: =IF($A147<>0,INDEX('2.2 Daten'!E$9:E$859,MATCH('2.2'!$A147,'2.2 Daten'!$B$9:$B$859,0))) -> 11903 | D147: =IF($A147<>0,INDEX('2.2 Daten'!F$9:F$859,MATCH('2.2'!$A147,'2.2 Daten'!$B$9:$B$859,0))) -> 1769 | E147: =IF($A147<>0,INDEX('2.2 Daten'!G$9:G$859,MATCH('2.2'!$A147,'2.2 Daten'!$B$9:$B$859,0))) -> 2159 | F147: =IF($A147<>0,INDEX('2.2 Daten'!H$9:H$859,MATCH('2.2'!$A147,'2.2 Daten'!$B$9:$B$859,0))) -> 6148 | G147: =IF($A147<>0,INDEX('2.2 Daten'!I$9:I$859,MATCH('2.2'!$A147,'2.2 Daten'!$B$9:$B$859,0))) -> 1827 | H147: =IF($A147<>0,INDEX('2.2 Daten'!K$9:K$859,MATCH('2.2'!$A147,'2.2 Daten'!$B$9:$B$859,0))) -> -1.375424642 | I147: =IF($A147<>0,INDEX('2.2 Daten'!L$9:L$859,MATCH('2.2'!$A147,'2.2 Daten'!$B$9:$B$859,0))) -> -4.274891775 | J147: =IF($A147<>0,INDEX('2.2 Daten'!M$9:M$859,MATCH('2.2'!$A147,'2.2 Daten'!$B$9:$B$859,0))) -> -4.637809187 | K147: =IF($A147<>0,INDEX('2.2 Daten'!N$9:N$859,MATCH('2.2'!$A147,'2.2 Daten'!$B$9:$B$859,0))) -> 0.4575163399 | L147: =IF($A147<>0,INDEX('2.2 Daten'!O$9:O$859,MATCH('2.2'!$A147,'2.2 Daten'!$B$9:$B$859,0))) -> -0.5443658138
A148: =CHOOSE('2.2 Daten'!$A$2,'2.2 Daten'!B570,'2.2 Daten'!B119,'2.2 Daten'!B136,'2.2 Daten'!B153,'2.2 Daten'!B156,'2.2 Daten'!B203,'2.2 Daten'!B207,'2.2 Daten'!B262,'2.2 Daten'!B290,'2.2 Daten'!B328,'2.2 Daten'!B374,'2.2 Daten'!B472,'2.2 Daten'!B480,'2.2 Daten'!B483,'2.2 Daten'!B503,'2.2 Daten'!B513,'2.2 Daten'!B528,'2.2 Daten'!B544,x) -> Euskirchen | B148: =IF($A148<>0,INDEX('2.2 Daten'!C$9:C$859,MATCH('2.2'!$A148,'2.2 Daten'!$B$9:$B$859,0))," ") -> 05366000 | C148: =IF($A148<>0,INDEX('2.2 Daten'!E$9:E$859,MATCH('2.2'!$A148,'2.2 Daten'!$B$9:$B$859,0))) -> 3900 | D148: =IF($A148<>0,INDEX('2.2 Daten'!F$9:F$859,MATCH('2.2'!$A148,'2.2 Daten'!$B$9:$B$859,0))) -> 586 | E148: =IF($A148<>0,INDEX('2.2 Daten'!G$9:G$859,MATCH('2.2'!$A148,'2.2 Daten'!$B$9:$B$859,0))) -> 675 | F148: =IF($A148<>0,INDEX('2.2 Daten'!H$9:H$859,MATCH('2.2'!$A148,'2.2 Daten'!$B$9:$B$859,0))) -> 2056 | G148: =IF($A148<>0,INDEX('2.2 Daten'!I$9:I$859,MATCH('2.2'!$A148,'2.2 Daten'!$B$9:$B$859,0))) -> 583 | H148: =IF($A148<>0,INDEX('2.2 Daten'!K$9:K$859,MATCH('2.2'!$A148,'2.2 Daten'!$B$9:$B$859,0))) -> 0.9839461419 | I148: =IF($A148<>0,INDEX('2.2 Daten'!L$9:L$859,MATCH('2.2'!$A148,'2.2 Daten'!$B$9:$B$859,0))) -> 1.736111111 | J148: =IF($A148<>0,INDEX('2.2 Daten'!M$9:M$859,MATCH('2.2'!$A148,'2.2 Daten'!$B$9:$B$859,0))) -> -4.929577465 | K148: =IF($A148<>0,INDEX('2.2 Daten'!N$9:N$859,MATCH('2.2'!$A148,'2.2 Daten'!$B$9:$B$859,0))) -> 1.131333005 | L148: =IF($A148<>0,INDEX('2.2 Daten'!O$9:O$859,MATCH('2.2'!$A148,'2.2 Daten'!$B$9:$B$859,0))) -> 7.366482505
A149: =CHOOSE('2.2 Daten'!$A$2,'2.2 Daten'!B571,'2.2 Daten'!B120,'2.2 Daten'!B137,'2.2 Daten'!B154,'2.2 Daten'!B157,'2.2 Daten'!B204,'2.2 Daten'!B208,'2.2 Daten'!B263,'2.2 Daten'!B291,'2.2 Daten'!B329,'2.2 Daten'!B375,'2.2 Daten'!B473,'2.2 Daten'!B481,'2.2 Daten'!B484,'2.2 Daten'!B504,'2.2 Daten'!B514,'2.2 Daten'!B529,'2.2 Daten'!B545,x) -> Heinsberg | B149: =IF($A149<>0,INDEX('2.2 Daten'!C$9:C$859,MATCH('2.2'!$A149,'2.2 Daten'!$B$9:$B$859,0))," ") -> 05370000 | C149: =IF($A149<>0,INDEX('2.2 Daten'!E$9:E$859,MATCH('2.2'!$A149,'2.2 Daten'!$B$9:$B$859,0))) -> 5783 | D149: =IF($A149<>0,INDEX('2.2 Daten'!F$9:F$859,MATCH('2.2'!$A149,'2.2 Daten'!$B$9:$B$859,0))) -> 894 | E149: =IF($A149<>0,INDEX('2.2 Daten'!G$9:G$859,MATCH('2.2'!$A149,'2.2 Daten'!$B$9:$B$859,0))) -> 1044 | F149: =IF($A149<>0,INDEX('2.2 Daten'!H$9:H$859,MATCH('2.2'!$A149,'2.2 Daten'!$B$9:$B$859,0))) -> 3010 | G149: =IF($A149<>0,INDEX('2.2 Daten'!I$9:I$859,MATCH('2.2'!$A149,'2.2 Daten'!$B$9:$B$859,0))) -> 835 | H149: =IF($A149<>0,INDEX('2.2 Daten'!K$9:K$859,MATCH('2.2'!$A149,'2.2 Daten'!$B$9:$B$859,0))) -> 1.759633996 | I149: =IF($A149<>0,INDEX('2.2 Daten'!L$9:L$859,MATCH('2.2'!$A149,'2.2 Daten'!$B$9:$B$859,0))) -> -4.589114194 | J149: =IF($A149<>0,INDEX('2.2 Daten'!M$9:M$859,MATCH('2.2'!$A149,'2.2 Daten'!$B$9:$B$859,0))) -> 1.457725948 | K149: =IF($A149<>0,INDEX('2.2 Daten'!N$9:N$859,MATCH('2.2'!$A149,'2.2 Daten'!$B$9:$B$859,0))) -> 2.033898305 | L149: =IF($A149<>0,INDEX('2.2 Daten'!O$9:O$859,MATCH('2.2'!$A149,'2.2 Daten'!$B$9:$B$859,0))) -> 8.865710561
A150: =CHOOSE('2.2 Daten'!$A$2,'2.2 Daten'!B572,'2.2 Daten'!B121,'2.2 Daten'!B138,'2.2 Daten'!B155,'2.2 Daten'!B158,'2.2 Daten'!B205,'2.2 Daten'!B209,'2.2 Daten'!B264,'2.2 Daten'!B292,'2.2 Daten'!B330,'2.2 Daten'!B376,'2.2 Daten'!B474,'2.2 Daten'!B482,'2.2 Daten'!B485,'2.2 Daten'!B505,'2.2 Daten'!B515,'2.2 Daten'!B530,'2.2 Daten'!B546,x) -> Oberbergischer Kreis | B150: =IF($A150<>0,INDEX('2.2 Daten'!C$9:C$859,MATCH('2.2'!$A150,'2.2 Daten'!$B$9:$B$859,0))," ") -> 05374000 | C150: =IF($A150<>0,INDEX('2.2 Daten'!E$9:E$859,MATCH('2.2'!$A150,'2.2 Daten'!$B$9:$B$859,0))) -> 5335 | D150: =IF($A150<>0,INDEX('2.2 Daten'!F$9:F$859,MATCH('2.2'!$A150,'2.2 Daten'!$B$9:$B$859,0))) -> 780 | E150: =IF($A150<>0,INDEX('2.2 Daten'!G$9:G$859,MATCH('2.2'!$A150,'2.2 Daten'!$B$9:$B$859,0))) -> 976 | F150: =IF($A150<>0,INDEX('2.2 Daten'!H$9:H$859,MATCH('2.2'!$A150,'2.2 Daten'!$B$9:$B$859,0))) -> 2832 | G150: =IF($A150<>0,INDEX('2.2 Daten'!I$9:I$859,MATCH('2.2'!$A150,'2.2 Daten'!$B$9:$B$859,0))) -> 747 | H150: =IF($A150<>0,INDEX('2.2 Daten'!K$9:K$859,MATCH('2.2'!$A150,'2.2 Daten'!$B$9:$B$859,0))) -> -0.6702662446 | I150: =IF($A150<>0,INDEX('2.2 Daten'!L$9:L$859,MATCH('2.2'!$A150,'2.2 Daten'!$B$9:$B$859,0))) -> -11.16173121 | J150: =IF($A150<>0,INDEX('2.2 Daten'!M$9:M$859,MATCH('2.2'!$A150,'2.2 Daten'!$B$9:$B$859,0))) -> -7.575757576 | K150: =IF($A150<>0,INDEX('2.2 Daten'!N$9:N$859,MATCH('2.2'!$A150,'2.2 Daten'!$B$9:$B$859,0))) -> 5.553484905 | L150: =IF($A150<>0,INDEX('2.2 Daten'!O$9:O$859,MATCH('2.2'!$A150,'2.2 Daten'!$B$9:$B$859,0))) -> -0.9283819629
A151: =CHOOSE('2.2 Daten'!$A$2,'2.2 Daten'!B573,'2.2 Daten'!B122,'2.2 Daten'!B139,'2.2 Daten'!B156,'2.2 Daten'!B159,'2.2 Daten'!B206,'2.2 Daten'!B210,'2.2 Daten'!B265,'2.2 Daten'!B293,'2.2 Daten'!B331,'2.2 Daten'!B377,'2.2 Daten'!B475,'2.2 Daten'!B483,'2.2 Daten'!B486,'2.2 Daten'!B506,'2.2 Daten'!B516,'2.2 Daten'!B531,'2.2 Daten'!B547,x) -> Rheinisch-Bergischer Kreis | B151: =IF($A151<>0,INDEX('2.2 Daten'!C$9:C$859,MATCH('2.2'!$A151,'2.2 Daten'!$B$9:$B$859,0))," ") -> 05378000 | C151: =IF($A151<>0,INDEX('2.2 Daten'!E$9:E$859,MATCH('2.2'!$A151,'2.2 Daten'!$B$9:$B$859,0))) -> 5961 | D151: =IF($A151<>0,INDEX('2.2 Daten'!F$9:F$859,MATCH('2.2'!$A151,'2.2 Daten'!$B$9:$B$859,0))) -> 851 | E151: =IF($A151<>0,INDEX('2.2 Daten'!G$9:G$859,MATCH('2.2'!$A151,'2.2 Daten'!$B$9:$B$859,0))) -> 1041 | F151: =IF($A151<>0,INDEX('2.2 Daten'!H$9:H$859,MATCH('2.2'!$A151,'2.2 Daten'!$B$9:$B$859,0))) -> 3120 | G151: =IF($A151<>0,INDEX('2.2 Daten'!I$9:I$859,MATCH('2.2'!$A151,'2.2 Daten'!$B$9:$B$859,0))) -> 949 | H151: =IF($A151<>0,INDEX('2.2 Daten'!K$9:K$859,MATCH('2.2'!$A151,'2.2 Daten'!$B$9:$B$859,0))) -> -4.102316602 | I151: =IF($A151<>0,INDEX('2.2 Daten'!L$9:L$859,MATCH('2.2'!$A151,'2.2 Daten'!$B$9:$B$859,0))) -> -10.89005236 | J151: =IF($A151<>0,INDEX('2.2 Daten'!M$9:M$859,MATCH('2.2'!$A151,'2.2 Daten'!$B$9:$B$859,0))) -> -6.046931408 | K151: =IF($A151<>0,INDEX('2.2 Daten'!N$9:N$859,MATCH('2.2'!$A151,'2.2 Daten'!$B$9:$B$859,0))) -> -3.345724907 | L151: =IF($A151<>0,INDEX('2.2 Daten'!O$9:O$859,MATCH('2.2'!$A151,'2.2 Daten'!$B$9:$B$859,0))) -> 2.594594595
A152: =CHOOSE('2.2 Daten'!$A$2,'2.2 Daten'!B574,'2.2 Daten'!B123,'2.2 Daten'!B140,'2.2 Daten'!B157,'2.2 Daten'!B160,'2.2 Daten'!B207,'2.2 Daten'!B211,'2.2 Daten'!B266,'2.2 Daten'!B294,'2.2 Daten'!B332,'2.2 Daten'!B378,'2.2 Daten'!B476,'2.2 Daten'!B484,'2.2 Daten'!B487,'2.2 Daten'!B507,'2.2 Daten'!B517,'2.2 Daten'!B532,'2.2 Daten'!B548,x) -> Rhein-Sieg-Kreis | B152: =IF($A152<>0,INDEX('2.2 Daten'!C$9:C$859,MATCH('2.2'!$A152,'2.2 Daten'!$B$9:$B$859,0))," ") -> 05382000 | C152: =IF($A152<>0,INDEX('2.2 Daten'!E$9:E$859,MATCH('2.2'!$A152,'2.2 Daten'!$B$9:$B$859,0))) -> 12433 | D152: =IF($A152<>0,INDEX('2.2 Daten'!F$9:F$859,MATCH('2.2'!$A152,'2.2 Daten'!$B$9:$B$859,0))) -> 1796 | E152: =IF($A152<>0,INDEX('2.2 Daten'!G$9:G$859,MATCH('2.2'!$A152,'2.2 Daten'!$B$9:$B$859,0))) -> 2208 | F152: =IF($A152<>0,INDEX('2.2 Daten'!H$9:H$859,MATCH('2.2'!$A152,'2.2 Daten'!$B$9:$B$859,0))) -> 6543 | G152: =IF($A152<>0,INDEX('2.2 Daten'!I$9:I$859,MATCH('2.2'!$A152,'2.2 Daten'!$B$9:$B$859,0))) -> 1886 | H152: =IF($A152<>0,INDEX('2.2 Daten'!K$9:K$859,MATCH('2.2'!$A152,'2.2 Daten'!$B$9:$B$859,0))) -> -0.5519116941 | I152: =IF($A152<>0,INDEX('2.2 Daten'!L$9:L$859,MATCH('2.2'!$A152,'2.2 Daten'!$B$9:$B$859,0))) -> -6.555671176 | J152: =IF($A152<>0,INDEX('2.2 Daten'!M$9:M$859,MATCH('2.2'!$A152,'2.2 Daten'!$B$9:$B$859,0))) -> -2.257636122 | K152: =IF($A152<>0,INDEX('2.2 Daten'!N$9:N$859,MATCH('2.2'!$A152,'2.2 Daten'!$B$9:$B$859,0))) -> 0.5377996312 | L152: =IF($A152<>0,INDEX('2.2 Daten'!O$9:O$859,MATCH('2.2'!$A152,'2.2 Daten'!$B$9:$B$859,0))) -> 4.026475455
A153: =CHOOSE('2.2 Daten'!$A$2,'2.2 Daten'!B575,'2.2 Daten'!B124,'2.2 Daten'!B141,'2.2 Daten'!B158,'2.2 Daten'!B161,'2.2 Daten'!B208,'2.2 Daten'!B212,'2.2 Daten'!B267,'2.2 Daten'!B295,'2.2 Daten'!B333,'2.2 Daten'!B379,'2.2 Daten'!B477,'2.2 Daten'!B485,'2.2 Daten'!B488,'2.2 Daten'!B508,'2.2 Daten'!B518,'2.2 Daten'!B533,'2.2 Daten'!B549,x) -> Bottrop, Stadt | B153: =IF($A153<>0,INDEX('2.2 Daten'!C$9:C$859,MATCH('2.2'!$A153,'2.2 Daten'!$B$9:$B$859,0))," ") -> 05512000 | C153: =IF($A153<>0,INDEX('2.2 Daten'!E$9:E$859,MATCH('2.2'!$A153,'2.2 Daten'!$B$9:$B$859,0))) -> 3766 | D153: =IF($A153<>0,INDEX('2.2 Daten'!F$9:F$859,MATCH('2.2'!$A153,'2.2 Daten'!$B$9:$B$859,0))) -> 620 | E153: =IF($A153<>0,INDEX('2.2 Daten'!G$9:G$859,MATCH('2.2'!$A153,'2.2 Daten'!$B$9:$B$859,0))) -> 689 | F153: =IF($A153<>0,INDEX('2.2 Daten'!H$9:H$859,MATCH('2.2'!$A153,'2.2 Daten'!$B$9:$B$859,0))) -> 1920 | G153: =IF($A153<>0,INDEX('2.2 Daten'!I$9:I$859,MATCH('2.2'!$A153,'2.2 Daten'!$B$9:$B$859,0))) -> 537 | H153: =IF($A153<>0,INDEX('2.2 Daten'!K$9:K$859,MATCH('2.2'!$A153,'2.2 Daten'!$B$9:$B$859,0))) -> 3.575357536 | I153: =IF($A153<>0,INDEX('2.2 Daten'!L$9:L$859,MATCH('2.2'!$A153,'2.2 Daten'!$B$9:$B$859,0))) -> -3.125 | J153: =IF($A153<>0,INDEX('2.2 Daten'!M$9:M$859,MATCH('2.2'!$A153,'2.2 Daten'!$B$9:$B$859,0))) -> 4.870624049 | K153: =IF($A153<>0,INDEX('2.2 Daten'!N$9:N$859,MATCH('2.2'!$A153,'2.2 Daten'!$B$9:$B$859,0))) -> 5.263157895 | L153: =IF($A153<>0,INDEX('2.2 Daten'!O$9:O$859,MATCH('2.2'!$A153,'2.2 Daten'!$B$9:$B$859,0))) -> 4.27184466
A154: =CHOOSE('2.2 Daten'!$A$2,'2.2 Daten'!B576,'2.2 Daten'!B125,'2.2 Daten'!B142,'2.2 Daten'!B159,'2.2 Daten'!B162,'2.2 Daten'!B209,'2.2 Daten'!B213,'2.2 Daten'!B268,'2.2 Daten'!B296,'2.2 Daten'!B334,'2.2 Daten'!B380,'2.2 Daten'!B478,'2.2 Daten'!B486,'2.2 Daten'!B489,'2.2 Daten'!B509,'2.2 Daten'!B519,'2.2 Daten'!B534,'2.2 Daten'!B550,x) -> Gelsenkirchen, Stadt | B154: =IF($A154<>0,INDEX('2.2 Daten'!C$9:C$859,MATCH('2.2'!$A154,'2.2 Daten'!$B$9:$B$859,0))," ") -> 05513000 | C154: =IF($A154<>0,INDEX('2.2 Daten'!E$9:E$859,MATCH('2.2'!$A154,'2.2 Daten'!$B$9:$B$859,0))) -> 19885 | D154: =IF($A154<>0,INDEX('2.2 Daten'!F$9:F$859,MATCH('2.2'!$A154,'2.2 Daten'!$B$9:$B$859,0))) -> 3376 | E154: =IF($A154<>0,INDEX('2.2 Daten'!G$9:G$859,MATCH('2.2'!$A154,'2.2 Daten'!$B$9:$B$859,0))) -> 3706 | F154: =IF($A154<>0,INDEX('2.2 Daten'!H$9:H$859,MATCH('2.2'!$A154,'2.2 Daten'!$B$9:$B$859,0))) -> 10019 | G154: =IF($A154<>0,INDEX('2.2 Daten'!I$9:I$859,MATCH('2.2'!$A154,'2.2 Daten'!$B$9:$B$859,0))) -> 2784 | H154: =IF($A154<>0,INDEX('2.2 Daten'!K$9:K$859,MATCH('2.2'!$A154,'2.2 Daten'!$B$9:$B$859,0))) -> 1.077619072 | I154: =IF($A154<>0,INDEX('2.2 Daten'!L$9:L$859,MATCH('2.2'!$A154,'2.2 Daten'!$B$9:$B$859,0))) -> 2.55164034 | J154: =IF($A154<>0,INDEX('2.2 Daten'!M$9:M$859,MATCH('2.2'!$A154,'2.2 Daten'!$B$9:$B$859,0))) -> -0.8029978587 | K154: =IF($A154<>0,INDEX('2.2 Daten'!N$9:N$859,MATCH('2.2'!$A154,'2.2 Daten'!$B$9:$B$859,0))) -> 1.069302936 | L154: =IF($A154<>0,INDEX('2.2 Daten'!O$9:O$859,MATCH('2.2'!$A154,'2.2 Daten'!$B$9:$B$859,0))) -> 1.903367496
A155: =CHOOSE('2.2 Daten'!$A$2,'2.2 Daten'!B577,'2.2 Daten'!B126,'2.2 Daten'!B143,'2.2 Daten'!B160,'2.2 Daten'!B163,'2.2 Daten'!B210,'2.2 Daten'!B214,'2.2 Daten'!B269,'2.2 Daten'!B297,'2.2 Daten'!B335,'2.2 Daten'!B381,'2.2 Daten'!B479,'2.2 Daten'!B487,'2.2 Daten'!B490,'2.2 Daten'!B510,'2.2 Daten'!B520,'2.2 Daten'!B535,'2.2 Daten'!B551,x) -> Münster, Stadt | B155: =IF($A155<>0,INDEX('2.2 Daten'!C$9:C$859,MATCH('2.2'!$A155,'2.2 Daten'!$B$9:$B$859,0))," ") -> 05515000 | C155: =IF($A155<>0,INDEX('2.2 Daten'!E$9:E$859,MATCH('2.2'!$A155,'2.2 Daten'!$B$9:$B$859,0))) -> 6920 | D155: =IF($A155<>0,INDEX('2.2 Daten'!F$9:F$859,MATCH('2.2'!$A155,'2.2 Daten'!$B$9:$B$859,0))) -> 1039 | E155: =IF($A155<>0,INDEX('2.2 Daten'!G$9:G$859,MATCH('2.2'!$A155,'2.2 Daten'!$B$9:$B$859,0))) -> 1225 | F155: =IF($A155<>0,INDEX('2.2 Daten'!H$9:H$859,MATCH('2.2'!$A155,'2.2 Daten'!$B$9:$B$859,0))) -> 3626 | G155: =IF($A155<>0,INDEX('2.2 Daten'!I$9:I$859,MATCH('2.2'!$A155,'2.2 Daten'!$B$9:$B$859,0))) -> 1030 | H155: =IF($A155<>0,INDEX('2.2 Daten'!K$9:K$859,MATCH('2.2'!$A155,'2.2 Daten'!$B$9:$B$859,0))) -> -1.732462369 | I155: =IF($A155<>0,INDEX('2.2 Daten'!L$9:L$859,MATCH('2.2'!$A155,'2.2 Daten'!$B$9:$B$859,0))) -> -3.796296296 | J155: =IF($A155<>0,INDEX('2.2 Daten'!M$9:M$859,MATCH('2.2'!$A155,'2.2 Daten'!$B$9:$B$859,0))) -> -6.202143951 | K155: =IF($A155<>0,INDEX('2.2 Daten'!N$9:N$859,MATCH('2.2'!$A155,'2.2 Daten'!$B$9:$B$859,0))) -> -0.9560229446 | L155: =IF($A155<>0,INDEX('2.2 Daten'!O$9:O$859,MATCH('2.2'!$A155,'2.2 Daten'!$B$9:$B$859,0))) -> 3.51758794
A156: =CHOOSE('2.2 Daten'!$A$2,'2.2 Daten'!B578,'2.2 Daten'!B127,'2.2 Daten'!B144,'2.2 Daten'!B161,'2.2 Daten'!B164,'2.2 Daten'!B211,'2.2 Daten'!B215,'2.2 Daten'!B270,'2.2 Daten'!B298,'2.2 Daten'!B336,'2.2 Daten'!B382,'2.2 Daten'!B480,'2.2 Daten'!B488,'2.2 Daten'!B491,'2.2 Daten'!B511,'2.2 Daten'!B521,'2.2 Daten'!B536,'2.2 Daten'!B552,x) -> Borken | B156: =IF($A156<>0,INDEX('2.2 Daten'!C$9:C$859,MATCH('2.2'!$A156,'2.2 Daten'!$B$9:$B$859,0))," ") -> 05554000 | C156: =IF($A156<>0,INDEX('2.2 Daten'!E$9:E$859,MATCH('2.2'!$A156,'2.2 Daten'!$B$9:$B$859,0))) -> 5967 | D156: =IF($A156<>0,INDEX('2.2 Daten'!F$9:F$859,MATCH('2.2'!$A156,'2.2 Daten'!$B$9:$B$859,0))) -> 914 | E156: =IF($A156<>0,INDEX('2.2 Daten'!G$9:G$859,MATCH('2.2'!$A156,'2.2 Daten'!$B$9:$B$859,0))) -> 1052 | F156: =IF($A156<>0,INDEX('2.2 Daten'!H$9:H$859,MATCH('2.2'!$A156,'2.2 Daten'!$B$9:$B$859,0))) -> 3132 | G156: =IF($A156<>0,INDEX('2.2 Daten'!I$9:I$859,MATCH('2.2'!$A156,'2.2 Daten'!$B$9:$B$859,0))) -> 869 | H156: =IF($A156<>0,INDEX('2.2 Daten'!K$9:K$859,MATCH('2.2'!$A156,'2.2 Daten'!$B$9:$B$859,0))) -> 4.081632653 | I156: =IF($A156<>0,INDEX('2.2 Daten'!L$9:L$859,MATCH('2.2'!$A156,'2.2 Daten'!$B$9:$B$859,0))) -> 3.863636364 | J156: =IF($A156<>0,INDEX('2.2 Daten'!M$9:M$859,MATCH('2.2'!$A156,'2.2 Daten'!$B$9:$B$859,0))) -> 0.5736137667 | K156: =IF($A156<>0,INDEX('2.2 Daten'!N$9:N$859,MATCH('2.2'!$A156,'2.2 Daten'!$B$9:$B$859,0))) -> 4.365211596 | L156: =IF($A156<>0,INDEX('2.2 Daten'!O$9:O$859,MATCH('2.2'!$A156,'2.2 Daten'!$B$9:$B$859,0))) -> 7.816377171
A157: =CHOOSE('2.2 Daten'!$A$2,'2.2 Daten'!B579,'2.2 Daten'!B128,'2.2 Daten'!B145,'2.2 Daten'!B162,'2.2 Daten'!B165,'2.2 Daten'!B212,'2.2 Daten'!B216,'2.2 Daten'!B271,'2.2 Daten'!B299,'2.2 Daten'!B337,'2.2 Daten'!B383,'2.2 Daten'!B481,'2.2 Daten'!B489,'2.2 Daten'!B492,'2.2 Daten'!B512,'2.2 Daten'!B522,'2.2 Daten'!B537,'2.2 Daten'!B553,x) -> Coesfeld | B157: =IF($A157<>0,INDEX('2.2 Daten'!C$9:C$859,MATCH('2.2'!$A157,'2.2 Daten'!$B$9:$B$859,0))," ") -> 05558000 | C157: =IF($A157<>0,INDEX('2.2 Daten'!E$9:E$859,MATCH('2.2'!$A157,'2.2 Daten'!$B$9:$B$859,0))) -> 3362 | D157: =IF($A157<>0,INDEX('2.2 Daten'!F$9:F$859,MATCH('2.2'!$A157,'2.2 Daten'!$B$9:$B$859,0))) -> 515 | E157: =IF($A157<>0,INDEX('2.2 Daten'!G$9:G$859,MATCH('2.2'!$A157,'2.2 Daten'!$B$9:$B$859,0))) -> 613 | F157: =IF($A157<>0,INDEX('2.2 Daten'!H$9:H$859,MATCH('2.2'!$A157,'2.2 Daten'!$B$9:$B$859,0))) -> 1740 | G157: =IF($A157<>0,INDEX('2.2 Daten'!I$9:I$859,MATCH('2.2'!$A157,'2.2 Daten'!$B$9:$B$859,0))) -> 494 | H157: =IF($A157<>0,INDEX('2.2 Daten'!K$9:K$859,MATCH('2.2'!$A157,'2.2 Daten'!$B$9:$B$859,0))) -> 12.17884551 | I157: =IF($A157<>0,INDEX('2.2 Daten'!L$9:L$859,MATCH('2.2'!$A157,'2.2 Daten'!$B$9:$B$859,0))) -> 3.206412826 | J157: =IF($A157<>0,INDEX('2.2 Daten'!M$9:M$859,MATCH('2.2'!$A157,'2.2 Daten'!$B$9:$B$859,0))) -> 6.608695652 | K157: =IF($A157<>0,INDEX('2.2 Daten'!N$9:N$859,MATCH('2.2'!$A157,'2.2 Daten'!$B$9:$B$859,0))) -> 14.32325887 | L157: =IF($A157<>0,INDEX('2.2 Daten'!O$9:O$859,MATCH('2.2'!$A157,'2.2 Daten'!$B$9:$B$859,0))) -> 23.19201995
A158: =CHOOSE('2.2 Daten'!$A$2,'2.2 Daten'!B580,'2.2 Daten'!B129,'2.2 Daten'!B146,'2.2 Daten'!B163,'2.2 Daten'!B166,'2.2 Daten'!B213,'2.2 Daten'!B217,'2.2 Daten'!B272,'2.2 Daten'!B300,'2.2 Daten'!B338,'2.2 Daten'!B384,'2.2 Daten'!B482,'2.2 Daten'!B490,'2.2 Daten'!B493,'2.2 Daten'!B513,'2.2 Daten'!B523,'2.2 Daten'!B538,'2.2 Daten'!B554,x) -> Recklinghausen | B158: =IF($A158<>0,INDEX('2.2 Daten'!C$9:C$859,MATCH('2.2'!$A158,'2.2 Daten'!$B$9:$B$859,0))," ") -> 05562000 | C158: =IF($A158<>0,INDEX('2.2 Daten'!E$9:E$859,MATCH('2.2'!$A158,'2.2 Daten'!$B$9:$B$859,0))) -> 24063 | D158: =IF($A158<>0,INDEX('2.2 Daten'!F$9:F$859,MATCH('2.2'!$A158,'2.2 Daten'!$B$9:$B$859,0))) -> 3684 | E158: =IF($A158<>0,INDEX('2.2 Daten'!G$9:G$859,MATCH('2.2'!$A158,'2.2 Daten'!$B$9:$B$859,0))) -> 4376 | F158: =IF($A158<>0,INDEX('2.2 Daten'!H$9:H$859,MATCH('2.2'!$A158,'2.2 Daten'!$B$9:$B$859,0))) -> 12413 | G158: =IF($A158<>0,INDEX('2.2 Daten'!I$9:I$859,MATCH('2.2'!$A158,'2.2 Daten'!$B$9:$B$859,0))) -> 3590 | H158: =IF($A158<>0,INDEX('2.2 Daten'!K$9:K$859,MATCH('2.2'!$A158,'2.2 Daten'!$B$9:$B$859,0))) -> 1.296569143 | I158: =IF($A158<>0,INDEX('2.2 Daten'!L$9:L$859,MATCH('2.2'!$A158,'2.2 Daten'!$B$9:$B$859,0))) -> -5.99642766 | J158: =IF($A158<>0,INDEX('2.2 Daten'!M$9:M$859,MATCH('2.2'!$A158,'2.2 Daten'!$B$9:$B$859,0))) -> -2.560676909 | K158: =IF($A158<>0,INDEX('2.2 Daten'!N$9:N$859,MATCH('2.2'!$A158,'2.2 Daten'!$B$9:$B$859,0))) -> 4.19709561 | L158: =IF($A158<>0,INDEX('2.2 Daten'!O$9:O$859,MATCH('2.2'!$A158,'2.2 Daten'!$B$9:$B$859,0))) -> 4.603729604
A159: =CHOOSE('2.2 Daten'!$A$2,'2.2 Daten'!B581,'2.2 Daten'!B130,'2.2 Daten'!B147,'2.2 Daten'!B164,'2.2 Daten'!B167,'2.2 Daten'!B214,'2.2 Daten'!B218,'2.2 Daten'!B273,'2.2 Daten'!B301,'2.2 Daten'!B339,'2.2 Daten'!B385,'2.2 Daten'!B483,'2.2 Daten'!B491,'2.2 Daten'!B494,'2.2 Daten'!B514,'2.2 Daten'!B524,'2.2 Daten'!B539,'2.2 Daten'!B555,x) -> Steinfurt | B159: =IF($A159<>0,INDEX('2.2 Daten'!C$9:C$859,MATCH('2.2'!$A159,'2.2 Daten'!$B$9:$B$859,0))," ") -> 05566000 | C159: =IF($A159<>0,INDEX('2.2 Daten'!E$9:E$859,MATCH('2.2'!$A159,'2.2 Daten'!$B$9:$B$859,0))) -> 8321 | D159: =IF($A159<>0,INDEX('2.2 Daten'!F$9:F$859,MATCH('2.2'!$A159,'2.2 Daten'!$B$9:$B$859,0))) -> 1296 | E159: =IF($A159<>0,INDEX('2.2 Daten'!G$9:G$859,MATCH('2.2'!$A159,'2.2 Daten'!$B$9:$B$859,0))) -> 1573 | F159: =IF($A159<>0,INDEX('2.2 Daten'!H$9:H$859,MATCH('2.2'!$A159,'2.2 Daten'!$B$9:$B$859,0))) -> 4321 | G159: =IF($A159<>0,INDEX('2.2 Daten'!I$9:I$859,MATCH('2.2'!$A159,'2.2 Daten'!$B$9:$B$859,0))) -> 1131 | H159: =IF($A159<>0,INDEX('2.2 Daten'!K$9:K$859,MATCH('2.2'!$A159,'2.2 Daten'!$B$9:$B$859,0))) -> 4.129645852 | I159: =IF($A159<>0,INDEX('2.2 Daten'!L$9:L$859,MATCH('2.2'!$A159,'2.2 Daten'!$B$9:$B$859,0))) -> -2.262443439 | J159: =IF($A159<>0,INDEX('2.2 Daten'!M$9:M$859,MATCH('2.2'!$A159,'2.2 Daten'!$B$9:$B$859,0))) -> 0.1910828025 | K159: =IF($A159<>0,INDEX('2.2 Daten'!N$9:N$859,MATCH('2.2'!$A159,'2.2 Daten'!$B$9:$B$859,0))) -> 7.247455944 | L159: =IF($A159<>0,INDEX('2.2 Daten'!O$9:O$859,MATCH('2.2'!$A159,'2.2 Daten'!$B$9:$B$859,0))) -> 6.097560976
A160: =CHOOSE('2.2 Daten'!$A$2,'2.2 Daten'!B582,'2.2 Daten'!B131,'2.2 Daten'!B148,'2.2 Daten'!B165,'2.2 Daten'!B168,'2.2 Daten'!B215,'2.2 Daten'!B219,'2.2 Daten'!B274,'2.2 Daten'!B302,'2.2 Daten'!B340,'2.2 Daten'!B386,'2.2 Daten'!B484,'2.2 Daten'!B492,'2.2 Daten'!B495,'2.2 Daten'!B515,'2.2 Daten'!B525,'2.2 Daten'!B540,'2.2 Daten'!B556,x) -> Warendorf | B160: =IF($A160<>0,INDEX('2.2 Daten'!C$9:C$859,MATCH('2.2'!$A160,'2.2 Daten'!$B$9:$B$859,0))," ") -> 05570000 | C160: =IF($A160<>0,INDEX('2.2 Daten'!E$9:E$859,MATCH('2.2'!$A160,'2.2 Daten'!$B$9:$B$859,0))) -> 5576 | D160: =IF($A160<>0,INDEX('2.2 Daten'!F$9:F$859,MATCH('2.2'!$A160,'2.2 Daten'!$B$9:$B$859,0))) -> 822 | E160: =IF($A160<>0,INDEX('2.2 Daten'!G$9:G$859,MATCH('2.2'!$A160,'2.2 Daten'!$B$9:$B$859,0))) -> 1000 | F160: =IF($A160<>0,INDEX('2.2 Daten'!H$9:H$859,MATCH('2.2'!$A160,'2.2 Daten'!$B$9:$B$859,0))) -> 2885 | G160: =IF($A160<>0,INDEX('2.2 Daten'!I$9:I$859,MATCH('2.2'!$A160,'2.2 Daten'!$B$9:$B$859,0))) -> 869 | H160: =IF($A160<>0,INDEX('2.2 Daten'!K$9:K$859,MATCH('2.2'!$A160,'2.2 Daten'!$B$9:$B$859,0))) -> 10.83283641 | I160: =IF($A160<>0,INDEX('2.2 Daten'!L$9:L$859,MATCH('2.2'!$A160,'2.2 Daten'!$B$9:$B$859,0))) -> 7.874015748 | J160: =IF($A160<>0,INDEX('2.2 Daten'!M$9:M$859,MATCH('2.2'!$A160,'2.2 Daten'!$B$9:$B$859,0))) -> 16.68611435 | K160: =IF($A160<>0,INDEX('2.2 Daten'!N$9:N$859,MATCH('2.2'!$A160,'2.2 Daten'!$B$9:$B$859,0))) -> 9.69581749 | L160: =IF($A160<>0,INDEX('2.2 Daten'!O$9:O$859,MATCH('2.2'!$A160,'2.2 Daten'!$B$9:$B$859,0))) -> 11.12531969
A161: =CHOOSE('2.2 Daten'!$A$2,'2.2 Daten'!B583,'2.2 Daten'!B132,'2.2 Daten'!B149,'2.2 Daten'!B166,'2.2 Daten'!B169,'2.2 Daten'!B216,'2.2 Daten'!B220,'2.2 Daten'!B275,'2.2 Daten'!B303,'2.2 Daten'!B341,'2.2 Daten'!B387,'2.2 Daten'!B485,'2.2 Daten'!B493,'2.2 Daten'!B496,'2.2 Daten'!B516,'2.2 Daten'!B526,'2.2 Daten'!B541,'2.2 Daten'!B557,x) -> Bielefeld, Stadt | B161: =IF($A161<>0,INDEX('2.2 Daten'!C$9:C$859,MATCH('2.2'!$A161,'2.2 Daten'!$B$9:$B$859,0))," ") -> 05711000 | C161: =IF($A161<>0,INDEX('2.2 Daten'!E$9:E$859,MATCH('2.2'!$A161,'2.2 Daten'!$B$9:$B$859,0))) -> 12294 | D161: =IF($A161<>0,INDEX('2.2 Daten'!F$9:F$859,MATCH('2.2'!$A161,'2.2 Daten'!$B$9:$B$859,0))) -> 1882 | E161: =IF($A161<>0,INDEX('2.2 Daten'!G$9:G$859,MATCH('2.2'!$A161,'2.2 Daten'!$B$9:$B$859,0))) -> 2154 | F161: =IF($A161<>0,INDEX('2.2 Daten'!H$9:H$859,MATCH('2.2'!$A161,'2.2 Daten'!$B$9:$B$859,0))) -> 6250 | G161: =IF($A161<>0,INDEX('2.2 Daten'!I$9:I$859,MATCH('2.2'!$A161,'2.2 Daten'!$B$9:$B$859,0))) -> 2008 | H161: =IF($A161<>0,INDEX('2.2 Daten'!K$9:K$859,MATCH('2.2'!$A161,'2.2 Daten'!$B$9:$B$859,0))) -> -0.461501093 | I161: =IF($A161<>0,INDEX('2.2 Daten'!L$9:L$859,MATCH('2.2'!$A161,'2.2 Daten'!$B$9:$B$859,0))) -> -1.620491375 | J161: =IF($A161<>0,INDEX('2.2 Daten'!M$9:M$859,MATCH('2.2'!$A161,'2.2 Daten'!$B$9:$B$859,0))) -> -2.7100271 | K161: =IF($A161<>0,INDEX('2.2 Daten'!N$9:N$859,MATCH('2.2'!$A161,'2.2 Daten'!$B$9:$B$859,0))) -> -0.1597444089 | L161: =IF($A161<>0,INDEX('2.2 Daten'!O$9:O$859,MATCH('2.2'!$A161,'2.2 Daten'!$B$9:$B$859,0))) -> 2.240325866
A162: =CHOOSE('2.2 Daten'!$A$2,'2.2 Daten'!B584,'2.2 Daten'!B133,'2.2 Daten'!B150,'2.2 Daten'!B167,'2.2 Daten'!B170,'2.2 Daten'!B217,'2.2 Daten'!B221,'2.2 Daten'!B276,'2.2 Daten'!B304,'2.2 Daten'!B342,'2.2 Daten'!B388,'2.2 Daten'!B486,'2.2 Daten'!B494,'2.2 Daten'!B497,'2.2 Daten'!B517,'2.2 Daten'!B527,'2.2 Daten'!B542,'2.2 Daten'!B558,x) -> Gütersloh | B162: =IF($A162<>0,INDEX('2.2 Daten'!C$9:C$859,MATCH('2.2'!$A162,'2.2 Daten'!$B$9:$B$859,0))," ") -> 05754000 | C162: =IF($A162<>0,INDEX('2.2 Daten'!E$9:E$859,MATCH('2.2'!$A162,'2.2 Daten'!$B$9:$B$859,0))) -> 6612 | D162: =IF($A162<>0,INDEX('2.2 Daten'!F$9:F$859,MATCH('2.2'!$A162,'2.2 Daten'!$B$9:$B$859,0))) -> 945 | E162: =IF($A162<>0,INDEX('2.2 Daten'!G$9:G$859,MATCH('2.2'!$A162,'2.2 Daten'!$B$9:$B$859,0))) -> 1152 | F162: =IF($A162<>0,INDEX('2.2 Daten'!H$9:H$859,MATCH('2.2'!$A162,'2.2 Daten'!$B$9:$B$859,0))) -> 3511 | G162: =IF($A162<>0,INDEX('2.2 Daten'!I$9:I$859,MATCH('2.2'!$A162,'2.2 Daten'!$B$9:$B$859,0))) -> 1004 | H162: =IF($A162<>0,INDEX('2.2 Daten'!K$9:K$859,MATCH('2.2'!$A162,'2.2 Daten'!$B$9:$B$859,0))) -> -0.4366812227 | I162: =IF($A162<>0,INDEX('2.2 Daten'!L$9:L$859,MATCH('2.2'!$A162,'2.2 Daten'!$B$9:$B$859,0))) -> -5.5 | J162: =IF($A162<>0,INDEX('2.2 Daten'!M$9:M$859,MATCH('2.2'!$A162,'2.2 Daten'!$B$9:$B$859,0))) -> -5.418719212 | K162: =IF($A162<>0,INDEX('2.2 Daten'!N$9:N$859,MATCH('2.2'!$A162,'2.2 Daten'!$B$9:$B$859,0))) -> 2.301864802 | L162: =IF($A162<>0,INDEX('2.2 Daten'!O$9:O$859,MATCH('2.2'!$A162,'2.2 Daten'!$B$9:$B$859,0))) -> 1.311806256
A163: =CHOOSE('2.2 Daten'!$A$2,'2.2 Daten'!B585,'2.2 Daten'!B134,'2.2 Daten'!B151,'2.2 Daten'!B168,'2.2 Daten'!B171,'2.2 Daten'!B218,'2.2 Daten'!B222,'2.2 Daten'!B277,'2.2 Daten'!B305,'2.2 Daten'!B343,'2.2 Daten'!B389,'2.2 Daten'!B487,'2.2 Daten'!B495,'2.2 Daten'!B498,'2.2 Daten'!B518,'2.2 Daten'!B528,'2.2 Daten'!B543,'2.2 Daten'!B559,x) -> Herford | B163: =IF($A163<>0,INDEX('2.2 Daten'!C$9:C$859,MATCH('2.2'!$A163,'2.2 Daten'!$B$9:$B$859,0))," ") -> 05758000 | C163: =IF($A163<>0,INDEX('2.2 Daten'!E$9:E$859,MATCH('2.2'!$A163,'2.2 Daten'!$B$9:$B$859,0))) -> 6035 | D163: =IF($A163<>0,INDEX('2.2 Daten'!F$9:F$859,MATCH('2.2'!$A163,'2.2 Daten'!$B$9:$B$859,0))) -> 943 | E163: =IF($A163<>0,INDEX('2.2 Daten'!G$9:G$859,MATCH('2.2'!$A163,'2.2 Daten'!$B$9:$B$859,0))) -> 1084 | F163: =IF($A163<>0,INDEX('2.2 Daten'!H$9:H$859,MATCH('2.2'!$A163,'2.2 Daten'!$B$9:$B$859,0))) -> 3117 | G163: =IF($A163<>0,INDEX('2.2 Daten'!I$9:I$859,MATCH('2.2'!$A163,'2.2 Daten'!$B$9:$B$859,0))) -> 891 | H163: =IF($A163<>0,INDEX('2.2 Daten'!K$9:K$859,MATCH('2.2'!$A163,'2.2 Daten'!$B$9:$B$859,0))) -> 0.5330667999 | I163: =IF($A163<>0,INDEX('2.2 Daten'!L$9:L$859,MATCH('2.2'!$A163,'2.2 Daten'!$B$9:$B$859,0))) -> -1.565762004 | J163: =IF($A163<>0,INDEX('2.2 Daten'!M$9:M$859,MATCH('2.2'!$A163,'2.2 Daten'!$B$9:$B$859,0))) -> -3.90070922 | K163: =IF($A163<>0,INDEX('2.2 Daten'!N$9:N$859,MATCH('2.2'!$A163,'2.2 Daten'!$B$9:$B$859,0))) -> 2.062868369 | L163: =IF($A163<>0,INDEX('2.2 Daten'!O$9:O$859,MATCH('2.2'!$A163,'2.2 Daten'!$B$9:$B$859,0))) -> 3.244495944
A164: =CHOOSE('2.2 Daten'!$A$2,'2.2 Daten'!B586,'2.2 Daten'!B135,'2.2 Daten'!B152,'2.2 Daten'!B169,'2.2 Daten'!B172,'2.2 Daten'!B219,'2.2 Daten'!B223,'2.2 Daten'!B278,'2.2 Daten'!B306,'2.2 Daten'!B344,'2.2 Daten'!B390,'2.2 Daten'!B488,'2.2 Daten'!B496,'2.2 Daten'!B499,'2.2 Daten'!B519,'2.2 Daten'!B529,'2.2 Daten'!B544,'2.2 Daten'!B560,x) -> Höxter | B164: =IF($A164<>0,INDEX('2.2 Daten'!C$9:C$859,MATCH('2.2'!$A164,'2.2 Daten'!$B$9:$B$859,0))," ") -> 05762000 | C164: =IF($A164<>0,INDEX('2.2 Daten'!E$9:E$859,MATCH('2.2'!$A164,'2.2 Daten'!$B$9:$B$859,0))) -> 2653 | D164: =IF($A164<>0,INDEX('2.2 Daten'!F$9:F$859,MATCH('2.2'!$A164,'2.2 Daten'!$B$9:$B$859,0))) -> 397 | E164: =IF($A164<>0,INDEX('2.2 Daten'!G$9:G$859,MATCH('2.2'!$A164,'2.2 Daten'!$B$9:$B$859,0))) -> 503 | F164: =IF($A164<>0,INDEX('2.2 Daten'!H$9:H$859,MATCH('2.2'!$A164,'2.2 Daten'!$B$9:$B$859,0))) -> 1379 | G164: =IF($A164<>0,INDEX('2.2 Daten'!I$9:I$859,MATCH('2.2'!$A164,'2.2 Daten'!$B$9:$B$859,0))) -> 374 | H164: =IF($A164<>0,INDEX('2.2 Daten'!K$9:K$859,MATCH('2.2'!$A164,'2.2 Daten'!$B$9:$B$859,0))) -> 8.197389886 | I164: =IF($A164<>0,INDEX('2.2 Daten'!L$9:L$859,MATCH('2.2'!$A164,'2.2 Daten'!$B$9:$B$859,0))) -> -2.216748768 | J164: =IF($A164<>0,INDEX('2.2 Daten'!M$9:M$859,MATCH('2.2'!$A164,'2.2 Daten'!$B$9:$B$859,0))) -> 7.249466951 | K164: =IF($A164<>0,INDEX('2.2 Daten'!N$9:N$859,MATCH('2.2'!$A164,'2.2 Daten'!$B$9:$B$859,0))) -> 8.156862745 | L164: =IF($A164<>0,INDEX('2.2 Daten'!O$9:O$859,MATCH('2.2'!$A164,'2.2 Daten'!$B$9:$B$859,0))) -> 23.8410596
A165: =CHOOSE('2.2 Daten'!$A$2,'2.2 Daten'!B587,'2.2 Daten'!B136,'2.2 Daten'!B153,'2.2 Daten'!B170,'2.2 Daten'!B173,'2.2 Daten'!B220,'2.2 Daten'!B224,'2.2 Daten'!B279,'2.2 Daten'!B307,'2.2 Daten'!B345,'2.2 Daten'!B391,'2.2 Daten'!B489,'2.2 Daten'!B497,'2.2 Daten'!B500,'2.2 Daten'!B520,'2.2 Daten'!B530,'2.2 Daten'!B545,'2.2 Daten'!B561,x) -> Lippe | B165: =IF($A165<>0,INDEX('2.2 Daten'!C$9:C$859,MATCH('2.2'!$A165,'2.2 Daten'!$B$9:$B$859,0))," ") -> 05766000 | C165: =IF($A165<>0,INDEX('2.2 Daten'!E$9:E$859,MATCH('2.2'!$A165,'2.2 Daten'!$B$9:$B$859,0))) -> 9150 | D165: =IF($A165<>0,INDEX('2.2 Daten'!F$9:F$859,MATCH('2.2'!$A165,'2.2 Daten'!$B$9:$B$859,0))) -> 1394 | E165: =IF($A165<>0,INDEX('2.2 Daten'!G$9:G$859,MATCH('2.2'!$A165,'2.2 Daten'!$B$9:$B$859,0))) -> 1650 | F165: =IF($A165<>0,INDEX('2.2 Daten'!H$9:H$859,MATCH('2.2'!$A165,'2.2 Daten'!$B$9:$B$859,0))) -> 4706 | G165: =IF($A165<>0,INDEX('2.2 Daten'!I$9:I$859,MATCH('2.2'!$A165,'2.2 Daten'!$B$9:$B$859,0))) -> 1400 | H165: =IF($A165<>0,INDEX('2.2 Daten'!K$9:K$859,MATCH('2.2'!$A165,'2.2 Daten'!$B$9:$B$859,0))) -> -4.098102924 | I165: =IF($A165<>0,INDEX('2.2 Daten'!L$9:L$859,MATCH('2.2'!$A165,'2.2 Daten'!$B$9:$B$859,0))) -> -8.650065531 | J165: =IF($A165<>0,INDEX('2.2 Daten'!M$9:M$859,MATCH('2.2'!$A165,'2.2 Daten'!$B$9:$B$859,0))) -> -7.407407407 | K165: =IF($A165<>0,INDEX('2.2 Daten'!N$9:N$859,MATCH('2.2'!$A165,'2.2 Daten'!$B$9:$B$859,0))) -> -2.587456013 | L165: =IF($A165<>0,INDEX('2.2 Daten'!O$9:O$859,MATCH('2.2'!$A165,'2.2 Daten'!$B$9:$B$859,0))) -> -0.1426533524
A166: =CHOOSE('2.2 Daten'!$A$2,'2.2 Daten'!B588,'2.2 Daten'!B137,'2.2 Daten'!B154,'2.2 Daten'!B171,'2.2 Daten'!B174,'2.2 Daten'!B221,'2.2 Daten'!B225,'2.2 Daten'!B280,'2.2 Daten'!B308,'2.2 Daten'!B346,'2.2 Daten'!B392,'2.2 Daten'!B490,'2.2 Daten'!B498,'2.2 Daten'!B501,'2.2 Daten'!B521,'2.2 Daten'!B531,'2.2 Daten'!B546,'2.2 Daten'!B562,x) -> Minden-Lübbecke | B166: =IF($A166<>0,INDEX('2.2 Daten'!C$9:C$859,MATCH('2.2'!$A166,'2.2 Daten'!$B$9:$B$859,0))," ") -> 05770000 | C166: =IF($A166<>0,INDEX('2.2 Daten'!E$9:E$859,MATCH('2.2'!$A166,'2.2 Daten'!$B$9:$B$859,0))) -> 9215 | D166: =IF($A166<>0,INDEX('2.2 Daten'!F$9:F$859,MATCH('2.2'!$A166,'2.2 Daten'!$B$9:$B$859,0))) -> 1380 | E166: =IF($A166<>0,INDEX('2.2 Daten'!G$9:G$859,MATCH('2.2'!$A166,'2.2 Daten'!$B$9:$B$859,0))) -> 1634 | F166: =IF($A166<>0,INDEX('2.2 Daten'!H$9:H$859,MATCH('2.2'!$A166,'2.2 Daten'!$B$9:$B$859,0))) -> 4808 | G166: =IF($A166<>0,INDEX('2.2 Daten'!I$9:I$859,MATCH('2.2'!$A166,'2.2 Daten'!$B$9:$B$859,0))) -> 1393 | H166: =IF($A166<>0,INDEX('2.2 Daten'!K$9:K$859,MATCH('2.2'!$A166,'2.2 Daten'!$B$9:$B$859,0))) -> 1.375137514 | I166: =IF($A166<>0,INDEX('2.2 Daten'!L$9:L$859,MATCH('2.2'!$A166,'2.2 Daten'!$B$9:$B$859,0))) -> 2.449888641 | J166: =IF($A166<>0,INDEX('2.2 Daten'!M$9:M$859,MATCH('2.2'!$A166,'2.2 Daten'!$B$9:$B$859,0))) -> -4.164222874 | K166: =IF($A166<>0,INDEX('2.2 Daten'!N$9:N$859,MATCH('2.2'!$A166,'2.2 Daten'!$B$9:$B$859,0))) -> 2.844919786 | L166: =IF($A166<>0,INDEX('2.2 Daten'!O$9:O$859,MATCH('2.2'!$A166,'2.2 Daten'!$B$9:$B$859,0))) -> 2.201027146
A167: =CHOOSE('2.2 Daten'!$A$2,'2.2 Daten'!B589,'2.2 Daten'!B138,'2.2 Daten'!B155,'2.2 Daten'!B172,'2.2 Daten'!B175,'2.2 Daten'!B222,'2.2 Daten'!B226,'2.2 Daten'!B281,'2.2 Daten'!B309,'2.2 Daten'!B347,'2.2 Daten'!B393,'2.2 Daten'!B491,'2.2 Daten'!B499,'2.2 Daten'!B502,'2.2 Daten'!B522,'2.2 Daten'!B532,'2.2 Daten'!B547,'2.2 Daten'!B563,x) -> Paderborn | B167: =IF($A167<>0,INDEX('2.2 Daten'!C$9:C$859,MATCH('2.2'!$A167,'2.2 Daten'!$B$9:$B$859,0))," ") -> 05774000 | C167: =IF($A167<>0,INDEX('2.2 Daten'!E$9:E$859,MATCH('2.2'!$A167,'2.2 Daten'!$B$9:$B$859,0))) -> 7022 | D167: =IF($A167<>0,INDEX('2.2 Daten'!F$9:F$859,MATCH('2.2'!$A167,'2.2 Daten'!$B$9:$B$859,0))) -> 1080 | E167: =IF($A167<>0,INDEX('2.2 Daten'!G$9:G$859,MATCH('2.2'!$A167,'2.2 Daten'!$B$9:$B$859,0))) -> 1206 | F167: =IF($A167<>0,INDEX('2.2 Daten'!H$9:H$859,MATCH('2.2'!$A167,'2.2 Daten'!$B$9:$B$859,0))) -> 3689 | G167: =IF($A167<>0,INDEX('2.2 Daten'!I$9:I$859,MATCH('2.2'!$A167,'2.2 Daten'!$B$9:$B$859,0))) -> 1047 | H167: =IF($A167<>0,INDEX('2.2 Daten'!K$9:K$859,MATCH('2.2'!$A167,'2.2 Daten'!$B$9:$B$859,0))) -> 2.690845276 | I167: =IF($A167<>0,INDEX('2.2 Daten'!L$9:L$859,MATCH('2.2'!$A167,'2.2 Daten'!$B$9:$B$859,0))) -> -2.877697842 | J167: =IF($A167<>0,INDEX('2.2 Daten'!M$9:M$859,MATCH('2.2'!$A167,'2.2 Daten'!$B$9:$B$859,0))) -> 2.290076336 | K167: =IF($A167<>0,INDEX('2.2 Daten'!N$9:N$859,MATCH('2.2'!$A167,'2.2 Daten'!$B$9:$B$859,0))) -> 3.217683268 | L167: =IF($A167<>0,INDEX('2.2 Daten'!O$9:O$859,MATCH('2.2'!$A167,'2.2 Daten'!$B$9:$B$859,0))) -> 7.605344296
A168: =CHOOSE('2.2 Daten'!$A$2,'2.2 Daten'!B590,'2.2 Daten'!B139,'2.2 Daten'!B156,'2.2 Daten'!B173,'2.2 Daten'!B176,'2.2 Daten'!B223,'2.2 Daten'!B227,'2.2 Daten'!B282,'2.2 Daten'!B310,'2.2 Daten'!B348,'2.2 Daten'!B394,'2.2 Daten'!B492,'2.2 Daten'!B500,'2.2 Daten'!B503,'2.2 Daten'!B523,'2.2 Daten'!B533,'2.2 Daten'!B548,'2.2 Daten'!B564,x) -> Bochum, Stadt | B168: =IF($A168<>0,INDEX('2.2 Daten'!C$9:C$859,MATCH('2.2'!$A168,'2.2 Daten'!$B$9:$B$859,0))," ") -> 05911000 | C168: =IF($A168<>0,INDEX('2.2 Daten'!E$9:E$859,MATCH('2.2'!$A168,'2.2 Daten'!$B$9:$B$859,0))) -> 13513 | D168: =IF($A168<>0,INDEX('2.2 Daten'!F$9:F$859,MATCH('2.2'!$A168,'2.2 Daten'!$B$9:$B$859,0))) -> 2041 | E168: =IF($A168<>0,INDEX('2.2 Daten'!G$9:G$859,MATCH('2.2'!$A168,'2.2 Daten'!$B$9:$B$859,0))) -> 2464 | F168: =IF($A168<>0,INDEX('2.2 Daten'!H$9:H$859,MATCH('2.2'!$A168,'2.2 Daten'!$B$9:$B$859,0))) -> 6952 | G168: =IF($A168<>0,INDEX('2.2 Daten'!I$9:I$859,MATCH('2.2'!$A168,'2.2 Daten'!$B$9:$B$859,0))) -> 2056 | H168: =IF($A168<>0,INDEX('2.2 Daten'!K$9:K$859,MATCH('2.2'!$A168,'2.2 Daten'!$B$9:$B$859,0))) -> -2.510641368 | I168: =IF($A168<>0,INDEX('2.2 Daten'!L$9:L$859,MATCH('2.2'!$A168,'2.2 Daten'!$B$9:$B$859,0))) -> -4.268292683 | J168: =IF($A168<>0,INDEX('2.2 Daten'!M$9:M$859,MATCH('2.2'!$A168,'2.2 Daten'!$B$9:$B$859,0))) -> -3.523884103 | K168: =IF($A168<>0,INDEX('2.2 Daten'!N$9:N$859,MATCH('2.2'!$A168,'2.2 Daten'!$B$9:$B$859,0))) -> -1.93257159 | L168: =IF($A168<>0,INDEX('2.2 Daten'!O$9:O$859,MATCH('2.2'!$A168,'2.2 Daten'!$B$9:$B$859,0))) -> -1.438159156
A169: =CHOOSE('2.2 Daten'!$A$2,'2.2 Daten'!B591,'2.2 Daten'!B140,'2.2 Daten'!B157,'2.2 Daten'!B174,'2.2 Daten'!B177,'2.2 Daten'!B224,'2.2 Daten'!B228,'2.2 Daten'!B283,'2.2 Daten'!B311,'2.2 Daten'!B349,'2.2 Daten'!B395,'2.2 Daten'!B493,'2.2 Daten'!B501,'2.2 Daten'!B504,'2.2 Daten'!B524,'2.2 Daten'!B534,'2.2 Daten'!B549,'2.2 Daten'!B565,x) -> Dortmund, Stadt | B169: =IF($A169<>0,INDEX('2.2 Daten'!C$9:C$859,MATCH('2.2'!$A169,'2.2 Daten'!$B$9:$B$859,0))," ") -> 05913000 | C169: =IF($A169<>0,INDEX('2.2 Daten'!E$9:E$859,MATCH('2.2'!$A169,'2.2 Daten'!$B$9:$B$859,0))) -> 31013 | D169: =IF($A169<>0,INDEX('2.2 Daten'!F$9:F$859,MATCH('2.2'!$A169,'2.2 Daten'!$B$9:$B$859,0))) -> 5051 | E169: =IF($A169<>0,INDEX('2.2 Daten'!G$9:G$859,MATCH('2.2'!$A169,'2.2 Daten'!$B$9:$B$859,0))) -> 5739 | F169: =IF($A169<>0,INDEX('2.2 Daten'!H$9:H$859,MATCH('2.2'!$A169,'2.2 Daten'!$B$9:$B$859,0))) -> 15714 | G169: =IF($A169<>0,INDEX('2.2 Daten'!I$9:I$859,MATCH('2.2'!$A169,'2.2 Daten'!$B$9:$B$859,0))) -> 4509 | H169: =IF($A169<>0,INDEX('2.2 Daten'!K$9:K$859,MATCH('2.2'!$A169,'2.2 Daten'!$B$9:$B$859,0))) -> 3.847441736 | I169: =IF($A169<>0,INDEX('2.2 Daten'!L$9:L$859,MATCH('2.2'!$A169,'2.2 Daten'!$B$9:$B$859,0))) -> 2.164239482 | J169: =IF($A169<>0,INDEX('2.2 Daten'!M$9:M$859,MATCH('2.2'!$A169,'2.2 Daten'!$B$9:$B$859,0))) -> 0.03486142583 | K169: =IF($A169<>0,INDEX('2.2 Daten'!N$9:N$859,MATCH('2.2'!$A169,'2.2 Daten'!$B$9:$B$859,0))) -> 5.576457941 | L169: =IF($A169<>0,INDEX('2.2 Daten'!O$9:O$859,MATCH('2.2'!$A169,'2.2 Daten'!$B$9:$B$859,0))) -> 4.884856943
A170: =CHOOSE('2.2 Daten'!$A$2,'2.2 Daten'!B592,'2.2 Daten'!B141,'2.2 Daten'!B158,'2.2 Daten'!B175,'2.2 Daten'!B178,'2.2 Daten'!B225,'2.2 Daten'!B229,'2.2 Daten'!B284,'2.2 Daten'!B312,'2.2 Daten'!B350,'2.2 Daten'!B396,'2.2 Daten'!B494,'2.2 Daten'!B502,'2.2 Daten'!B505,'2.2 Daten'!B525,'2.2 Daten'!B535,'2.2 Daten'!B550,'2.2 Daten'!B566,x) -> Hagen, Stadt | B170: =IF($A170<>0,INDEX('2.2 Daten'!C$9:C$859,MATCH('2.2'!$A170,'2.2 Daten'!$B$9:$B$859,0))," ") -> 05914000 | C170: =IF($A170<>0,INDEX('2.2 Daten'!E$9:E$859,MATCH('2.2'!$A170,'2.2 Daten'!$B$9:$B$859,0))) -> 10348 | D170: =IF($A170<>0,INDEX('2.2 Daten'!F$9:F$859,MATCH('2.2'!$A170,'2.2 Daten'!$B$9:$B$859,0))) -> 1655 | E170: =IF($A170<>0,INDEX('2.2 Daten'!G$9:G$859,MATCH('2.2'!$A170,'2.2 Daten'!$B$9:$B$859,0))) -> 1922 | F170: =IF($A170<>0,INDEX('2.2 Daten'!H$9:H$859,MATCH('2.2'!$A170,'2.2 Daten'!$B$9:$B$859,0))) -> 5256 | G170: =IF($A170<>0,INDEX('2.2 Daten'!I$9:I$859,MATCH('2.2'!$A170,'2.2 Daten'!$B$9:$B$859,0))) -> 1515 | H170: =IF($A170<>0,INDEX('2.2 Daten'!K$9:K$859,MATCH('2.2'!$A170,'2.2 Daten'!$B$9:$B$859,0))) -> 0.319922443 | I170: =IF($A170<>0,INDEX('2.2 Daten'!L$9:L$859,MATCH('2.2'!$A170,'2.2 Daten'!$B$9:$B$859,0))) -> -3.159742539 | J170: =IF($A170<>0,INDEX('2.2 Daten'!M$9:M$859,MATCH('2.2'!$A170,'2.2 Daten'!$B$9:$B$859,0))) -> 2.670940171 | K170: =IF($A170<>0,INDEX('2.2 Daten'!N$9:N$859,MATCH('2.2'!$A170,'2.2 Daten'!$B$9:$B$859,0))) -> -0.1709401709 | L170: =IF($A170<>0,INDEX('2.2 Daten'!O$9:O$859,MATCH('2.2'!$A170,'2.2 Daten'!$B$9:$B$859,0))) -> 3.131381892
A171: =CHOOSE('2.2 Daten'!$A$2,'2.2 Daten'!B593,'2.2 Daten'!B142,'2.2 Daten'!B159,'2.2 Daten'!B176,'2.2 Daten'!B179,'2.2 Daten'!B226,'2.2 Daten'!B230,'2.2 Daten'!B285,'2.2 Daten'!B313,'2.2 Daten'!B351,'2.2 Daten'!B397,'2.2 Daten'!B495,'2.2 Daten'!B503,'2.2 Daten'!B506,'2.2 Daten'!B526,'2.2 Daten'!B536,'2.2 Daten'!B551,'2.2 Daten'!B567,x) -> Hamm, Stadt | B171: =IF($A171<>0,INDEX('2.2 Daten'!C$9:C$859,MATCH('2.2'!$A171,'2.2 Daten'!$B$9:$B$859,0))," ") -> 05915000 | C171: =IF($A171<>0,INDEX('2.2 Daten'!E$9:E$859,MATCH('2.2'!$A171,'2.2 Daten'!$B$9:$B$859,0))) -> 5651 | D171: =IF($A171<>0,INDEX('2.2 Daten'!F$9:F$859,MATCH('2.2'!$A171,'2.2 Daten'!$B$9:$B$859,0))) -> 930 | E171: =IF($A171<>0,INDEX('2.2 Daten'!G$9:G$859,MATCH('2.2'!$A171,'2.2 Daten'!$B$9:$B$859,0))) -> 1015 | F171: =IF($A171<>0,INDEX('2.2 Daten'!H$9:H$859,MATCH('2.2'!$A171,'2.2 Daten'!$B$9:$B$859,0))) -> 2864 | G171: =IF($A171<>0,INDEX('2.2 Daten'!I$9:I$859,MATCH('2.2'!$A171,'2.2 Daten'!$B$9:$B$859,0))) -> 842 | H171: =IF($A171<>0,INDEX('2.2 Daten'!K$9:K$859,MATCH('2.2'!$A171,'2.2 Daten'!$B$9:$B$859,0))) -> -4.220338983 | I171: =IF($A171<>0,INDEX('2.2 Daten'!L$9:L$859,MATCH('2.2'!$A171,'2.2 Daten'!$B$9:$B$859,0))) -> -0.7470651014 | J171: =IF($A171<>0,INDEX('2.2 Daten'!M$9:M$859,MATCH('2.2'!$A171,'2.2 Daten'!$B$9:$B$859,0))) -> -8.227848101 | K171: =IF($A171<>0,INDEX('2.2 Daten'!N$9:N$859,MATCH('2.2'!$A171,'2.2 Daten'!$B$9:$B$859,0))) -> -4.085733423 | L171: =IF($A171<>0,INDEX('2.2 Daten'!O$9:O$859,MATCH('2.2'!$A171,'2.2 Daten'!$B$9:$B$859,0))) -> -3.329506315
A172: =CHOOSE('2.2 Daten'!$A$2,'2.2 Daten'!B594,'2.2 Daten'!B143,'2.2 Daten'!B160,'2.2 Daten'!B177,'2.2 Daten'!B180,'2.2 Daten'!B227,'2.2 Daten'!B231,'2.2 Daten'!B286,'2.2 Daten'!B314,'2.2 Daten'!B352,'2.2 Daten'!B398,'2.2 Daten'!B496,'2.2 Daten'!B504,'2.2 Daten'!B507,'2.2 Daten'!B527,'2.2 Daten'!B537,'2.2 Daten'!B552,'2.2 Daten'!B568,x) -> Herne, Stadt | B172: =IF($A172<>0,INDEX('2.2 Daten'!C$9:C$859,MATCH('2.2'!$A172,'2.2 Daten'!$B$9:$B$859,0))," ") -> 05916000 | C172: =IF($A172<>0,INDEX('2.2 Daten'!E$9:E$859,MATCH('2.2'!$A172,'2.2 Daten'!$B$9:$B$859,0))) -> 8007 | D172: =IF($A172<>0,INDEX('2.2 Daten'!F$9:F$859,MATCH('2.2'!$A172,'2.2 Daten'!$B$9:$B$859,0))) -> 1314 | E172: =IF($A172<>0,INDEX('2.2 Daten'!G$9:G$859,MATCH('2.2'!$A172,'2.2 Daten'!$B$9:$B$859,0))) -> 1460 | F172: =IF($A172<>0,INDEX('2.2 Daten'!H$9:H$859,MATCH('2.2'!$A172,'2.2 Daten'!$B$9:$B$859,0))) -> 4055 | G172: =IF($A172<>0,INDEX('2.2 Daten'!I$9:I$859,MATCH('2.2'!$A172,'2.2 Daten'!$B$9:$B$859,0))) -> 1178 | H172: =IF($A172<>0,INDEX('2.2 Daten'!K$9:K$859,MATCH('2.2'!$A172,'2.2 Daten'!$B$9:$B$859,0))) -> 1.50862069 | I172: =IF($A172<>0,INDEX('2.2 Daten'!L$9:L$859,MATCH('2.2'!$A172,'2.2 Daten'!$B$9:$B$859,0))) -> -2.086438152 | J172: =IF($A172<>0,INDEX('2.2 Daten'!M$9:M$859,MATCH('2.2'!$A172,'2.2 Daten'!$B$9:$B$859,0))) -> -1.351351351 | K172: =IF($A172<>0,INDEX('2.2 Daten'!N$9:N$859,MATCH('2.2'!$A172,'2.2 Daten'!$B$9:$B$859,0))) -> 3.180661578 | L172: =IF($A172<>0,INDEX('2.2 Daten'!O$9:O$859,MATCH('2.2'!$A172,'2.2 Daten'!$B$9:$B$859,0))) -> 3.697183099
A173: =CHOOSE('2.2 Daten'!$A$2,'2.2 Daten'!B595,'2.2 Daten'!B144,'2.2 Daten'!B161,'2.2 Daten'!B178,'2.2 Daten'!B181,'2.2 Daten'!B228,'2.2 Daten'!B232,'2.2 Daten'!B287,'2.2 Daten'!B315,'2.2 Daten'!B353,'2.2 Daten'!B399,'2.2 Daten'!B497,'2.2 Daten'!B505,'2.2 Daten'!B508,'2.2 Daten'!B528,'2.2 Daten'!B538,'2.2 Daten'!B553,'2.2 Daten'!B569,x) -> Ennepe-Ruhr-Kreis | B173: =IF($A173<>0,INDEX('2.2 Daten'!C$9:C$859,MATCH('2.2'!$A173,'2.2 Daten'!$B$9:$B$859,0))," ") -> 05954000 | C173: =IF($A173<>0,INDEX('2.2 Daten'!E$9:E$859,MATCH('2.2'!$A173,'2.2 Daten'!$B$9:$B$859,0))) -> 8874 | D173: =IF($A173<>0,INDEX('2.2 Daten'!F$9:F$859,MATCH('2.2'!$A173,'2.2 Daten'!$B$9:$B$859,0))) -> 1312 | E173: =IF($A173<>0,INDEX('2.2 Daten'!G$9:G$859,MATCH('2.2'!$A173,'2.2 Daten'!$B$9:$B$859,0))) -> 1628 | F173: =IF($A173<>0,INDEX('2.2 Daten'!H$9:H$859,MATCH('2.2'!$A173,'2.2 Daten'!$B$9:$B$859,0))) -> 4603 | G173: =IF($A173<>0,INDEX('2.2 Daten'!I$9:I$859,MATCH('2.2'!$A173,'2.2 Daten'!$B$9:$B$859,0))) -> 1331 | H173: =IF($A173<>0,INDEX('2.2 Daten'!K$9:K$859,MATCH('2.2'!$A173,'2.2 Daten'!$B$9:$B$859,0))) -> 6.339125225 | I173: =IF($A173<>0,INDEX('2.2 Daten'!L$9:L$859,MATCH('2.2'!$A173,'2.2 Daten'!$B$9:$B$859,0))) -> -5.06512301 | J173: =IF($A173<>0,INDEX('2.2 Daten'!M$9:M$859,MATCH('2.2'!$A173,'2.2 Daten'!$B$9:$B$859,0))) -> 2.325581395 | K173: =IF($A173<>0,INDEX('2.2 Daten'!N$9:N$859,MATCH('2.2'!$A173,'2.2 Daten'!$B$9:$B$859,0))) -> 10.14596793 | L173: =IF($A173<>0,INDEX('2.2 Daten'!O$9:O$859,MATCH('2.2'!$A173,'2.2 Daten'!$B$9:$B$859,0))) -> 11.56747695
A174: =CHOOSE('2.2 Daten'!$A$2,'2.2 Daten'!B596,'2.2 Daten'!B145,'2.2 Daten'!B162,'2.2 Daten'!B179,'2.2 Daten'!B182,'2.2 Daten'!B229,'2.2 Daten'!B233,'2.2 Daten'!B288,'2.2 Daten'!B316,'2.2 Daten'!B354,'2.2 Daten'!B400,'2.2 Daten'!B498,'2.2 Daten'!B506,'2.2 Daten'!B509,'2.2 Daten'!B529,'2.2 Daten'!B539,'2.2 Daten'!B554,'2.2 Daten'!B570,x) -> Hochsauerlandkreis | B174: =IF($A174<>0,INDEX('2.2 Daten'!C$9:C$859,MATCH('2.2'!$A174,'2.2 Daten'!$B$9:$B$859,0))," ") -> 05958000 | C174: =IF($A174<>0,INDEX('2.2 Daten'!E$9:E$859,MATCH('2.2'!$A174,'2.2 Daten'!$B$9:$B$859,0))) -> 4585 | D174: =IF($A174<>0,INDEX('2.2 Daten'!F$9:F$859,MATCH('2.2'!$A174,'2.2 Daten'!$B$9:$B$859,0))) -> 669 | E174: =IF($A174<>0,INDEX('2.2 Daten'!G$9:G$859,MATCH('2.2'!$A174,'2.2 Daten'!$B$9:$B$859,0))) -> 809 | F174: =IF($A174<>0,INDEX('2.2 Daten'!H$9:H$859,MATCH('2.2'!$A174,'2.2 Daten'!$B$9:$B$859,0))) -> 2449 | G174: =IF($A174<>0,INDEX('2.2 Daten'!I$9:I$859,MATCH('2.2'!$A174,'2.2 Daten'!$B$9:$B$859,0))) -> 658 | H174: =IF($A174<>0,INDEX('2.2 Daten'!K$9:K$859,MATCH('2.2'!$A174,'2.2 Daten'!$B$9:$B$859,0))) -> -0.06538796861 | I174: =IF($A174<>0,INDEX('2.2 Daten'!L$9:L$859,MATCH('2.2'!$A174,'2.2 Daten'!$B$9:$B$859,0))) -> -2.620087336 | J174: =IF($A174<>0,INDEX('2.2 Daten'!M$9:M$859,MATCH('2.2'!$A174,'2.2 Daten'!$B$9:$B$859,0))) -> -3.57568534 | K174: =IF($A174<>0,INDEX('2.2 Daten'!N$9:N$859,MATCH('2.2'!$A174,'2.2 Daten'!$B$9:$B$859,0))) -> 2.212020033 | L174: =IF($A174<>0,INDEX('2.2 Daten'!O$9:O$859,MATCH('2.2'!$A174,'2.2 Daten'!$B$9:$B$859,0))) -> -1.201201201
A175: =CHOOSE('2.2 Daten'!$A$2,'2.2 Daten'!B597,'2.2 Daten'!B146,'2.2 Daten'!B163,'2.2 Daten'!B180,'2.2 Daten'!B183,'2.2 Daten'!B230,'2.2 Daten'!B234,'2.2 Daten'!B289,'2.2 Daten'!B317,'2.2 Daten'!B355,'2.2 Daten'!B401,'2.2 Daten'!B499,'2.2 Daten'!B507,'2.2 Daten'!B510,'2.2 Daten'!B530,'2.2 Daten'!B540,'2.2 Daten'!B555,'2.2 Daten'!B571,x) -> Märkischer Kreis | B175: =IF($A175<>0,INDEX('2.2 Daten'!C$9:C$859,MATCH('2.2'!$A175,'2.2 Daten'!$B$9:$B$859,0))," ") -> 05962000 | C175: =IF($A175<>0,INDEX('2.2 Daten'!E$9:E$859,MATCH('2.2'!$A175,'2.2 Daten'!$B$9:$B$859,0))) -> 11188 | D175: =IF($A175<>0,INDEX('2.2 Daten'!F$9:F$859,MATCH('2.2'!$A175,'2.2 Daten'!$B$9:$B$859,0))) -> 1783 | E175: =IF($A175<>0,INDEX('2.2 Daten'!G$9:G$859,MATCH('2.2'!$A175,'2.2 Daten'!$B$9:$B$859,0))) -> 2068 | F175: =IF($A175<>0,INDEX('2.2 Daten'!H$9:H$859,MATCH('2.2'!$A175,'2.2 Daten'!$B$9:$B$859,0))) -> 5605 | G175: =IF($A175<>0,INDEX('2.2 Daten'!I$9:I$859,MATCH('2.2'!$A175,'2.2 Daten'!$B$9:$B$859,0))) -> 1732 | H175: =IF($A175<>0,INDEX('2.2 Daten'!K$9:K$859,MATCH('2.2'!$A175,'2.2 Daten'!$B$9:$B$859,0))) -> 2.397949844 | I175: =IF($A175<>0,INDEX('2.2 Daten'!L$9:L$859,MATCH('2.2'!$A175,'2.2 Daten'!$B$9:$B$859,0))) -> 1.249290176 | J175: =IF($A175<>0,INDEX('2.2 Daten'!M$9:M$859,MATCH('2.2'!$A175,'2.2 Daten'!$B$9:$B$859,0))) -> 0 | K175: =IF($A175<>0,INDEX('2.2 Daten'!N$9:N$859,MATCH('2.2'!$A175,'2.2 Daten'!$B$9:$B$859,0))) -> 2.262360883 | L175: =IF($A175<>0,INDEX('2.2 Daten'!O$9:O$859,MATCH('2.2'!$A175,'2.2 Daten'!$B$9:$B$859,0))) -> 7.178217822
A176: =CHOOSE('2.2 Daten'!$A$2,'2.2 Daten'!B598,'2.2 Daten'!B147,'2.2 Daten'!B164,'2.2 Daten'!B181,'2.2 Daten'!B184,'2.2 Daten'!B231,'2.2 Daten'!B235,'2.2 Daten'!B290,'2.2 Daten'!B318,'2.2 Daten'!B356,'2.2 Daten'!B402,'2.2 Daten'!B500,'2.2 Daten'!B508,'2.2 Daten'!B511,'2.2 Daten'!B531,'2.2 Daten'!B541,'2.2 Daten'!B556,'2.2 Daten'!B572,x) -> Olpe | B176: =IF($A176<>0,INDEX('2.2 Daten'!C$9:C$859,MATCH('2.2'!$A176,'2.2 Daten'!$B$9:$B$859,0))," ") -> 05966000 | C176: =IF($A176<>0,INDEX('2.2 Daten'!E$9:E$859,MATCH('2.2'!$A176,'2.2 Daten'!$B$9:$B$859,0))) -> 1997 | D176: =IF($A176<>0,INDEX('2.2 Daten'!F$9:F$859,MATCH('2.2'!$A176,'2.2 Daten'!$B$9:$B$859,0))) -> 288 | E176: =IF($A176<>0,INDEX('2.2 Daten'!G$9:G$859,MATCH('2.2'!$A176,'2.2 Daten'!$B$9:$B$859,0))) -> 323 | F176: =IF($A176<>0,INDEX('2.2 Daten'!H$9:H$859,MATCH('2.2'!$A176,'2.2 Daten'!$B$9:$B$859,0))) -> 1090 | G176: =IF($A176<>0,INDEX('2.2 Daten'!I$9:I$859,MATCH('2.2'!$A176,'2.2 Daten'!$B$9:$B$859,0))) -> 296 | H176: =IF($A176<>0,INDEX('2.2 Daten'!K$9:K$859,MATCH('2.2'!$A176,'2.2 Daten'!$B$9:$B$859,0))) -> 7.250268528 | I176: =IF($A176<>0,INDEX('2.2 Daten'!L$9:L$859,MATCH('2.2'!$A176,'2.2 Daten'!$B$9:$B$859,0))) -> 6.666666667 | J176: =IF($A176<>0,INDEX('2.2 Daten'!M$9:M$859,MATCH('2.2'!$A176,'2.2 Daten'!$B$9:$B$859,0))) -> -4.719764012 | K176: =IF($A176<>0,INDEX('2.2 Daten'!N$9:N$859,MATCH('2.2'!$A176,'2.2 Daten'!$B$9:$B$859,0))) -> 10.88504578 | L176: =IF($A176<>0,INDEX('2.2 Daten'!O$9:O$859,MATCH('2.2'!$A176,'2.2 Daten'!$B$9:$B$859,0))) -> 9.62962963
A177: =CHOOSE('2.2 Daten'!$A$2,'2.2 Daten'!B599,'2.2 Daten'!B148,'2.2 Daten'!B165,'2.2 Daten'!B182,'2.2 Daten'!B185,'2.2 Daten'!B232,'2.2 Daten'!B236,'2.2 Daten'!B291,'2.2 Daten'!B319,'2.2 Daten'!B357,'2.2 Daten'!B403,'2.2 Daten'!B501,'2.2 Daten'!B509,'2.2 Daten'!B512,'2.2 Daten'!B532,'2.2 Daten'!B542,'2.2 Daten'!B557,'2.2 Daten'!B573,x) -> Siegen-Wittgenstein | B177: =IF($A177<>0,INDEX('2.2 Daten'!C$9:C$859,MATCH('2.2'!$A177,'2.2 Daten'!$B$9:$B$859,0))," ") -> 05970000 | C177: =IF($A177<>0,INDEX('2.2 Daten'!E$9:E$859,MATCH('2.2'!$A177,'2.2 Daten'!$B$9:$B$859,0))) -> 6521 | D177: =IF($A177<>0,INDEX('2.2 Daten'!F$9:F$859,MATCH('2.2'!$A177,'2.2 Daten'!$B$9:$B$859,0))) -> 980 | E177: =IF($A177<>0,INDEX('2.2 Daten'!G$9:G$859,MATCH('2.2'!$A177,'2.2 Daten'!$B$9:$B$859,0))) -> 1187 | F177: =IF($A177<>0,INDEX('2.2 Daten'!H$9:H$859,MATCH('2.2'!$A177,'2.2 Daten'!$B$9:$B$859,0))) -> 3431 | G177: =IF($A177<>0,INDEX('2.2 Daten'!I$9:I$859,MATCH('2.2'!$A177,'2.2 Daten'!$B$9:$B$859,0))) -> 923 | H177: =IF($A177<>0,INDEX('2.2 Daten'!K$9:K$859,MATCH('2.2'!$A177,'2.2 Daten'!$B$9:$B$859,0))) -> 7.660558032 | I177: =IF($A177<>0,INDEX('2.2 Daten'!L$9:L$859,MATCH('2.2'!$A177,'2.2 Daten'!$B$9:$B$859,0))) -> 0.2044989775 | J177: =IF($A177<>0,INDEX('2.2 Daten'!M$9:M$859,MATCH('2.2'!$A177,'2.2 Daten'!$B$9:$B$859,0))) -> 3.668122271 | K177: =IF($A177<>0,INDEX('2.2 Daten'!N$9:N$859,MATCH('2.2'!$A177,'2.2 Daten'!$B$9:$B$859,0))) -> 9.86231188 | L177: =IF($A177<>0,INDEX('2.2 Daten'!O$9:O$859,MATCH('2.2'!$A177,'2.2 Daten'!$B$9:$B$859,0))) -> 13.81011097
A178: =CHOOSE('2.2 Daten'!$A$2,'2.2 Daten'!B600,'2.2 Daten'!B149,'2.2 Daten'!B166,'2.2 Daten'!B183,'2.2 Daten'!B186,'2.2 Daten'!B233,'2.2 Daten'!B237,'2.2 Daten'!B292,'2.2 Daten'!B320,'2.2 Daten'!B358,'2.2 Daten'!B404,'2.2 Daten'!B502,'2.2 Daten'!B510,'2.2 Daten'!B513,'2.2 Daten'!B533,'2.2 Daten'!B543,'2.2 Daten'!B558,'2.2 Daten'!B574,x) -> Soest | B178: =IF($A178<>0,INDEX('2.2 Daten'!C$9:C$859,MATCH('2.2'!$A178,'2.2 Daten'!$B$9:$B$859,0))," ") -> 05974000 | C178: =IF($A178<>0,INDEX('2.2 Daten'!E$9:E$859,MATCH('2.2'!$A178,'2.2 Daten'!$B$9:$B$859,0))) -> 6032 | D178: =IF($A178<>0,INDEX('2.2 Daten'!F$9:F$859,MATCH('2.2'!$A178,'2.2 Daten'!$B$9:$B$859,0))) -> 924 | E178: =IF($A178<>0,INDEX('2.2 Daten'!G$9:G$859,MATCH('2.2'!$A178,'2.2 Daten'!$B$9:$B$859,0))) -> 1122 | F178: =IF($A178<>0,INDEX('2.2 Daten'!H$9:H$859,MATCH('2.2'!$A178,'2.2 Daten'!$B$9:$B$859,0))) -> 3074 | G178: =IF($A178<>0,INDEX('2.2 Daten'!I$9:I$859,MATCH('2.2'!$A178,'2.2 Daten'!$B$9:$B$859,0))) -> 912 | H178: =IF($A178<>0,INDEX('2.2 Daten'!K$9:K$859,MATCH('2.2'!$A178,'2.2 Daten'!$B$9:$B$859,0))) -> -1.758957655 | I178: =IF($A178<>0,INDEX('2.2 Daten'!L$9:L$859,MATCH('2.2'!$A178,'2.2 Daten'!$B$9:$B$859,0))) -> -5.810397554 | J178: =IF($A178<>0,INDEX('2.2 Daten'!M$9:M$859,MATCH('2.2'!$A178,'2.2 Daten'!$B$9:$B$859,0))) -> -4.429301533 | K178: =IF($A178<>0,INDEX('2.2 Daten'!N$9:N$859,MATCH('2.2'!$A178,'2.2 Daten'!$B$9:$B$859,0))) -> -1.632 | L178: =IF($A178<>0,INDEX('2.2 Daten'!O$9:O$859,MATCH('2.2'!$A178,'2.2 Daten'!$B$9:$B$859,0))) -> 6.046511628
A179: =CHOOSE('2.2 Daten'!$A$2,'2.2 Daten'!B601,'2.2 Daten'!B150,'2.2 Daten'!B167,'2.2 Daten'!B184,'2.2 Daten'!B187,'2.2 Daten'!B234,'2.2 Daten'!B238,'2.2 Daten'!B293,'2.2 Daten'!B321,'2.2 Daten'!B359,'2.2 Daten'!B405,'2.2 Daten'!B503,'2.2 Daten'!B511,'2.2 Daten'!B514,'2.2 Daten'!B534,'2.2 Daten'!B544,'2.2 Daten'!B559,'2.2 Daten'!B575,x) -> Unna | B179: =IF($A179<>0,INDEX('2.2 Daten'!C$9:C$859,MATCH('2.2'!$A179,'2.2 Daten'!$B$9:$B$859,0))," ") -> 05978000 | C179: =IF($A179<>0,INDEX('2.2 Daten'!E$9:E$859,MATCH('2.2'!$A179,'2.2 Daten'!$B$9:$B$859,0))) -> 11446 | D179: =IF($A179<>0,INDEX('2.2 Daten'!F$9:F$859,MATCH('2.2'!$A179,'2.2 Daten'!$B$9:$B$859,0))) -> 1786 | E179: =IF($A179<>0,INDEX('2.2 Daten'!G$9:G$859,MATCH('2.2'!$A179,'2.2 Daten'!$B$9:$B$859,0))) -> 2108 | F179: =IF($A179<>0,INDEX('2.2 Daten'!H$9:H$859,MATCH('2.2'!$A179,'2.2 Daten'!$B$9:$B$859,0))) -> 5885 | G179: =IF($A179<>0,INDEX('2.2 Daten'!I$9:I$859,MATCH('2.2'!$A179,'2.2 Daten'!$B$9:$B$859,0))) -> 1667 | H179: =IF($A179<>0,INDEX('2.2 Daten'!K$9:K$859,MATCH('2.2'!$A179,'2.2 Daten'!$B$9:$B$859,0))) -> -0.2179408944 | I179: =IF($A179<>0,INDEX('2.2 Daten'!L$9:L$859,MATCH('2.2'!$A179,'2.2 Daten'!$B$9:$B$859,0))) -> -0.9428729895 | J179: =IF($A179<>0,INDEX('2.2 Daten'!M$9:M$859,MATCH('2.2'!$A179,'2.2 Daten'!$B$9:$B$859,0))) -> -0.7065473387 | K179: =IF($A179<>0,INDEX('2.2 Daten'!N$9:N$859,MATCH('2.2'!$A179,'2.2 Daten'!$B$9:$B$859,0))) -> -0.3893026405 | L179: =IF($A179<>0,INDEX('2.2 Daten'!O$9:O$859,MATCH('2.2'!$A179,'2.2 Daten'!$B$9:$B$859,0))) -> 1.832620648
A180: =CHOOSE('2.2 Daten'!$A$2,'2.2 Daten'!B602,'2.2 Daten'!B151,'2.2 Daten'!B168,'2.2 Daten'!B185,'2.2 Daten'!B188,'2.2 Daten'!B235,'2.2 Daten'!B239,'2.2 Daten'!B294,'2.2 Daten'!B322,'2.2 Daten'!B360,'2.2 Daten'!B406,'2.2 Daten'!B504,'2.2 Daten'!B512,'2.2 Daten'!B515,'2.2 Daten'!B535,'2.2 Daten'!B545,'2.2 Daten'!B560,'2.2 Daten'!B576,x) -> 0 | B180: =IF($A180<>0,INDEX('2.2 Daten'!C$9:C$859,MATCH('2.2'!$A180,'2.2 Daten'!$B$9:$B$859,0))," ") ->  | C180: =IF($A180<>0,INDEX('2.2 Daten'!E$9:E$859,MATCH('2.2'!$A180,'2.2 Daten'!$B$9:$B$859,0))) -> FALSE | D180: =IF($A180<>0,INDEX('2.2 Daten'!F$9:F$859,MATCH('2.2'!$A180,'2.2 Daten'!$B$9:$B$859,0))) -> FALSE | E180: =IF($A180<>0,INDEX('2.2 Daten'!G$9:G$859,MATCH('2.2'!$A180,'2.2 Daten'!$B$9:$B$859,0))) -> FALSE | F180: =IF($A180<>0,INDEX('2.2 Daten'!H$9:H$859,MATCH('2.2'!$A180,'2.2 Daten'!$B$9:$B$859,0))) -> FALSE | G180: =IF($A180<>0,INDEX('2.2 Daten'!I$9:I$859,MATCH('2.2'!$A180,'2.2 Daten'!$B$9:$B$859,0))) -> FALSE | H180: =IF($A180<>0,INDEX('2.2 Daten'!K$9:K$859,MATCH('2.2'!$A180,'2.2 Daten'!$B$9:$B$859,0))) -> FALSE | I180: =IF($A180<>0,INDEX('2.2 Daten'!L$9:L$859,MATCH('2.2'!$A180,'2.2 Daten'!$B$9:$B$859,0))) -> FALSE | J180: =IF($A180<>0,INDEX('2.2 Daten'!M$9:M$859,MATCH('2.2'!$A180,'2.2 Daten'!$B$9:$B$859,0))) -> FALSE | K180: =IF($A180<>0,INDEX('2.2 Daten'!N$9:N$859,MATCH('2.2'!$A180,'2.2 Daten'!$B$9:$B$859,0))) -> FALSE | L180: =IF($A180<>0,INDEX('2.2 Daten'!O$9:O$859,MATCH('2.2'!$A180,'2.2 Daten'!$B$9:$B$859,0))) -> FALSE
A181: =CHOOSE('2.2 Daten'!$A$2,'2.2 Daten'!B603,'2.2 Daten'!B152,'2.2 Daten'!B169,'2.2 Daten'!B186,'2.2 Daten'!B189,'2.2 Daten'!B236,'2.2 Daten'!B240,'2.2 Daten'!B295,'2.2 Daten'!B323,'2.2 Daten'!B361,'2.2 Daten'!B407,'2.2 Daten'!B505,'2.2 Daten'!B513,'2.2 Daten'!B516,'2.2 Daten'!B536,'2.2 Daten'!B546,'2.2 Daten'!B561,'2.2 Daten'!B577,x) -> Hessen | B181: =IF($A181<>0,INDEX('2.2 Daten'!C$9:C$859,MATCH('2.2'!$A181,'2.2 Daten'!$B$9:$B$859,0))," ") -> 06 | C181: =IF($A181<>0,INDEX('2.2 Daten'!E$9:E$859,MATCH('2.2'!$A181,'2.2 Daten'!$B$9:$B$859,0))) -> 153177 | D181: =IF($A181<>0,INDEX('2.2 Daten'!F$9:F$859,MATCH('2.2'!$A181,'2.2 Daten'!$B$9:$B$859,0))) -> 23472 | E181: =IF($A181<>0,INDEX('2.2 Daten'!G$9:G$859,MATCH('2.2'!$A181,'2.2 Daten'!$B$9:$B$859,0))) -> 28007 | F181: =IF($A181<>0,INDEX('2.2 Daten'!H$9:H$859,MATCH('2.2'!$A181,'2.2 Daten'!$B$9:$B$859,0))) -> 79426 | G181: =IF($A181<>0,INDEX('2.2 Daten'!I$9:I$859,MATCH('2.2'!$A181,'2.2 Daten'!$B$9:$B$859,0))) -> 22272 | H181: =IF($A181<>0,INDEX('2.2 Daten'!K$9:K$859,MATCH('2.2'!$A181,'2.2 Daten'!$B$9:$B$859,0))) -> 1.662551768 | I181: =IF($A181<>0,INDEX('2.2 Daten'!L$9:L$859,MATCH('2.2'!$A181,'2.2 Daten'!$B$9:$B$859,0))) -> -3.60970802 | J181: =IF($A181<>0,INDEX('2.2 Daten'!M$9:M$859,MATCH('2.2'!$A181,'2.2 Daten'!$B$9:$B$859,0))) -> -3.002701392 | K181: =IF($A181<>0,INDEX('2.2 Daten'!N$9:N$859,MATCH('2.2'!$A181,'2.2 Daten'!$B$9:$B$859,0))) -> 4.271910938 | L181: =IF($A181<>0,INDEX('2.2 Daten'!O$9:O$859,MATCH('2.2'!$A181,'2.2 Daten'!$B$9:$B$859,0))) -> 4.686251469
A182: =CHOOSE('2.2 Daten'!$A$2,'2.2 Daten'!B604,'2.2 Daten'!B153,'2.2 Daten'!B170,'2.2 Daten'!B187,'2.2 Daten'!B190,'2.2 Daten'!B237,'2.2 Daten'!B241,'2.2 Daten'!B296,'2.2 Daten'!B324,'2.2 Daten'!B362,'2.2 Daten'!B408,'2.2 Daten'!B506,'2.2 Daten'!B514,'2.2 Daten'!B517,'2.2 Daten'!B537,'2.2 Daten'!B547,'2.2 Daten'!B562,'2.2 Daten'!B578,x) -> Darmstadt, Wissenschaftsstadt | B182: =IF($A182<>0,INDEX('2.2 Daten'!C$9:C$859,MATCH('2.2'!$A182,'2.2 Daten'!$B$9:$B$859,0))," ") -> 06411000 | C182: =IF($A182<>0,INDEX('2.2 Daten'!E$9:E$859,MATCH('2.2'!$A182,'2.2 Daten'!$B$9:$B$859,0))) -> 5018 | D182: =IF($A182<>0,INDEX('2.2 Daten'!F$9:F$859,MATCH('2.2'!$A182,'2.2 Daten'!$B$9:$B$859,0))) -> 740 | E182: =IF($A182<>0,INDEX('2.2 Daten'!G$9:G$859,MATCH('2.2'!$A182,'2.2 Daten'!$B$9:$B$859,0))) -> 949 | F182: =IF($A182<>0,INDEX('2.2 Daten'!H$9:H$859,MATCH('2.2'!$A182,'2.2 Daten'!$B$9:$B$859,0))) -> 2575 | G182: =IF($A182<>0,INDEX('2.2 Daten'!I$9:I$859,MATCH('2.2'!$A182,'2.2 Daten'!$B$9:$B$859,0))) -> 754 | H182: =IF($A182<>0,INDEX('2.2 Daten'!K$9:K$859,MATCH('2.2'!$A182,'2.2 Daten'!$B$9:$B$859,0))) -> 3.272278247 | I182: =IF($A182<>0,INDEX('2.2 Daten'!L$9:L$859,MATCH('2.2'!$A182,'2.2 Daten'!$B$9:$B$859,0))) -> -7.151819322 | J182: =IF($A182<>0,INDEX('2.2 Daten'!M$9:M$859,MATCH('2.2'!$A182,'2.2 Daten'!$B$9:$B$859,0))) -> -1.658031088 | K182: =IF($A182<>0,INDEX('2.2 Daten'!N$9:N$859,MATCH('2.2'!$A182,'2.2 Daten'!$B$9:$B$859,0))) -> 5.923488276 | L182: =IF($A182<>0,INDEX('2.2 Daten'!O$9:O$859,MATCH('2.2'!$A182,'2.2 Daten'!$B$9:$B$859,0))) -> 13.21321321
A183: =CHOOSE('2.2 Daten'!$A$2,'2.2 Daten'!B605,'2.2 Daten'!B154,'2.2 Daten'!B171,'2.2 Daten'!B188,'2.2 Daten'!B191,'2.2 Daten'!B238,'2.2 Daten'!B242,'2.2 Daten'!B297,'2.2 Daten'!B325,'2.2 Daten'!B363,'2.2 Daten'!B409,'2.2 Daten'!B507,'2.2 Daten'!B515,'2.2 Daten'!B518,'2.2 Daten'!B538,'2.2 Daten'!B548,'2.2 Daten'!B563,'2.2 Daten'!B579,x) -> Frankfurt am Main, Stadt | B183: =IF($A183<>0,INDEX('2.2 Daten'!C$9:C$859,MATCH('2.2'!$A183,'2.2 Daten'!$B$9:$B$859,0))," ") -> 06412000 | C183: =IF($A183<>0,INDEX('2.2 Daten'!E$9:E$859,MATCH('2.2'!$A183,'2.2 Daten'!$B$9:$B$859,0))) -> 22598 | D183: =IF($A183<>0,INDEX('2.2 Daten'!F$9:F$859,MATCH('2.2'!$A183,'2.2 Daten'!$B$9:$B$859,0))) -> 3571 | E183: =IF($A183<>0,INDEX('2.2 Daten'!G$9:G$859,MATCH('2.2'!$A183,'2.2 Daten'!$B$9:$B$859,0))) -> 4203 | F183: =IF($A183<>0,INDEX('2.2 Daten'!H$9:H$859,MATCH('2.2'!$A183,'2.2 Daten'!$B$9:$B$859,0))) -> 11534 | G183: =IF($A183<>0,INDEX('2.2 Daten'!I$9:I$859,MATCH('2.2'!$A183,'2.2 Daten'!$B$9:$B$859,0))) -> 3290 | H183: =IF($A183<>0,INDEX('2.2 Daten'!K$9:K$859,MATCH('2.2'!$A183,'2.2 Daten'!$B$9:$B$859,0))) -> 1.254592705 | I183: =IF($A183<>0,INDEX('2.2 Daten'!L$9:L$859,MATCH('2.2'!$A183,'2.2 Daten'!$B$9:$B$859,0))) -> -2.988318392 | J183: =IF($A183<>0,INDEX('2.2 Daten'!M$9:M$859,MATCH('2.2'!$A183,'2.2 Daten'!$B$9:$B$859,0))) -> -2.798334875 | K183: =IF($A183<>0,INDEX('2.2 Daten'!N$9:N$859,MATCH('2.2'!$A183,'2.2 Daten'!$B$9:$B$859,0))) -> 3.639140983 | L183: =IF($A183<>0,INDEX('2.2 Daten'!O$9:O$859,MATCH('2.2'!$A183,'2.2 Daten'!$B$9:$B$859,0))) -> 3.329145729
A184: =CHOOSE('2.2 Daten'!$A$2,'2.2 Daten'!B606,'2.2 Daten'!B155,'2.2 Daten'!B172,'2.2 Daten'!B189,'2.2 Daten'!B192,'2.2 Daten'!B239,'2.2 Daten'!B243,'2.2 Daten'!B298,'2.2 Daten'!B326,'2.2 Daten'!B364,'2.2 Daten'!B410,'2.2 Daten'!B508,'2.2 Daten'!B516,'2.2 Daten'!B519,'2.2 Daten'!B539,'2.2 Daten'!B549,'2.2 Daten'!B564,'2.2 Daten'!B580,x) -> Offenbach am Main, Stadt | B184: =IF($A184<>0,INDEX('2.2 Daten'!C$9:C$859,MATCH('2.2'!$A184,'2.2 Daten'!$B$9:$B$859,0))," ") -> 06413000 | C184: =IF($A184<>0,INDEX('2.2 Daten'!E$9:E$859,MATCH('2.2'!$A184,'2.2 Daten'!$B$9:$B$859,0))) -> 5100 | D184: =IF($A184<>0,INDEX('2.2 Daten'!F$9:F$859,MATCH('2.2'!$A184,'2.2 Daten'!$B$9:$B$859,0))) -> 734 | E184: =IF($A184<>0,INDEX('2.2 Daten'!G$9:G$859,MATCH('2.2'!$A184,'2.2 Daten'!$B$9:$B$859,0))) -> 934 | F184: =IF($A184<>0,INDEX('2.2 Daten'!H$9:H$859,MATCH('2.2'!$A184,'2.2 Daten'!$B$9:$B$859,0))) -> 2633 | G184: =IF($A184<>0,INDEX('2.2 Daten'!I$9:I$859,MATCH('2.2'!$A184,'2.2 Daten'!$B$9:$B$859,0))) -> 799 | H184: =IF($A184<>0,INDEX('2.2 Daten'!K$9:K$859,MATCH('2.2'!$A184,'2.2 Daten'!$B$9:$B$859,0))) -> -3.809883063 | I184: =IF($A184<>0,INDEX('2.2 Daten'!L$9:L$859,MATCH('2.2'!$A184,'2.2 Daten'!$B$9:$B$859,0))) -> -2.133333333 | J184: =IF($A184<>0,INDEX('2.2 Daten'!M$9:M$859,MATCH('2.2'!$A184,'2.2 Daten'!$B$9:$B$859,0))) -> -4.498977505 | K184: =IF($A184<>0,INDEX('2.2 Daten'!N$9:N$859,MATCH('2.2'!$A184,'2.2 Daten'!$B$9:$B$859,0))) -> -3.623718887 | L184: =IF($A184<>0,INDEX('2.2 Daten'!O$9:O$859,MATCH('2.2'!$A184,'2.2 Daten'!$B$9:$B$859,0))) -> -5.106888361
A185: =CHOOSE('2.2 Daten'!$A$2,'2.2 Daten'!B607,'2.2 Daten'!B156,'2.2 Daten'!B173,'2.2 Daten'!B190,'2.2 Daten'!B193,'2.2 Daten'!B240,'2.2 Daten'!B244,'2.2 Daten'!B299,'2.2 Daten'!B327,'2.2 Daten'!B365,'2.2 Daten'!B411,'2.2 Daten'!B509,'2.2 Daten'!B517,'2.2 Daten'!B520,'2.2 Daten'!B540,'2.2 Daten'!B550,'2.2 Daten'!B565,'2.2 Daten'!B581,x) -> Wiesbaden, Landeshauptstadt | B185: =IF($A185<>0,INDEX('2.2 Daten'!C$9:C$859,MATCH('2.2'!$A185,'2.2 Daten'!$B$9:$B$859,0))," ") -> 06414000 | C185: =IF($A185<>0,INDEX('2.2 Daten'!E$9:E$859,MATCH('2.2'!$A185,'2.2 Daten'!$B$9:$B$859,0))) -> 10837 | D185: =IF($A185<>0,INDEX('2.2 Daten'!F$9:F$859,MATCH('2.2'!$A185,'2.2 Daten'!$B$9:$B$859,0))) -> 1659 | E185: =IF($A185<>0,INDEX('2.2 Daten'!G$9:G$859,MATCH('2.2'!$A185,'2.2 Daten'!$B$9:$B$859,0))) -> 1905 | F185: =IF($A185<>0,INDEX('2.2 Daten'!H$9:H$859,MATCH('2.2'!$A185,'2.2 Daten'!$B$9:$B$859,0))) -> 5646 | G185: =IF($A185<>0,INDEX('2.2 Daten'!I$9:I$859,MATCH('2.2'!$A185,'2.2 Daten'!$B$9:$B$859,0))) -> 1627 | H185: =IF($A185<>0,INDEX('2.2 Daten'!K$9:K$859,MATCH('2.2'!$A185,'2.2 Daten'!$B$9:$B$859,0))) -> 0.4728351567 | I185: =IF($A185<>0,INDEX('2.2 Daten'!L$9:L$859,MATCH('2.2'!$A185,'2.2 Daten'!$B$9:$B$859,0))) -> -3.993055556 | J185: =IF($A185<>0,INDEX('2.2 Daten'!M$9:M$859,MATCH('2.2'!$A185,'2.2 Daten'!$B$9:$B$859,0))) -> -5.87944664 | K185: =IF($A185<>0,INDEX('2.2 Daten'!N$9:N$859,MATCH('2.2'!$A185,'2.2 Daten'!$B$9:$B$859,0))) -> 2.860265987 | L185: =IF($A185<>0,INDEX('2.2 Daten'!O$9:O$859,MATCH('2.2'!$A185,'2.2 Daten'!$B$9:$B$859,0))) -> 5.307443366
A186: =CHOOSE('2.2 Daten'!$A$2,'2.2 Daten'!B608,'2.2 Daten'!B157,'2.2 Daten'!B174,'2.2 Daten'!B191,'2.2 Daten'!B194,'2.2 Daten'!B241,'2.2 Daten'!B245,'2.2 Daten'!B300,'2.2 Daten'!B328,'2.2 Daten'!B366,'2.2 Daten'!B412,'2.2 Daten'!B510,'2.2 Daten'!B518,'2.2 Daten'!B521,'2.2 Daten'!B541,'2.2 Daten'!B551,'2.2 Daten'!B566,'2.2 Daten'!B582,x) -> Bergstraße | B186: =IF($A186<>0,INDEX('2.2 Daten'!C$9:C$859,MATCH('2.2'!$A186,'2.2 Daten'!$B$9:$B$859,0))," ") -> 06431000 | C186: =IF($A186<>0,INDEX('2.2 Daten'!E$9:E$859,MATCH('2.2'!$A186,'2.2 Daten'!$B$9:$B$859,0))) -> 5543 | D186: =IF($A186<>0,INDEX('2.2 Daten'!F$9:F$859,MATCH('2.2'!$A186,'2.2 Daten'!$B$9:$B$859,0))) -> 808 | E186: =IF($A186<>0,INDEX('2.2 Daten'!G$9:G$859,MATCH('2.2'!$A186,'2.2 Daten'!$B$9:$B$859,0))) -> 1066 | F186: =IF($A186<>0,INDEX('2.2 Daten'!H$9:H$859,MATCH('2.2'!$A186,'2.2 Daten'!$B$9:$B$859,0))) -> 2903 | G186: =IF($A186<>0,INDEX('2.2 Daten'!I$9:I$859,MATCH('2.2'!$A186,'2.2 Daten'!$B$9:$B$859,0))) -> 766 | H186: =IF($A186<>0,INDEX('2.2 Daten'!K$9:K$859,MATCH('2.2'!$A186,'2.2 Daten'!$B$9:$B$859,0))) -> 3.029739777 | I186: =IF($A186<>0,INDEX('2.2 Daten'!L$9:L$859,MATCH('2.2'!$A186,'2.2 Daten'!$B$9:$B$859,0))) -> -9.11136108 | J186: =IF($A186<>0,INDEX('2.2 Daten'!M$9:M$859,MATCH('2.2'!$A186,'2.2 Daten'!$B$9:$B$859,0))) -> 5.128205128 | K186: =IF($A186<>0,INDEX('2.2 Daten'!N$9:N$859,MATCH('2.2'!$A186,'2.2 Daten'!$B$9:$B$859,0))) -> 6.181419166 | L186: =IF($A186<>0,INDEX('2.2 Daten'!O$9:O$859,MATCH('2.2'!$A186,'2.2 Daten'!$B$9:$B$859,0))) -> 3.095558546
A187: =CHOOSE('2.2 Daten'!$A$2,'2.2 Daten'!B609,'2.2 Daten'!B158,'2.2 Daten'!B175,'2.2 Daten'!B192,'2.2 Daten'!B195,'2.2 Daten'!B242,'2.2 Daten'!B246,'2.2 Daten'!B301,'2.2 Daten'!B329,'2.2 Daten'!B367,'2.2 Daten'!B413,'2.2 Daten'!B511,'2.2 Daten'!B519,'2.2 Daten'!B522,'2.2 Daten'!B542,'2.2 Daten'!B552,'2.2 Daten'!B567,'2.2 Daten'!B583,x) -> Darmstadt-Dieburg | B187: =IF($A187<>0,INDEX('2.2 Daten'!C$9:C$859,MATCH('2.2'!$A187,'2.2 Daten'!$B$9:$B$859,0))," ") -> 06432000 | C187: =IF($A187<>0,INDEX('2.2 Daten'!E$9:E$859,MATCH('2.2'!$A187,'2.2 Daten'!$B$9:$B$859,0))) -> 5949 | D187: =IF($A187<>0,INDEX('2.2 Daten'!F$9:F$859,MATCH('2.2'!$A187,'2.2 Daten'!$B$9:$B$859,0))) -> 899 | E187: =IF($A187<>0,INDEX('2.2 Daten'!G$9:G$859,MATCH('2.2'!$A187,'2.2 Daten'!$B$9:$B$859,0))) -> 1053 | F187: =IF($A187<>0,INDEX('2.2 Daten'!H$9:H$859,MATCH('2.2'!$A187,'2.2 Daten'!$B$9:$B$859,0))) -> 3177 | G187: =IF($A187<>0,INDEX('2.2 Daten'!I$9:I$859,MATCH('2.2'!$A187,'2.2 Daten'!$B$9:$B$859,0))) -> 820 | H187: =IF($A187<>0,INDEX('2.2 Daten'!K$9:K$859,MATCH('2.2'!$A187,'2.2 Daten'!$B$9:$B$859,0))) -> 3.209576683 | I187: =IF($A187<>0,INDEX('2.2 Daten'!L$9:L$859,MATCH('2.2'!$A187,'2.2 Daten'!$B$9:$B$859,0))) -> -1.533406353 | J187: =IF($A187<>0,INDEX('2.2 Daten'!M$9:M$859,MATCH('2.2'!$A187,'2.2 Daten'!$B$9:$B$859,0))) -> -3.305785124 | K187: =IF($A187<>0,INDEX('2.2 Daten'!N$9:N$859,MATCH('2.2'!$A187,'2.2 Daten'!$B$9:$B$859,0))) -> 6.325301205 | L187: =IF($A187<>0,INDEX('2.2 Daten'!O$9:O$859,MATCH('2.2'!$A187,'2.2 Daten'!$B$9:$B$859,0))) -> 5.943152455
A188: =CHOOSE('2.2 Daten'!$A$2,'2.2 Daten'!B610,'2.2 Daten'!B159,'2.2 Daten'!B176,'2.2 Daten'!B193,'2.2 Daten'!B196,'2.2 Daten'!B243,'2.2 Daten'!B247,'2.2 Daten'!B302,'2.2 Daten'!B330,'2.2 Daten'!B368,'2.2 Daten'!B414,'2.2 Daten'!B512,'2.2 Daten'!B520,'2.2 Daten'!B523,'2.2 Daten'!B543,'2.2 Daten'!B553,'2.2 Daten'!B568,'2.2 Daten'!B584,x) -> Groß-Gerau | B188: =IF($A188<>0,INDEX('2.2 Daten'!C$9:C$859,MATCH('2.2'!$A188,'2.2 Daten'!$B$9:$B$859,0))," ") -> 06433000 | C188: =IF($A188<>0,INDEX('2.2 Daten'!E$9:E$859,MATCH('2.2'!$A188,'2.2 Daten'!$B$9:$B$859,0))) -> 7563 | D188: =IF($A188<>0,INDEX('2.2 Daten'!F$9:F$859,MATCH('2.2'!$A188,'2.2 Daten'!$B$9:$B$859,0))) -> 1191 | E188: =IF($A188<>0,INDEX('2.2 Daten'!G$9:G$859,MATCH('2.2'!$A188,'2.2 Daten'!$B$9:$B$859,0))) -> 1325 | F188: =IF($A188<>0,INDEX('2.2 Daten'!H$9:H$859,MATCH('2.2'!$A188,'2.2 Daten'!$B$9:$B$859,0))) -> 3877 | G188: =IF($A188<>0,INDEX('2.2 Daten'!I$9:I$859,MATCH('2.2'!$A188,'2.2 Daten'!$B$9:$B$859,0))) -> 1170 | H188: =IF($A188<>0,INDEX('2.2 Daten'!K$9:K$859,MATCH('2.2'!$A188,'2.2 Daten'!$B$9:$B$859,0))) -> 3.830313015 | I188: =IF($A188<>0,INDEX('2.2 Daten'!L$9:L$859,MATCH('2.2'!$A188,'2.2 Daten'!$B$9:$B$859,0))) -> 0.5912162162 | J188: =IF($A188<>0,INDEX('2.2 Daten'!M$9:M$859,MATCH('2.2'!$A188,'2.2 Daten'!$B$9:$B$859,0))) -> -1.851851852 | K188: =IF($A188<>0,INDEX('2.2 Daten'!N$9:N$859,MATCH('2.2'!$A188,'2.2 Daten'!$B$9:$B$859,0))) -> 4.755471494 | L188: =IF($A188<>0,INDEX('2.2 Daten'!O$9:O$859,MATCH('2.2'!$A188,'2.2 Daten'!$B$9:$B$859,0))) -> 11.53479504
A189: =CHOOSE('2.2 Daten'!$A$2,'2.2 Daten'!B611,'2.2 Daten'!B160,'2.2 Daten'!B177,'2.2 Daten'!B194,'2.2 Daten'!B197,'2.2 Daten'!B244,'2.2 Daten'!B248,'2.2 Daten'!B303,'2.2 Daten'!B331,'2.2 Daten'!B369,'2.2 Daten'!B415,'2.2 Daten'!B513,'2.2 Daten'!B521,'2.2 Daten'!B524,'2.2 Daten'!B544,'2.2 Daten'!B554,'2.2 Daten'!B569,'2.2 Daten'!B585,x) -> Hochtaunuskreis | B189: =IF($A189<>0,INDEX('2.2 Daten'!C$9:C$859,MATCH('2.2'!$A189,'2.2 Daten'!$B$9:$B$859,0))," ") -> 06434000 | C189: =IF($A189<>0,INDEX('2.2 Daten'!E$9:E$859,MATCH('2.2'!$A189,'2.2 Daten'!$B$9:$B$859,0))) -> 4286 | D189: =IF($A189<>0,INDEX('2.2 Daten'!F$9:F$859,MATCH('2.2'!$A189,'2.2 Daten'!$B$9:$B$859,0))) -> 586 | E189: =IF($A189<>0,INDEX('2.2 Daten'!G$9:G$859,MATCH('2.2'!$A189,'2.2 Daten'!$B$9:$B$859,0))) -> 756 | F189: =IF($A189<>0,INDEX('2.2 Daten'!H$9:H$859,MATCH('2.2'!$A189,'2.2 Daten'!$B$9:$B$859,0))) -> 2312 | G189: =IF($A189<>0,INDEX('2.2 Daten'!I$9:I$859,MATCH('2.2'!$A189,'2.2 Daten'!$B$9:$B$859,0))) -> 632 | H189: =IF($A189<>0,INDEX('2.2 Daten'!K$9:K$859,MATCH('2.2'!$A189,'2.2 Daten'!$B$9:$B$859,0))) -> -8.320855615 | I189: =IF($A189<>0,INDEX('2.2 Daten'!L$9:L$859,MATCH('2.2'!$A189,'2.2 Daten'!$B$9:$B$859,0))) -> -16.76136364 | J189: =IF($A189<>0,INDEX('2.2 Daten'!M$9:M$859,MATCH('2.2'!$A189,'2.2 Daten'!$B$9:$B$859,0))) -> -14.47963801 | K189: =IF($A189<>0,INDEX('2.2 Daten'!N$9:N$859,MATCH('2.2'!$A189,'2.2 Daten'!$B$9:$B$859,0))) -> -5.207052071 | L189: =IF($A189<>0,INDEX('2.2 Daten'!O$9:O$859,MATCH('2.2'!$A189,'2.2 Daten'!$B$9:$B$859,0))) -> -2.469135802
A190: =CHOOSE('2.2 Daten'!$A$2,'2.2 Daten'!B612,'2.2 Daten'!B161,'2.2 Daten'!B178,'2.2 Daten'!B195,'2.2 Daten'!B198,'2.2 Daten'!B245,'2.2 Daten'!B249,'2.2 Daten'!B304,'2.2 Daten'!B332,'2.2 Daten'!B370,'2.2 Daten'!B416,'2.2 Daten'!B514,'2.2 Daten'!B522,'2.2 Daten'!B525,'2.2 Daten'!B545,'2.2 Daten'!B555,'2.2 Daten'!B570,'2.2 Daten'!B586,x) -> Main-Kinzig-Kreis | B190: =IF($A190<>0,INDEX('2.2 Daten'!C$9:C$859,MATCH('2.2'!$A190,'2.2 Daten'!$B$9:$B$859,0))," ") -> 06435000 | C190: =IF($A190<>0,INDEX('2.2 Daten'!E$9:E$859,MATCH('2.2'!$A190,'2.2 Daten'!$B$9:$B$859,0))) -> 9904 | D190: =IF($A190<>0,INDEX('2.2 Daten'!F$9:F$859,MATCH('2.2'!$A190,'2.2 Daten'!$B$9:$B$859,0))) -> 1450 | E190: =IF($A190<>0,INDEX('2.2 Daten'!G$9:G$859,MATCH('2.2'!$A190,'2.2 Daten'!$B$9:$B$859,0))) -> 1773 | F190: =IF($A190<>0,INDEX('2.2 Daten'!H$9:H$859,MATCH('2.2'!$A190,'2.2 Daten'!$B$9:$B$859,0))) -> 5212 | G190: =IF($A190<>0,INDEX('2.2 Daten'!I$9:I$859,MATCH('2.2'!$A190,'2.2 Daten'!$B$9:$B$859,0))) -> 1469 | H190: =IF($A190<>0,INDEX('2.2 Daten'!K$9:K$859,MATCH('2.2'!$A190,'2.2 Daten'!$B$9:$B$859,0))) -> 2.061005771 | I190: =IF($A190<>0,INDEX('2.2 Daten'!L$9:L$859,MATCH('2.2'!$A190,'2.2 Daten'!$B$9:$B$859,0))) -> -6.270200388 | J190: =IF($A190<>0,INDEX('2.2 Daten'!M$9:M$859,MATCH('2.2'!$A190,'2.2 Daten'!$B$9:$B$859,0))) -> -3.220524017 | K190: =IF($A190<>0,INDEX('2.2 Daten'!N$9:N$859,MATCH('2.2'!$A190,'2.2 Daten'!$B$9:$B$859,0))) -> 6.323949408 | L190: =IF($A190<>0,INDEX('2.2 Daten'!O$9:O$859,MATCH('2.2'!$A190,'2.2 Daten'!$B$9:$B$859,0))) -> 3.232607168
A191: =CHOOSE('2.2 Daten'!$A$2,'2.2 Daten'!B613,'2.2 Daten'!B162,'2.2 Daten'!B179,'2.2 Daten'!B196,'2.2 Daten'!B199,'2.2 Daten'!B246,'2.2 Daten'!B250,'2.2 Daten'!B305,'2.2 Daten'!B333,'2.2 Daten'!B371,'2.2 Daten'!B417,'2.2 Daten'!B515,'2.2 Daten'!B523,'2.2 Daten'!B526,'2.2 Daten'!B546,'2.2 Daten'!B556,'2.2 Daten'!B571,'2.2 Daten'!B587,x) -> Main-Taunus-Kreis | B191: =IF($A191<>0,INDEX('2.2 Daten'!C$9:C$859,MATCH('2.2'!$A191,'2.2 Daten'!$B$9:$B$859,0))," ") -> 06436000 | C191: =IF($A191<>0,INDEX('2.2 Daten'!E$9:E$859,MATCH('2.2'!$A191,'2.2 Daten'!$B$9:$B$859,0))) -> 4444 | D191: =IF($A191<>0,INDEX('2.2 Daten'!F$9:F$859,MATCH('2.2'!$A191,'2.2 Daten'!$B$9:$B$859,0))) -> 594 | E191: =IF($A191<>0,INDEX('2.2 Daten'!G$9:G$859,MATCH('2.2'!$A191,'2.2 Daten'!$B$9:$B$859,0))) -> 770 | F191: =IF($A191<>0,INDEX('2.2 Daten'!H$9:H$859,MATCH('2.2'!$A191,'2.2 Daten'!$B$9:$B$859,0))) -> 2398 | G191: =IF($A191<>0,INDEX('2.2 Daten'!I$9:I$859,MATCH('2.2'!$A191,'2.2 Daten'!$B$9:$B$859,0))) -> 682 | H191: =IF($A191<>0,INDEX('2.2 Daten'!K$9:K$859,MATCH('2.2'!$A191,'2.2 Daten'!$B$9:$B$859,0))) -> 1.786532295 | I191: =IF($A191<>0,INDEX('2.2 Daten'!L$9:L$859,MATCH('2.2'!$A191,'2.2 Daten'!$B$9:$B$859,0))) -> -2.941176471 | J191: =IF($A191<>0,INDEX('2.2 Daten'!M$9:M$859,MATCH('2.2'!$A191,'2.2 Daten'!$B$9:$B$859,0))) -> -1.408450704 | K191: =IF($A191<>0,INDEX('2.2 Daten'!N$9:N$859,MATCH('2.2'!$A191,'2.2 Daten'!$B$9:$B$859,0))) -> 4.62478185 | L191: =IF($A191<>0,INDEX('2.2 Daten'!O$9:O$859,MATCH('2.2'!$A191,'2.2 Daten'!$B$9:$B$859,0))) -> 0.1468428781
A192: =CHOOSE('2.2 Daten'!$A$2,'2.2 Daten'!B614,'2.2 Daten'!B163,'2.2 Daten'!B180,'2.2 Daten'!B197,'2.2 Daten'!B200,'2.2 Daten'!B247,'2.2 Daten'!B251,'2.2 Daten'!B306,'2.2 Daten'!B334,'2.2 Daten'!B372,'2.2 Daten'!B418,'2.2 Daten'!B516,'2.2 Daten'!B524,'2.2 Daten'!B527,'2.2 Daten'!B547,'2.2 Daten'!B557,'2.2 Daten'!B572,'2.2 Daten'!B588,x) -> Odenwaldkreis | B192: =IF($A192<>0,INDEX('2.2 Daten'!C$9:C$859,MATCH('2.2'!$A192,'2.2 Daten'!$B$9:$B$859,0))," ") -> 06437000 | C192: =IF($A192<>0,INDEX('2.2 Daten'!E$9:E$859,MATCH('2.2'!$A192,'2.2 Daten'!$B$9:$B$859,0))) -> 1888 | D192: =IF($A192<>0,INDEX('2.2 Daten'!F$9:F$859,MATCH('2.2'!$A192,'2.2 Daten'!$B$9:$B$859,0))) -> 313 | E192: =IF($A192<>0,INDEX('2.2 Daten'!G$9:G$859,MATCH('2.2'!$A192,'2.2 Daten'!$B$9:$B$859,0))) -> 350 | F192: =IF($A192<>0,INDEX('2.2 Daten'!H$9:H$859,MATCH('2.2'!$A192,'2.2 Daten'!$B$9:$B$859,0))) -> 931 | G192: =IF($A192<>0,INDEX('2.2 Daten'!I$9:I$859,MATCH('2.2'!$A192,'2.2 Daten'!$B$9:$B$859,0))) -> 294 | H192: =IF($A192<>0,INDEX('2.2 Daten'!K$9:K$859,MATCH('2.2'!$A192,'2.2 Daten'!$B$9:$B$859,0))) -> -4.453441296 | I192: =IF($A192<>0,INDEX('2.2 Daten'!L$9:L$859,MATCH('2.2'!$A192,'2.2 Daten'!$B$9:$B$859,0))) -> -3.987730061 | J192: =IF($A192<>0,INDEX('2.2 Daten'!M$9:M$859,MATCH('2.2'!$A192,'2.2 Daten'!$B$9:$B$859,0))) -> -6.166219839 | K192: =IF($A192<>0,INDEX('2.2 Daten'!N$9:N$859,MATCH('2.2'!$A192,'2.2 Daten'!$B$9:$B$859,0))) -> -3.82231405 | L192: =IF($A192<>0,INDEX('2.2 Daten'!O$9:O$859,MATCH('2.2'!$A192,'2.2 Daten'!$B$9:$B$859,0))) -> -4.854368932
A193: =CHOOSE('2.2 Daten'!$A$2,'2.2 Daten'!B615,'2.2 Daten'!B164,'2.2 Daten'!B181,'2.2 Daten'!B198,'2.2 Daten'!B201,'2.2 Daten'!B248,'2.2 Daten'!B252,'2.2 Daten'!B307,'2.2 Daten'!B335,'2.2 Daten'!B373,'2.2 Daten'!B419,'2.2 Daten'!B517,'2.2 Daten'!B525,'2.2 Daten'!B528,'2.2 Daten'!B548,'2.2 Daten'!B558,'2.2 Daten'!B573,'2.2 Daten'!B589,x) -> Offenbach | B193: =IF($A193<>0,INDEX('2.2 Daten'!C$9:C$859,MATCH('2.2'!$A193,'2.2 Daten'!$B$9:$B$859,0))," ") -> 06438000 | C193: =IF($A193<>0,INDEX('2.2 Daten'!E$9:E$859,MATCH('2.2'!$A193,'2.2 Daten'!$B$9:$B$859,0))) -> 8420 | D193: =IF($A193<>0,INDEX('2.2 Daten'!F$9:F$859,MATCH('2.2'!$A193,'2.2 Daten'!$B$9:$B$859,0))) -> 1276 | E193: =IF($A193<>0,INDEX('2.2 Daten'!G$9:G$859,MATCH('2.2'!$A193,'2.2 Daten'!$B$9:$B$859,0))) -> 1527 | F193: =IF($A193<>0,INDEX('2.2 Daten'!H$9:H$859,MATCH('2.2'!$A193,'2.2 Daten'!$B$9:$B$859,0))) -> 4385 | G193: =IF($A193<>0,INDEX('2.2 Daten'!I$9:I$859,MATCH('2.2'!$A193,'2.2 Daten'!$B$9:$B$859,0))) -> 1232 | H193: =IF($A193<>0,INDEX('2.2 Daten'!K$9:K$859,MATCH('2.2'!$A193,'2.2 Daten'!$B$9:$B$859,0))) -> 0.04752851711 | I193: =IF($A193<>0,INDEX('2.2 Daten'!L$9:L$859,MATCH('2.2'!$A193,'2.2 Daten'!$B$9:$B$859,0))) -> -6.725146199 | J193: =IF($A193<>0,INDEX('2.2 Daten'!M$9:M$859,MATCH('2.2'!$A193,'2.2 Daten'!$B$9:$B$859,0))) -> -5.856966708 | K193: =IF($A193<>0,INDEX('2.2 Daten'!N$9:N$859,MATCH('2.2'!$A193,'2.2 Daten'!$B$9:$B$859,0))) -> 4.404761905 | L193: =IF($A193<>0,INDEX('2.2 Daten'!O$9:O$859,MATCH('2.2'!$A193,'2.2 Daten'!$B$9:$B$859,0))) -> 0.4893964111
A194: =CHOOSE('2.2 Daten'!$A$2,'2.2 Daten'!B616,'2.2 Daten'!B165,'2.2 Daten'!B182,'2.2 Daten'!B199,'2.2 Daten'!B202,'2.2 Daten'!B249,'2.2 Daten'!B253,'2.2 Daten'!B308,'2.2 Daten'!B336,'2.2 Daten'!B374,'2.2 Daten'!B420,'2.2 Daten'!B518,'2.2 Daten'!B526,'2.2 Daten'!B529,'2.2 Daten'!B549,'2.2 Daten'!B559,'2.2 Daten'!B574,'2.2 Daten'!B590,x) -> Rheingau-Taunus-Kreis | B194: =IF($A194<>0,INDEX('2.2 Daten'!C$9:C$859,MATCH('2.2'!$A194,'2.2 Daten'!$B$9:$B$859,0))," ") -> 06439000 | C194: =IF($A194<>0,INDEX('2.2 Daten'!E$9:E$859,MATCH('2.2'!$A194,'2.2 Daten'!$B$9:$B$859,0))) -> 3750 | D194: =IF($A194<>0,INDEX('2.2 Daten'!F$9:F$859,MATCH('2.2'!$A194,'2.2 Daten'!$B$9:$B$859,0))) -> 521 | E194: =IF($A194<>0,INDEX('2.2 Daten'!G$9:G$859,MATCH('2.2'!$A194,'2.2 Daten'!$B$9:$B$859,0))) -> 682 | F194: =IF($A194<>0,INDEX('2.2 Daten'!H$9:H$859,MATCH('2.2'!$A194,'2.2 Daten'!$B$9:$B$859,0))) -> 1980 | G194: =IF($A194<>0,INDEX('2.2 Daten'!I$9:I$859,MATCH('2.2'!$A194,'2.2 Daten'!$B$9:$B$859,0))) -> 567 | H194: =IF($A194<>0,INDEX('2.2 Daten'!K$9:K$859,MATCH('2.2'!$A194,'2.2 Daten'!$B$9:$B$859,0))) -> 3.135313531 | I194: =IF($A194<>0,INDEX('2.2 Daten'!L$9:L$859,MATCH('2.2'!$A194,'2.2 Daten'!$B$9:$B$859,0))) -> -3.518518519 | J194: =IF($A194<>0,INDEX('2.2 Daten'!M$9:M$859,MATCH('2.2'!$A194,'2.2 Daten'!$B$9:$B$859,0))) -> -5.670816044 | K194: =IF($A194<>0,INDEX('2.2 Daten'!N$9:N$859,MATCH('2.2'!$A194,'2.2 Daten'!$B$9:$B$859,0))) -> 6.166219839 | L194: =IF($A194<>0,INDEX('2.2 Daten'!O$9:O$859,MATCH('2.2'!$A194,'2.2 Daten'!$B$9:$B$859,0))) -> 11.61417323
A195: =CHOOSE('2.2 Daten'!$A$2,'2.2 Daten'!B617,'2.2 Daten'!B166,'2.2 Daten'!B183,'2.2 Daten'!B200,'2.2 Daten'!B203,'2.2 Daten'!B250,'2.2 Daten'!B254,'2.2 Daten'!B309,'2.2 Daten'!B337,'2.2 Daten'!B375,'2.2 Daten'!B421,'2.2 Daten'!B519,'2.2 Daten'!B527,'2.2 Daten'!B530,'2.2 Daten'!B550,'2.2 Daten'!B560,'2.2 Daten'!B575,'2.2 Daten'!B591,x) -> Wetteraukreis | B195: =IF($A195<>0,INDEX('2.2 Daten'!C$9:C$859,MATCH('2.2'!$A195,'2.2 Daten'!$B$9:$B$859,0))," ") -> 06440000 | C195: =IF($A195<>0,INDEX('2.2 Daten'!E$9:E$859,MATCH('2.2'!$A195,'2.2 Daten'!$B$9:$B$859,0))) -> 5647 | D195: =IF($A195<>0,INDEX('2.2 Daten'!F$9:F$859,MATCH('2.2'!$A195,'2.2 Daten'!$B$9:$B$859,0))) -> 848 | E195: =IF($A195<>0,INDEX('2.2 Daten'!G$9:G$859,MATCH('2.2'!$A195,'2.2 Daten'!$B$9:$B$859,0))) -> 988 | F195: =IF($A195<>0,INDEX('2.2 Daten'!H$9:H$859,MATCH('2.2'!$A195,'2.2 Daten'!$B$9:$B$859,0))) -> 2942 | G195: =IF($A195<>0,INDEX('2.2 Daten'!I$9:I$859,MATCH('2.2'!$A195,'2.2 Daten'!$B$9:$B$859,0))) -> 869 | H195: =IF($A195<>0,INDEX('2.2 Daten'!K$9:K$859,MATCH('2.2'!$A195,'2.2 Daten'!$B$9:$B$859,0))) -> 8.22154082 | I195: =IF($A195<>0,INDEX('2.2 Daten'!L$9:L$859,MATCH('2.2'!$A195,'2.2 Daten'!$B$9:$B$859,0))) -> 3.414634146 | J195: =IF($A195<>0,INDEX('2.2 Daten'!M$9:M$859,MATCH('2.2'!$A195,'2.2 Daten'!$B$9:$B$859,0))) -> 1.960784314 | K195: =IF($A195<>0,INDEX('2.2 Daten'!N$9:N$859,MATCH('2.2'!$A195,'2.2 Daten'!$B$9:$B$859,0))) -> 10.51840721 | L195: =IF($A195<>0,INDEX('2.2 Daten'!O$9:O$859,MATCH('2.2'!$A195,'2.2 Daten'!$B$9:$B$859,0))) -> 13.29856584
A196: =CHOOSE('2.2 Daten'!$A$2,'2.2 Daten'!B618,'2.2 Daten'!B167,'2.2 Daten'!B184,'2.2 Daten'!B201,'2.2 Daten'!B204,'2.2 Daten'!B251,'2.2 Daten'!B255,'2.2 Daten'!B310,'2.2 Daten'!B338,'2.2 Daten'!B376,'2.2 Daten'!B422,'2.2 Daten'!B520,'2.2 Daten'!B528,'2.2 Daten'!B531,'2.2 Daten'!B551,'2.2 Daten'!B561,'2.2 Daten'!B576,'2.2 Daten'!B592,x) -> Gießen | B196: =IF($A196<>0,INDEX('2.2 Daten'!C$9:C$859,MATCH('2.2'!$A196,'2.2 Daten'!$B$9:$B$859,0))," ") -> 06531000 | C196: =IF($A196<>0,INDEX('2.2 Daten'!E$9:E$859,MATCH('2.2'!$A196,'2.2 Daten'!$B$9:$B$859,0))) -> 7581 | D196: =IF($A196<>0,INDEX('2.2 Daten'!F$9:F$859,MATCH('2.2'!$A196,'2.2 Daten'!$B$9:$B$859,0))) -> 1216 | E196: =IF($A196<>0,INDEX('2.2 Daten'!G$9:G$859,MATCH('2.2'!$A196,'2.2 Daten'!$B$9:$B$859,0))) -> 1435 | F196: =IF($A196<>0,INDEX('2.2 Daten'!H$9:H$859,MATCH('2.2'!$A196,'2.2 Daten'!$B$9:$B$859,0))) -> 3869 | G196: =IF($A196<>0,INDEX('2.2 Daten'!I$9:I$859,MATCH('2.2'!$A196,'2.2 Daten'!$B$9:$B$859,0))) -> 1061 | H196: =IF($A196<>0,INDEX('2.2 Daten'!K$9:K$859,MATCH('2.2'!$A196,'2.2 Daten'!$B$9:$B$859,0))) -> 2.114762931 | I196: =IF($A196<>0,INDEX('2.2 Daten'!L$9:L$859,MATCH('2.2'!$A196,'2.2 Daten'!$B$9:$B$859,0))) -> -5.809450039 | J196: =IF($A196<>0,INDEX('2.2 Daten'!M$9:M$859,MATCH('2.2'!$A196,'2.2 Daten'!$B$9:$B$859,0))) -> -3.691275168 | K196: =IF($A196<>0,INDEX('2.2 Daten'!N$9:N$859,MATCH('2.2'!$A196,'2.2 Daten'!$B$9:$B$859,0))) -> 6.378883695 | L196: =IF($A196<>0,INDEX('2.2 Daten'!O$9:O$859,MATCH('2.2'!$A196,'2.2 Daten'!$B$9:$B$859,0))) -> 5.467196819
A197: =CHOOSE('2.2 Daten'!$A$2,'2.2 Daten'!B619,'2.2 Daten'!B168,'2.2 Daten'!B185,'2.2 Daten'!B202,'2.2 Daten'!B205,'2.2 Daten'!B252,'2.2 Daten'!B256,'2.2 Daten'!B311,'2.2 Daten'!B339,'2.2 Daten'!B377,'2.2 Daten'!B423,'2.2 Daten'!B521,'2.2 Daten'!B529,'2.2 Daten'!B532,'2.2 Daten'!B552,'2.2 Daten'!B562,'2.2 Daten'!B577,'2.2 Daten'!B593,x) -> Lahn-Dill-Kreis | B197: =IF($A197<>0,INDEX('2.2 Daten'!C$9:C$859,MATCH('2.2'!$A197,'2.2 Daten'!$B$9:$B$859,0))," ") -> 06532000 | C197: =IF($A197<>0,INDEX('2.2 Daten'!E$9:E$859,MATCH('2.2'!$A197,'2.2 Daten'!$B$9:$B$859,0))) -> 6696 | D197: =IF($A197<>0,INDEX('2.2 Daten'!F$9:F$859,MATCH('2.2'!$A197,'2.2 Daten'!$B$9:$B$859,0))) -> 1035 | E197: =IF($A197<>0,INDEX('2.2 Daten'!G$9:G$859,MATCH('2.2'!$A197,'2.2 Daten'!$B$9:$B$859,0))) -> 1237 | F197: =IF($A197<>0,INDEX('2.2 Daten'!H$9:H$859,MATCH('2.2'!$A197,'2.2 Daten'!$B$9:$B$859,0))) -> 3481 | G197: =IF($A197<>0,INDEX('2.2 Daten'!I$9:I$859,MATCH('2.2'!$A197,'2.2 Daten'!$B$9:$B$859,0))) -> 943 | H197: =IF($A197<>0,INDEX('2.2 Daten'!K$9:K$859,MATCH('2.2'!$A197,'2.2 Daten'!$B$9:$B$859,0))) -> 1.347056153 | I197: =IF($A197<>0,INDEX('2.2 Daten'!L$9:L$859,MATCH('2.2'!$A197,'2.2 Daten'!$B$9:$B$859,0))) -> -5.04587156 | J197: =IF($A197<>0,INDEX('2.2 Daten'!M$9:M$859,MATCH('2.2'!$A197,'2.2 Daten'!$B$9:$B$859,0))) -> -1.825396825 | K197: =IF($A197<>0,INDEX('2.2 Daten'!N$9:N$859,MATCH('2.2'!$A197,'2.2 Daten'!$B$9:$B$859,0))) -> 4.315253221 | L197: =IF($A197<>0,INDEX('2.2 Daten'!O$9:O$859,MATCH('2.2'!$A197,'2.2 Daten'!$B$9:$B$859,0))) -> 2.5
A198: =CHOOSE('2.2 Daten'!$A$2,'2.2 Daten'!B620,'2.2 Daten'!B169,'2.2 Daten'!B186,'2.2 Daten'!B203,'2.2 Daten'!B206,'2.2 Daten'!B253,'2.2 Daten'!B257,'2.2 Daten'!B312,'2.2 Daten'!B340,'2.2 Daten'!B378,'2.2 Daten'!B424,'2.2 Daten'!B522,'2.2 Daten'!B530,'2.2 Daten'!B533,'2.2 Daten'!B553,'2.2 Daten'!B563,'2.2 Daten'!B578,'2.2 Daten'!B594,x) -> Limburg-Weilburg | B198: =IF($A198<>0,INDEX('2.2 Daten'!C$9:C$859,MATCH('2.2'!$A198,'2.2 Daten'!$B$9:$B$859,0))," ") -> 06533000 | C198: =IF($A198<>0,INDEX('2.2 Daten'!E$9:E$859,MATCH('2.2'!$A198,'2.2 Daten'!$B$9:$B$859,0))) -> 3764 | D198: =IF($A198<>0,INDEX('2.2 Daten'!F$9:F$859,MATCH('2.2'!$A198,'2.2 Daten'!$B$9:$B$859,0))) -> 582 | E198: =IF($A198<>0,INDEX('2.2 Daten'!G$9:G$859,MATCH('2.2'!$A198,'2.2 Daten'!$B$9:$B$859,0))) -> 668 | F198: =IF($A198<>0,INDEX('2.2 Daten'!H$9:H$859,MATCH('2.2'!$A198,'2.2 Daten'!$B$9:$B$859,0))) -> 1942 | G198: =IF($A198<>0,INDEX('2.2 Daten'!I$9:I$859,MATCH('2.2'!$A198,'2.2 Daten'!$B$9:$B$859,0))) -> 572 | H198: =IF($A198<>0,INDEX('2.2 Daten'!K$9:K$859,MATCH('2.2'!$A198,'2.2 Daten'!$B$9:$B$859,0))) -> 10.21961933 | I198: =IF($A198<>0,INDEX('2.2 Daten'!L$9:L$859,MATCH('2.2'!$A198,'2.2 Daten'!$B$9:$B$859,0))) -> 8.785046729 | J198: =IF($A198<>0,INDEX('2.2 Daten'!M$9:M$859,MATCH('2.2'!$A198,'2.2 Daten'!$B$9:$B$859,0))) -> 4.049844237 | K198: =IF($A198<>0,INDEX('2.2 Daten'!N$9:N$859,MATCH('2.2'!$A198,'2.2 Daten'!$B$9:$B$859,0))) -> 12.44933411 | L198: =IF($A198<>0,INDEX('2.2 Daten'!O$9:O$859,MATCH('2.2'!$A198,'2.2 Daten'!$B$9:$B$859,0))) -> 11.93737769
A199: =CHOOSE('2.2 Daten'!$A$2,'2.2 Daten'!B621,'2.2 Daten'!B170,'2.2 Daten'!B187,'2.2 Daten'!B204,'2.2 Daten'!B207,'2.2 Daten'!B254,'2.2 Daten'!B258,'2.2 Daten'!B313,'2.2 Daten'!B341,'2.2 Daten'!B379,'2.2 Daten'!B425,'2.2 Daten'!B523,'2.2 Daten'!B531,'2.2 Daten'!B534,'2.2 Daten'!B554,'2.2 Daten'!B564,'2.2 Daten'!B579,'2.2 Daten'!B595,x) -> Marburg-Biedenkopf | B199: =IF($A199<>0,INDEX('2.2 Daten'!C$9:C$859,MATCH('2.2'!$A199,'2.2 Daten'!$B$9:$B$859,0))," ") -> 06534000 | C199: =IF($A199<>0,INDEX('2.2 Daten'!E$9:E$859,MATCH('2.2'!$A199,'2.2 Daten'!$B$9:$B$859,0))) -> 4667 | D199: =IF($A199<>0,INDEX('2.2 Daten'!F$9:F$859,MATCH('2.2'!$A199,'2.2 Daten'!$B$9:$B$859,0))) -> 714 | E199: =IF($A199<>0,INDEX('2.2 Daten'!G$9:G$859,MATCH('2.2'!$A199,'2.2 Daten'!$B$9:$B$859,0))) -> 847 | F199: =IF($A199<>0,INDEX('2.2 Daten'!H$9:H$859,MATCH('2.2'!$A199,'2.2 Daten'!$B$9:$B$859,0))) -> 2433 | G199: =IF($A199<>0,INDEX('2.2 Daten'!I$9:I$859,MATCH('2.2'!$A199,'2.2 Daten'!$B$9:$B$859,0))) -> 673 | H199: =IF($A199<>0,INDEX('2.2 Daten'!K$9:K$859,MATCH('2.2'!$A199,'2.2 Daten'!$B$9:$B$859,0))) -> -1.664559629 | I199: =IF($A199<>0,INDEX('2.2 Daten'!L$9:L$859,MATCH('2.2'!$A199,'2.2 Daten'!$B$9:$B$859,0))) -> -4.417670683 | J199: =IF($A199<>0,INDEX('2.2 Daten'!M$9:M$859,MATCH('2.2'!$A199,'2.2 Daten'!$B$9:$B$859,0))) -> -3.640500569 | K199: =IF($A199<>0,INDEX('2.2 Daten'!N$9:N$859,MATCH('2.2'!$A199,'2.2 Daten'!$B$9:$B$859,0))) -> -0.5721291377 | L199: =IF($A199<>0,INDEX('2.2 Daten'!O$9:O$859,MATCH('2.2'!$A199,'2.2 Daten'!$B$9:$B$859,0))) -> 0
A200: =CHOOSE('2.2 Daten'!$A$2,'2.2 Daten'!B622,'2.2 Daten'!B171,'2.2 Daten'!B188,'2.2 Daten'!B205,'2.2 Daten'!B208,'2.2 Daten'!B255,'2.2 Daten'!B259,'2.2 Daten'!B314,'2.2 Daten'!B342,'2.2 Daten'!B380,'2.2 Daten'!B426,'2.2 Daten'!B524,'2.2 Daten'!B532,'2.2 Daten'!B535,'2.2 Daten'!B555,'2.2 Daten'!B565,'2.2 Daten'!B580,'2.2 Daten'!B596,x) -> Vogelsbergkreis | B200: =IF($A200<>0,INDEX('2.2 Daten'!C$9:C$859,MATCH('2.2'!$A200,'2.2 Daten'!$B$9:$B$859,0))," ") -> 06535000 | C200: =IF($A200<>0,INDEX('2.2 Daten'!E$9:E$859,MATCH('2.2'!$A200,'2.2 Daten'!$B$9:$B$859,0))) -> 1708 | D200: =IF($A200<>0,INDEX('2.2 Daten'!F$9:F$859,MATCH('2.2'!$A200,'2.2 Daten'!$B$9:$B$859,0))) -> 278 | E200: =IF($A200<>0,INDEX('2.2 Daten'!G$9:G$859,MATCH('2.2'!$A200,'2.2 Daten'!$B$9:$B$859,0))) -> 326 | F200: =IF($A200<>0,INDEX('2.2 Daten'!H$9:H$859,MATCH('2.2'!$A200,'2.2 Daten'!$B$9:$B$859,0))) -> 870 | G200: =IF($A200<>0,INDEX('2.2 Daten'!I$9:I$859,MATCH('2.2'!$A200,'2.2 Daten'!$B$9:$B$859,0))) -> 234 | H200: =IF($A200<>0,INDEX('2.2 Daten'!K$9:K$859,MATCH('2.2'!$A200,'2.2 Daten'!$B$9:$B$859,0))) -> 8.582326764 | I200: =IF($A200<>0,INDEX('2.2 Daten'!L$9:L$859,MATCH('2.2'!$A200,'2.2 Daten'!$B$9:$B$859,0))) -> 9.881422925 | J200: =IF($A200<>0,INDEX('2.2 Daten'!M$9:M$859,MATCH('2.2'!$A200,'2.2 Daten'!$B$9:$B$859,0))) -> 4.153354633 | K200: =IF($A200<>0,INDEX('2.2 Daten'!N$9:N$859,MATCH('2.2'!$A200,'2.2 Daten'!$B$9:$B$859,0))) -> 9.987357775 | L200: =IF($A200<>0,INDEX('2.2 Daten'!O$9:O$859,MATCH('2.2'!$A200,'2.2 Daten'!$B$9:$B$859,0))) -> 8.333333333
A201: =CHOOSE('2.2 Daten'!$A$2,'2.2 Daten'!B623,'2.2 Daten'!B172,'2.2 Daten'!B189,'2.2 Daten'!B206,'2.2 Daten'!B209,'2.2 Daten'!B256,'2.2 Daten'!B260,'2.2 Daten'!B315,'2.2 Daten'!B343,'2.2 Daten'!B381,'2.2 Daten'!B427,'2.2 Daten'!B525,'2.2 Daten'!B533,'2.2 Daten'!B536,'2.2 Daten'!B556,'2.2 Daten'!B566,'2.2 Daten'!B581,'2.2 Daten'!B597,x) -> Kassel, documenta-Stadt | B201: =IF($A201<>0,INDEX('2.2 Daten'!C$9:C$859,MATCH('2.2'!$A201,'2.2 Daten'!$B$9:$B$859,0))," ") -> 06611000 | C201: =IF($A201<>0,INDEX('2.2 Daten'!E$9:E$859,MATCH('2.2'!$A201,'2.2 Daten'!$B$9:$B$859,0))) -> 9123 | D201: =IF($A201<>0,INDEX('2.2 Daten'!F$9:F$859,MATCH('2.2'!$A201,'2.2 Daten'!$B$9:$B$859,0))) -> 1552 | E201: =IF($A201<>0,INDEX('2.2 Daten'!G$9:G$859,MATCH('2.2'!$A201,'2.2 Daten'!$B$9:$B$859,0))) -> 1752 | F201: =IF($A201<>0,INDEX('2.2 Daten'!H$9:H$859,MATCH('2.2'!$A201,'2.2 Daten'!$B$9:$B$859,0))) -> 4560 | G201: =IF($A201<>0,INDEX('2.2 Daten'!I$9:I$859,MATCH('2.2'!$A201,'2.2 Daten'!$B$9:$B$859,0))) -> 1259 | H201: =IF($A201<>0,INDEX('2.2 Daten'!K$9:K$859,MATCH('2.2'!$A201,'2.2 Daten'!$B$9:$B$859,0))) -> -0.01096010522 | I201: =IF($A201<>0,INDEX('2.2 Daten'!L$9:L$859,MATCH('2.2'!$A201,'2.2 Daten'!$B$9:$B$859,0))) -> -5.768063145 | J201: =IF($A201<>0,INDEX('2.2 Daten'!M$9:M$859,MATCH('2.2'!$A201,'2.2 Daten'!$B$9:$B$859,0))) -> -3.41786108 | K201: =IF($A201<>0,INDEX('2.2 Daten'!N$9:N$859,MATCH('2.2'!$A201,'2.2 Daten'!$B$9:$B$859,0))) -> 2.471910112 | L201: =IF($A201<>0,INDEX('2.2 Daten'!O$9:O$859,MATCH('2.2'!$A201,'2.2 Daten'!$B$9:$B$859,0))) -> 3.792250618
A202: =CHOOSE('2.2 Daten'!$A$2,'2.2 Daten'!B624,'2.2 Daten'!B173,'2.2 Daten'!B190,'2.2 Daten'!B207,'2.2 Daten'!B210,'2.2 Daten'!B257,'2.2 Daten'!B261,'2.2 Daten'!B316,'2.2 Daten'!B344,'2.2 Daten'!B382,'2.2 Daten'!B428,'2.2 Daten'!B526,'2.2 Daten'!B534,'2.2 Daten'!B537,'2.2 Daten'!B557,'2.2 Daten'!B567,'2.2 Daten'!B582,'2.2 Daten'!B598,x) -> Fulda | B202: =IF($A202<>0,INDEX('2.2 Daten'!C$9:C$859,MATCH('2.2'!$A202,'2.2 Daten'!$B$9:$B$859,0))," ") -> 06631000 | C202: =IF($A202<>0,INDEX('2.2 Daten'!E$9:E$859,MATCH('2.2'!$A202,'2.2 Daten'!$B$9:$B$859,0))) -> 3822 | D202: =IF($A202<>0,INDEX('2.2 Daten'!F$9:F$859,MATCH('2.2'!$A202,'2.2 Daten'!$B$9:$B$859,0))) -> 611 | E202: =IF($A202<>0,INDEX('2.2 Daten'!G$9:G$859,MATCH('2.2'!$A202,'2.2 Daten'!$B$9:$B$859,0))) -> 678 | F202: =IF($A202<>0,INDEX('2.2 Daten'!H$9:H$859,MATCH('2.2'!$A202,'2.2 Daten'!$B$9:$B$859,0))) -> 1999 | G202: =IF($A202<>0,INDEX('2.2 Daten'!I$9:I$859,MATCH('2.2'!$A202,'2.2 Daten'!$B$9:$B$859,0))) -> 534 | H202: =IF($A202<>0,INDEX('2.2 Daten'!K$9:K$859,MATCH('2.2'!$A202,'2.2 Daten'!$B$9:$B$859,0))) -> 2.137894174 | I202: =IF($A202<>0,INDEX('2.2 Daten'!L$9:L$859,MATCH('2.2'!$A202,'2.2 Daten'!$B$9:$B$859,0))) -> 0.8250825083 | J202: =IF($A202<>0,INDEX('2.2 Daten'!M$9:M$859,MATCH('2.2'!$A202,'2.2 Daten'!$B$9:$B$859,0))) -> -3.556187767 | K202: =IF($A202<>0,INDEX('2.2 Daten'!N$9:N$859,MATCH('2.2'!$A202,'2.2 Daten'!$B$9:$B$859,0))) -> 2.882141019 | L202: =IF($A202<>0,INDEX('2.2 Daten'!O$9:O$859,MATCH('2.2'!$A202,'2.2 Daten'!$B$9:$B$859,0))) -> 8.979591837
A203: =CHOOSE('2.2 Daten'!$A$2,'2.2 Daten'!B625,'2.2 Daten'!B174,'2.2 Daten'!B191,'2.2 Daten'!B208,'2.2 Daten'!B211,'2.2 Daten'!B258,'2.2 Daten'!B262,'2.2 Daten'!B317,'2.2 Daten'!B345,'2.2 Daten'!B383,'2.2 Daten'!B429,'2.2 Daten'!B527,'2.2 Daten'!B535,'2.2 Daten'!B538,'2.2 Daten'!B558,'2.2 Daten'!B568,'2.2 Daten'!B583,'2.2 Daten'!B599,x) -> Hersfeld-Rotenburg | B203: =IF($A203<>0,INDEX('2.2 Daten'!C$9:C$859,MATCH('2.2'!$A203,'2.2 Daten'!$B$9:$B$859,0))," ") -> 06632000 | C203: =IF($A203<>0,INDEX('2.2 Daten'!E$9:E$859,MATCH('2.2'!$A203,'2.2 Daten'!$B$9:$B$859,0))) -> 2340 | D203: =IF($A203<>0,INDEX('2.2 Daten'!F$9:F$859,MATCH('2.2'!$A203,'2.2 Daten'!$B$9:$B$859,0))) -> 369 | E203: =IF($A203<>0,INDEX('2.2 Daten'!G$9:G$859,MATCH('2.2'!$A203,'2.2 Daten'!$B$9:$B$859,0))) -> 424 | F203: =IF($A203<>0,INDEX('2.2 Daten'!H$9:H$859,MATCH('2.2'!$A203,'2.2 Daten'!$B$9:$B$859,0))) -> 1238 | G203: =IF($A203<>0,INDEX('2.2 Daten'!I$9:I$859,MATCH('2.2'!$A203,'2.2 Daten'!$B$9:$B$859,0))) -> 309 | H203: =IF($A203<>0,INDEX('2.2 Daten'!K$9:K$859,MATCH('2.2'!$A203,'2.2 Daten'!$B$9:$B$859,0))) -> 1.916376307 | I203: =IF($A203<>0,INDEX('2.2 Daten'!L$9:L$859,MATCH('2.2'!$A203,'2.2 Daten'!$B$9:$B$859,0))) -> -1.072386059 | J203: =IF($A203<>0,INDEX('2.2 Daten'!M$9:M$859,MATCH('2.2'!$A203,'2.2 Daten'!$B$9:$B$859,0))) -> -4.07239819 | K203: =IF($A203<>0,INDEX('2.2 Daten'!N$9:N$859,MATCH('2.2'!$A203,'2.2 Daten'!$B$9:$B$859,0))) -> 4.296545914 | L203: =IF($A203<>0,INDEX('2.2 Daten'!O$9:O$859,MATCH('2.2'!$A203,'2.2 Daten'!$B$9:$B$859,0))) -> 5.102040816
A204: =CHOOSE('2.2 Daten'!$A$2,'2.2 Daten'!B626,'2.2 Daten'!B175,'2.2 Daten'!B192,'2.2 Daten'!B209,'2.2 Daten'!B212,'2.2 Daten'!B259,'2.2 Daten'!B263,'2.2 Daten'!B318,'2.2 Daten'!B346,'2.2 Daten'!B384,'2.2 Daten'!B430,'2.2 Daten'!B528,'2.2 Daten'!B536,'2.2 Daten'!B539,'2.2 Daten'!B559,'2.2 Daten'!B569,'2.2 Daten'!B584,'2.2 Daten'!B600,x) -> Kassel | B204: =IF($A204<>0,INDEX('2.2 Daten'!C$9:C$859,MATCH('2.2'!$A204,'2.2 Daten'!$B$9:$B$859,0))," ") -> 06633000 | C204: =IF($A204<>0,INDEX('2.2 Daten'!E$9:E$859,MATCH('2.2'!$A204,'2.2 Daten'!$B$9:$B$859,0))) -> 4375 | D204: =IF($A204<>0,INDEX('2.2 Daten'!F$9:F$859,MATCH('2.2'!$A204,'2.2 Daten'!$B$9:$B$859,0))) -> 694 | E204: =IF($A204<>0,INDEX('2.2 Daten'!G$9:G$859,MATCH('2.2'!$A204,'2.2 Daten'!$B$9:$B$859,0))) -> 815 | F204: =IF($A204<>0,INDEX('2.2 Daten'!H$9:H$859,MATCH('2.2'!$A204,'2.2 Daten'!$B$9:$B$859,0))) -> 2222 | G204: =IF($A204<>0,INDEX('2.2 Daten'!I$9:I$859,MATCH('2.2'!$A204,'2.2 Daten'!$B$9:$B$859,0))) -> 644 | H204: =IF($A204<>0,INDEX('2.2 Daten'!K$9:K$859,MATCH('2.2'!$A204,'2.2 Daten'!$B$9:$B$859,0))) -> 2.411048689 | I204: =IF($A204<>0,INDEX('2.2 Daten'!L$9:L$859,MATCH('2.2'!$A204,'2.2 Daten'!$B$9:$B$859,0))) -> 7.430340557 | J204: =IF($A204<>0,INDEX('2.2 Daten'!M$9:M$859,MATCH('2.2'!$A204,'2.2 Daten'!$B$9:$B$859,0))) -> -6.857142857 | K204: =IF($A204<>0,INDEX('2.2 Daten'!N$9:N$859,MATCH('2.2'!$A204,'2.2 Daten'!$B$9:$B$859,0))) -> 3.156917363 | L204: =IF($A204<>0,INDEX('2.2 Daten'!O$9:O$859,MATCH('2.2'!$A204,'2.2 Daten'!$B$9:$B$859,0))) -> 7.872696817
A205: =CHOOSE('2.2 Daten'!$A$2,'2.2 Daten'!B627,'2.2 Daten'!B176,'2.2 Daten'!B193,'2.2 Daten'!B210,'2.2 Daten'!B213,'2.2 Daten'!B260,'2.2 Daten'!B264,'2.2 Daten'!B319,'2.2 Daten'!B347,'2.2 Daten'!B385,'2.2 Daten'!B431,'2.2 Daten'!B529,'2.2 Daten'!B537,'2.2 Daten'!B540,'2.2 Daten'!B560,'2.2 Daten'!B570,'2.2 Daten'!B585,'2.2 Daten'!B601,x) -> Schwalm-Eder-Kreis | B205: =IF($A205<>0,INDEX('2.2 Daten'!C$9:C$859,MATCH('2.2'!$A205,'2.2 Daten'!$B$9:$B$859,0))," ") -> 06634000 | C205: =IF($A205<>0,INDEX('2.2 Daten'!E$9:E$859,MATCH('2.2'!$A205,'2.2 Daten'!$B$9:$B$859,0))) -> 3354 | D205: =IF($A205<>0,INDEX('2.2 Daten'!F$9:F$859,MATCH('2.2'!$A205,'2.2 Daten'!$B$9:$B$859,0))) -> 490 | E205: =IF($A205<>0,INDEX('2.2 Daten'!G$9:G$859,MATCH('2.2'!$A205,'2.2 Daten'!$B$9:$B$859,0))) -> 624 | F205: =IF($A205<>0,INDEX('2.2 Daten'!H$9:H$859,MATCH('2.2'!$A205,'2.2 Daten'!$B$9:$B$859,0))) -> 1807 | G205: =IF($A205<>0,INDEX('2.2 Daten'!I$9:I$859,MATCH('2.2'!$A205,'2.2 Daten'!$B$9:$B$859,0))) -> 433 | H205: =IF($A205<>0,INDEX('2.2 Daten'!K$9:K$859,MATCH('2.2'!$A205,'2.2 Daten'!$B$9:$B$859,0))) -> 12.0240481 | I205: =IF($A205<>0,INDEX('2.2 Daten'!L$9:L$859,MATCH('2.2'!$A205,'2.2 Daten'!$B$9:$B$859,0))) -> 4.255319149 | J205: =IF($A205<>0,INDEX('2.2 Daten'!M$9:M$859,MATCH('2.2'!$A205,'2.2 Daten'!$B$9:$B$859,0))) -> 6.666666667 | K205: =IF($A205<>0,INDEX('2.2 Daten'!N$9:N$859,MATCH('2.2'!$A205,'2.2 Daten'!$B$9:$B$859,0))) -> 15.98202824 | L205: =IF($A205<>0,INDEX('2.2 Daten'!O$9:O$859,MATCH('2.2'!$A205,'2.2 Daten'!$B$9:$B$859,0))) -> 13.64829396
A206: =CHOOSE('2.2 Daten'!$A$2,'2.2 Daten'!B628,'2.2 Daten'!B177,'2.2 Daten'!B194,'2.2 Daten'!B211,'2.2 Daten'!B214,'2.2 Daten'!B261,'2.2 Daten'!B265,'2.2 Daten'!B320,'2.2 Daten'!B348,'2.2 Daten'!B386,'2.2 Daten'!B432,'2.2 Daten'!B530,'2.2 Daten'!B538,'2.2 Daten'!B541,'2.2 Daten'!B561,'2.2 Daten'!B571,'2.2 Daten'!B586,'2.2 Daten'!B602,x) -> Waldeck-Frankenberg | B206: =IF($A206<>0,INDEX('2.2 Daten'!C$9:C$859,MATCH('2.2'!$A206,'2.2 Daten'!$B$9:$B$859,0))," ") -> 06635000 | C206: =IF($A206<>0,INDEX('2.2 Daten'!E$9:E$859,MATCH('2.2'!$A206,'2.2 Daten'!$B$9:$B$859,0))) -> 2726 | D206: =IF($A206<>0,INDEX('2.2 Daten'!F$9:F$859,MATCH('2.2'!$A206,'2.2 Daten'!$B$9:$B$859,0))) -> 419 | E206: =IF($A206<>0,INDEX('2.2 Daten'!G$9:G$859,MATCH('2.2'!$A206,'2.2 Daten'!$B$9:$B$859,0))) -> 494 | F206: =IF($A206<>0,INDEX('2.2 Daten'!H$9:H$859,MATCH('2.2'!$A206,'2.2 Daten'!$B$9:$B$859,0))) -> 1443 | G206: =IF($A206<>0,INDEX('2.2 Daten'!I$9:I$859,MATCH('2.2'!$A206,'2.2 Daten'!$B$9:$B$859,0))) -> 370 | H206: =IF($A206<>0,INDEX('2.2 Daten'!K$9:K$859,MATCH('2.2'!$A206,'2.2 Daten'!$B$9:$B$859,0))) -> 3.453510436 | I206: =IF($A206<>0,INDEX('2.2 Daten'!L$9:L$859,MATCH('2.2'!$A206,'2.2 Daten'!$B$9:$B$859,0))) -> -9.307359307 | J206: =IF($A206<>0,INDEX('2.2 Daten'!M$9:M$859,MATCH('2.2'!$A206,'2.2 Daten'!$B$9:$B$859,0))) -> -2.755905512 | K206: =IF($A206<>0,INDEX('2.2 Daten'!N$9:N$859,MATCH('2.2'!$A206,'2.2 Daten'!$B$9:$B$859,0))) -> 7.366071429 | L206: =IF($A206<>0,INDEX('2.2 Daten'!O$9:O$859,MATCH('2.2'!$A206,'2.2 Daten'!$B$9:$B$859,0))) -> 15.26479751
A207: =CHOOSE('2.2 Daten'!$A$2,'2.2 Daten'!B629,'2.2 Daten'!B178,'2.2 Daten'!B195,'2.2 Daten'!B212,'2.2 Daten'!B215,'2.2 Daten'!B262,'2.2 Daten'!B266,'2.2 Daten'!B321,'2.2 Daten'!B349,'2.2 Daten'!B387,'2.2 Daten'!B433,'2.2 Daten'!B531,'2.2 Daten'!B539,'2.2 Daten'!B542,'2.2 Daten'!B562,'2.2 Daten'!B572,'2.2 Daten'!B587,'2.2 Daten'!B603,x) -> Werra-Meißner-Kreis | B207: =IF($A207<>0,INDEX('2.2 Daten'!C$9:C$859,MATCH('2.2'!$A207,'2.2 Daten'!$B$9:$B$859,0))," ") -> 06636000 | C207: =IF($A207<>0,INDEX('2.2 Daten'!E$9:E$859,MATCH('2.2'!$A207,'2.2 Daten'!$B$9:$B$859,0))) -> 2074 | D207: =IF($A207<>0,INDEX('2.2 Daten'!F$9:F$859,MATCH('2.2'!$A207,'2.2 Daten'!$B$9:$B$859,0))) -> 322 | E207: =IF($A207<>0,INDEX('2.2 Daten'!G$9:G$859,MATCH('2.2'!$A207,'2.2 Daten'!$B$9:$B$859,0))) -> 426 | F207: =IF($A207<>0,INDEX('2.2 Daten'!H$9:H$859,MATCH('2.2'!$A207,'2.2 Daten'!$B$9:$B$859,0))) -> 1057 | G207: =IF($A207<>0,INDEX('2.2 Daten'!I$9:I$859,MATCH('2.2'!$A207,'2.2 Daten'!$B$9:$B$859,0))) -> 269 | H207: =IF($A207<>0,INDEX('2.2 Daten'!K$9:K$859,MATCH('2.2'!$A207,'2.2 Daten'!$B$9:$B$859,0))) -> -3.981481481 | I207: =IF($A207<>0,INDEX('2.2 Daten'!L$9:L$859,MATCH('2.2'!$A207,'2.2 Daten'!$B$9:$B$859,0))) -> -13.44086022 | J207: =IF($A207<>0,INDEX('2.2 Daten'!M$9:M$859,MATCH('2.2'!$A207,'2.2 Daten'!$B$9:$B$859,0))) -> -2.068965517 | K207: =IF($A207<>0,INDEX('2.2 Daten'!N$9:N$859,MATCH('2.2'!$A207,'2.2 Daten'!$B$9:$B$859,0))) -> -0.7511737089 | L207: =IF($A207<>0,INDEX('2.2 Daten'!O$9:O$859,MATCH('2.2'!$A207,'2.2 Daten'!$B$9:$B$859,0))) -> -6.597222222
A208: =CHOOSE('2.2 Daten'!$A$2,'2.2 Daten'!B630,'2.2 Daten'!B179,'2.2 Daten'!B196,'2.2 Daten'!B213,'2.2 Daten'!B216,'2.2 Daten'!B263,'2.2 Daten'!B267,'2.2 Daten'!B322,'2.2 Daten'!B350,'2.2 Daten'!B388,'2.2 Daten'!B434,'2.2 Daten'!B532,'2.2 Daten'!B540,'2.2 Daten'!B543,'2.2 Daten'!B563,'2.2 Daten'!B573,'2.2 Daten'!B588,'2.2 Daten'!B604,x) -> 0 | B208: =IF($A208<>0,INDEX('2.2 Daten'!C$9:C$859,MATCH('2.2'!$A208,'2.2 Daten'!$B$9:$B$859,0))," ") ->  | C208: =IF($A208<>0,INDEX('2.2 Daten'!E$9:E$859,MATCH('2.2'!$A208,'2.2 Daten'!$B$9:$B$859,0))) -> FALSE | D208: =IF($A208<>0,INDEX('2.2 Daten'!F$9:F$859,MATCH('2.2'!$A208,'2.2 Daten'!$B$9:$B$859,0))) -> FALSE | E208: =IF($A208<>0,INDEX('2.2 Daten'!G$9:G$859,MATCH('2.2'!$A208,'2.2 Daten'!$B$9:$B$859,0))) -> FALSE | F208: =IF($A208<>0,INDEX('2.2 Daten'!H$9:H$859,MATCH('2.2'!$A208,'2.2 Daten'!$B$9:$B$859,0))) -> FALSE | G208: =IF($A208<>0,INDEX('2.2 Daten'!I$9:I$859,MATCH('2.2'!$A208,'2.2 Daten'!$B$9:$B$859,0))) -> FALSE | H208: =IF($A208<>0,INDEX('2.2 Daten'!K$9:K$859,MATCH('2.2'!$A208,'2.2 Daten'!$B$9:$B$859,0))) -> FALSE | I208: =IF($A208<>0,INDEX('2.2 Daten'!L$9:L$859,MATCH('2.2'!$A208,'2.2 Daten'!$B$9:$B$859,0))) -> FALSE | J208: =IF($A208<>0,INDEX('2.2 Daten'!M$9:M$859,MATCH('2.2'!$A208,'2.2 Daten'!$B$9:$B$859,0))) -> FALSE | K208: =IF($A208<>0,INDEX('2.2 Daten'!N$9:N$859,MATCH('2.2'!$A208,'2.2 Daten'!$B$9:$B$859,0))) -> FALSE | L208: =IF($A208<>0,INDEX('2.2 Daten'!O$9:O$859,MATCH('2.2'!$A208,'2.2 Daten'!$B$9:$B$859,0))) -> FALSE
A209: =CHOOSE('2.2 Daten'!$A$2,'2.2 Daten'!B631,'2.2 Daten'!B180,'2.2 Daten'!B197,'2.2 Daten'!B214,'2.2 Daten'!B217,'2.2 Daten'!B264,'2.2 Daten'!B268,'2.2 Daten'!B323,'2.2 Daten'!B351,'2.2 Daten'!B389,'2.2 Daten'!B435,'2.2 Daten'!B533,'2.2 Daten'!B541,'2.2 Daten'!B544,'2.2 Daten'!B564,'2.2 Daten'!B574,'2.2 Daten'!B589,'2.2 Daten'!B605,x) -> Rheinland-Pfalz | B209: =IF($A209<>0,INDEX('2.2 Daten'!C$9:C$859,MATCH('2.2'!$A209,'2.2 Daten'!$B$9:$B$859,0))," ") -> 07 | C209: =IF($A209<>0,INDEX('2.2 Daten'!E$9:E$859,MATCH('2.2'!$A209,'2.2 Daten'!$B$9:$B$859,0))) -> 81451 | D209: =IF($A209<>0,INDEX('2.2 Daten'!F$9:F$859,MATCH('2.2'!$A209,'2.2 Daten'!$B$9:$B$859,0))) -> 12967 | E209: =IF($A209<>0,INDEX('2.2 Daten'!G$9:G$859,MATCH('2.2'!$A209,'2.2 Daten'!$B$9:$B$859,0))) -> 15092 | F209: =IF($A209<>0,INDEX('2.2 Daten'!H$9:H$859,MATCH('2.2'!$A209,'2.2 Daten'!$B$9:$B$859,0))) -> 41911 | G209: =IF($A209<>0,INDEX('2.2 Daten'!I$9:I$859,MATCH('2.2'!$A209,'2.2 Daten'!$B$9:$B$859,0))) -> 11481 | H209: =IF($A209<>0,INDEX('2.2 Daten'!K$9:K$859,MATCH('2.2'!$A209,'2.2 Daten'!$B$9:$B$859,0))) -> 1.285797779 | I209: =IF($A209<>0,INDEX('2.2 Daten'!L$9:L$859,MATCH('2.2'!$A209,'2.2 Daten'!$B$9:$B$859,0))) -> -2.290709065 | J209: =IF($A209<>0,INDEX('2.2 Daten'!M$9:M$859,MATCH('2.2'!$A209,'2.2 Daten'!$B$9:$B$859,0))) -> -2.13345438 | K209: =IF($A209<>0,INDEX('2.2 Daten'!N$9:N$859,MATCH('2.2'!$A209,'2.2 Daten'!$B$9:$B$859,0))) -> 2.69786817 | L209: =IF($A209<>0,INDEX('2.2 Daten'!O$9:O$859,MATCH('2.2'!$A209,'2.2 Daten'!$B$9:$B$859,0))) -> 5.185524508
A210: =CHOOSE('2.2 Daten'!$A$2,'2.2 Daten'!B632,'2.2 Daten'!B181,'2.2 Daten'!B198,'2.2 Daten'!B215,'2.2 Daten'!B218,'2.2 Daten'!B265,'2.2 Daten'!B269,'2.2 Daten'!B324,'2.2 Daten'!B352,'2.2 Daten'!B390,'2.2 Daten'!B436,'2.2 Daten'!B534,'2.2 Daten'!B542,'2.2 Daten'!B545,'2.2 Daten'!B565,'2.2 Daten'!B575,'2.2 Daten'!B590,'2.2 Daten'!B606,x) -> Koblenz, kreisfreie Stadt | B210: =IF($A210<>0,INDEX('2.2 Daten'!C$9:C$859,MATCH('2.2'!$A210,'2.2 Daten'!$B$9:$B$859,0))," ") -> 07111000 | C210: =IF($A210<>0,INDEX('2.2 Daten'!E$9:E$859,MATCH('2.2'!$A210,'2.2 Daten'!$B$9:$B$859,0))) -> 3236 | D210: =IF($A210<>0,INDEX('2.2 Daten'!F$9:F$859,MATCH('2.2'!$A210,'2.2 Daten'!$B$9:$B$859,0))) -> 534 | E210: =IF($A210<>0,INDEX('2.2 Daten'!G$9:G$859,MATCH('2.2'!$A210,'2.2 Daten'!$B$9:$B$859,0))) -> 598 | F210: =IF($A210<>0,INDEX('2.2 Daten'!H$9:H$859,MATCH('2.2'!$A210,'2.2 Daten'!$B$9:$B$859,0))) -> 1663 | G210: =IF($A210<>0,INDEX('2.2 Daten'!I$9:I$859,MATCH('2.2'!$A210,'2.2 Daten'!$B$9:$B$859,0))) -> 441 | H210: =IF($A210<>0,INDEX('2.2 Daten'!K$9:K$859,MATCH('2.2'!$A210,'2.2 Daten'!$B$9:$B$859,0))) -> -2.881152461 | I210: =IF($A210<>0,INDEX('2.2 Daten'!L$9:L$859,MATCH('2.2'!$A210,'2.2 Daten'!$B$9:$B$859,0))) -> -2.732240437 | J210: =IF($A210<>0,INDEX('2.2 Daten'!M$9:M$859,MATCH('2.2'!$A210,'2.2 Daten'!$B$9:$B$859,0))) -> -4.777070064 | K210: =IF($A210<>0,INDEX('2.2 Daten'!N$9:N$859,MATCH('2.2'!$A210,'2.2 Daten'!$B$9:$B$859,0))) -> -1.53937241 | L210: =IF($A210<>0,INDEX('2.2 Daten'!O$9:O$859,MATCH('2.2'!$A210,'2.2 Daten'!$B$9:$B$859,0))) -> -5.364806867
A211: =CHOOSE('2.2 Daten'!$A$2,'2.2 Daten'!B633,'2.2 Daten'!B182,'2.2 Daten'!B199,'2.2 Daten'!B216,'2.2 Daten'!B219,'2.2 Daten'!B266,'2.2 Daten'!B270,'2.2 Daten'!B325,'2.2 Daten'!B353,'2.2 Daten'!B391,'2.2 Daten'!B437,'2.2 Daten'!B535,'2.2 Daten'!B543,'2.2 Daten'!B546,'2.2 Daten'!B566,'2.2 Daten'!B576,'2.2 Daten'!B591,'2.2 Daten'!B607,x) -> Ahrweiler | B211: =IF($A211<>0,INDEX('2.2 Daten'!C$9:C$859,MATCH('2.2'!$A211,'2.2 Daten'!$B$9:$B$859,0))," ") -> 07131000 | C211: =IF($A211<>0,INDEX('2.2 Daten'!E$9:E$859,MATCH('2.2'!$A211,'2.2 Daten'!$B$9:$B$859,0))) -> 1666 | D211: =IF($A211<>0,INDEX('2.2 Daten'!F$9:F$859,MATCH('2.2'!$A211,'2.2 Daten'!$B$9:$B$859,0))) -> 277 | E211: =IF($A211<>0,INDEX('2.2 Daten'!G$9:G$859,MATCH('2.2'!$A211,'2.2 Daten'!$B$9:$B$859,0))) -> 335 | F211: =IF($A211<>0,INDEX('2.2 Daten'!H$9:H$859,MATCH('2.2'!$A211,'2.2 Daten'!$B$9:$B$859,0))) -> 843 | G211: =IF($A211<>0,INDEX('2.2 Daten'!I$9:I$859,MATCH('2.2'!$A211,'2.2 Daten'!$B$9:$B$859,0))) -> 211 | H211: =IF($A211<>0,INDEX('2.2 Daten'!K$9:K$859,MATCH('2.2'!$A211,'2.2 Daten'!$B$9:$B$859,0))) -> -6.299212598 | I211: =IF($A211<>0,INDEX('2.2 Daten'!L$9:L$859,MATCH('2.2'!$A211,'2.2 Daten'!$B$9:$B$859,0))) -> -10.64516129 | J211: =IF($A211<>0,INDEX('2.2 Daten'!M$9:M$859,MATCH('2.2'!$A211,'2.2 Daten'!$B$9:$B$859,0))) -> -10.90425532 | K211: =IF($A211<>0,INDEX('2.2 Daten'!N$9:N$859,MATCH('2.2'!$A211,'2.2 Daten'!$B$9:$B$859,0))) -> -2.430555556 | L211: =IF($A211<>0,INDEX('2.2 Daten'!O$9:O$859,MATCH('2.2'!$A211,'2.2 Daten'!$B$9:$B$859,0))) -> -7.456140351
A212: =CHOOSE('2.2 Daten'!$A$2,'2.2 Daten'!B634,'2.2 Daten'!B183,'2.2 Daten'!B200,'2.2 Daten'!B217,'2.2 Daten'!B220,'2.2 Daten'!B267,'2.2 Daten'!B271,'2.2 Daten'!B326,'2.2 Daten'!B354,'2.2 Daten'!B392,'2.2 Daten'!B438,'2.2 Daten'!B536,'2.2 Daten'!B544,'2.2 Daten'!B547,'2.2 Daten'!B567,'2.2 Daten'!B577,'2.2 Daten'!B592,'2.2 Daten'!B608,x) -> Altenkirchen (Westerwald) | B212: =IF($A212<>0,INDEX('2.2 Daten'!C$9:C$859,MATCH('2.2'!$A212,'2.2 Daten'!$B$9:$B$859,0))," ") -> 07132000 | C212: =IF($A212<>0,INDEX('2.2 Daten'!E$9:E$859,MATCH('2.2'!$A212,'2.2 Daten'!$B$9:$B$859,0))) -> 2527 | D212: =IF($A212<>0,INDEX('2.2 Daten'!F$9:F$859,MATCH('2.2'!$A212,'2.2 Daten'!$B$9:$B$859,0))) -> 404 | E212: =IF($A212<>0,INDEX('2.2 Daten'!G$9:G$859,MATCH('2.2'!$A212,'2.2 Daten'!$B$9:$B$859,0))) -> 465 | F212: =IF($A212<>0,INDEX('2.2 Daten'!H$9:H$859,MATCH('2.2'!$A212,'2.2 Daten'!$B$9:$B$859,0))) -> 1326 | G212: =IF($A212<>0,INDEX('2.2 Daten'!I$9:I$859,MATCH('2.2'!$A212,'2.2 Daten'!$B$9:$B$859,0))) -> 332 | H212: =IF($A212<>0,INDEX('2.2 Daten'!K$9:K$859,MATCH('2.2'!$A212,'2.2 Daten'!$B$9:$B$859,0))) -> 1.241987179 | I212: =IF($A212<>0,INDEX('2.2 Daten'!L$9:L$859,MATCH('2.2'!$A212,'2.2 Daten'!$B$9:$B$859,0))) -> -2.179176755 | J212: =IF($A212<>0,INDEX('2.2 Daten'!M$9:M$859,MATCH('2.2'!$A212,'2.2 Daten'!$B$9:$B$859,0))) -> 6.407322654 | K212: =IF($A212<>0,INDEX('2.2 Daten'!N$9:N$859,MATCH('2.2'!$A212,'2.2 Daten'!$B$9:$B$859,0))) -> 0.9900990099 | L212: =IF($A212<>0,INDEX('2.2 Daten'!O$9:O$859,MATCH('2.2'!$A212,'2.2 Daten'!$B$9:$B$859,0))) -> -0.3003003003
A213: =CHOOSE('2.2 Daten'!$A$2,'2.2 Daten'!B635,'2.2 Daten'!B184,'2.2 Daten'!B201,'2.2 Daten'!B218,'2.2 Daten'!B221,'2.2 Daten'!B268,'2.2 Daten'!B272,'2.2 Daten'!B327,'2.2 Daten'!B355,'2.2 Daten'!B393,'2.2 Daten'!B439,'2.2 Daten'!B537,'2.2 Daten'!B545,'2.2 Daten'!B548,'2.2 Daten'!B568,'2.2 Daten'!B578,'2.2 Daten'!B593,'2.2 Daten'!B609,x) -> Bad Kreuznach | B213: =IF($A213<>0,INDEX('2.2 Daten'!C$9:C$859,MATCH('2.2'!$A213,'2.2 Daten'!$B$9:$B$859,0))," ") -> 07133000 | C213: =IF($A213<>0,INDEX('2.2 Daten'!E$9:E$859,MATCH('2.2'!$A213,'2.2 Daten'!$B$9:$B$859,0))) -> 3585 | D213: =IF($A213<>0,INDEX('2.2 Daten'!F$9:F$859,MATCH('2.2'!$A213,'2.2 Daten'!$B$9:$B$859,0))) -> 540 | E213: =IF($A213<>0,INDEX('2.2 Daten'!G$9:G$859,MATCH('2.2'!$A213,'2.2 Daten'!$B$9:$B$859,0))) -> 655 | F213: =IF($A213<>0,INDEX('2.2 Daten'!H$9:H$859,MATCH('2.2'!$A213,'2.2 Daten'!$B$9:$B$859,0))) -> 1849 | G213: =IF($A213<>0,INDEX('2.2 Daten'!I$9:I$859,MATCH('2.2'!$A213,'2.2 Daten'!$B$9:$B$859,0))) -> 541 | H213: =IF($A213<>0,INDEX('2.2 Daten'!K$9:K$859,MATCH('2.2'!$A213,'2.2 Daten'!$B$9:$B$859,0))) -> -1.510989011 | I213: =IF($A213<>0,INDEX('2.2 Daten'!L$9:L$859,MATCH('2.2'!$A213,'2.2 Daten'!$B$9:$B$859,0))) -> -3.571428571 | J213: =IF($A213<>0,INDEX('2.2 Daten'!M$9:M$859,MATCH('2.2'!$A213,'2.2 Daten'!$B$9:$B$859,0))) -> -6.025824964 | K213: =IF($A213<>0,INDEX('2.2 Daten'!N$9:N$859,MATCH('2.2'!$A213,'2.2 Daten'!$B$9:$B$859,0))) -> -0.6981740064 | L213: =IF($A213<>0,INDEX('2.2 Daten'!O$9:O$859,MATCH('2.2'!$A213,'2.2 Daten'!$B$9:$B$859,0))) -> 3.838771593
A214: =CHOOSE('2.2 Daten'!$A$2,'2.2 Daten'!B636,'2.2 Daten'!B185,'2.2 Daten'!B202,'2.2 Daten'!B219,'2.2 Daten'!B222,'2.2 Daten'!B269,'2.2 Daten'!B273,'2.2 Daten'!B328,'2.2 Daten'!B356,'2.2 Daten'!B394,'2.2 Daten'!B440,'2.2 Daten'!B538,'2.2 Daten'!B546,'2.2 Daten'!B549,'2.2 Daten'!B569,'2.2 Daten'!B579,'2.2 Daten'!B594,'2.2 Daten'!B610,x) -> Birkenfeld | B214: =IF($A214<>0,INDEX('2.2 Daten'!C$9:C$859,MATCH('2.2'!$A214,'2.2 Daten'!$B$9:$B$859,0))," ") -> 07134000 | C214: =IF($A214<>0,INDEX('2.2 Daten'!E$9:E$859,MATCH('2.2'!$A214,'2.2 Daten'!$B$9:$B$859,0))) -> 2390 | D214: =IF($A214<>0,INDEX('2.2 Daten'!F$9:F$859,MATCH('2.2'!$A214,'2.2 Daten'!$B$9:$B$859,0))) -> 387 | E214: =IF($A214<>0,INDEX('2.2 Daten'!G$9:G$859,MATCH('2.2'!$A214,'2.2 Daten'!$B$9:$B$859,0))) -> 485 | F214: =IF($A214<>0,INDEX('2.2 Daten'!H$9:H$859,MATCH('2.2'!$A214,'2.2 Daten'!$B$9:$B$859,0))) -> 1227 | G214: =IF($A214<>0,INDEX('2.2 Daten'!I$9:I$859,MATCH('2.2'!$A214,'2.2 Daten'!$B$9:$B$859,0))) -> 291 | H214: =IF($A214<>0,INDEX('2.2 Daten'!K$9:K$859,MATCH('2.2'!$A214,'2.2 Daten'!$B$9:$B$859,0))) -> 6.316725979 | I214: =IF($A214<>0,INDEX('2.2 Daten'!L$9:L$859,MATCH('2.2'!$A214,'2.2 Daten'!$B$9:$B$859,0))) -> -3.007518797 | J214: =IF($A214<>0,INDEX('2.2 Daten'!M$9:M$859,MATCH('2.2'!$A214,'2.2 Daten'!$B$9:$B$859,0))) -> 7.538802661 | K214: =IF($A214<>0,INDEX('2.2 Daten'!N$9:N$859,MATCH('2.2'!$A214,'2.2 Daten'!$B$9:$B$859,0))) -> 6.325823224 | L214: =IF($A214<>0,INDEX('2.2 Daten'!O$9:O$859,MATCH('2.2'!$A214,'2.2 Daten'!$B$9:$B$859,0))) -> 19.26229508
A215: =CHOOSE('2.2 Daten'!$A$2,'2.2 Daten'!B637,'2.2 Daten'!B186,'2.2 Daten'!B203,'2.2 Daten'!B220,'2.2 Daten'!B223,'2.2 Daten'!B270,'2.2 Daten'!B274,'2.2 Daten'!B329,'2.2 Daten'!B357,'2.2 Daten'!B395,'2.2 Daten'!B441,'2.2 Daten'!B539,'2.2 Daten'!B547,'2.2 Daten'!B550,'2.2 Daten'!B570,'2.2 Daten'!B580,'2.2 Daten'!B595,'2.2 Daten'!B611,x) -> Cochem-Zell | B215: =IF($A215<>0,INDEX('2.2 Daten'!C$9:C$859,MATCH('2.2'!$A215,'2.2 Daten'!$B$9:$B$859,0))," ") -> 07135000 | C215: =IF($A215<>0,INDEX('2.2 Daten'!E$9:E$859,MATCH('2.2'!$A215,'2.2 Daten'!$B$9:$B$859,0))) -> 926 | D215: =IF($A215<>0,INDEX('2.2 Daten'!F$9:F$859,MATCH('2.2'!$A215,'2.2 Daten'!$B$9:$B$859,0))) -> 135 | E215: =IF($A215<>0,INDEX('2.2 Daten'!G$9:G$859,MATCH('2.2'!$A215,'2.2 Daten'!$B$9:$B$859,0))) -> 179 | F215: =IF($A215<>0,INDEX('2.2 Daten'!H$9:H$859,MATCH('2.2'!$A215,'2.2 Daten'!$B$9:$B$859,0))) -> 500 | G215: =IF($A215<>0,INDEX('2.2 Daten'!I$9:I$859,MATCH('2.2'!$A215,'2.2 Daten'!$B$9:$B$859,0))) -> 112 | H215: =IF($A215<>0,INDEX('2.2 Daten'!K$9:K$859,MATCH('2.2'!$A215,'2.2 Daten'!$B$9:$B$859,0))) -> -0.4301075269 | I215: =IF($A215<>0,INDEX('2.2 Daten'!L$9:L$859,MATCH('2.2'!$A215,'2.2 Daten'!$B$9:$B$859,0))) -> -14.55696203 | J215: =IF($A215<>0,INDEX('2.2 Daten'!M$9:M$859,MATCH('2.2'!$A215,'2.2 Daten'!$B$9:$B$859,0))) -> -0.5555555556 | K215: =IF($A215<>0,INDEX('2.2 Daten'!N$9:N$859,MATCH('2.2'!$A215,'2.2 Daten'!$B$9:$B$859,0))) -> 2.669404517 | L215: =IF($A215<>0,INDEX('2.2 Daten'!O$9:O$859,MATCH('2.2'!$A215,'2.2 Daten'!$B$9:$B$859,0))) -> 6.666666667
A216: =CHOOSE('2.2 Daten'!$A$2,'2.2 Daten'!B638,'2.2 Daten'!B187,'2.2 Daten'!B204,'2.2 Daten'!B221,'2.2 Daten'!B224,'2.2 Daten'!B271,'2.2 Daten'!B275,'2.2 Daten'!B330,'2.2 Daten'!B358,'2.2 Daten'!B396,'2.2 Daten'!B442,'2.2 Daten'!B540,'2.2 Daten'!B548,'2.2 Daten'!B551,'2.2 Daten'!B571,'2.2 Daten'!B581,'2.2 Daten'!B596,'2.2 Daten'!B612,x) -> Mayen-Koblenz | B216: =IF($A216<>0,INDEX('2.2 Daten'!C$9:C$859,MATCH('2.2'!$A216,'2.2 Daten'!$B$9:$B$859,0))," ") -> 07137000 | C216: =IF($A216<>0,INDEX('2.2 Daten'!E$9:E$859,MATCH('2.2'!$A216,'2.2 Daten'!$B$9:$B$859,0))) -> 3683 | D216: =IF($A216<>0,INDEX('2.2 Daten'!F$9:F$859,MATCH('2.2'!$A216,'2.2 Daten'!$B$9:$B$859,0))) -> 596 | E216: =IF($A216<>0,INDEX('2.2 Daten'!G$9:G$859,MATCH('2.2'!$A216,'2.2 Daten'!$B$9:$B$859,0))) -> 657 | F216: =IF($A216<>0,INDEX('2.2 Daten'!H$9:H$859,MATCH('2.2'!$A216,'2.2 Daten'!$B$9:$B$859,0))) -> 1901 | G216: =IF($A216<>0,INDEX('2.2 Daten'!I$9:I$859,MATCH('2.2'!$A216,'2.2 Daten'!$B$9:$B$859,0))) -> 529 | H216: =IF($A216<>0,INDEX('2.2 Daten'!K$9:K$859,MATCH('2.2'!$A216,'2.2 Daten'!$B$9:$B$859,0))) -> 12.18397807 | I216: =IF($A216<>0,INDEX('2.2 Daten'!L$9:L$859,MATCH('2.2'!$A216,'2.2 Daten'!$B$9:$B$859,0))) -> 17.78656126 | J216: =IF($A216<>0,INDEX('2.2 Daten'!M$9:M$859,MATCH('2.2'!$A216,'2.2 Daten'!$B$9:$B$859,0))) -> 1.076923077 | K216: =IF($A216<>0,INDEX('2.2 Daten'!N$9:N$859,MATCH('2.2'!$A216,'2.2 Daten'!$B$9:$B$859,0))) -> 13.49253731 | L216: =IF($A216<>0,INDEX('2.2 Daten'!O$9:O$859,MATCH('2.2'!$A216,'2.2 Daten'!$B$9:$B$859,0))) -> 17.03539823
A217: =CHOOSE('2.2 Daten'!$A$2,'2.2 Daten'!B639,'2.2 Daten'!B188,'2.2 Daten'!B205,'2.2 Daten'!B222,'2.2 Daten'!B225,'2.2 Daten'!B272,'2.2 Daten'!B276,'2.2 Daten'!B331,'2.2 Daten'!B359,'2.2 Daten'!B397,'2.2 Daten'!B443,'2.2 Daten'!B541,'2.2 Daten'!B549,'2.2 Daten'!B552,'2.2 Daten'!B572,'2.2 Daten'!B582,'2.2 Daten'!B597,'2.2 Daten'!B613,x) -> Neuwied | B217: =IF($A217<>0,INDEX('2.2 Daten'!C$9:C$859,MATCH('2.2'!$A217,'2.2 Daten'!$B$9:$B$859,0))," ") -> 07138000 | C217: =IF($A217<>0,INDEX('2.2 Daten'!E$9:E$859,MATCH('2.2'!$A217,'2.2 Daten'!$B$9:$B$859,0))) -> 3862 | D217: =IF($A217<>0,INDEX('2.2 Daten'!F$9:F$859,MATCH('2.2'!$A217,'2.2 Daten'!$B$9:$B$859,0))) -> 603 | E217: =IF($A217<>0,INDEX('2.2 Daten'!G$9:G$859,MATCH('2.2'!$A217,'2.2 Daten'!$B$9:$B$859,0))) -> 723 | F217: =IF($A217<>0,INDEX('2.2 Daten'!H$9:H$859,MATCH('2.2'!$A217,'2.2 Daten'!$B$9:$B$859,0))) -> 1986 | G217: =IF($A217<>0,INDEX('2.2 Daten'!I$9:I$859,MATCH('2.2'!$A217,'2.2 Daten'!$B$9:$B$859,0))) -> 550 | H217: =IF($A217<>0,INDEX('2.2 Daten'!K$9:K$859,MATCH('2.2'!$A217,'2.2 Daten'!$B$9:$B$859,0))) -> 14.29416987 | I217: =IF($A217<>0,INDEX('2.2 Daten'!L$9:L$859,MATCH('2.2'!$A217,'2.2 Daten'!$B$9:$B$859,0))) -> 5.41958042 | J217: =IF($A217<>0,INDEX('2.2 Daten'!M$9:M$859,MATCH('2.2'!$A217,'2.2 Daten'!$B$9:$B$859,0))) -> 12.61682243 | K217: =IF($A217<>0,INDEX('2.2 Daten'!N$9:N$859,MATCH('2.2'!$A217,'2.2 Daten'!$B$9:$B$859,0))) -> 17.86350148 | L217: =IF($A217<>0,INDEX('2.2 Daten'!O$9:O$859,MATCH('2.2'!$A217,'2.2 Daten'!$B$9:$B$859,0))) -> 14.58333333
A218: =CHOOSE('2.2 Daten'!$A$2,'2.2 Daten'!B640,'2.2 Daten'!B189,'2.2 Daten'!B206,'2.2 Daten'!B223,'2.2 Daten'!B226,'2.2 Daten'!B273,'2.2 Daten'!B277,'2.2 Daten'!B332,'2.2 Daten'!B360,'2.2 Daten'!B398,'2.2 Daten'!B444,'2.2 Daten'!B542,'2.2 Daten'!B550,'2.2 Daten'!B553,'2.2 Daten'!B573,'2.2 Daten'!B583,'2.2 Daten'!B598,'2.2 Daten'!B614,x) -> Rhein-Hunsrück-Kreis | B218: =IF($A218<>0,INDEX('2.2 Daten'!C$9:C$859,MATCH('2.2'!$A218,'2.2 Daten'!$B$9:$B$859,0))," ") -> 07140000 | C218: =IF($A218<>0,INDEX('2.2 Daten'!E$9:E$859,MATCH('2.2'!$A218,'2.2 Daten'!$B$9:$B$859,0))) -> 1616 | D218: =IF($A218<>0,INDEX('2.2 Daten'!F$9:F$859,MATCH('2.2'!$A218,'2.2 Daten'!$B$9:$B$859,0))) -> 270 | E218: =IF($A218<>0,INDEX('2.2 Daten'!G$9:G$859,MATCH('2.2'!$A218,'2.2 Daten'!$B$9:$B$859,0))) -> 283 | F218: =IF($A218<>0,INDEX('2.2 Daten'!H$9:H$859,MATCH('2.2'!$A218,'2.2 Daten'!$B$9:$B$859,0))) -> 858 | G218: =IF($A218<>0,INDEX('2.2 Daten'!I$9:I$859,MATCH('2.2'!$A218,'2.2 Daten'!$B$9:$B$859,0))) -> 205 | H218: =IF($A218<>0,INDEX('2.2 Daten'!K$9:K$859,MATCH('2.2'!$A218,'2.2 Daten'!$B$9:$B$859,0))) -> -3.866745985 | I218: =IF($A218<>0,INDEX('2.2 Daten'!L$9:L$859,MATCH('2.2'!$A218,'2.2 Daten'!$B$9:$B$859,0))) -> -1.459854015 | J218: =IF($A218<>0,INDEX('2.2 Daten'!M$9:M$859,MATCH('2.2'!$A218,'2.2 Daten'!$B$9:$B$859,0))) -> -5.666666667 | K218: =IF($A218<>0,INDEX('2.2 Daten'!N$9:N$859,MATCH('2.2'!$A218,'2.2 Daten'!$B$9:$B$859,0))) -> -3.050847458 | L218: =IF($A218<>0,INDEX('2.2 Daten'!O$9:O$859,MATCH('2.2'!$A218,'2.2 Daten'!$B$9:$B$859,0))) -> -7.657657658
A219: =CHOOSE('2.2 Daten'!$A$2,'2.2 Daten'!B641,'2.2 Daten'!B190,'2.2 Daten'!B207,'2.2 Daten'!B224,'2.2 Daten'!B227,'2.2 Daten'!B274,'2.2 Daten'!B278,'2.2 Daten'!B333,'2.2 Daten'!B361,'2.2 Daten'!B399,'2.2 Daten'!B445,'2.2 Daten'!B543,'2.2 Daten'!B551,'2.2 Daten'!B554,'2.2 Daten'!B574,'2.2 Daten'!B584,'2.2 Daten'!B599,'2.2 Daten'!B615,x) -> Rhein-Lahn-Kreis | B219: =IF($A219<>0,INDEX('2.2 Daten'!C$9:C$859,MATCH('2.2'!$A219,'2.2 Daten'!$B$9:$B$859,0))," ") -> 07141000 | C219: =IF($A219<>0,INDEX('2.2 Daten'!E$9:E$859,MATCH('2.2'!$A219,'2.2 Daten'!$B$9:$B$859,0))) -> 2038 | D219: =IF($A219<>0,INDEX('2.2 Daten'!F$9:F$859,MATCH('2.2'!$A219,'2.2 Daten'!$B$9:$B$859,0))) -> 331 | E219: =IF($A219<>0,INDEX('2.2 Daten'!G$9:G$859,MATCH('2.2'!$A219,'2.2 Daten'!$B$9:$B$859,0))) -> 390 | F219: =IF($A219<>0,INDEX('2.2 Daten'!H$9:H$859,MATCH('2.2'!$A219,'2.2 Daten'!$B$9:$B$859,0))) -> 1035 | G219: =IF($A219<>0,INDEX('2.2 Daten'!I$9:I$859,MATCH('2.2'!$A219,'2.2 Daten'!$B$9:$B$859,0))) -> 282 | H219: =IF($A219<>0,INDEX('2.2 Daten'!K$9:K$859,MATCH('2.2'!$A219,'2.2 Daten'!$B$9:$B$859,0))) -> -0.5853658537 | I219: =IF($A219<>0,INDEX('2.2 Daten'!L$9:L$859,MATCH('2.2'!$A219,'2.2 Daten'!$B$9:$B$859,0))) -> 2.795031056 | J219: =IF($A219<>0,INDEX('2.2 Daten'!M$9:M$859,MATCH('2.2'!$A219,'2.2 Daten'!$B$9:$B$859,0))) -> -7.582938389 | K219: =IF($A219<>0,INDEX('2.2 Daten'!N$9:N$859,MATCH('2.2'!$A219,'2.2 Daten'!$B$9:$B$859,0))) -> 0.9756097561 | L219: =IF($A219<>0,INDEX('2.2 Daten'!O$9:O$859,MATCH('2.2'!$A219,'2.2 Daten'!$B$9:$B$859,0))) -> 0.3558718861
